{"text_format":"3","workbook":"xlsx","n_sheets":2,"sheets":["Раздел 1","Раздел 2"],"not_rendered":{"images":1,"defined_names":1,"comments":1},"read":"whole","date_system":"1900"}

{"sheet":"Раздел 1","index":0,"n_rows":779,"n_cols":16,"rows_kept":779,"merged":[[0,0,0,12],[1,0,1,12],[83,0,85,0],[83,1,85,1],[83,2,85,2],[83,11,85,11],[86,0,87,0],[86,1,87,1],[86,2,87,2],[86,11,87,11],[88,0,90,0],[88,1,90,1],[88,2,90,2],[88,11,90,11],[92,0,94,0],[92,1,94,1],[92,2,94,2],[92,11,94,11],[102,0,103,0],[102,1,103,1],[102,2,103,2],[102,4,103,4],[102,5,103,5],[102,7,103,7],[102,9,103,9],[102,10,103,10],[102,11,103,11],[104,0,105,0],[104,1,105,1],[104,2,105,2],[104,4,105,4],[104,5,105,5],[104,7,105,7],[104,9,105,9],[104,10,105,10],[104,11,105,11],[114,0,115,0],[114,1,115,1],[114,2,115,2],[114,4,115,4],[114,5,115,5],[114,7,115,7],[114,9,115,9],[114,10,115,10],[114,11,115,11]]}
["РЕЕСТР"]
["муниципальной собственности Черноморского городского поселения Северского района 2019 год РАЗДЕЛ 1 Муниципальное недвижимое имущество"]
["№ по реестру","Наименование недвижимого имущества","Адрес (местоположение) недвижимого имущества","Год ввода","Площадь, протяженность и (или) иные параметры, характеризующие физические свойства недвижимого имущества","Инвентарный номер муниципального имущества","Сведения о кадастровой стоимости недвижимого имущества (кадастровый номер)","Сведения о балансовой стоимости недвижимого имущества ","Сведения о начисленной амортизации (износе)","Сведения об остаточной стоимости имущества, руб","Сведения о правообладателе муниципального недвижимого имущества","Реквизиты документов - оснований возникновения (прекращения) права муниципальной собственности на недвижимое имущество","Сведения об установленных в отношении муниципального недвижимого имущества ограничениях (обременениях) с указанием основания и даты их возникновения и прекращения"]
[1,2,3,4,5,6,7,"8","9","10","11",12,13]
[1,"Здание администрации","п.Черноморский, ул.Дзержинского, 24",1975,"686.9",1101020021,"23:26:1103022:270",{"v":8272738.98,"d":"8,272,738.98"},{"v":5978877.33,"d":"5,978,877.33"},{"v":2293861.65,"d":"2,293,861.65"},"Администрация Черноморского городского поселения (МКУ \"УОДОМСУ Черноморского городского поселения\" постановление №29 от 23.01.2015) передаче муниципального имущества  в оперативное управление)","Закон Краснодарского края от 13.11.2006г. № 1112-КЗ \"О разграничении имущества, находящегося в собственности муниципального образования Северский район, между вновь образованными городскими, сельскими поселениями и муниципальным образованием Северский район, в состав которого они входят\""]
[2,"Гараж","п.Черноморский, ул.Дзержинского, 24",1975,null,1101020022,null,{"v":299617.38,"d":"299,617.38"},{"v":299617.38,"d":"299,617.38"},{"v":0,"d":"0.00"},"Администрация Черноморского городского поселения (МКУ \"УОДОМСУ Черноморского городского поселения\" постановление №29 от 23.01.2015 ) передаче муниципального имущества  в оперативное управление)","Закон Краснодарского края от 13.11.2006г. № 1112-КЗ \"О разграничении имущества, находящегося в собственности муниципального образования Северский район, между вновь образованными городскими, сельскими поселениями и муниципальным образованием Северский район, в состав которого они входят\""]
[5,"Дом (кладбище) ","п.Черноморский ул. Первомайская, 19",1992,null,1101020023,null,{"v":4380.48,"d":"4,380.48"},{"v":4380.48,"d":"4,380.48"},{"v":0,"d":"0.00"},"Администрация Черноморского городского поселения","Закон Краснодарского края от 13.11.2006г. № 1112-КЗ \"О разграничении имущества, находящегося в собственности муниципального образования Северский район, между вновь образованными городскими, сельскими поселениями и муниципальным образованием Северский район, в состав которого они входят\""]
[18,"Квартира № 1","п.Черноморский, ул.Советская, д.37/а кв.1",1973,34.2,null,null,{"v":21475.15,"d":"21,475.15"},{"v":9753.5,"d":"9,753.50"},{"$f":"H8-I8","v":{"v":11721.650000000001,"d":"11,721.65"}},"Администрация Черноморского городского поселения","Решение Совета муниципального образования Северский район от 25.09.2008г. № 767 «О передаче муниципального жилого фонда муниципального образования Северский район в собственность Черноморского городского поселения»;         Решение Совета Черноморского городского поселения Северского района от 30.10.2008г. № 236 \"О принятии жилого фонда в муниципальную казну Черноморского городского поселения безвозмездно от муниципального образования Северский район\"          "]
[19,"Квартира № 2","п. Черноморский ул. Советская, д. 37/а кв. 2",1973,26.4,null,null,{"v":16577.31,"d":"16,577.31"},{"v":7529.02,"d":"7,529.02"},{"v":9048.29,"d":"9,048.29"},"Администрация Черноморского городского поселения","Решение Совета муниципального образования Северский район от 25.09.2008г. № 767 «О передаче муниципального жилого фонда муниципального образования Северский район в собственность Черноморского городского поселения»;         Решение Совета Черноморского городского поселения Северского района от 30.10.2008г. № 236 \"О принятии жилого фонда в муниципальную казну Черноморского городского поселения безвозмездно от муниципального образования Северский район\"          "]
[20,"Квартира № 3","п.Черноморский, ул.Советская, д.37/а кв.3",1973,63.1,null,null,{"v":39622.28,"d":"39,622.28"},{"v":17995.49,"d":"17,995.49"},{"v":21626.789999999997,"d":"21,626.79"},"Администрация Черноморского городского поселения","Решение Совета муниципального образования Северский район от 25.09.2008г. № 767 «О передаче муниципального жилого фонда муниципального образования Северский район в собственность Черноморского городского поселения»;         Решение Совета Черноморского городского поселения Северского района от 30.10.2008г. № 236 \"О принятии жилого фонда в муниципальную казну Черноморского городского поселения безвозмездно от муниципального образования Северский район\"          "]
[21,"Квартира № 5 ","п.Черноморский, ул.Советская, д.37/а кв.5",1973,34.4,null,null,{"v":21600.74,"d":"21,600.74"},{"v":9810.54,"d":"9,810.54"},{"v":11790.2,"d":"11,790.20"},"Администрация Черноморского городского поселения","Решение Совета муниципального образования Северский район от 25.09.2008г. № 767 «О передаче муниципального жилого фонда муниципального образования Северский район в собственность Черноморского городского поселения»;         Решение Совета Черноморского городского поселения Северского района от 30.10.2008г. № 236 \"О принятии жилого фонда в муниципальную казну Черноморского городского поселения безвозмездно от муниципального образования Северский район\"          "]
[22,"Квартира № 6","п. Черноморский, ул. Советская, 37/а кв. 6",1973,26.8,null,null,{"v":16828.48,"d":"16,828.48"},{"v":7643.1,"d":"7,643.10"},{"v":9185.38,"d":"9,185.38"},"Администрация Черноморского городского поселения","Решение Совета муниципального образования Северский район от 25.09.2008г. № 767 «О передаче муниципального жилого фонда муниципального образования Северский район в собственность Черноморского городского поселения»;         Решение Совета Черноморского городского поселения Северского района от 30.10.2008г. № 236 \"О принятии жилого фонда в муниципальную казну Черноморского городского поселения безвозмездно от муниципального образования Северский район\"          "]
[23,"Квартира № 7 ","п.Черноморский, ул.Советская, д.37/а кв.7",1973,34.7,null,null,{"v":21789.12,"d":"21,789.12"},{"v":9896.1,"d":"9,896.10"},{"v":11893.019999999999,"d":"11,893.02"},"Администрация Черноморского городского поселения","Решение Совета муниципального образования Северский район от 25.09.2008г. № 767 «О передаче муниципального жилого фонда муниципального образования Северский район в собственность Черноморского городского поселения»;         Решение Совета Черноморского городского поселения Северского района от 30.10.2008г. № 236 \"О принятии жилого фонда в муниципальную казну Черноморского городского поселения безвозмездно от муниципального образования Северский район\"          "]
[24,"Квартира № 8","п.Черноморский, ул.Советская, д.37/а кв.8",1973,26.7,null,null,{"v":16765.69,"d":"16,765.69"},{"v":7614.58,"d":"7,614.58"},{"v":9151.109999999999,"d":"9,151.11"},"Администрация Черноморского городского поселения","Решение Совета муниципального образования Северский район от 25.09.2008г. № 767 «О передаче муниципального жилого фонда муниципального образования Северский район в собственность Черноморского городского поселения»;         Решение Совета Черноморского городского поселения Северского района от 30.10.2008г. № 236 \"О принятии жилого фонда в муниципальную казну Черноморского городского поселения безвозмездно от муниципального образования Северский район\"          "]
[40,"Квартира № 1","п.Черноморский, ул.Пушкина, д.14 кв.1",1949,15.8,null,null,{"v":14443.55,"d":"14,443.55"},{"v":14443.55,"d":"14,443.55"},{"v":0,"d":"0.00"},"Администрация Черноморского городского поселения","Решение Совета муниципального образования Северский район от 25.09.2008г. № 767 «О передаче муниципального жилого фонда муниципального образования Северский район в собственность Черноморского городского поселения»;         Решение Совета Черноморского городского поселения Северского района от 30.10.2008г. № 236 \"О принятии жилого фонда в муниципальную казну Черноморского городского поселения безвозмездно от муниципального образования Северский район\"          "]
[43,"Квартира № 1","п.Октябрьский, ул.Пушкина, д.15 кв.1",1949,65.3,null,null,{"v":37357.28,"d":"37,357.28"},{"v":37357.28,"d":"37,357.28"},{"v":0,"d":"0.00"},"Администрация Черноморского городского поселения","Решение Совета муниципального образования Северский район от 25.09.2008г. № 767 «О передаче муниципального жилого фонда муниципального образования Северский район в собственность Черноморского городского поселения»;         Решение Совета Черноморского городского поселения Северского района от 30.10.2008г. № 236 \"О принятии жилого фонда в муниципальную казну Черноморского городского поселения безвозмездно от муниципального образования Северский район\"          "]
[52,"Квартира № 3","п.Черноморский, ул.Пушкина, д.4 кв.3",1963,32.9,null,"23:26:1103022:0:11/4",{"v":5818.13,"d":"5,818.13"},{"v":5818.13,"d":"5,818.13"},{"v":0,"d":"0.00"},"Администрация Черноморского городского поселения","Решение Совета муниципального образования Северский район от 25.09.2008г. № 767 «О передаче муниципального жилого фонда муниципального образования Северский район в собственность Черноморского городского поселения»;         Решение Совета Черноморского городского поселения Северского района от 30.10.2008г. № 236 \"О принятии жилого фонда в муниципальную казну Черноморского городского поселения безвозмездно от муниципального образования Северский район\"          "]
[61,"Квартира № 10","п.Черноморский, ул.Новороссийская, д.36 кв. 10",1971,27.9,null,null,{"v":20614.02,"d":"20,614.02"},{"v":6376.6,"d":"6,376.60"},{"$f":"H18-I18","v":{"v":14237.42,"d":"14,237.42"}},"Администрация Черноморского городского поселения","Решение Совета муниципального образования Северский район от 25.09.2008г. № 767 «О передаче муниципального жилого фонда муниципального образования Северский район в собственность Черноморского городского поселения»;         Решение Совета Черноморского городского поселения Северского района от 30.10.2008г. № 236 \"О принятии жилого фонда в муниципальную казну Черноморского городского поселения безвозмездно от муниципального образования Северский район\"          "]
[67,"Квартира № 14","п.Черноморский, ул.Новороссийская, д.24 кв. 14",1960,26.04,null,null,{"v":19868.24,"d":"19,868.24"},{"v":6260.57,"d":"6,260.57"},{"$f":"H19-I19","v":{"v":13607.670000000002,"d":"13,607.67"}},"Администрация Черноморского городского поселения","Решение Совета муниципального образования Северский район от 25.09.2008г. № 767 «О передаче муниципального жилого фонда муниципального образования Северский район в собственность Черноморского городского поселения»;         Решение Совета Черноморского городского поселения Северского района от 30.10.2008г. № 236 \"О принятии жилого фонда в муниципальную казну Черноморского городского поселения безвозмездно от муниципального образования Северский район\"          "]
[80,"Квартира № 20","п.Черноморский, ул.Новороссийская, д.9 кв.20",1973,41.2,null,null,{"v":41123.53,"d":"41,123.53"},{"v":15973.08,"d":"15,973.08"},{"$f":"H20-I20","v":{"v":25150.449999999997,"d":"25,150.45"}},"Администрация Черноморского городского поселения","Решение Совета муниципального образования Северский район от 25.09.2008г. № 767 «О передаче муниципального жилого фонда муниципального образования Северский район в собственность Черноморского городского поселения»;         Решение Совета Черноморского городского поселения Северского района от 30.10.2008г. № 236 \"О принятии жилого фонда в муниципальную казну Черноморского городского поселения безвозмездно от муниципального образования Северский район\"          "]
[84,"Квартира № 8","п.Черноморский, ул.Новороссийская, д.12 кв.8",1954,43,null,null,{"v":38145.25,"d":"38,145.25"},{"v":23618.25,"d":"23,618.25"},{"$f":"H21-I21","v":{"v":14527,"d":"14,527.00"}},"Администрация Черноморского городского поселения","Решение Совета муниципального образования Северский район от 25.09.2008г. № 767 «О передаче муниципального жилого фонда муниципального образования Северский район в собственность Черноморского городского поселения»;         Решение Совета Черноморского городского поселения Северского района от 30.10.2008г. № 236 \"О принятии жилого фонда в муниципальную казну Черноморского городского поселения безвозмездно от муниципального образования Северский район\"          "]
[93,"Квартира № 30","п.Черноморский, ул.Новая, д.11 кв. 30",1985,16.2,null,null,{"v":14983.33,"d":"14,983.33"},{"v":2883.05,"d":"2,883.05"},{"v":12100.28,"d":"12,100.28"},"Администрация Черноморского городского поселения","Решение Совета муниципального образования Северский район от 25.09.2008г. № 767 «О передаче муниципального жилого фонда муниципального образования Северский район в собственность Черноморского городского поселения»;         Решение Совета Черноморского городского поселения Северского района от 30.10.2008г. № 236 \"О принятии жилого фонда в муниципальную казну Черноморского городского поселения безвозмездно от муниципального образования Северский район\"          "]
[95,"Квартира № 6а","п.Черноморский, ул.Новая, д.11 кв. 6а",1985,62.85,null,null,{"v":58129.76,"d":"58,129.76"},{"v":11185.16,"d":"11,185.16"},{"v":46944.6,"d":"46,944.60"},"Администрация Черноморского городского поселения","Решение Совета муниципального образования Северский район от 25.09.2008г. № 767 «О передаче муниципального жилого фонда муниципального образования Северский район в собственность Черноморского городского поселения»;         Решение Совета Черноморского городского поселения Северского района от 30.10.2008г. № 236 \"О принятии жилого фонда в муниципальную казну Черноморского городского поселения безвозмездно от муниципального образования Северский район\"          "]
[101,"Квартира № 28","п.Черноморский, ул.Новая, д. 9 кв. 28",1984,60.6,null,null,{"v":60155.37,"d":"60,155.37"},{"v":12056.16,"d":"12,056.16"},{"v":48099.21,"d":"48,099.21"},"Администрация Черноморского городского поселения","Решение Совета муниципального образования Северский район от 25.09.2008г. № 767 «О передаче муниципального жилого фонда муниципального образования Северский район в собственность Черноморского городского поселения»;         Решение Совета Черноморского городского поселения Северского района от 30.10.2008г. № 236 \"О принятии жилого фонда в муниципальную казну Черноморского городского поселения безвозмездно от муниципального образования Северский район\"          "]
[113,"Квартира № 38","п.Черноморский, ул.Новая, д. 2 кв. 38",1995,67.4,null,null,{"v":5657.06,"d":"5,657.06"},{"v":907.5,"d":"907.50"},{"v":4749.56,"d":"4,749.56"},"Администрация Черноморского городского поселения","Решение Совета муниципального образования Северский район от 25.09.2008г. № 767 «О передаче муниципального жилого фонда муниципального образования Северский район в собственность Черноморского городского поселения»;         Решение Совета Черноморского городского поселения Северского района от 30.10.2008г. № 236 \"О принятии жилого фонда в муниципальную казну Черноморского городского поселения безвозмездно от муниципального образования Северский район\"          "]
[125,"Квартира № 2б","п.Черноморский, ул.Мира, д. 52 кв. 2б",1952,11.7,null,null,{"v":8537.72,"d":"8,537.72"},{"v":4963.27,"d":"4,963.27"},{"v":3574.45,"d":"3,574.45"},"Администрация Черноморского городского поселения","Решение Совета муниципального образования Северский район от 25.09.2008г. № 767 «О передаче муниципального жилого фонда муниципального образования Северский район в собственность Черноморского городского поселения»;         Решение Совета Черноморского городского поселения Северского района от 30.10.2008г. № 236 \"О принятии жилого фонда в муниципальную казну Черноморского городского поселения безвозмездно от муниципального образования Северский район\"          "]
[126,"Квартира № 3","п.Черноморский, ул.Мира, д. 34 кв. 3",1953,41.4,null,null,{"v":24355.55,"d":"24,355.55"},{"v":13915.11,"d":"13,915.11"},{"v":10440.44,"d":"10,440.44"},"Администрация Черноморского городского поселения","Решение Совета муниципального образования Северский район от 25.09.2008г. № 767 «О передаче муниципального жилого фонда муниципального образования Северский район в собственность Черноморского городского поселения»;         Решение Совета Черноморского городского поселения Северского района от 30.10.2008г. № 236 \"О принятии жилого фонда в муниципальную казну Черноморского городского поселения безвозмездно от муниципального образования Северский район\"          "]
[128,"Квартира № 2","п.Черноморский, ул.Мира, д. 36 кв. 2",1958,53.9,null,null,{"v":41383.9,"d":"41,383.90"},{"v":18512.38,"d":"18,512.38"},{"v":22871.52,"d":"22,871.52"},"Администрация Черноморского городского поселения","Решение Совета муниципального образования Северский район от 25.09.2008г. № 767 «О передаче муниципального жилого фонда муниципального образования Северский район в собственность Черноморского городского поселения»;         Решение Совета Черноморского городского поселения Северского района от 30.10.2008г. № 236 \"О принятии жилого фонда в муниципальную казну Черноморского городского поселения безвозмездно от муниципального образования Северский район\"          "]
[132,"Квартира № 3","п.Черноморский, ул.Мира, д. 38 кв. 3",1952,45,null,null,{"v":33682.46,"d":"33,682.46"},{"v":15067.28,"d":"15,067.28"},{"v":18615.18,"d":"18,615.18"},"Администрация Черноморского городского поселения","Решение Совета муниципального образования Северский район от 25.09.2008г. № 767 «О передаче муниципального жилого фонда муниципального образования Северский район в собственность Черноморского городского поселения»;         Решение Совета Черноморского городского поселения Северского района от 30.10.2008г. № 236 \"О принятии жилого фонда в муниципальную казну Черноморского городского поселения безвозмездно от муниципального образования Северский район\"          "]
[133,"Квартира № 2а","п.Черноморский, ул.Мира, д. 38 кв. 2а",1952,14.6,null,null,{"v":10928.09,"d":"10,928.09"},{"v":4888.5,"d":"4,888.50"},{"v":6039.59,"d":"6,039.59"},"Администрация Черноморского городского поселения","Решение Совета муниципального образования Северский район от 25.09.2008г. № 767 «О передаче муниципального жилого фонда муниципального образования Северский район в собственность Черноморского городского поселения»;         Решение Совета Черноморского городского поселения Северского района от 30.10.2008г. № 236 \"О принятии жилого фонда в муниципальную казну Черноморского городского поселения безвозмездно от муниципального образования Северский район\"          "]
[138,"Квартира № 4","п.Черноморский, ул.Мира, д. 14 кв. 4",1959,28.9,null,null,{"v":8195.47,"d":"8,195.47"},{"v":8195.47,"d":"8,195.47"},{"v":0,"d":"0.00"},"Администрация Черноморского городского поселения","Решение Совета муниципального образования Северский район от 25.09.2008г. № 767 «О передаче муниципального жилого фонда муниципального образования Северский район в собственность Черноморского городского поселения»;         Решение Совета Черноморского городского поселения Северского района от 30.10.2008г. № 236 \"О принятии жилого фонда в муниципальную казну Черноморского городского поселения безвозмездно от муниципального образования Северский район\"          "]
[141,"Квартира № 4","п.Черноморский, ул.Мира, д. 4 кв. 4",1959,29.9,null,null,{"v":21453.99,"d":"21,453.99"},{"v":21453.99,"d":"21,453.99"},{"v":0,"d":"0.00"},"Администрация Черноморского городского поселения","Решение Совета муниципального образования Северский район от 25.09.2008г. № 767 «О передаче муниципального жилого фонда муниципального образования Северский район в собственность Черноморского городского поселения»;         Решение Совета Черноморского городского поселения Северского района от 30.10.2008г. № 236 \"О принятии жилого фонда в муниципальную казну Черноморского городского поселения безвозмездно от муниципального образования Северский район\"          "]
[147,"Квартира № 56","п.Черноморский, ул.Ленина, д. 20 кв. 56",1987,29.4,null,null,{"v":52992.07,"d":"52,992.07"},{"v":6256.51,"d":"6,256.51"},{"v":46735.56,"d":"46,735.56"},"Администрация Черноморского городского поселения","Решение Совета муниципального образования Северский район от 25.09.2008г. № 767 «О передаче муниципального жилого фонда муниципального образования Северский район в собственность Черноморского городского поселения»;         Решение Совета Черноморского городского поселения Северского района от 30.10.2008г. № 236 \"О принятии жилого фонда в муниципальную казну Черноморского городского поселения безвозмездно от муниципального образования Северский район\"          "]
[156,"Квартира № 45","п.Черноморский, ул.Ленина, д. 20 кв. 45",1987,47,null,null,{"v":84715.22,"d":"84,715.22"},{"v":10001.9,"d":"10,001.90"},{"v":74713.32,"d":"74,713.32"},"Администрация Черноморского городского поселения","Решение Совета муниципального образования Северский район от 25.09.2008г. № 767 «О передаче муниципального жилого фонда муниципального образования Северский район в собственность Черноморского городского поселения»;         Решение Совета Черноморского городского поселения Северского района от 30.10.2008г. № 236 \"О принятии жилого фонда в муниципальную казну Черноморского городского поселения безвозмездно от муниципального образования Северский район\"          "]
[158,"Квартира № 31","п.Черноморский, ул.Ленина, д. 4 кв. 31",1991,17.3,null,null,{"v":39689.32,"d":"39,689.32"},{"v":5411.48,"d":"5,411.48"},{"v":34277.84,"d":"34,277.84"},"Администрация Черноморского городского поселения","Решение Совета муниципального образования Северский район от 25.09.2008г. № 767 «О передаче муниципального жилого фонда муниципального образования Северский район в собственность Черноморского городского поселения»;         Решение Совета Черноморского городского поселения Северского района от 30.10.2008г. № 236 \"О принятии жилого фонда в муниципальную казну Черноморского городского поселения безвозмездно от муниципального образования Северский район\"          "]
[168,"Квартира № 31 а","п.Черноморский, ул.Ленина, д. 4 кв. 31а",1991,20.6,null,null,{"v":47260.12,"d":"47,260.12"},{"v":10330.17,"d":"10,330.17"},{"v":36928.95,"d":"36,928.95"},"Администрация Черноморского городского поселения","Решение Совета муниципального образования Северский район от 25.09.2008г. № 767 «О передаче муниципального жилого фонда муниципального образования Северский район в собственность Черноморского городского поселения»;         Решение Совета Черноморского городского поселения Северского района от 30.10.2008г. № 236 \"О принятии жилого фонда в муниципальную казну Черноморского городского поселения безвозмездно от муниципального образования Северский район\"          "]
[169,"Квартира № 31 б","п.Черноморский, ул.Ленина, д. 4 кв. 31 б",1991,31.3,null,null,{"v":71807.85,"d":"71,807.85"},{"v":9790.71,"d":"9,790.71"},{"v":62617.14,"d":"62,617.14"},"Администрация Черноморского городского поселения","Решение Совета муниципального образования Северский район от 25.09.2008г. № 767 «О передаче муниципального жилого фонда муниципального образования Северский район в собственность Черноморского городского поселения»;         Решение Совета Черноморского городского поселения Северского района от 30.10.2008г. № 236 \"О принятии жилого фонда в муниципальную казну Черноморского городского поселения безвозмездно от муниципального образования Северский район\"          "]
[177,"Квартира № 17","п.Черноморский, ул.Ленина, д. 2 кв. 17",2001,63.5,null,null,{"v":317333.56,"d":"317,333.56"},{"v":16342.68,"d":"16,342.68"},{"v":300990.88,"d":"300,990.88"},"Администрация Черноморского городского поселения","Решение Совета муниципального образования Северский район от 25.09.2008г. № 767 «О передаче муниципального жилого фонда муниципального образования Северский район в собственность Черноморского городского поселения»;         Решение Совета Черноморского городского поселения Северского района от 30.10.2008г. № 236 \"О принятии жилого фонда в муниципальную казну Черноморского городского поселения безвозмездно от муниципального образования Северский район\"          "]
[181,"Квартира № 40","п.Черноморский, ул.Ленина, д. 2 кв. 40",2001,50.37,null,null,{"v":251717.98,"d":"251,717.98"},{"v":12963.48,"d":"12,963.48"},{"v":238754.5,"d":"238,754.50"},"Администрация Черноморского городского поселения","Решение Совета муниципального образования Северский район от 25.09.2008г. № 767 «О передаче муниципального жилого фонда муниципального образования Северский район в собственность Черноморского городского поселения»;         Решение Совета Черноморского городского поселения Северского района от 30.10.2008г. № 236 \"О принятии жилого фонда в муниципальную казну Черноморского городского поселения безвозмездно от муниципального образования Северский район\"          "]
[186,"Квартира № 54","п.Черноморский, ул.Ленина, д. 2 кв. 54",2001,65.49,null,null,{"v":327278.35,"d":"327,278.35"},{"v":16854.84,"d":"16,854.84"},{"v":310423.51,"d":"310,423.51"},"Администрация Черноморского городского поселения","Решение Совета муниципального образования Северский район от 25.09.2008г. № 767 «О передаче муниципального жилого фонда муниципального образования Северский район в собственность Черноморского городского поселения»;         Решение Совета Черноморского городского поселения Северского района от 30.10.2008г. № 236 \"О принятии жилого фонда в муниципальную казну Черноморского городского поселения безвозмездно от муниципального образования Северский район\"          "]
[191,"Квартира № 5","п.Черноморский, ул.Крупской, д. 25 а кв. 5",1972,40.9,null,null,{"v":39319.06,"d":"39,319.06"},{"v":11848.17,"d":"11,848.17"},{"v":27470.89,"d":"27,470.89"},"Администрация Черноморского городского поселения","Решение Совета муниципального образования Северский район от 25.09.2008г. № 767 «О передаче муниципального жилого фонда муниципального образования Северский район в собственность Черноморского городского поселения»;         Решение Совета Черноморского городского поселения Северского района от 30.10.2008г. № 236 \"О принятии жилого фонда в муниципальную казну Черноморского городского поселения безвозмездно от муниципального образования Северский район\"          "]
[192,"Квартира № 10","п.Черноморский, ул.Крупской, д. 14 кв. 10",1950,27,null,null,{"v":9023.04,"d":"9,023.04"},{"v":9023.04,"d":"9,023.04"},{"v":0,"d":"0.00"},"Администрация Черноморского городского поселения","Решение Совета муниципального образования Северский район от 25.09.2008г. № 767 «О передаче муниципального жилого фонда муниципального образования Северский район в собственность Черноморского городского поселения»;         Решение Совета Черноморского городского поселения Северского района от 30.10.2008г. № 236 \"О принятии жилого фонда в муниципальную казну Черноморского городского поселения безвозмездно от муниципального образования Северский район\"          "]
[193,"Квартира № 4","п.Черноморский, ул.Крупской, д. 15 кв. 4",1950,77.8,null,null,{"v":40086.13,"d":"40,086.13"},{"v":40086.13,"d":"40,086.13"},{"v":0,"d":"0.00"},"Администрация Черноморского городского поселения","Решение Совета муниципального образования Северский район от 25.09.2008г. № 767 «О передаче муниципального жилого фонда муниципального образования Северский район в собственность Черноморского городского поселения»;         Решение Совета Черноморского городского поселения Северского района от 30.10.2008г. № 236 \"О принятии жилого фонда в муниципальную казну Черноморского городского поселения безвозмездно от муниципального образования Северский район\"          "]
[195,"Квартира № 3","п.Черноморский, ул.Крупской д. 16 кв. 3",1950,27.2,null,null,{"v":14131.5,"d":"14,131.50"},{"v":14131.5,"d":"14,131.50"},{"v":0,"d":"0.00"},"Администрация Черноморского городского поселения","Решение Совета муниципального образования Северский район от 25.09.2008г. № 767 «О передаче муниципального жилого фонда муниципального образования Северский район в собственность Черноморского городского поселения»;         Решение Совета Черноморского городского поселения Северского района от 30.10.2008г. № 236 \"О принятии жилого фонда в муниципальную казну Черноморского городского поселения безвозмездно от муниципального образования Северский район\"          "]
[196,"Квартира № 9","п.Черноморский, ул.Крупской, д. 16 кв. 9",1950,27,null,null,{"v":14027.59,"d":"14,027.59"},{"v":14027.59,"d":"14,027.59"},{"v":0,"d":"0.00"},"Администрация Черноморского городского поселения","Решение Совета муниципального образования Северский район от 25.09.2008г. № 767 «О передаче муниципального жилого фонда муниципального образования Северский район в собственность Черноморского городского поселения»;         Решение Совета Черноморского городского поселения Северского района от 30.10.2008г. № 236 \"О принятии жилого фонда в муниципальную казну Черноморского городского поселения безвозмездно от муниципального образования Северский район\"          "]
[199,"Квартира № 4","п.Черноморский, ул.Крупской, д. 17 кв. 4",1950,27.5,null,null,{"v":12478.26,"d":"12,478.26"},{"v":11245.92,"d":"11,245.92"},{"v":1234.34,"d":"1,234.34"},"Администрация Черноморского городского поселения","Решение Совета муниципального образования Северский район от 25.09.2008г. № 767 «О передаче муниципального жилого фонда муниципального образования Северский район в собственность Черноморского городского поселения»;         Решение Совета Черноморского городского поселения Северского района от 30.10.2008г. № 236 \"О принятии жилого фонда в муниципальную казну Черноморского городского поселения безвозмездно от муниципального образования Северский район\"          "]
[204,"Квартира № 3","п.Черноморский, ул.Крупской, д. 22 кв. 3",1950,41.8,null,null,{"v":55146.35,"d":"55,146.35"},{"v":38064.93,"d":"38,064.93"},{"v":17081.42,"d":"17,081.42"},"Администрация Черноморского городского поселения","Решение Совета муниципального образования Северский район от 25.09.2008г. № 767 «О передаче муниципального жилого фонда муниципального образования Северский район в собственность Черноморского городского поселения»;         Решение Совета Черноморского городского поселения Северского района от 30.10.2008г. № 236 \"О принятии жилого фонда в муниципальную казну Черноморского городского поселения безвозмездно от муниципального образования Северский район\"          "]
[209,"Квартира № 4","п.Черноморский, ул.Крупской, д. 4 кв. 4",1950,27,null,null,{"v":12150.77,"d":"12,150.77"},{"v":9910.68,"d":"9,910.68"},{"v":2240.09,"d":"2,240.09"},"Администрация Черноморского городского поселения","Решение Совета муниципального образования Северский район от 25.09.2008г. № 767 «О передаче муниципального жилого фонда муниципального образования Северский район в собственность Черноморского городского поселения»;         Решение Совета Черноморского городского поселения Северского района от 30.10.2008г. № 236 \"О принятии жилого фонда в муниципальную казну Черноморского городского поселения безвозмездно от муниципального образования Северский район\"          "]
[212,"Квартира № 5","п.Черноморский, ул.Крупской, д. 10 кв. 5",1950,28.2,null,null,{"v":12365.42,"d":"12,365.42"},{"v":12365.42,"d":"12,365.42"},{"v":0,"d":"0.00"},"Администрация Черноморского городского поселения","Решение Совета муниципального образования Северский район от 25.09.2008г. № 767 «О передаче муниципального жилого фонда муниципального образования Северский район в собственность Черноморского городского поселения»;         Решение Совета Черноморского городского поселения Северского района от 30.10.2008г. № 236 \"О принятии жилого фонда в муниципальную казну Черноморского городского поселения безвозмездно от муниципального образования Северский район\"          "]
[216,"Квартира № 3 ","п.Черноморский, ул.Космонавтов, д. 6 кв. 3",1960,24.1,null,null,{"v":12395.59,"d":"12,395.59"},{"v":5906.52,"d":"5,906.52"},{"v":6489.07,"d":"6,489.07"},"Администрация Черноморского городского поселения","Решение Совета муниципального образования Северский район от 25.09.2008г. № 767 «О передаче муниципального жилого фонда муниципального образования Северский район в собственность Черноморского городского поселения»;         Решение Совета Черноморского городского поселения Северского района от 30.10.2008г. № 236 \"О принятии жилого фонда в муниципальную казну Черноморского городского поселения безвозмездно от муниципального образования Северский район\"          "]
[220,"Квартира № 1 а ","п.Черноморский, ул.Кирова, д. 33 кв. 1а  ",1960,26.1,null,null,{"v":15042.26,"d":"15,042.26"},{"v":4169.22,"d":"4,169.22"},{"v":10873.04,"d":"10,873.04"},"Администрация Черноморского городского поселения","Решение Совета муниципального образования Северский район от 25.09.2008г. № 767 «О передаче муниципального жилого фонда муниципального образования Северский район в собственность Черноморского городского поселения»;         Решение Совета Черноморского городского поселения Северского района от 30.10.2008г. № 236 \"О принятии жилого фонда в муниципальную казну Черноморского городского поселения безвозмездно от муниципального образования Северский район\"          "]
[228,"Квартира № 1","п.Черноморский, ул.Кирова, д. 27 кв. 1 ",1952,45.6,null,null,{"v":35586.91,"d":"35,586.91"},{"v":19827.82,"d":"19,827.82"},{"v":15759.09,"d":"15,759.09"},"Администрация Черноморского городского поселения","Решение Совета муниципального образования Северский район от 25.09.2008г. № 767 «О передаче муниципального жилого фонда муниципального образования Северский район в собственность Черноморского городского поселения»;         Решение Совета Черноморского городского поселения Северского района от 30.10.2008г. № 236 \"О принятии жилого фонда в муниципальную казну Черноморского городского поселения безвозмездно от муниципального образования Северский район\"          "]
[232,"Квартира № 5","п.Черноморский, ул.Кирова, д. 31 кв. 5  ",1954,63.5,null,null,{"v":36930.34,"d":"36,930.34"},{"v":19837.76,"d":"19,837.76"},{"v":17092.58,"d":"17,092.58"},"Администрация Черноморского городского поселения","Решение Совета муниципального образования Северский район от 25.09.2008г. № 767 «О передаче муниципального жилого фонда муниципального образования Северский район в собственность Черноморского городского поселения»;         Решение Совета Черноморского городского поселения Северского района от 30.10.2008г. № 236 \"О принятии жилого фонда в муниципальную казну Черноморского городского поселения безвозмездно от муниципального образования Северский район\"          "]
[235,"Квартира № 1б","п.Черноморский, ул.Кирова, д. 31 кв. 1б  ",1954,13.7,null,null,{"v":7967.65,"d":"7,967.65"},{"v":4404.92,"d":"4,404.92"},{"v":3562.73,"d":"3,562.73"},"Администрация Черноморского городского поселения","Решение Совета муниципального образования Северский район от 25.09.2008г. № 767 «О передаче муниципального жилого фонда муниципального образования Северский район в собственность Черноморского городского поселения»;         Решение Совета Черноморского городского поселения Северского района от 30.10.2008г. № 236 \"О принятии жилого фонда в муниципальную казну Черноморского городского поселения безвозмездно от муниципального образования Северский район\"          "]
[243,"Квартира № 5","п.Черноморский, ул.Калинина, д. 24 кв. 5 ",1949,29.24,null,null,{"v":11643.41,"d":"11,643.41"},{"v":11643.41,"d":"11,643.41"},{"v":0,"d":"0.00"},"Администрация Черноморского городского поселения","Решение Совета муниципального образования Северский район от 25.09.2008г. № 767 «О передаче муниципального жилого фонда муниципального образования Северский район в собственность Черноморского городского поселения»;         Решение Совета Черноморского городского поселения Северского района от 30.10.2008г. № 236 \"О принятии жилого фонда в муниципальную казну Черноморского городского поселения безвозмездно от муниципального образования Северский район\"          ",{"$nulls":3}," "]
[245,"Квартира № 3","п.Черноморский, ул.Калинина, д. 25 кв. 3 ",1949,27.5,null,null,{"v":1585.34,"d":"1,585.34"},{"v":1169.77,"d":"1,169.77"},{"v":0,"d":"0.00"},"Администрация Черноморского городского поселения","Решение Совета муниципального образования Северский район от 25.09.2008г. № 767 «О передаче муниципального жилого фонда муниципального образования Северский район в собственность Черноморского городского поселения»;         Решение Совета Черноморского городского поселения Северского района от 30.10.2008г. № 236 \"О принятии жилого фонда в муниципальную казну Черноморского городского поселения безвозмездно от муниципального образования Северский район\"          "]
[246,"Квартира № 3","п.Черноморский, ул.Калинина, д. 26 кв. 3 ",1949,38.3,null,null,{"v":54864.82,"d":"54,864.82"},{"v":54864.82,"d":"54,864.82"},{"v":0,"d":"0.00"},"Администрация Черноморского городского поселения","Решение Совета муниципального образования Северский район от 25.09.2008г. № 767 «О передаче муниципального жилого фонда муниципального образования Северский район в собственность Черноморского городского поселения»;         Решение Совета Черноморского городского поселения Северского района от 30.10.2008г. № 236 \"О принятии жилого фонда в муниципальную казну Черноморского городского поселения безвозмездно от муниципального образования Северский район\"          "]
[249,"Квартира № 6","п.Черноморский, ул.Калинина, д. 37 кв. 6 ",1958,43.3,null,"23:26:1103016:201",{"v":17607.55,"d":"17,607.55"},{"v":17607.55,"d":"17,607.55"},{"v":0,"d":"0.00"},"Администрация Черноморского городского поселения","Решение Совета муниципального образования Северский район от 25.09.2008г. № 767 «О передаче муниципального жилого фонда муниципального образования Северский район в собственность Черноморского городского поселения»;         Решение Совета Черноморского городского поселения Северского района от 30.10.2008г. № 236 \"О принятии жилого фонда в муниципальную казну Черноморского городского поселения безвозмездно от муниципального образования Северский район\"          "]
[251,"Квартира № 6","п.Черноморский, ул.Калинина, д. 16 кв. 6",1949,56,null,null,{"v":48510.6,"d":"48,510.60"},{"v":48510.6,"d":"48,510.60"},{"v":0,"d":"0.00"},"Администрация Черноморского городского поселения","Решение Совета муниципального образования Северский район от 25.09.2008г. № 767 «О передаче муниципального жилого фонда муниципального образования Северский район в собственность Черноморского городского поселения»;         Решение Совета Черноморского городского поселения Северского района от 30.10.2008г. № 236 \"О принятии жилого фонда в муниципальную казну Черноморского городского поселения безвозмездно от муниципального образования Северский район\"          "]
[261,"Квартира № 6","п.Черноморский, ул.Калинина, д. 8 кв. 6 ",1960,25.7,null,null,{"v":16790.35,"d":"16,790.35"},{"v":13810.43,"d":"13,810.43"},{"v":2979.92,"d":"2,979.92"},"Администрация Черноморского городского поселения","Решение Совета муниципального образования Северский район от 25.09.2008г. № 767 «О передаче муниципального жилого фонда муниципального образования Северский район в собственность Черноморского городского поселения»;         Решение Совета Черноморского городского поселения Северского района от 30.10.2008г. № 236 \"О принятии жилого фонда в муниципальную казну Черноморского городского поселения безвозмездно от муниципального образования Северский район\"          "]
[266,"Квартира № 3","п.Черноморский, ул.Калинина, д. 11 кв. 3   ",1949,39.3,null,null,{"v":28481.91,"d":"28,481.91"},{"v":28481.91,"d":"28,481.91"},{"v":0,"d":"0.00"},"Администрация Черноморского городского поселения","Решение Совета муниципального образования Северский район от 25.09.2008г. № 767 «О передаче муниципального жилого фонда муниципального образования Северский район в собственность Черноморского городского поселения»;         Решение Совета Черноморского городского поселения Северского района от 30.10.2008г. № 236 \"О принятии жилого фонда в муниципальную казну Черноморского городского поселения безвозмездно от муниципального образования Северский район\"          "]
[267,"Квартира № 5","п.Черноморский, ул.Калинина, д. 11 кв. 5 ",1949,35.9,null,null,{"v":26017.83,"d":"26,017.83"},{"v":26017.83,"d":"26,017.83"},{"v":0,"d":"0.00"},"Администрация Черноморского городского поселения","Решение Совета муниципального образования Северский район от 25.09.2008г. № 767 «О передаче муниципального жилого фонда муниципального образования Северский район в собственность Черноморского городского поселения»;         Решение Совета Черноморского городского поселения Северского района от 30.10.2008г. № 236 \"О принятии жилого фонда в муниципальную казну Черноморского городского поселения безвозмездно от муниципального образования Северский район\"          "]
[268,"Квартира № 6","п.Черноморский, ул.Калинина, д. 11 кв. 6 ",1949,38.1,null,null,{"v":27612.24,"d":"27,612.24"},{"v":27612.24,"d":"27,612.24"},{"v":0,"d":"0.00"},"Администрация Черноморского городского поселения","Решение Совета муниципального образования Северский район от 25.09.2008г. № 767 «О передаче муниципального жилого фонда муниципального образования Северский район в собственность Черноморского городского поселения»;         Решение Совета Черноморского городского поселения Северского района от 30.10.2008г. № 236 \"О принятии жилого фонда в муниципальную казну Черноморского городского поселения безвозмездно от муниципального образования Северский район\"          "]
[278,"Квартира № 1","п.Черноморский, ул.Калинина, д. 4 кв. 1 ",1951,60.2,null,null,{"v":400181.73,"d":"400,181.73"},{"v":105781.64,"d":"105,781.64"},{"v":294400.09,"d":"294,400.09"},"Администрация Черноморского городского поселения","Решение Совета муниципального образования Северский район от 25.09.2008г. № 767 «О передаче муниципального жилого фонда муниципального образования Северский район в собственность Черноморского городского поселения»;         Решение Совета Черноморского городского поселения Северского района от 30.10.2008г. № 236 \"О принятии жилого фонда в муниципальную казну Черноморского городского поселения безвозмездно от муниципального образования Северский район\"          "]
[279,"Квартира № 2","п.Черноморский, ул.Калинина, д. 4 кв. 2 ",1951,75.4,null,null,{"v":68975.95,"d":"68,975.95"},{"v":18232.69,"d":"18,232.69"},{"v":50743.26,"d":"50,743.26"},"Администрация Черноморского городского поселения","Решение Совета муниципального образования Северский район от 25.09.2008г. № 767 «О передаче муниципального жилого фонда муниципального образования Северский район в собственность Черноморского городского поселения»;         Решение Совета Черноморского городского поселения Северского района от 30.10.2008г. № 236 \"О принятии жилого фонда в муниципальную казну Черноморского городского поселения безвозмездно от муниципального образования Северский район\"          "]
[280,"Квартира № 3","п.Черноморский, ул.Калинина, д. 4 кв. 3",1951,61.1,null,null,{"v":55894.3,"d":"55,894.30"},{"v":14774.76,"d":"14,774.76"},{"v":41119.54,"d":"41,119.54"},"Администрация Черноморского городского поселения","Решение Совета муниципального образования Северский район от 25.09.2008г. № 767 «О передаче муниципального жилого фонда муниципального образования Северский район в собственность Черноморского городского поселения»;         Решение Совета Черноморского городского поселения Северского района от 30.10.2008г. № 236 \"О принятии жилого фонда в муниципальную казну Черноморского городского поселения безвозмездно от муниципального образования Северский район\"          "]
[281,"Квартира № 4","п.Черноморский, ул.Калинина, д. 4 кв. 4",1951,61.5,null,null,{"v":56260.22,"d":"56,260.22"},{"v":16871.49,"d":"16,871.49"},{"v":39388.73,"d":"39,388.73"},"Администрация Черноморского городского поселения","Решение Совета муниципального образования Северский район от 25.09.2008г. № 767 «О передаче муниципального жилого фонда муниципального образования Северский район в собственность Черноморского городского поселения»;         Решение Совета Черноморского городского поселения Северского района от 30.10.2008г. № 236 \"О принятии жилого фонда в муниципальную казну Черноморского городского поселения безвозмездно от муниципального образования Северский район\"          "]
[282,"Квартира № 5","п.Черноморский, ул.Калинина, д. 4 кв. 5",1951,24,null,null,{"v":21955.21,"d":"21,955.21"},{"v":5803.51,"d":"5,803.51"},{"v":16151.7,"d":"16,151.70"},"Администрация Черноморского городского поселения","Решение Совета муниципального образования Северский район от 25.09.2008г. № 767 «О передаче муниципального жилого фонда муниципального образования Северский район в собственность Черноморского городского поселения»;         Решение Совета Черноморского городского поселения Северского района от 30.10.2008г. № 236 \"О принятии жилого фонда в муниципальную казну Черноморского городского поселения безвозмездно от муниципального образования Северский район\"          "]
[283,"Квартира № 6","п.Черноморский, ул.Калинина, д. 4 кв. 6",1951,23.2,null,null,{"v":21223.37,"d":"21,223.37"},{"v":5610.06,"d":"5,610.06"},{"v":15613.31,"d":"15,613.31"},"Администрация Черноморского городского поселения","Решение Совета муниципального образования Северский район от 25.09.2008г. № 767 «О передаче муниципального жилого фонда муниципального образования Северский район в собственность Черноморского городского поселения»;         Решение Совета Черноморского городского поселения Северского района от 30.10.2008г. № 236 \"О принятии жилого фонда в муниципальную казну Черноморского городского поселения безвозмездно от муниципального образования Северский район\"          "]
[284,"Квартира № 8","п.Черноморский, ул.Калинина, д. 4 кв. 8",1951,23.8,null,null,{"v":21772.25,"d":"21,772.25"},{"v":5755.15,"d":"5,755.15"},{"v":16017.1,"d":"16,017.10"},"Администрация Черноморского городского поселения","Решение Совета муниципального образования Северский район от 25.09.2008г. № 767 «О передаче муниципального жилого фонда муниципального образования Северский район в собственность Черноморского городского поселения»;         Решение Совета Черноморского городского поселения Северского района от 30.10.2008г. № 236 \"О принятии жилого фонда в муниципальную казну Черноморского городского поселения безвозмездно от муниципального образования Северский район\"          "]
[285,"Квартира № 8а","п.Черноморский, ул.Калинина, д. 4 кв. 8а",1951,16.2,null,null,{"v":14819.77,"d":"14,819.77"},{"v":3917.37,"d":"3,917.37"},{"v":10902.4,"d":"10,902.40"},"Администрация Черноморского городского поселения","Решение Совета муниципального образования Северский район от 25.09.2008г. № 767 «О передаче муниципального жилого фонда муниципального образования Северский район в собственность Черноморского городского поселения»;         Решение Совета Черноморского городского поселения Северского района от 30.10.2008г. № 236 \"О принятии жилого фонда в муниципальную казну Черноморского городского поселения безвозмездно от муниципального образования Северский район\"          "]
[287,"Квартира №  23","п.Черноморский, ул.Кавказская, д. 14 кв. 23 ",1981,52.5,null,"23:26:1103018:156",{"v":57373.52,"d":"57,373.52"},{"v":17059.04,"d":"17,059.04"},{"v":40314.48,"d":"40,314.48"},"Администрация Черноморского городского поселения","Решение Совета муниципального образования Северский район от 25.09.2008г. № 767 «О передаче муниципального жилого фонда муниципального образования Северский район в собственность Черноморского городского поселения»;         Решение Совета Черноморского городского поселения Северского района от 30.10.2008г. № 236 \"О принятии жилого фонда в муниципальную казну Черноморского городского поселения безвозмездно от муниципального образования Северский район\"          "]
[290,"Квартира № 16","п.Черноморский, ул.Кавказская, д. 15 кв. 16 ",1969,41.5,null,null,{"v":35843.6,"d":"35,843.60"},{"v":15819,"d":"15,819.00"},{"v":20024.6,"d":"20,024.60"},"Администрация Черноморского городского поселения","Решение Совета муниципального образования Северский район от 25.09.2008г. № 767 «О передаче муниципального жилого фонда муниципального образования Северский район в собственность Черноморского городского поселения»;         Решение Совета Черноморского городского поселения Северского района от 30.10.2008г. № 236 \"О принятии жилого фонда в муниципальную казну Черноморского городского поселения безвозмездно от муниципального образования Северский район\"          "]
[294,"Квартира № 24","п.Черноморский, ул.Кавказская, д. 16 кв. 24 ",1983,63,null,null,{"v":75520.65,"d":"75,520.65"},{"v":30624.29,"d":"30,624.29"},{"v":54896.36,"d":"54,896.36"},"Администрация Черноморского городского поселения","Решение Совета муниципального образования Северский район от 25.09.2008г. № 767 «О передаче муниципального жилого фонда муниципального образования Северский район в собственность Черноморского городского поселения»;         Решение Совета Черноморского городского поселения Северского района от 30.10.2008г. № 236 \"О принятии жилого фонда в муниципальную казну Черноморского городского поселения безвозмездно от муниципального образования Северский район\"          "]
[311,"Квартира № 14","п.Черноморский, ул.Кавказская, д. 2 кв. 14 ",1976,48.6,null,null,{"v":70842.32,"d":"70,842.32"},{"v":21772.18,"d":"21,772.18"},{"v":49070.14,"d":"49,070.14"},"Администрация Черноморского городского поселения","Решение Совета муниципального образования Северский район от 25.09.2008г. № 767 «О передаче муниципального жилого фонда муниципального образования Северский район в собственность Черноморского городского поселения»;         Решение Совета Черноморского городского поселения Северского района от 30.10.2008г. № 236 \"О принятии жилого фонда в муниципальную казну Черноморского городского поселения безвозмездно от муниципального образования Северский район\"          "]
[313,"Квартира № 3","п.Черноморский, ул.Кавказская, д. 4 кв. 3 ",1976,52,null,null,{"v":45695.32,"d":"45,695.32"},{"v":14043.68,"d":"14,043.68"},{"v":31651.64,"d":"31,651.64"},"Администрация Черноморского городского поселения","Решение Совета муниципального образования Северский район от 25.09.2008г. № 767 «О передаче муниципального жилого фонда муниципального образования Северский район в собственность Черноморского городского поселения»;         Решение Совета Черноморского городского поселения Северского района от 30.10.2008г. № 236 \"О принятии жилого фонда в муниципальную казну Черноморского городского поселения безвозмездно от муниципального образования Северский район\"          "]
[321,"Квартира № 21","п.Черноморский, ул.Дзержинского, д. 1а кв. 21 ",1965,27.2,null,null,{"v":10843.73,"d":"10,843.73"},{"v":10843.73,"d":"10,843.73"},{"v":0,"d":"0.00"},"Администрация Черноморского городского поселения","Решение Совета муниципального образования Северский район от 25.09.2008г. № 767 «О передаче муниципального жилого фонда муниципального образования Северский район в собственность Черноморского городского поселения»;         Решение Совета Черноморского городского поселения Северского района от 30.10.2008г. № 236 \"О принятии жилого фонда в муниципальную казну Черноморского городского поселения безвозмездно от муниципального образования Северский район\"          "]
[324,"Квартира № 12","п.Черноморский, ул.Дзержинского, д. 1а кв. 12 ",1965,27.1,null,null,{"v":10803.86,"d":"10,803.86"},{"v":10803.86,"d":"10,803.86"},{"v":0,"d":"0.00"},"Администрация Черноморского городского поселения","Решение Совета муниципального образования Северский район от 25.09.2008г. № 767 «О передаче муниципального жилого фонда муниципального образования Северский район в собственность Черноморского городского поселения»;         Решение Совета Черноморского городского поселения Северского района от 30.10.2008г. № 236 \"О принятии жилого фонда в муниципальную казну Черноморского городского поселения безвозмездно от муниципального образования Северский район\"          "]
[325,"Квартира № 5","п.Черноморский, ул.Дзержинского, д. 1а кв. 5 ",1965,11,null,null,{"v":4385.33,"d":"4,385.33"},{"v":4385.33,"d":"4,385.33"},{"v":0,"d":"0.00"},"Администрация Черноморского городского поселения","Решение Совета муниципального образования Северский район от 25.09.2008г. № 767 «О передаче муниципального жилого фонда муниципального образования Северский район в собственность Черноморского городского поселения»;         Решение Совета Черноморского городского поселения Северского района от 30.10.2008г. № 236 \"О принятии жилого фонда в муниципальную казну Черноморского городского поселения безвозмездно от муниципального образования Северский район\"          "]
[326,"Квартира № 7","п.Черноморский, ул.Дзержинского, д. 1а кв. 7 ",1965,14,null,null,{"v":5581.33,"d":"5,581.33"},{"v":5581.33,"d":"5,581.33"},{"v":0,"d":"0.00"},"Администрация Черноморского городского поселения","Решение Совета муниципального образования Северский район от 25.09.2008г. № 767 «О передаче муниципального жилого фонда муниципального образования Северский район в собственность Черноморского городского поселения»;         Решение Совета Черноморского городского поселения Северского района от 30.10.2008г. № 236 \"О принятии жилого фонда в муниципальную казну Черноморского городского поселения безвозмездно от муниципального образования Северский район\"          "]
[327,"Квартира № 14","п.Черноморский, ул.Дзержинского, д. 1а кв. 14 ",1965,13.63,null,null,{"v":5433.83,"d":"5,433.83"},{"v":5433.83,"d":"5,433.83"},{"v":0,"d":"0.00"},"Администрация Черноморского городского поселения","Решение Совета муниципального образования Северский район от 25.09.2008г. № 767 «О передаче муниципального жилого фонда муниципального образования Северский район в собственность Черноморского городского поселения»;         Решение Совета Черноморского городского поселения Северского района от 30.10.2008г. № 236 \"О принятии жилого фонда в муниципальную казну Черноморского городского поселения безвозмездно от муниципального образования Северский район\"          "]
[328,"Квартира № 23","п.Черноморский, ул.Дзержинского, д. 1а кв. 23 ",1965,11.5,null,null,{"v":4584.67,"d":"4,584.67"},{"v":4584.67,"d":"4,584.67"},{"v":0,"d":"0.00"},"Администрация Черноморского городского поселения","Решение Совета муниципального образования Северский район от 25.09.2008г. № 767 «О передаче муниципального жилого фонда муниципального образования Северский район в собственность Черноморского городского поселения»;         Решение Совета Черноморского городского поселения Северского района от 30.10.2008г. № 236 \"О принятии жилого фонда в муниципальную казну Черноморского городского поселения безвозмездно от муниципального образования Северский район\"          "]
[329,"Квартира № 24","п.Черноморский, ул.Дзержинского, д. 1а кв. 24 ",1965,13.6,null,null,{"v":5421.87,"d":"5,421.87"},{"v":5421.87,"d":"5,421.87"},{"v":0,"d":"0.00"},"Администрация Черноморского городского поселения","Решение Совета муниципального образования Северский район от 25.09.2008г. № 767 «О передаче муниципального жилого фонда муниципального образования Северский район в собственность Черноморского городского поселения»;         Решение Совета Черноморского городского поселения Северского района от 30.10.2008г. № 236 \"О принятии жилого фонда в муниципальную казну Черноморского городского поселения безвозмездно от муниципального образования Северский район\"          "]
[330,"Квартира № 1-3","п.Черноморский, ул.Дзержинского, д. 1а кв. 1-3",1965,13.6,null,null,{"v":5421.87,"d":"5,421.87"},{"v":5421.87,"d":"5,421.87"},{"v":0,"d":"0.00"},"Администрация Черноморского городского поселения","Решение Совета муниципального образования Северский район от 25.09.2008г. № 767 «О передаче муниципального жилого фонда муниципального образования Северский район в собственность Черноморского городского поселения»;         Решение Совета Черноморского городского поселения Северского района от 30.10.2008г. № 236 \"О принятии жилого фонда в муниципальную казну Черноморского городского поселения безвозмездно от муниципального образования Северский район\"          "]
[{"$nulls":4},13.5,null,null,{"v":5382,"d":"5,382.00"},{"v":5382,"d":"5,382.00"},{"v":0,"d":"0.00"}]
[{"$nulls":4},13.5,null,null,{"v":5382,"d":"5,382.00"},{"v":5382,"d":"5,382.00"},{"v":0,"d":"0.00"}]
[331,"Квартира № 6,8","п.Черноморский, ул.Дзержинского, д. 1а кв. 6,8 ",1965,13.5,null,null,{"v":5382,"d":"5,382.00"},{"v":5382,"d":"5,382.00"},{"v":0,"d":"0.00"},"Администрация Черноморского городского поселения","Решение Совета муниципального образования Северский район от 25.09.2008г. № 767 «О передаче муниципального жилого фонда муниципального образования Северский район в собственность Черноморского городского поселения»;         Решение Совета Черноморского городского поселения Северского района от 30.10.2008г. № 236 \"О принятии жилого фонда в муниципальную казну Черноморского городского поселения безвозмездно от муниципального образования Северский район\"          "]
[{"$nulls":4},14.1,null,null,{"v":10178.72,"d":"10,178.72"},{"v":10178.72,"d":"10,178.72"},{"v":0,"d":"0.00"}]
[332,"Квартира № 9-11","п.Черноморский, ул.Дзержинского, д. 1а кв.  9-11",1965,13.6,null,null,{"v":5421.87,"d":"5,421.87"},{"v":5421.87,"d":"5,421.87"},{"v":0,"d":"0.00"},"Администрация Черноморского городского поселения","Решение Совета муниципального образования Северский район от 25.09.2008г. № 767 «О передаче муниципального жилого фонда муниципального образования Северский район в собственность Черноморского городского поселения»;         Решение Совета Черноморского городского поселения Северского района от 30.10.2008г. № 236 \"О принятии жилого фонда в муниципальную казну Черноморского городского поселения безвозмездно от муниципального образования Северский район\"          "]
[{"$nulls":4},13.5,null,null,{"v":5382,"d":"5,382.00"},{"v":5382,"d":"5,382.00"},{"v":0,"d":"0.00"}]
[{"$nulls":4},13.5,null,null,{"v":5382,"d":"5,382.00"},{"v":5382,"d":"5,382.00"},{"v":0,"d":"0.00"}]
[333,"Квартира № 10,12","п.Черноморский, ул.Дзержинского, д. 1а кв. 10",1965,13.7,null,null,{"v":5461.73,"d":"5,461.73"},{"v":5461.73,"d":"5,461.73"},{"v":0,"d":"0.00"},"Администрация Черноморского городского поселения","Решение Совета муниципального образования Северский район от 25.09.2008г. № 767 «О передаче муниципального жилого фонда муниципального образования Северский район в собственность Черноморского городского поселения»;         Решение Совета Черноморского городского поселения Северского района от 30.10.2008г. № 236 \"О принятии жилого фонда в муниципальную казну Черноморского городского поселения безвозмездно от муниципального образования Северский район\"          "]
[334,"Квартира № 16-18","п.Черноморский, ул.Дзержинского, д. 1а кв. 16-18 ",1965,13.7,null,null,{"v":5461.73,"d":"5,461.73"},{"v":5461.73,"d":"5,461.73"},{"v":0,"d":"0.00"},"Администрация Черноморского городского поселения","Решение Совета муниципального образования Северский район от 25.09.2008г. № 767 «О передаче муниципального жилого фонда муниципального образования Северский район в собственность Черноморского городского поселения»;         Решение Совета Черноморского городского поселения Северского района от 30.10.2008г. № 236 \"О принятии жилого фонда в муниципальную казну Черноморского городского поселения безвозмездно от муниципального образования Северский район\"          "]
[{"$nulls":4},13.5,null,null,{"v":5382,"d":"5,382.00"},{"v":5382,"d":"5,382.00"},{"v":0,"d":"0.00"}]
[{"$nulls":4},13.6,null,null,{"v":10552.94,"d":"10,552.94"},{"v":10552.94,"d":"10,552.94"},{"v":0,"d":"0.00"}]
[335,"Квартира № 19,21","п.Черноморский, ул.Дзержинского, д. 1а кв. 19 ",1965,47.3,null,null,{"v":18856.93,"d":"18,856.93"},{"v":18856.93,"d":"18,856.93"},{"v":0,"d":"0.00"},"Администрация Черноморского городского поселения","Решение Совета муниципального образования Северский район от 25.09.2008г. № 767 «О передаче муниципального жилого фонда муниципального образования Северский район в собственность Черноморского городского поселения»;         Решение Совета Черноморского городского поселения Северского района от 30.10.2008г. № 236 \"О принятии жилого фонда в муниципальную казну Черноморского городского поселения безвозмездно от муниципального образования Северский район\"          "]
[336,"Квартира № 20-22","п.Черноморский, ул.Дзержинского, д. 1а кв. 20-22 ",1965,27.2,null,null,{"v":10843.73,"d":"10,843.73"},{"v":10843.73,"d":"10,843.73"},{"v":0,"d":"0.00"},"Администрация Черноморского городского поселения","Решение Совета муниципального образования Северский район от 25.09.2008г. № 767 «О передаче муниципального жилого фонда муниципального образования Северский район в собственность Черноморского городского поселения»;         Решение Совета Черноморского городского поселения Северского района от 30.10.2008г. № 236 \"О принятии жилого фонда в муниципальную казну Черноморского городского поселения безвозмездно от муниципального образования Северский район\"          "]
[337,"Квартира № 1","п.Черноморский, ул.Дзержинского, д. 30 кв. 1 ",1960,33.7,null,null,{"v":12805.64,"d":"12,805.64"},{"v":12805.64,"d":"12,805.64"},{"v":0,"d":"0.00"},"Администрация Черноморского городского поселения","Решение Совета муниципального образования Северский район от 25.09.2008г. № 767 «О передаче муниципального жилого фонда муниципального образования Северский район в собственность Черноморского городского поселения»;         Решение Совета Черноморского городского поселения Северского района от 30.10.2008г. № 236 \"О принятии жилого фонда в муниципальную казну Черноморского городского поселения безвозмездно от муниципального образования Северский район\"          "]
[340,"Квартира № 6","п.Черноморский, ул.Дзержинского, д. 30 кв. 6 ",1960,33.8,null,null,{"v":12843.64,"d":"12,843.64"},{"v":12843.64,"d":"12,843.64"},{"v":0,"d":"0.00"},"Администрация Черноморского городского поселения","Решение Совета муниципального образования Северский район от 25.09.2008г. № 767 «О передаче муниципального жилого фонда муниципального образования Северский район в собственность Черноморского городского поселения»;         Решение Совета Черноморского городского поселения Северского района от 30.10.2008г. № 236 \"О принятии жилого фонда в муниципальную казну Черноморского городского поселения безвозмездно от муниципального образования Северский район\"          "]
[345,"квартира № 18б","п. Черноморский, ул.Гоголя, д.15, кв.18б",1977,41.7,null,null,{"v":26246.62,"d":"26,246.62"},{"v":6859.11,"d":"6,859.11"},{"v":19387.51,"d":"19,387.51"},"Администрация Черноморского городского поселения","Решение Совета муниципального образования Северский район от 25.09.2008г. № 767 «О передаче муниципального жилого фонда муниципального образования Северский район в собственность Черноморского городского поселения»;         Решение Совета Черноморского городского поселения Северского района от 30.10.2008г. № 236 \"О принятии жилого фонда в муниципальную казну Черноморского городского поселения безвозмездно от муниципального образования Северский район\"          "]
[347,"квартира № 12","п. Черноморский,  ул.Гоголя,  д.9 кв.12",1949,25.3,null,null,{"v":21533.57,"d":"21,533.57"},{"v":21482.3,"d":"21,482.30"},51.27,"Администрация Черноморского городского поселения","Решение Совета муниципального образования Северский район от 25.09.2008г. № 767 «О передаче муниципального жилого фонда муниципального образования Северский район в собственность Черноморского городского поселения»;         Решение Совета Черноморского городского поселения Северского района от 30.10.2008г. № 236 \"О принятии жилого фонда в муниципальную казну Черноморского городского поселения безвозмездно от муниципального образования Северский район\"          "]
[349,"квартира № 7","п. Черноморский,  ул.Гоголя, д.11 кв.7",1949,51.3,null,null,{"v":32019.18,"d":"32,019.18"},{"v":32019.18,"d":"32,019.18"},{"v":0,"d":"0.00"},"Администрация Черноморского городского поселения","Решение Совета муниципального образования Северский район от 25.09.2008г. № 767 «О передаче муниципального жилого фонда муниципального образования Северский район в собственность Черноморского городского поселения»;         Решение Совета Черноморского городского поселения Северского района от 30.10.2008г. № 236 \"О принятии жилого фонда в муниципальную казну Черноморского городского поселения безвозмездно от муниципального образования Северский район\"          "]
[354,"квартира № 4","п. Спутник. ул.Вокзальная. д.21 кв. 4",1966,38.4,null,null,{"v":12608.92,"d":"12,608.92"},{"v":5148.64,"d":"5,148.64"},{"v":7460.28,"d":"7,460.28"},"Администрация Черноморского городского поселения","Решение Совета муниципального образования Северский район от 25.09.2008г. № 767 «О передаче муниципального жилого фонда муниципального образования Северский район в собственность Черноморского городского поселения»;         Решение Совета Черноморского городского поселения Северского района от 30.10.2008г. № 236 \"О принятии жилого фонда в муниципальную казну Черноморского городского поселения безвозмездно от муниципального образования Северский район\"          "]
[]
[356,"квартира № 10","п. Спутник. ул.Вокзальная. д.21 кв. 10",1966,45.2,null,null,{"v":14841.75,"d":"14,841.75"},{"v":6060.38,"d":"6,060.38"},{"v":8781.37,"d":"8,781.37"},"Администрация Черноморского городского поселения","Решение Совета муниципального образования Северский район от 25.09.2008г. № 767 «О передаче муниципального жилого фонда муниципального образования Северский район в собственность Черноморского городского поселения»;         Решение Совета Черноморского городского поселения Северского района от 30.10.2008г. № 236 \"О принятии жилого фонда в муниципальную казну Черноморского городского поселения безвозмездно от муниципального образования Северский район\"          "]
[]
[358,"квартира № 6","п. Спутник. ул.Вокзальная. д.13 кв. 6",1953,62.2,null,null,{"v":8171.65,"d":"8,171.65"},{"v":3531.5,"d":"3,531.50"},{"v":4640.15,"d":"4,640.15"},"Администрация Черноморского городского поселения","Решение Совета муниципального образования Северский район от 25.09.2008г. № 767 «О передаче муниципального жилого фонда муниципального образования Северский район в собственность Черноморского городского поселения»;         Решение Совета Черноморского городского поселения Северского района от 30.10.2008г. № 236 \"О принятии жилого фонда в муниципальную казну Черноморского городского поселения безвозмездно от муниципального образования Северский район\"          "]
[362,"квартира № 16","п.Черноморский, ул.Юбилейная, 95 а кв. 17",1983,62.6,null,null,{"v":64504.02,"d":"64,504.02"},{"v":13312.98,"d":"13,312.98"},{"v":51191.04,"d":"51,191.04"},"Администрация Черноморского городского поселения","Решение Совета муниципального образования Северский район от 25.09.2008г. № 767 «О передаче муниципального жилого фонда муниципального образования Северский район в собственность Черноморского городского поселения»;         Решение Совета Черноморского городского поселения Северского района от 30.10.2008г. № 236 \"О принятии жилого фонда в муниципальную казну Черноморского городского поселения безвозмездно от муниципального образования Северский район\"          "]
[371,"квартира № 37","п.Черноморский, ул.Юбилейная, д. 95 а кв. 37",1983,77,null,null,{"v":79342,"d":"79,342.00"},{"v":16375.4,"d":"16,375.40"},{"v":62966.6,"d":"62,966.60"},"Администрация Черноморского городского поселения","Решение Совета муниципального образования Северский район от 25.09.2008г. № 767 «О передаче муниципального жилого фонда муниципального образования Северский район в собственность Черноморского городского поселения»;         Решение Совета Черноморского городского поселения Северского района от 30.10.2008г. № 236 \"О принятии жилого фонда в муниципальную казну Черноморского городского поселения безвозмездно от муниципального образования Северский район\"          "]
[374,"квартира № 45","п.Черноморский, ул.Юбилейная, д. 95 а кв. 45",1983,62.7,null,null,{"v":64607.06,"d":"64,607.06"},{"v":13334.25,"d":"13,334.25"},{"v":51272.81,"d":"51,272.81"},"Администрация Черноморского городского поселения","Решение Совета муниципального образования Северский район от 25.09.2008г. № 767 «О передаче муниципального жилого фонда муниципального образования Северский район в собственность Черноморского городского поселения»;         Решение Совета Черноморского городского поселения Северского района от 30.10.2008г. № 236 \"О принятии жилого фонда в муниципальную казну Черноморского городского поселения безвозмездно от муниципального образования Северский район\"          "]
[376,"квартира № 52","п.Черноморский, ул.Юбилейная, д. 95 а кв. 52",1983,51.8,null,null,{"v":53375.53,"d":"53,375.53"},{"v":11016.18,"d":"11,016.18"},{"v":42359.35,"d":"42,359.35"},"Администрация Черноморского городского поселения","Решение Совета муниципального образования Северский район от 25.09.2008г. № 767 «О передаче муниципального жилого фонда муниципального образования Северский район в собственность Черноморского городского поселения»;         Решение Совета Черноморского городского поселения Северского района от 30.10.2008г. № 236 \"О принятии жилого фонда в муниципальную казну Черноморского городского поселения безвозмездно от муниципального образования Северский район\"          "]
[386,"квартира № 11","п.Черноморский, ул.Юбилейная, д. 102 кв. 11",1958,42.6,null,null,{"v":22364.32,"d":"22,364.32"},{"v":9463.82,"d":"9,463.82"},{"v":12900.5,"d":"12,900.50"},"Администрация Черноморского городского поселения","Решение Совета муниципального образования Северский район от 25.09.2008г. № 767 «О передаче муниципального жилого фонда муниципального образования Северский район в собственность Черноморского городского поселения»;         Решение Совета Черноморского городского поселения Северского района от 30.10.2008г. № 236 \"О принятии жилого фонда в муниципальную казну Черноморского городского поселения безвозмездно от муниципального образования Северский район\"          "]
[390,"квартира № 12","п.Черноморский, ул.Юбилейная, д. 104 кв. 12",1960,40.5,null,null,{"v":19856.41,"d":"19,856.41"},{"v":8085.01,"d":"8,085.01"},{"v":11771.4,"d":"11,771.40"},"Администрация Черноморского городского поселения","Решение Совета муниципального образования Северский район от 25.09.2008г. № 767 «О передаче муниципального жилого фонда муниципального образования Северский район в собственность Черноморского городского поселения»;         Решение Совета Черноморского городского поселения Северского района от 30.10.2008г. № 236 \"О принятии жилого фонда в муниципальную казну Черноморского городского поселения безвозмездно от муниципального образования Северский район\"          "]
[396,"квартира № 5","п.Черноморский, ул.Юбилейная, д. 79  кв. 5",1949,63,null,null,{"v":67104.15,"d":"67,104.15"},{"v":67104.15,"d":"67,104.15"},{"v":0,"d":"0.00"},"Администрация Черноморского городского поселения","Решение Совета муниципального образования Северский район от 25.09.2008г. № 767 «О передаче муниципального жилого фонда муниципального образования Северский район в собственность Черноморского городского поселения»;         Решение Совета Черноморского городского поселения Северского района от 30.10.2008г. № 236 \"О принятии жилого фонда в муниципальную казну Черноморского городского поселения безвозмездно от муниципального образования Северский район\"          "]
[400,"квартира № 4","п.Черноморский, ул.Юбилейная, д. 50  кв. 4",1949,38.7,null,null,{"v":10353.13,"d":"10,353.13"},{"v":10353.13,"d":"10,353.13"},{"v":0,"d":"0.00"},"Администрация Черноморского городского поселения","Решение Совета муниципального образования Северский район от 25.09.2008г. № 767 «О передаче муниципального жилого фонда муниципального образования Северский район в собственность Черноморского городского поселения»;         Решение Совета Черноморского городского поселения Северского района от 30.10.2008г. № 236 \"О принятии жилого фонда в муниципальную казну Черноморского городского поселения безвозмездно от муниципального образования Северский район\"          "]
[]
[401,"Здание общежития ","п.Черноморский, ул.Юбилейная, д. 62 ",1990,1437,null,null,{"v":2373012.13,"d":"2,373,012.13"},{"v":2073012.13,"d":"2,073,012.13"},{"v":0,"d":"0.00"},"Администрация Черноморского городского поселения","Решение Совета муниципального образования Северский район от 25.09.2008г. № 767 «О передаче муниципального жилого фонда муниципального образования Северский район в собственность Черноморского городского поселения»;         Решение Совета Черноморского городского поселения Северского района от 30.10.2008г. № 236 \"О принятии жилого фонда в муниципальную казну Черноморского городского поселения безвозмездно от муниципального образования Северский район\"          "]
[402,"квартира № 1","п.Черноморский, ул.Юбилейная, д. 66  кв. 1 ",1959,64.4,null,null,{"v":59399.55,"d":"59,399.55"},{"v":32808.45,"d":"32,808.45"},{"v":26591.1,"d":"26,591.10"},"Администрация Черноморского городского поселения","Решение Совета муниципального образования Северский район от 25.09.2008г. № 767 «О передаче муниципального жилого фонда муниципального образования Северский район в собственность Черноморского городского поселения»;         Решение Совета Черноморского городского поселения Северского района от 30.10.2008г. № 236 \"О принятии жилого фонда в муниципальную казну Черноморского городского поселения безвозмездно от муниципального образования Северский район\"          "]
[403,"квартира №1","п.Черноморский, ул.Юбилейная, д. 38  кв. 1",1949,51.4,null,null,{"v":51057.9,"d":"51,057.90"},{"v":32489.83,"d":"32,489.83"},{"v":18568.07,"d":"18,568.07"},"Администрация Черноморского городского поселения","Решение Совета муниципального образования Северский район от 25.09.2008г. № 767 «О передаче муниципального жилого фонда муниципального образования Северский район в собственность Черноморского городского поселения»;         Решение Совета Черноморского городского поселения Северского района от 30.10.2008г. № 236 \"О принятии жилого фонда в муниципальную казну Черноморского городского поселения безвозмездно от муниципального образования Северский район\"          "]
[406,"квартира № 42 ","п.Черноморский, ул.Юбилейная, д. 42  кв. 42",1948,66.9,null,null,{"v":6747.63,"d":"6,747.63"},{"v":1082.43,"d":"1,082.43"},{"v":5665.2,"d":"5,665.20"},"Администрация Черноморского городского поселения","Решение Совета муниципального образования Северский район от 25.09.2008г. № 767 «О передаче муниципального жилого фонда муниципального образования Северский район в собственность Черноморского городского поселения»;         Решение Совета Черноморского городского поселения Северского района от 30.10.2008г. № 236 \"О принятии жилого фонда в муниципальную казну Черноморского городского поселения безвозмездно от муниципального образования Северский район\"          "]
[427,"квартира № 1","Холмская подстанция, д. 1 кв. 1",1949,46.9,null,null,{"v":15363.97,"d":"15,363.97"},{"v":9715.15,"d":"9,715.15"},{"v":5648.82,"d":"5,648.82"},"Администрация Черноморского городского поселения","Решение Совета муниципального образования Северский район от 25.09.2008г. № 767 «О передаче муниципального жилого фонда муниципального образования Северский район в собственность Черноморского городского поселения»;         Решение Совета Черноморского городского поселения Северского района от 30.10.2008г. № 236 \"О принятии жилого фонда в муниципальную казну Черноморского городского поселения безвозмездно от муниципального образования Северский район\"          "]
[428,"квартира № 2"," Холмская  подстанция,  д. 1 кв. 2",1949,46.4,null,null,{"v":15200.18,"d":"15,200.18"},{"v":9611.58,"d":"9,611.58"},{"v":5588.6,"d":"5,588.60"},"Администрация Черноморского городского поселения","Решение Совета муниципального образования Северский район от 25.09.2008г. № 767 «О передаче муниципального жилого фонда муниципального образования Северский район в собственность Черноморского городского поселения»;         Решение Совета Черноморского городского поселения Северского района от 30.10.2008г. № 236 \"О принятии жилого фонда в муниципальную казну Черноморского городского поселения безвозмездно от муниципального образования Северский район\"          "]
[429,"квартира № 3","Холмская  подстанция, д. 1 кв. 3",1949,46.4,null,null,{"v":15200.18,"d":"15,200.18"},{"v":9611.58,"d":"9,611.58"},{"v":5588.6,"d":"5,588.60"},"Администрация Черноморского городского поселения","Решение Совета муниципального образования Северский район от 25.09.2008г. № 767 «О передаче муниципального жилого фонда муниципального образования Северский район в собственность Черноморского городского поселения»;         Решение Совета Черноморского городского поселения Северского района от 30.10.2008г. № 236 \"О принятии жилого фонда в муниципальную казну Черноморского городского поселения безвозмездно от муниципального образования Северский район\"          "]
[430,"квартира № 4","Холмская  подстанция, д. 1 кв. 4",1949,46.6,null,null,{"v":15265.7,"d":"15,265.70"},{"v":9653.01,"d":"9,653.01"},{"v":5612.69,"d":"5,612.69"},"Администрация Черноморского городского поселения","Решение Совета муниципального образования Северский район от 25.09.2008г. № 767 «О передаче муниципального жилого фонда муниципального образования Северский район в собственность Черноморского городского поселения»;         Решение Совета Черноморского городского поселения Северского района от 30.10.2008г. № 236 \"О принятии жилого фонда в муниципальную казну Черноморского городского поселения безвозмездно от муниципального образования Северский район\"          "]
[431,"квартира № 5","Холмская  подстанция, д. 1 кв. 5",1949,46.1,null,null,{"v":15101.9,"d":"15,101.90"},{"v":9549.43,"d":"9,549.43"},{"$f":"H125-I125","v":{"v":5552.469999999999,"d":"5,552.47"}},"Администрация Черноморского городского поселения","Решение Совета муниципального образования Северский район от 25.09.2008г. № 767 «О передаче муниципального жилого фонда муниципального образования Северский район в собственность Черноморского городского поселения»;         Решение Совета Черноморского городского поселения Северского района от 30.10.2008г. № 236 \"О принятии жилого фонда в муниципальную казну Черноморского городского поселения безвозмездно от муниципального образования Северский район\"          "]
[432,"квартира № 7","Холмская  подстанция, д. 1 кв. 7",1949,46.1,null,null,{"v":15101.9,"d":"15,101.90"},{"v":9549.43,"d":"9,549.43"},{"$f":"H126-I126","v":{"v":5552.469999999999,"d":"5,552.47"}},"Администрация Черноморского городского поселения","Решение Совета муниципального образования Северский район от 25.09.2008г. № 767 «О передаче муниципального жилого фонда муниципального образования Северский район в собственность Черноморского городского поселения»;         Решение Совета Черноморского городского поселения Северского района от 30.10.2008г. № 236 \"О принятии жилого фонда в муниципальную казну Черноморского городского поселения безвозмездно от муниципального образования Северский район\"          "]
[433,"квартира № 8","Холмская  подстанция, д. 1 кв. 8",1949,46.4,null,null,{"v":15200.18,"d":"15,200.18"},{"v":9611.58,"d":"9,611.58"},{"$f":"H127-I127","v":{"v":5588.6,"d":"5,588.60"}},"Администрация Черноморского городского поселения","Решение Совета муниципального образования Северский район от 25.09.2008г. № 767 «О передаче муниципального жилого фонда муниципального образования Северский район в собственность Черноморского городского поселения»;         Решение Совета Черноморского городского поселения Северского района от 30.10.2008г. № 236 \"О принятии жилого фонда в муниципальную казну Черноморского городского поселения безвозмездно от муниципального образования Северский район\"          "]
[438,"квартира № 4","п. Черноморский, ул.Толстого, д.  15. кв. 4",1949,33.6,null,null,{"v":19262.82,"d":"19,262.82"},{"v":19262.82,"d":"19,262.82"},{"v":0,"d":"0.00"},"Администрация Черноморского городского поселения","Решение Совета муниципального образования Северский район от 25.09.2008г. № 767 «О передаче муниципального жилого фонда муниципального образования Северский район в собственность Черноморского городского поселения»;         Решение Совета Черноморского городского поселения Северского района от 30.10.2008г. № 236 \"О принятии жилого фонда в муниципальную казну Черноморского городского поселения безвозмездно от муниципального образования Северский район\"          "]
[441,"квартира № 7","п. Черноморский, ул.Толстого, д.  16. кв. 7",1973,28.4,null,null,{"v":7876.07,"d":"7,876.07"},{"v":7876.07,"d":"7,876.07"},{"v":0,"d":"0.00"},"Администрация Черноморского городского поселения","Решение Совета муниципального образования Северский район от 25.09.2008г. № 767 «О передаче муниципального жилого фонда муниципального образования Северский район в собственность Черноморского городского поселения»;         Решение Совета Черноморского городского поселения Северского района от 30.10.2008г. № 236 \"О принятии жилого фонда в муниципальную казну Черноморского городского поселения безвозмездно от муниципального образования Северский район\"          "]
[461,"квартира № 2","п. Черноморский, ул.Тельмана, д. 6 кв. 2",1960,30.6,null,null,{"v":30722.57,"d":"30,722.57"},{"v":12509.22,"d":"12,509.22"},{"v":18213.35,"d":"18,213.35"},"Администрация Черноморского городского поселения","Решение Совета муниципального образования Северский район от 25.09.2008г. № 767 «О передаче муниципального жилого фонда муниципального образования Северский район в собственность Черноморского городского поселения»;         Решение Совета Черноморского городского поселения Северского района от 30.10.2008г. № 236 \"О принятии жилого фонда в муниципальную казну Черноморского городского поселения безвозмездно от муниципального образования Северский район\"          "]
[462,"квартира № 2а","п. Черноморский, ул.Тельмана, д. 6 кв. 2а",1960,15.2,null,null,{"v":15260.88,"d":"15,260.88"},{"v":6123.73,"d":"6,123.73"},{"v":9047.15,"d":"9,047.15"},"Администрация Черноморского городского поселения","Решение Совета муниципального образования Северский район от 25.09.2008г. № 767 «О передаче муниципального жилого фонда муниципального образования Северский район в собственность Черноморского городского поселения»;         Решение Совета Черноморского городского поселения Северского района от 30.10.2008г. № 236 \"О принятии жилого фонда в муниципальную казну Черноморского городского поселения безвозмездно от муниципального образования Северский район\"          "]
[466,"квартира № 1","п. Черноморский, ул.Тельмана, д. 9 кв. 1",1961,42,null,null,{"v":28452.84,"d":"28,452.84"},{"v":28452.84,"d":"28,452.84"},{"v":0,"d":"0.00"},"Администрация Черноморского городского поселения","Решение Совета муниципального образования Северский район от 25.09.2008г. № 767 «О передаче муниципального жилого фонда муниципального образования Северский район в собственность Черноморского городского поселения»;         Решение Совета Черноморского городского поселения Северского района от 30.10.2008г. № 236 \"О принятии жилого фонда в муниципальную казну Черноморского городского поселения безвозмездно от муниципального образования Северский район\"          "]
[470,"квартира № 2   ","п. Черноморский, ул.Тельмана, д. 5 кв. 2",1961,42.8,null,null,{"v":45888.43,"d":"45,888.43"},{"v":19105.01,"d":"19,105.01"},{"v":26783.42,"d":"26,783.42"},"Администрация Черноморского городского поселения","Решение Совета муниципального образования Северский район от 25.09.2008г. № 767 «О передаче муниципального жилого фонда муниципального образования Северский район в собственность Черноморского городского поселения»;         Решение Совета Черноморского городского поселения Северского района от 30.10.2008г. № 236 \"О принятии жилого фонда в муниципальную казну Черноморского городского поселения безвозмездно от муниципального образования Северский район\"          "]
[476,"квартира № 12","п. Черноморский, ул. Суворова, д. 40а кв. 12",1978,49.7,null,null,{"v":67006.71,"d":"67,006.71"},{"v":12790.44,"d":"12,790.44"},{"v":54216.27,"d":"54,216.27"},"Администрация Черноморского городского поселения","Решение Совета муниципального образования Северский район от 25.09.2008г. № 767 «О передаче муниципального жилого фонда муниципального образования Северский район в собственность Черноморского городского поселения»;         Решение Совета Черноморского городского поселения Северского района от 30.10.2008г. № 236 \"О принятии жилого фонда в муниципальную казну Черноморского городского поселения безвозмездно от муниципального образования Северский район\"          "]
[477,"квартира № 4","п. Черноморский, ул. Суворова, д. 41а кв. 4",1954,33.5,null,null,{"v":27014.5,"d":"27,014.50"},{"v":12503.2,"d":"12,503.20"},{"v":14511.3,"d":"14,511.30"},"Администрация Черноморского городского поселения","Решение Совета муниципального образования Северский район от 25.09.2008г. № 767 «О передаче муниципального жилого фонда муниципального образования Северский район в собственность Черноморского городского поселения»;         Решение Совета Черноморского городского поселения Северского района от 30.10.2008г. № 236 \"О принятии жилого фонда в муниципальную казну Черноморского городского поселения безвозмездно от муниципального образования Северский район\"          "]
[478,"квартира № 4","п. Черноморский, ул. Суворова, д. 40а кв. 4",1978,57.9,null,null,{"v":78062.14,"d":"78,062.14"},{"v":14900.74,"d":"14,900.74"},{"$f":"H136-I136","v":{"v":63161.4,"d":"63,161.40"}},"Администрация Черноморского городского поселения","Решение Совета муниципального образования Северский район от 25.09.2008г. № 767 «О передаче муниципального жилого фонда муниципального образования Северский район в собственность Черноморского городского поселения»;         Решение Совета Черноморского городского поселения Северского района от 30.10.2008г. № 236 \"О принятии жилого фонда в муниципальную казну Черноморского городского поселения безвозмездно от муниципального образования Северский район\"          "]
[480,"квартира № 2","п. Черноморский, ул. Суворова, д. 39 кв. 2",1954,40.6,null,null,{"v":33798.23,"d":"33,798.23"},{"v":18155.26,"d":"18,155.26"},{"v":15642.97,"d":"15,642.97"},"Администрация Черноморского городского поселения","Решение Совета муниципального образования Северский район от 25.09.2008г. № 767 «О передаче муниципального жилого фонда муниципального образования Северский район в собственность Черноморского городского поселения»;         Решение Совета Черноморского городского поселения Северского района от 30.10.2008г. № 236 \"О принятии жилого фонда в муниципальную казну Черноморского городского поселения безвозмездно от муниципального образования Северский район\"          "]
[483,"квартира № 2а","п.Черноморский, ул.Суворова, д. 41 кв. 2а",1954,16.8,null,null,{"v":15367.97,"d":"15,367.97"},{"v":8255.17,"d":"8,255.17"},{"v":7112.8,"d":"7,112.80"},"Администрация Черноморского городского поселения","Решение Совета муниципального образования Северский район от 25.09.2008г. № 767 «О передаче муниципального жилого фонда муниципального образования Северский район в собственность Черноморского городского поселения»;         Решение Совета Черноморского городского поселения Северского района от 30.10.2008г. № 236 \"О принятии жилого фонда в муниципальную казну Черноморского городского поселения безвозмездно от муниципального образования Северский район\"          "]
[484,"квартира № 5а","п.Черноморский, ул.Суворова, д. 41 кв. 5а",1954,54.6,null,null,{"v":49945.89,"d":"49,945.89"},{"v":26829.28,"d":"26,829.28"},{"v":23116.61,"d":"23,116.61"},"Администрация Черноморского городского поселения","Решение Совета муниципального образования Северский район от 25.09.2008г. № 767 «О передаче муниципального жилого фонда муниципального образования Северский район в собственность Черноморского городского поселения»;         Решение Совета Черноморского городского поселения Северского района от 30.10.2008г. № 236 \"О принятии жилого фонда в муниципальную казну Черноморского городского поселения безвозмездно от муниципального образования Северский район\"          "]
[492,"квартира № За","п.Черноморский, ул.Суворова, д. 33 кв. 3а",1951,10.8,null,null,{"v":4717.96,"d":"4,717.96"},{"v":2678.73,"d":"2,678.73"},{"v":2039.23,"d":"2,039.23"},"Администрация Черноморского городского поселения","Решение Совета муниципального образования Северский район от 25.09.2008г. № 767 «О передаче муниципального жилого фонда муниципального образования Северский район в собственность Черноморского городского поселения»;         Решение Совета Черноморского городского поселения Северского района от 30.10.2008г. № 236 \"О принятии жилого фонда в муниципальную казну Черноморского городского поселения безвозмездно от муниципального образования Северский район\"          "]
[495,"квартира № 8а","п.Черноморский, ул.Суворова, д. 37 кв. 8а",1953,10.4,null,null,{"v":6362.5,"d":"6,362.50"},{"v":3481.34,"d":"3,481.34"},{"v":2881.16,"d":"2,881.16"},"Администрация Черноморского городского поселения","Решение Совета муниципального образования Северский район от 25.09.2008г. № 767 «О передаче муниципального жилого фонда муниципального образования Северский район в собственность Черноморского городского поселения»;         Решение Совета Черноморского городского поселения Северского района от 30.10.2008г. № 236 \"О принятии жилого фонда в муниципальную казну Черноморского городского поселения безвозмездно от муниципального образования Северский район\"          "]
[497,"квартира № 1","п.Черноморский, ул.Суворова, д. 39 кв. 1",1954,51.4,null,null,{"v":42305.79,"d":"42,305.79"},{"v":22725.23,"d":"22,725.23"},{"v":19580.56,"d":"19,580.56"},"Администрация Черноморского городского поселения","Решение Совета муниципального образования Северский район от 25.09.2008г. № 767 «О передаче муниципального жилого фонда муниципального образования Северский район в собственность Черноморского городского поселения»;         Решение Совета Черноморского городского поселения Северского района от 30.10.2008г. № 236 \"О принятии жилого фонда в муниципальную казну Черноморского городского поселения безвозмездно от муниципального образования Северский район\"          "]
[498,"квартира № 3","п.Черноморский, ул.Суворова, д. 39 кв. 3",1954,51.6,null,null,{"v":42470.4,"d":"42,470.40"},{"v":22813.65,"d":"22,813.65"},{"$f":"H143-I143","v":{"v":19656.75,"d":"19,656.75"}},"Администрация Черноморского городского поселения","Решение Совета муниципального образования Северский район от 25.09.2008г. № 767 «О передаче муниципального жилого фонда муниципального образования Северский район в собственность Черноморского городского поселения»;         Решение Совета Черноморского городского поселения Северского района от 30.10.2008г. № 236 \"О принятии жилого фонда в муниципальную казну Черноморского городского поселения безвозмездно от муниципального образования Северский район\"          "]
[499,"квартира №14","п.Черноморский, ул.Юбилейная, 95а кв. 14",1983,60.3,null,null,{"v":720000,"d":"720,000.00"},{"v":0,"d":"0.00"},{"$f":"H144-I144","v":{"v":720000,"d":"720,000.00"}},"Администрация Черноморского городского поселения","Решение Совета муниципального образования Северский район от 25.09.2008г. № 767 «О передаче муниципального жилого фонда муниципального образования Северский район в собственность Черноморского городского поселения»;         Решение Совета Черноморского городского поселения Северского района от 30.10.2008г. № 236 \"О принятии жилого фонда в муниципальную казну Черноморского городского поселения безвозмездно от муниципального образования Северский район\"          "]
[506,"жилой дом","п.Черноморский, ул.Комсомольская, д. 11",2001,57.5,null,null,{"v":155000,"d":"155,000.00"},{"v":0,"d":"0.00"},{"$f":"H145-I145","v":{"v":155000,"d":"155,000.00"}},"Администрация Черноморского городского поселения","Решение Совета муниципального образования Северский район от 25.09.2008г. № 767 «О передаче муниципального жилого фонда муниципального образования Северский район в собственность Черноморского городского поселения»;         Решение Совета Черноморского городского поселения Северского района от 30.10.2008г. № 236 \"О принятии жилого фонда в муниципальную казну Черноморского городского поселения безвозмездно от муниципального образования Северский район\"          "]
[508,"квартира №3","п.Октябрьский, ул.Горького, д. 9  к.3",1952,102,null,null,{"v":160000,"d":"160,000.00"},{"v":0,"d":"0.00"},{"$f":"H146-I146","v":{"v":160000,"d":"160,000.00"}},"Администрация Черноморского городского поселения","Решение Совета муниципального образования Северский район от 25.09.2008г. № 767 «О передаче муниципального жилого фонда муниципального образования Северский район в собственность Черноморского городского поселения»;         Решение Совета Черноморского городского поселения Северского района от 30.10.2008г. № 236 \"О принятии жилого фонда в муниципальную казну Черноморского городского поселения безвозмездно от муниципального образования Северский район\"          "]
[510,"жилой дом","л.Октябрьский, ул. Толстого, д.17",1958,24.4,null,null,{"v":67000,"d":"67,000.00"},{"v":0,"d":"0.00"},{"$f":"H147-I147","v":{"v":67000,"d":"67,000.00"}},"Администрация Черноморского городского поселения","Решение Совета муниципального образования Северский район от 25.09.2008г. № 767 «О передаче муниципального жилого фонда муниципального образования Северский район в собственность Черноморского городского поселения»;         Решение Совета Черноморского городского поселения Северского района от 30.10.2008г. № 236 \"О принятии жилого фонда в муниципальную казну Черноморского городского поселения безвозмездно от муниципального образования Северский район\"          "]
[514,"квартира № 2","п.Октябрьский, ул.Горького, 6а",1931,34.2,null,null,{"v":3742.23,"d":"3,742.23"},{"v":3742.23,"d":"3,742.23"},{"v":0,"d":"0.00"},"Администрация Черноморского городского поселения","Постановление главы Черноморского городского поселения Северского района от 21.05.2009г. № 136 \"О принятии жилого фонда в муниципальную казну Черноморского городского поселения безвозмездно от муниципального образования Северский район\""]
[515,"квартира № 3","п.Октябрьский, ул.Горького, 6а",1931,{"v":33,"d":"33.0"},null,null,{"v":3610.92,"d":"3,610.92"},{"v":3610.92,"d":"3,610.92"},{"v":0,"d":"0.00"},"Администрация Черноморского городского поселения","Постановление главы Черноморского городского поселения Северского района от 21.05.2009г. № 136 \"О принятии жилого фонда в муниципальную казну Черноморского городского поселения безвозмездно от муниципального образования Северский район\""]
[517,"квартира № 5","п.Октябрьский, ул.Горького, 6а",1931,{"v":32,"d":"32.0"},null,null,{"v":3501.5,"d":"3,501.50"},{"v":3501.5,"d":"3,501.50"},{"v":0,"d":"0.00"},"Администрация Черноморского городского поселения","Постановление главы Черноморского городского поселения Северского района от 21.05.2009г. № 136 \"О принятии жилого фонда в муниципальную казну Черноморского городского поселения безвозмездно от муниципального образования Северский район\""]
[532,"квартира № 6","п.Октябрьский, ул.Горького, 16",1963,33.8,null,null,{"v":8058.35,"d":"8,058.35"},{"v":8058.35,"d":"8,058.35"},{"v":0,"d":"0.00"},"Администрация Черноморского городского поселения","Постановление главы Черноморского городского поселения Северского района от 21.05.2009г. № 136 \"О принятии жилого фонда в муниципальную казну Черноморского городского поселения безвозмездно от муниципального образования Северский район\""]
[534,"квартира № 3","п.Октябрьский, ул.Горького, 18",1932,39.5,null,null,{"v":8773.27,"d":"8,773.27"},{"v":8773.27,"d":"8,773.27"},{"v":0,"d":"0.00"},"Администрация Черноморского городского поселения","Постановление главы Черноморского городского поселения Северского района от 21.05.2009г. № 136 \"О принятии жилого фонда в муниципальную казну Черноморского городского поселения безвозмездно от муниципального образования Северский район\""]
[535,"квартира № 8","п.Октябрьский, ул.Горького, 18",1932,22.5,null,null,{"v":4997.43,"d":"4,997.43"},{"v":4997.43,"d":"4,997.43"},{"v":0,"d":"0.00"},"Администрация Черноморского городского поселения","Постановление главы Черноморского городского поселения Северского района от 21.05.2009г. № 136 \"О принятии жилого фонда в муниципальную казну Черноморского городского поселения безвозмездно от муниципального образования Северский район\""]
[536,"квартира № 1","п.Октябрьский, ул.Пушкина, 1",1966,32.8,null,null,{"v":5347.35,"d":"5,347.35"},{"v":3392.9,"d":"3,392.90"},{"$f":"H154-I154","v":{"v":1954.4500000000003,"d":"1,954.45"}},"Администрация Черноморского городского поселения","Постановление главы Черноморского городского поселения Северского района от 21.05.2009г. № 136 \"О принятии жилого фонда в муниципальную казну Черноморского городского поселения безвозмездно от муниципального образования Северский район\""]
[540,"квартира № 4","п.Октябрьский, ул.Пушкина, 15",1990,49.7,null,null,{"v":28452.79,"d":"28,452.79"},{"v":6788.36,"d":"6,788.36"},{"$f":"H155-I155","v":{"v":21664.43,"d":"21,664.43"}},"Администрация Черноморского городского поселения","Постановление главы Черноморского городского поселения Северского района от 21.05.2009г. № 136 \"О принятии жилого фонда в муниципальную казну Черноморского городского поселения безвозмездно от муниципального образования Северский район\""]
[554,"квартира № 8","п.Черноморский, ул.Кавказская, 15",1969,42.1,null,null,{"v":36361.82,"d":"36,361.82"},{"v":14229.6,"d":"14,229.60"},{"$f":"H156-I156","v":{"v":22132.22,"d":"22,132.22"}},"Администрация Черноморского городского поселения","Постановление главы Черноморского городского поселения Северского района от 21.05.2009г. № 136 \"О принятии жилого фонда в муниципальную казну Черноморского городского поселения безвозмездно от муниципального образования Северский район\""]
[568,"квартира № 2","п.Черноморский, ул.Суворова, 40 а",1978,57.6,null,null,{"v":77657.68,"d":"77,657.68"},{"v":11231.87,"d":"11,231.87"},{"$f":"H157-I157","v":{"v":66425.81,"d":"66,425.81"}},"Администрация Черноморского городского поселения","Постановление главы Черноморского городского поселения Северского района от 21.05.2009г. № 136 \"О принятии жилого фонда в муниципальную казну Черноморского городского поселения безвозмездно от муниципального образования Северский район\""]
[574,"квартира № 17","п.Черноморский, ул.Юбилейная, 95 а",1983,62.6,null,null,{"v":64504,"d":"64,504.00"},{"v":10087.75,"d":"10,087.75"},{"$f":"H158-I158","v":{"v":54416.25,"d":"54,416.25"}},"Администрация Черноморского городского поселения","Постановление главы Черноморского городского поселения Северского района от 21.05.2009г. № 136 \"О принятии жилого фонда в муниципальную казну Черноморского городского поселения безвозмездно от муниципального образования Северский район\""]
[577,"квартира № 6","Холмская подстанция, жилой дом № 1",1950,46.1,null,null,{"v":27120.21,"d":"27,120.21"},{"v":27120.21,"d":"27,120.21"},{"v":0,"d":"0.00"},"Администрация Черноморского городского поселения","Постановление главы Черноморского городского поселения Северского района от 21.05.2009г. № 136 \"О принятии жилого фонда в муниципальную казну Черноморского городского поселения безвозмездно от муниципального образования Северский район\""]
[579,"Квартира № 16 ","п.Октябрьский, ул.Пушкина, 1",null,32.6,null,null,{"v":55084.86,"d":"55,084.86"},{"v":5377.01,"d":"5,377.01"},{"$f":"H160-I160","v":{"v":49707.85,"d":"49,707.85"}},"Администрация Черноморского городского поселения","Закон Краснодарского края от 13.11.2006г. № 1112-КЗ \"О разграничении имущества, находящегося в собственности муниципального образования Северский район, между вновь образованными городскими, сельскими поселениями и муниципальным образованием Северский район, в состав которого они входят\""]
[582,"квартира № 13","п.Октябрьский, ул.Пушкина, 1",1966,56.1,null,null,{"v":9145.91,"d":"9,145.91"},{"v":5803.06,"d":"5,803.06"},{"$f":"H161-I161","v":{"v":3342.8499999999995,"d":"3,342.85"}},"Администрация Черноморского городского поселения","Постановление главы Черноморского городского поселения Северского района от 06.07.2009г. № 172 \"О принятии жилого фонда в муниципальную казну Чернморского городского поселения безвозмездно от муниципального образования Северский район\""]
[583,"квартира № 16","п.Октябрьский, ул.Пушкина, 1",1966,32.6,null,null,{"v":5314.74,"d":"5,314.74"},{"v":3372.19,"d":"3,372.19"},{"$f":"H162-I162","v":{"v":1942.5499999999997,"d":"1,942.55"}},"Администрация Черноморского городского поселения","Постановление главы Черноморского городского поселения Северского района от 06.07.2009г. № 172 \"О принятии жилого фонда в муниципальную казну Чернморского городского поселения безвозмездно от муниципального образования Северский район\""]
[584,"квартира № 34","п.Октябрьский, ул.Пушкина, 34",1973,28.1,null,null,{"v":9382.32,"d":"9,382.32"},{"v":4367.47,"d":"4,367.47"},{"$f":"H163-I163","v":{"v":5014.849999999999,"d":"5,014.85"}},"Администрация Черноморского городского поселения","Постановление главы Черноморского городского поселения Северского района от 06.07.2009г. № 172 \"О принятии жилого фонда в муниципальную казну Чернморского городского поселения безвозмездно от муниципального образования Северский район\""]
[585,"квартира № 1","п.Черноморкий, ул.Мира, 16",1950,25.4,null,null,{"v":1595.8,"d":"1,595.80"},{"v":1595.8,"d":"1,595.80"},{"$f":"H164-I164","v":{"v":0,"d":"0.00"}},"Администрация Черноморского городского поселения","Постановление главы Черноморского городского поселения Северского района от 06.07.2009г. № 172 \"О принятии жилого фонда в муниципальную казну Чернморского городского поселения безвозмездно от муниципального образования Северский район\""]
[871,"квартира №2 ","пгт.Черноморский ул.Суворова д.4 кв 2 общая площадь 28,4 м2",2012,28.4,null,"23:26:1103018:156",{"v":852000,"d":"852,000.00"},{"v":0,"d":"0.00"},{"v":852000,"d":"852,000.00"},"Администрация Черноморского городского поселения","ПОСТАНОВЛЕНИЕ №2 ОТ 09.01.2013Г. О ПРИНЯТИИ В СОБСТВЕННОСТЬ ЧЕРНОМОРСКОГО ГОРОДСКОГО ПОСЕЛЕНИЯ СЕВЕРСКОГО РАЙОНА ЖИЛИЩНОГО ФОНДА,ПРИОБРИТЕННОГО В ХОДЕ РЕАЛИЗАЦИИ АДРЕСНОЙ ПРОГРАММЫ ПО ПЕРЕСЕЛЕНИЮ ГРАЖДАН ИЗ АВАРИЙНОГО ЖИЛИЩНОГО ФОНДА"]
[902,"квартира №6","пгт.Черноморский  ул.Пушкина дом 4 кв.6 общая площадь 82,5 кв.м, жилая 59,2 м2",null,82.5,null,"23:26:1103022:0:11/3",{"$nulls":3},"Администрация Черноморского городского поселения","СОГЛАШЕНИЕ №4 О ПРЕДОСТАВЛЕНИИ ЖИЛЫХ  ПОМЕЩЕНИЙ В СОБСТВЕННОСТЬ ГРАЖДАНАМ, ВЗАМЕН ИЗЫМАЕМЫХ У СОБСТВЕННИКОВ АВАРИЙНЫХ ЖИЛЫХ ПОМЕЩЕНИЙ ОТ 10.01.2013 г."]
[903,"квартира №5","пгт.Чернморский ул.Пушкина дом 4 кв,5 общая площадь 40,3 кв.м., жилая 25,2 м2",null,40.3,null,"23-23-17/017/2008-060",{"$nulls":3},"Администрация Черноморского городского поселения","СОГЛАШЕНИЕ №27 О ПРЕДОСТАВЛЕНИИ  ЖИЛЫХ ПОМЕЩЕНИЙ В СОБСТВЕННОСТЬ ГРАЖДАНАМ, ВЗАМЕН ИЗЫМАЕМЫХ У СОБСТВЕННИКОВ АВАРИЙНЫХ ЖИЛЫХ ПОМЕЩЕНИЙ ОТ 10 ЯНВАРЯ 2013 Г."]
[905,"квартира № 16","пгт.Черноморский ул.Суворова дом 4 кв. 16 общая площадь38,1 кв.м,  ",null,38.1,{"$nulls":5},"Администрация Черноморского городского поселения","ПОСТАНОВЛЕНИЕ №2 ОТ 09.01.2013Г. О ПРИНЯТИИ В СОБСТВЕННОСТЬ ЧЕРНОМОРСКОГО ГОРОДСКОГО ПОСЕЛЕНИЯ СЕВЕРСКОГО РАЙОНА ЖИЛИЩНОГО ФОНДА,ПРИОБРИТЕННОГО В ХОДЕ РЕАЛИЗАЦИИ АДРЕСНОЙ ПРОГРАММЫ ПО ПЕРЕСЕЛЕНИЮ ГРАЖДАН ИЗ АВАРИЙНОГО ЖИЛИЩНОГО ФОНДА "]
[907,"квартира № 31","пгт.Черноморский ул. Суворова  дом 4 кв. 31 общая площадь 26,5 кв.м,  ",null,26.5,{"$nulls":5},"Администрация Черноморского городского поселения","ПОСТАНОВЛЕНИЕ №2 ОТ 09.01.2013Г. О ПРИНЯТИИ В СОБСТВЕННОСТЬ ЧЕРНОМОРСКОГО ГОРОДСКОГО ПОСЕЛЕНИЯ СЕВЕРСКОГО РАЙОНА ЖИЛИЩНОГО ФОНДА,ПРИОБРИТЕННОГО В ХОДЕ РЕАЛИЗАЦИИ АДРЕСНОЙ ПРОГРАММЫ ПО ПЕРЕСЕЛЕНИЮ ГРАЖДАН ИЗ АВАРИЙНОГО ЖИЛИЩНОГО ФОНДА "]
[916,"квартира №4","п.Черноморский ул.Пушкина, д.4 кв.4 общая площадь 35,5 кв м жилая 25,1кв м ",null,35.5,null,"23-23-17/018/2012-346",{"$nulls":3},"Администрация Черноморского городского поселения","СОГЛАШЕНИЕ №14 О ПРЕДОСТВЛЕНИИ ЖИЛЫХ ПОМЕЩЕНИЙ В СОБСТВЕННОСТЬ ГРАЖДАНАМ,ВЗАМЕН ИЗЫМАЕМЫХ У СОБСТВЕННИКОВ АВАРИЙНЫХ ЖИЛЫХ ПОМЕЩЕНИЙ от 10 января 2013 г."]
[924,"квартира №7","п.Черноморский ул.Пушкина, д.4 кв.7 общая площадь 42,7 кв м жилая 15,0 кв м ",null,42.7,null,"23:26:1103022:0:11/1",{"$nulls":3},"Администрация Черноморского городского поселения","СОГЛАШЕНИЕ №12 О ПРЕДОСТАВЛЕНИИ ЖИЛЫХ ПОМЕЩЕНИЙ  В СОБСТВЕННОСТЬ ГРАЖДАНАМ,ВЗАМЕН ИЗЫМАЕМЫХ У СОБСТВЕННИКОВ АВАРИЙНЫХ ЖИЛЫХ ПОМЕЩЕНИЙ от 10 января 2013г"]
[928,"квартира №32","п.Черноморский ул.Суворова 4 кв 32  общая площадь 36,3 кв м",null,36.3,{"$nulls":5},"Администрация Черноморского городского поселения","акт ПРИЕМА-ПЕРЕДАЧИ  квартиры от 19.12.2012 г."]
[{"$f":"#REF!+1","v":{"$error":"#REF!"}},"квартира №16","Краснодарский край,Северский район, пгт.Афипский, ул.50 лет Октября, 102, площадь 35,3 кв.м",2015,"35,3",null,null,{"v":1088480,"d":"1,088,480.00"},{"v":0,"d":"0.00"},{"v":1088480,"d":"1,088,480.00"},"Администрация Черноморского городского поселения","решение Совета Черноморского городского поселения Северского района \"О включении в реестр муниципальной казны Черноморского городского поселения Северского района\" от13.11.2015 №91"]
[{"$f":"A173+1","v":{"$error":"#REF!"}},"квартира №90","Краснодарский край,Северский район, пгт.Афипский, ул.50 лет Октября, 102, площадь 37,6 кв.м",2015,"37,6",null,null,{"v":1224540,"d":"1,224,540.00"},{"v":0,"d":"0.00"},{"v":1224540,"d":"1,224,540.00"},"Администрация Черноморского городского поселения","решение Совета Черноморского городского поселения Северского района \"О включении в реестр муниципальной казны Черноморского городского поселения Северского района\" от13.11.2015 №91"]
[{"$f":"#REF!+1","v":{"$error":"#REF!"}},"квартира №150","Краснодарский край,Северский район, пгт.Афипский, ул.50 лет Октября, 102, площадь 54,3 кв.м",2015,"54,3",null,null,{"v":1489355.58,"d":"1,489,355.58"},{"v":0,"d":"0.00"},{"v":1489355.58,"d":"1,489,355.58"},"Администрация Черноморского городского поселения","решение Совета Черноморского городского поселения Северского района \"О включении в реестр муниципальной казны Черноморского городского поселения Северского района\" от13.11.2015 №91"]
[{"$f":"#REF!+1","v":{"$error":"#REF!"}},"квартира №173","Краснодарский край,Северский район, пгт.Афипский, ул.50 лет Октября, 102, площадь 37,5 кв.м",2015,"37,5",null,null,{"v":1039539.85,"d":"1,039,539.85"},{"v":0,"d":"0.00"},{"v":1039539.85,"d":"1,039,539.85"},"Администрация Черноморского городского поселения","решение Совета Черноморского городского поселения Северского района \"О включении в реестр муниципальной казны Черноморского городского поселения Северского района\" от13.11.2015 №91"]
[1003,"квартира №138","Краснодарский край,Северский район, пгт.Афипский, ул.50 лет Октября, 102, площадь 37,9 кв.м",2015,"37,9",null,null,{"v":1267485.21,"d":"1,267,485.21"},{"v":0,"d":"0.00"},{"v":1267485.21,"d":"1,267,485.21"},"Администрация Черноморского городского поселения","решение Совета Черноморского городского поселения Северского района \"О включении в реестр муниципальной казны Черноморского городского поселения Северского района\" от13.11.2015 №91"]
[1006,"квартира №13","Краснодарский край Северский район, пгт Черноморский, ул. Горького ,д.3, кв.13, 25,4 кв.м",1950,"25,4",{"$nulls":5},"Администрация Черноморского городского поселения","Решение Совета Черноморского городского поселения Северского района  от 17.12.2015 №99 «О включении в реестр муниципальной казны Черноморского городского поселения Северского района жилого фонда»"]
[1007,"квартира №5","Краснодарский край северский район, пгт Чепноморский, ул. Суворова ,д.36, кв.5, 44,3 кв.м",1950,"44,3",{"$nulls":5},"Администрация Черноморского городского поселения","Решение Совета Черноморского городского поселения Северского района  от 17.12.2015 №99 «О включении в реестр муниципальной казны Черноморского городского поселения Северского района жилого фонда»"]
[1018,"Квартира № 1","Краснодарский край Северский район пгт. Черноморский ул. Пушкина д.4 кв 1",null,39.8,{"$nulls":5},"Администрация Черноморского городского поселения","Решение Совета Черноморского городского поселения Северского района  от 21.04.2016 г. № 134 «О включении в реестр муниципальной казны Черноморского городского поселения Северского района»"]
[1021,"квартира № 2","Краснодарский край Северский район пгт. Черноморский ул. Пушкина д.4 кв. 2",null,34,null,"23:26:1103022:464",{"$nulls":3},"Администрация Черноморского городского поселения","Решение Совета Черноморского городского поселения Северского района  от 26.05.2016 г. № 144 «О включении в реестр муниципальной казны Черноморского городского поселения Северского района»"]
[1027,"квартира № 18","Краснодарский край Северский район пгт. Черноморский ул. Комсомольская, д. 2",2016,38,null,"23:26:1103033:383",{"v":1235899.95,"d":"1,235,899.95"},{"v":0,"d":"0.00"},{"v":1235899.95,"d":"1,235,899.95"},"Администрация Черноморского городского поселения","Решение Совета Черноморского городского поселения Северского района от 23.06.2016 г. № 152 \"О включении в реестр муниципальной казны Черноморского городского поселения Северского района жилого фонда\""]
[1028,"квартира № 13","Краснодарский край Северский район пгт. Черноморский ул. Комсомольская, д. 2",2016,53.15,null,"23:26:1103033:378",{"v":1728633.7,"d":"1,728,633.70"},{"v":0,"d":"0.00"},{"v":1728633.7,"d":"1,728,633.70"},"Администрация Черноморского городского поселения","Решение Совета Черноморского городского поселения Северского района от 23.06.2016 г. № 152 \"О включении в реестр муниципальной казны Черноморского городского поселения Северского района жилого фонда\""]
[1033,"квартира № 6","Краснодарский край Северский район пгт. Черноморский ул. Комсомольская, д. 2",2016,58.33,null,"23:26:1103033:371",{"v":1870460.95,"d":"1,870,460.95"},{"v":0,"d":"0.00"},{"v":1870460.95,"d":"1,870,460.95"},"Администрация Черноморского городского поселения","Решение Совета Черноморского городского поселения Северского района от 23.06.2016 г. № 152 \"О включении в реестр муниципальной казны Черноморского городского поселения Северского района жилого фонда\""]
[1036,"квартира № 1","Краснодарский край Северский район пгт. Черноморский ул. Комсомольская, д. 2",2016,58.33,null,"23:26:1103033:400",{"v":1870460.95,"d":"1,870,460.95"},{"v":0,"d":"0.00"},{"v":1870460.95,"d":"1,870,460.95"},"Администрация Черноморского городского поселения","Решение Совета Черноморского городского поселения Северского района от 23.06.2016 г. № 152 \"О включении в реестр муниципальной казны Черноморского городского поселения Северского района жилого фонда\""]
[1039,"квартира № 17","Краснодарский край Северский район пгт. Черноморский ул. Комсомольская, д. 2",2016,54.44,null,"23:26:1103033:382",{"v":1745720.79,"d":"1,745,720.79"},{"v":0,"d":"0.00"},{"v":1745720.79,"d":"1,745,720.79"},"Администрация Черноморского городского поселения","Решение Совета Черноморского городского поселения Северского района от 23.06.2016 г. № 152 \"О включении в реестр муниципальной казны Черноморского городского поселения Северского района жилого фонда\""]
[1040,"квартира № 22","Краснодарский край Северский район пгт. Черноморский ул. Комсомольская, д. 2",2016,54.52,null,"23:26:1103033:387",{"v":1748286.14,"d":"1,748,286.14"},{"v":0,"d":"0.00"},{"v":1748286.14,"d":"1,748,286.14"},"Администрация Черноморского городского поселения","Решение Совета Черноморского городского поселения Северского района от 23.06.2016 г. № 152 \"О включении в реестр муниципальной казны Черноморского городского поселения Северского района жилого фонда\""]
[1047,"квартира № 38","Краснодарский край Северский район пгт.Афипский ул. 50 лет Октября, д. 102",2016,61.5,null,null,{"v":1692246.25,"d":"1,692,246.25"},{"v":0,"d":"0.00"},{"v":1692246.25,"d":"1,692,246.25"},"Администрация Черноморского городского поселения","Решение Совета Черноморского городского поселения Северского района от 13.10.2016 № 173 \"О включении в реестр муниципальной казны Черноморского городского поселения Северского района жилого фонда\""]
[1057,"земельный участок-земли населенных пунктов – объекты инженерно-технического обеспечения","Краснодарский край Северский район пгт. Черноморский,34 квартал ",null,306,null,"23:26:1103006:298",{"$nulls":3},"Администрация Черноморского городского поселения","Решение Совета Черноморского городского поселения Северского района от 10.11.2016 № 178 \"О включении в реестр муниципальной собственности Черноморского городского поселения Северского района имущества\""]
[1058,"земельный участок-земли сельхоз.назначения – для садоводства","Краснодарский край Северский район пгт. Черноморский, с/т Нефтянник, № 398",null,471,null,"23:26:1103025:452",{"$nulls":3},"Администрация Черноморского городского поселения","Решение Совета Черноморского городского поселения Северского района от 10.11.2016 № 178 \"О включении в реестр муниципальной собственности Черноморского городского поселения Северского района имущества\""]
[1059,"земельный участок-земли населенных пунктов-объекты отдыха и туризма","Краснодарский край Северский район пгт. Черноморский, (Северо-восточная окраина)",null,94749,null,"23:26:1101000:250",{"$nulls":3},"Администрация Черноморского городского поселения","Решение Совета Черноморского городского поселения Северского района от 10.11.2016 № 178 \"О включении в реестр муниципальной собственности Черноморского городского поселения Северского района имущества\""]
[1060,"земельный участок-земли населенных пунктов-для  эксплуатации здания администрации","Краснодарский край Северский район пгт. Черноморский, ул. Дзержинского,24 ",null,2446,null,"23:26:1103022:550",{"$nulls":3},"Администрация Черноморского городского поселения","Решение Совета Черноморского городского поселения Северского района от 10.11.2016 № 178 \"О включении в реестр муниципальной собственности Черноморского городского поселения Северского района имущества\""]
[1061,"земельный участок-земли сельхоз.назначения – для садоводства-пашня","Краснодарский край Северский район пгт. Черноморский с/т Машиностроитель, № 50",null,600,null,"23:26:1105005:42",{"$nulls":3},"Администрация Черноморского городского поселения","Решение Совета Черноморского городского поселения Северского района от 10.11.2016 № 178 \"О включении в реестр муниципальной собственности Черноморского городского поселения Северского района имущества\""]
[1062,"земельный участок-земли сельхоз.назначения – для садоводства-пашня","Краснодарский край Северский район пгт. Черноморский с/т Машиностроитель, № 52",null,600,null,"23:26:1105005:44",{"$nulls":3},"Администрация Черноморского городского поселения","Решение Совета Черноморского городского поселения Северского района от 10.11.2016 № 178 \"О включении в реестр муниципальной собственности Черноморского городского поселения Северского района имущества\""]
[1063,"земельный участок-земли сельхоз.назначения – для садоводства","Краснодасркий край Северский район п. Черноморский с/т Нефтяник уч.228 Б",null,500,null,"23:26:1103025",{"$nulls":3},"Администрация Черноморского городского поселения","Решение Совета Черноморского городского поселения Северского района от 10.11.2016 № 178 \"О включении в реестр муниципальной собственности Черноморского городского поселения Северского района имущества\""]
[1064,"земельный участок-земли сельхоз.назначения – для садоводства","Краснодарский край Северский район п. Черноморский, с/т Нефтяник, уч. 178",null,605,null,"23:26:1103025",{"$nulls":3},"Администрация Черноморского городского поселения","Решение Совета Черноморского городского поселения Северского района от 10.11.2016 № 178 \"О включении в реестр муниципальной собственности Черноморского городского поселения Северского района имущества\""]
[1065,"земельный участок-земли сельхоз.назначения – для садоводства","Краснодарский край Северский район п. Черноморский, с/т Нефтяник, уч. 165",null,683,null,"23:26:1103025",{"$nulls":3},"Администрация Черноморского городского поселения","Решение Совета Черноморского городского поселения Северского района от 10.11.2016 № 178 \"О включении в реестр муниципальной собственности Черноморского городского поселения Северского района имущества\""]
[1066,"земельный участок","Краснодарский край Северский район п. Октябрьский ул. Кубанская, 4",null,1500,null,"23:26:1101005:139",{"$nulls":3},"Администрация Черноморского городского поселения","Решение Совета Черноморского городского поселения Северского района от 10.11.2016 № 178 \"О включении в реестр муниципальной собственности Черноморского городского поселения Северского района имущества\""]
[1071,"земельный участок 1/8 доля","Краснодарский край Северский район пгт. Черноморский ул. Пушкина, д. № 3",null,2268,null,"23:26:1103022:239",{"$nulls":3},"Администрация Черноморского городского поселения","Решение Совета Черноморского городского поселения Северского района от 24.11.2016 года № 185 \"О включении в реестр муниципальной собственности Черноморского городского поселения Северского района имущества\""]
[1087,"земельный участок-земли населенных пунктов-малоэтажная жилая застройка индивидуальное жилое строительство; размещение дачных домов и садовых домов","Краснодарский край Северский район п. Октябрьский ул. Толстого, д. № 17",null,886,null,"23:26:1101005:1553",{"$nulls":3},"Администрация Черноморского городского поселения","Решение Совета Черноморского городского поселения Северского района от15.12.2016 № 197 \"О включении в реестр муниципальной собственности Черноморского городского поселения Северского района имущества\""]
[1088,"земельный участок-земли сельхоз.назначения – для садоводства","Краснодарский край Северский район п. Черноморский  с/т Нефтяник,337",null,908,null,"23:26:1103025:334",{"$nulls":3},"Администрация Черноморского городского поселения","Решение Совета Черноморского городского поселения Северского района от15.12.2016 № 197 \"О включении в реестр муниципальной собственности Черноморского городского поселения Северского района имущества\""]
[1093,"нежилое помещение   № 1","Краснодарский край Северский район п.Октябрьский, ул. Горького, дом № 3",1949,51.4,null,"23:26:1101005:1072",{"$nulls":3},"Администрация Черноморского городского поселения","Решение Совета Черноморского городского поселения Северского района от 16.02.2017 № 213 \"О включении в реестр муниципальной собственности Черноморского городского поселения Северского района имущества\""]
[1094,"нежилое помещение   № 3","Краснодарский край Северский район п.Октябрьский, ул. Горького, дом № 3",1949,26.9,null,"23:26:1101005:1379",{"$nulls":3},"Администрация Черноморского городского поселения","Решение Совета Черноморского городского поселения Северского района от 16.02.2017 № 213 \"О включении в реестр муниципальной собственности Черноморского городского поселения Северского района имущества\""]
[1095,"нежилое помещение   № 4","Краснодарский край Северский район п.Октябрьский, ул. Горького, дом № 3",1949,28.7,null,"23:26:1101005:1372",{"$nulls":3},"Администрация Черноморского городского поселения","Решение Совета Черноморского городского поселения Северского района от 16.02.2017 № 213 \"О включении в реестр муниципальной собственности Черноморского городского поселения Северского района имущества\""]
[1096,"нежилое помещение   № 6","Краснодарский край Северский район п.Октябрьский, ул. Горького, дом № 3",1949,18.6,null,"23:26:1101005:1376",{"$nulls":3},"Администрация Черноморского городского поселения","Решение Совета Черноморского городского поселения Северского района от 16.02.2017 № 213 \"О включении в реестр муниципальной собственности Черноморского городского поселения Северского района имущества\""]
[1097,"нежилое помещение   № 7","Краснодарский край Северский район п.Октябрьский, ул. Горького, дом № 3",1949,19,null,"23:26:1101005:1378",{"$nulls":3},"Администрация Черноморского городского поселения","Решение Совета Черноморского городского поселения Северского района от 16.02.2017 № 213 \"О включении в реестр муниципальной собственности Черноморского городского поселения Северского района имущества\""]
[1098,"нежилое помещение   № 8","Краснодарский край Северский район п.Октябрьский, ул. Горького, дом № 3",1949,21.1,null,"23:26:1101005:1373",{"$nulls":3},"Администрация Черноморского городского поселения","Решение Совета Черноморского городского поселения Северского района от 16.02.2017 № 213 \"О включении в реестр муниципальной собственности Черноморского городского поселения Северского района имущества\""]
[1099,"нежилое помещение   № 10","Краснодарский край Северский район п.Октябрьский, ул. Горького, дом № 3",1949,20.3,null,"23:26:1101005:1377",{"$nulls":3},"Администрация Черноморского городского поселения","Решение Совета Черноморского городского поселения Северского района от 16.02.2017 № 213 \"О включении в реестр муниципальной собственности Черноморского городского поселения Северского района имущества\""]
[1100,"нежилое помещение   № 11","Краснодарский край Северский район п.Октябрьский, ул. Горького, дом № 3",1949,13,null,"23:26:1101005:1374",{"$nulls":3},"Администрация Черноморского городского поселения","Решение Совета Черноморского городского поселения Северского района от 16.02.2017 № 213 \"О включении в реестр муниципальной собственности Черноморского городского поселения Северского района имущества\""]
[1101,"нежилое помещение № 12","Краснодарский край Северский район п.Октябрьский, ул. Горького, дом № 3",1949,33.4,null,"23:26:1101005:1375",{"$nulls":3},"Администрация Черноморского городского поселения","Решение Совета Черноморского городского поселения Северского района от 16.02.2017 № 213 \"О включении в реестр муниципальной собственности Черноморского городского поселения Северского района имущества\""]
[1102,"нежилое помещение   № 13","Краснодарский край Северский район п.Октябрьский, ул. Горького, дом № 3",1949,25.4,null,"23:26:1101005:1093",{"$nulls":3},"Администрация Черноморского городского поселения","Решение Совета Черноморского городского поселения Северского района от 16.02.2017 № 213 \"О включении в реестр муниципальной собственности Черноморского городского поселения Северского района имущества\""]
[1106,"квартира № 9","Краснодарский край Северский район пгт. Черноморский, ул. Суворова, дом № 4",null,45.2,null,"23:26:1103018:141",{"v":974862.75,"d":"974,862.75"},{"v":0,"d":"0.00"},{"v":974862.75,"d":"974,862.75"},"Администрация Черноморского городского поселения","Решение Совета Черноморского городского поселения Северского района от 20.04.2017 г. № 229 \"О включении в реестр муниципальной собственности Черноморского городского поселения Северского района имущества\""]
[1116,"квартира № 10","Краснодарский край Северский район пгт. Черноморский, ул. Комсомольская, дом № 2 литер 2",2017,44.6,null,"23:26:1103033:413",{"v":1496660,"d":"1,496,660.00"},{"v":0,"d":"0.00"},{"v":1496660,"d":"1,496,660.00"},"Администрация Черноморского городского поселения","Решение Совета Черноморского городского поселения Северского района от 10.08.2017 г. № 244 \"О включении в реестр муниципальной собственности Черноморского городского поселения Северского района имущества\""]
[1126,"квартира № 17","Краснодарский край Северский район пгт. Черноморский, ул. Комсомольская, дом № 2 литер 2",2017,55.1,null,"23:26:1103033:420",{"v":1496660,"d":"1,496,660.00"},{"v":0,"d":"0.00"},{"v":1496660,"d":"1,496,660.00"},"Администрация Черноморского городского поселения","Решение Совета Черноморского городского поселения Северского района от 10.08.2017 г. № 244 \"О включении в реестр муниципальной собственности Черноморского городского поселения Северского района имущества\""]
[1130,"квартира № 165","Краснодарский край, г. Краснодар, Прикубанский внутригородской округ, ул. им. Генерала Трошева Г.Н., д. 17",2017,78.34,null,"23:43:0143022:346",{"v":2653170,"d":"2,653,170.00"},{"v":0,"d":"0.00"},{"v":2653170,"d":"2,653,170.00"},"Администрация Черноморского городского поселения","Решение Совета Черноморского городского поселения Северского района от 21.08.2017 г. № 249 \"О включении в реестр муниципальной собственности Черноморского городского поселения Северского района имущества\""]
[2,"Административное здание              (домик лесника)","п.Черноморский, ул.Советская, 41    (Крюковский водозабор)",{"$nulls":4},{"v":24000,"d":"24,000.00"},{"v":24000,"d":"24,000.00"},{"v":0,"d":"0.00"},"Администрация Черноморского городского поселения","Закон Краснодарского края от 13.11.2006г. № 1112-КЗ \"О разграничении имущества, находящегося в собственности муниципального образования Северский район, между вновь образованными городскими, сельскими поселениями и муниципальным образованием Северский район, в состав которого они входят\""]
[3,"Артезианская скважина № 1","п.Черноморский, Крюковский водозабор",1992,{"$nulls":3},{"v":32566,"d":"32,566.00"},{"v":32566,"d":"32,566.00"},{"v":0,"d":"0.00"},"Администрация Черноморского городского поселения","Закон Краснодарского края от 13.11.2006г. № 1112-КЗ \"О разграничении имущества, находящегося в собственности муниципального образования Северский район, между вновь образованными городскими, сельскими поселениями и муниципальным образованием Северский район, в состав которого они входят\""]
[4,"контора лаборатории с котельной","п.Черноморский, Крюковский водозабор",1992,{"$nulls":3},{"v":35823,"d":"35,823.00"},{"v":35823,"d":"35,823.00"},{"v":0,"d":"0.00"},"Администрация Черноморского городского поселения","Закон Краснодарского края от 13.11.2006г. № 1112-КЗ \"О разграничении имущества, находящегося в собственности муниципального образования Северский район, между вновь образованными городскими, сельскими поселениями и муниципальным образованием Северский район, в состав которого они входят\""]
[5,"Артезианская скважина № 12","п.Черноморский,   Крюковский водозабор",1992,{"$nulls":3},{"v":35823,"d":"35,823.00"},{"v":35823,"d":"35,823.00"},{"v":0,"d":"0.00"},"Администрация Черноморского городского поселения","Закон Краснодарского края от 13.11.2006г. № 1112-КЗ \"О разграничении имущества, находящегося в собственности муниципального образования Северский район, между вновь образованными городскими, сельскими поселениями и муниципальным образованием Северский район, в состав которого они входят\""]
[6,"Артезианская скважина № 2","п.Черноморский,   Крюковский водозабор",1992,{"$nulls":3},{"v":32564,"d":"32,564.00"},{"v":32564,"d":"32,564.00"},{"v":0,"d":"0.00"},"Администрация Черноморского городского поселения","Закон Краснодарского края от 13.11.2006г. № 1112-КЗ \"О разграничении имущества, находящегося в собственности муниципального образования Северский район, между вновь образованными городскими, сельскими поселениями и муниципальным образованием Северский район, в состав которого они входят\""]
[7,"Артезианская скважина № 3","п.Черноморский,   Крюковский водозабор",1992,{"$nulls":3},{"v":32566,"d":"32,566.00"},{"v":32566,"d":"32,566.00"},{"v":0,"d":"0.00"},"Администрация Черноморского городского поселения","Закон Краснодарского края от 13.11.2006г. № 1112-КЗ \"О разграничении имущества, находящегося в собственности муниципального образования Северский район, между вновь образованными городскими, сельскими поселениями и муниципальным образованием Северский район, в состав которого они входят\""]
[8,"Артезианская скважина № 4","п.Черноморский, Крюковский водозабор",1992,{"$nulls":3},{"v":32566,"d":"32,566.00"},{"v":32566,"d":"32,566.00"},{"v":0,"d":"0.00"},"Администрация Черноморского городского поселения","Закон Краснодарского края от 13.11.2006г. № 1112-КЗ \"О разграничении имущества, находящегося в собственности муниципального образования Северский район, между вновь образованными городскими, сельскими поселениями и муниципальным образованием Северский район, в состав которого они входят\""]
[9,"Водопровод протяженность 5980 м","п.Черноморский, от первой нитки до х.Карского",null,5980,null,"23:26:0000000:3750",{"v":555362,"d":"555,362.00"},{"v":555362,"d":"555,362.00"},{"v":0,"d":"0.00"},"Администрация Черноморского городского поселения","Закон Краснодарского края от 13.11.2006г. № 1112-КЗ \"О разграничении имущества, находящегося в собственности муниципального образования Северский район, между вновь образованными городскими, сельскими поселениями и муниципальным образованием Северский район, в состав которого они входят\""]
[10,"Водопровод протяженность 670 м","п.Черноморский, от резервуара до ул.Пионерской",null,670,null,"23:26:0000000:3751",{"v":78564,"d":"78,564.00"},{"v":78564,"d":"78,564.00"},{"v":0,"d":"0.00"},"Администрация Черноморского городского поселения","Закон Краснодарского края от 13.11.2006г. № 1112-КЗ \"О разграничении имущества, находящегося в собственности муниципального образования Северский район, между вновь образованными городскими, сельскими поселениями и муниципальным образованием Северский район, в состав которого они входят\""]
[11,"Водопровод протяженность 4300 м","п.Черноморский, от Крюковского водозабора до резервуара объемом 3200 куб.м",1992,4300,null,"23:26:0000000:4053",{"v":709938,"d":"709,938.00"},{"v":709938,"d":"709,938.00"},{"v":0,"d":"0.00"},"Администрация Черноморского городского поселения","Закон Краснодарского края от 13.11.2006г. № 1112-КЗ \"О разграничении имущества, находящегося в собственности муниципального образования Северский район, между вновь образованными городскими, сельскими поселениями и муниципальным образованием Северский район, в состав которого они входят\""]
[12,"Водопровод протяженность 8000 м","ст-ца Северская - х.Карский",null,8000,null,"23:26:0000000:4047",{"v":1320817,"d":"1,320,817.00"},{"v":1320817,"d":"1,320,817.00"},{"v":0,"d":"0.00"},"Администрация Черноморского городского поселения","Закон Краснодарского края от 13.11.2006г. № 1112-КЗ \"О разграничении имущества, находящегося в собственности муниципального образования Северский район, между вновь образованными городскими, сельскими поселениями и муниципальным образованием Северский район, в состав которого они входят\""]
[13,"Водопровод протяженность 1500 м","от Черноморских резервуаров до мкр.Солнечного",null,1500,null,"23:26:0000000:3731",{"v":141488,"d":"141,488.00"},{"v":141488,"d":"141,488.00"},{"v":0,"d":"0.00"},"Администрация Черноморского городского поселения","Закон Краснодарского края от 13.11.2006г. № 1112-КЗ \"О разграничении имущества, находящегося в собственности муниципального образования Северский район, между вновь образованными городскими, сельскими поселениями и муниципальным образованием Северский район, в состав которого они входят\""]
[14,"Водопровод минеральной воды протяженность 840 м","п.Черноморский, от скважины до водолечебницы",null,840,null,"23:26:0000000:4052",{"v":64540,"d":"64,540.00"},{"v":64540,"d":"64,540.00"},{"v":0,"d":"0.00"},"Администрация Черноморского городского поселения","Закон Краснодарского края от 13.11.2006г. № 1112-КЗ \"О разграничении имущества, находящегося в собственности муниципального образования Северский район, между вновь образованными городскими, сельскими поселениями и муниципальным образованием Северский район, в состав которого они входят\""]
[15,"Водопровод протяженность 1450 м","п.Черноморский, южная часть поселка",null,1450,null,"23:26:0000000:3739",{"v":156087,"d":"156,087.00"},{"v":156087,"d":"156,087.00"},{"v":0,"d":"0.00"},"Администрация Черноморского городского поселения","Закон Краснодарского края от 13.11.2006г. № 1112-КЗ \"О разграничении имущества, находящегося в собственности муниципального образования Северский район, между вновь образованными городскими, сельскими поселениями и муниципальным образованием Северский район, в состав которого они входят\""]
[16,"Водопровод протяженность 630 м","п.Черноморский, ул.Дзержинского",null,630,null,"23:26:0000000:3742",{"v":57041,"d":"57,041.00"},{"v":57041,"d":"57,041.00"},{"v":0,"d":"0.00"},"Администрация Черноморского городского поселения","Закон Краснодарского края от 13.11.2006г. № 1112-КЗ \"О разграничении имущества, находящегося в собственности муниципального образования Северский район, между вновь образованными городскими, сельскими поселениями и муниципальным образованием Северский район, в состав которого они входят\""]
[17,"Водопровод протяженность 1000 м","п.Черноморский, ул.Калинина",null,1000,null,"23:26:0000000:3704",{"v":76923,"d":"76,923.00"},{"v":76923,"d":"76,923.00"},{"v":0,"d":"0.00"},"Администрация Черноморского городского поселения","Закон Краснодарского края от 13.11.2006г. № 1112-КЗ \"О разграничении имущества, находящегося в собственности муниципального образования Северский район, между вновь образованными городскими, сельскими поселениями и муниципальным образованием Северский район, в состав которого они входят\""]
[18,"Водопровод протяженность 1040 м","п.Черноморский, ул.Крупской",null,1040,null,"23:26:0000000:3712",{"v":79999,"d":"79,999.00"},{"v":79999,"d":"79,999.00"},{"v":0,"d":"0.00"},"Администрация Черноморского городского поселения","Закон Краснодарского края от 13.11.2006г. № 1112-КЗ \"О разграничении имущества, находящегося в собственности муниципального образования Северский район, между вновь образованными городскими, сельскими поселениями и муниципальным образованием Северский район, в состав которого они входят\""]
[19,"Водопровод протяженность 620 м","п.Черноморский, ул.Ленина",null,620,null,"23:26:0000000:3711",{"v":47692,"d":"47,692.00"},{"v":47692,"d":"47,692.00"},{"v":0,"d":"0.00"},"Администрация Черноморского городского поселения","Закон Краснодарского края от 13.11.2006г. № 1112-КЗ \"О разграничении имущества, находящегося в собственности муниципального образования Северский район, между вновь образованными городскими, сельскими поселениями и муниципальным образованием Северский район, в состав которого они входят\""]
[20,"Водопровод протяженность 550 м","п.Черноморский, ул.Мира",null,550,null,"23:26:0000000:3710",{"v":42307,"d":"42,307.00"},{"v":42307,"d":"42,307.00"},{"v":0,"d":"0.00"},"Администрация Черноморского городского поселения","Закон Краснодарского края от 13.11.2006г. № 1112-КЗ \"О разграничении имущества, находящегося в собственности муниципального образования Северский район, между вновь образованными городскими, сельскими поселениями и муниципальным образованием Северский район, в состав которого они входят\""]
[21,"Водопровод протяженность 1020 м","п.Черноморский, ул.Новороссийская",null,1020,null,"23:26:0000000:3706",{"v":78461,"d":"78,461.00"},{"v":78461,"d":"78,461.00"},{"v":0,"d":"0.00"},"Администрация Черноморского городского поселения","Закон Краснодарского края от 13.11.2006г. № 1112-КЗ \"О разграничении имущества, находящегося в собственности муниципального образования Северский район, между вновь образованными городскими, сельскими поселениями и муниципальным образованием Северский район, в состав которого они входят\""]
[22,"Водопровод протяженность 450 м","п.Черноморский, ул.Новороссийская",null,450,null,"23:26:0000000:3703",{"v":35225,"d":"35,225.00"},{"v":35225,"d":"35,225.00"},{"v":0,"d":"0.00"},"Администрация Черноморского городского поселения","Закон Краснодарского края от 13.11.2006г. № 1112-КЗ \"О разграничении имущества, находящегося в собственности муниципального образования Северский район, между вновь образованными городскими, сельскими поселениями и муниципальным образованием Северский район, в состав которого они входят\""]
[23,"Водопровод протяженность 450 м","п.Черноморский, ул.Островского",null,450,null,"23:26:0000000:3692",{"v":34615,"d":"34,615.00"},{"v":34615,"d":"34,615.00"},{"v":0,"d":"0.00"},"Администрация Черноморского городского поселения","Закон Краснодарского края от 13.11.2006г. № 1112-КЗ \"О разграничении имущества, находящегося в собственности муниципального образования Северский район, между вновь образованными городскими, сельскими поселениями и муниципальным образованием Северский район, в состав которого они входят\""]
[24,"Водопровод протяженность 600 м","п.Черноморский, ул.Пионерская",null,600,null,"23:26:0000000:3691",{"v":69230,"d":"69,230.00"},{"v":69230,"d":"69,230.00"},{"v":0,"d":"0.00"},"Администрация Черноморского городского поселения","Закон Краснодарского края от 13.11.2006г. № 1112-КЗ \"О разграничении имущества, находящегося в собственности муниципального образования Северский район, между вновь образованными городскими, сельскими поселениями и муниципальным образованием Северский район, в состав которого они входят\""]
[25,"Водопровод протяженность 470 м","п.Черноморский, ул.Пушкина",null,470,null,"23:26:0000000:3719",{"v":36154,"d":"36,154.00"},{"v":36154,"d":"36,154.00"},{"v":0,"d":"0.00"},"Администрация Черноморского городского поселения","Закон Краснодарского края от 13.11.2006г. № 1112-КЗ \"О разграничении имущества, находящегося в собственности муниципального образования Северский район, между вновь образованными городскими, сельскими поселениями и муниципальным образованием Северский район, в состав которого они входят\""]
[26,"Водопровод протяженность 840 м","п.Черноморский, ул.Советская ",null,840,null,"23:26:0000000:3701",{"v":64615,"d":"64,615.00"},{"v":64615,"d":"64,615.00"},{"v":0,"d":"0.00"},"Администрация Черноморского городского поселения","Закон Краснодарского края от 13.11.2006г. № 1112-КЗ \"О разграничении имущества, находящегося в собственности муниципального образования Северский район, между вновь образованными городскими, сельскими поселениями и муниципальным образованием Северский район, в состав которого они входят\""]
[27,"Водопровод протяженность 1140 м","п.Черноморский, ул.Кавказская",null,1140,null,"23:26:0000000:3941",{"v":87692,"d":"87,692.00"},{"v":87692,"d":"87,692.00"},{"v":0,"d":"0.00"},"Администрация Черноморского городского поселения","Закон Краснодарского края от 13.11.2006г. № 1112-КЗ \"О разграничении имущества, находящегося в собственности муниципального образования Северский район, между вновь образованными городскими, сельскими поселениями и муниципальным образованием Северский район, в состав которого они входят\""]
[28,"Водопровод протяженность 890 м","п.Черноморский, ул.Суворова",null,890,null,"23:26:0000000:3940",{"v":68461,"d":"68,461.00"},{"v":68461,"d":"68,461.00"},{"v":0,"d":"0.00"},"Администрация Черноморского городского поселения","Закон Краснодарского края от 13.11.2006г. № 1112-КЗ \"О разграничении имущества, находящегося в собственности муниципального образования Северский район, между вновь образованными городскими, сельскими поселениями и муниципальным образованием Северский район, в состав которого они входят\""]
[29,"Водопровод протяженность 680 м","п.Черноморский, ул.Тельмана ",null,680,null,"23:26:0000000:3936",{"v":52307,"d":"52,307.00"},{"v":52307,"d":"52,307.00"},{"v":0,"d":"0.00"},"Администрация Черноморского городского поселения","Закон Краснодарского края от 13.11.2006г. № 1112-КЗ \"О разграничении имущества, находящегося в собственности муниципального образования Северский район, между вновь образованными городскими, сельскими поселениями и муниципальным образованием Северский район, в состав которого они входят\""]
[30,"Водопровод протяженность 680 м","п.Черноморский, ул.Фрунзе",null,680,null,"23:26:0000000:3924",{"v":79737,"d":"79,737.00"},{"v":79737,"d":"79,737.00"},{"v":0,"d":"0.00"},"Администрация Черноморского городского поселения","Закон Краснодарского края от 13.11.2006г. № 1112-КЗ \"О разграничении имущества, находящегося в собственности муниципального образования Северский район, между вновь образованными городскими, сельскими поселениями и муниципальным образованием Северский район, в состав которого они входят\""]
[31,"Водопровод протяженность 1550 м","п.Черноморский, ул.Юбилейная",null,1550,null,"23:06:0000000:1141",{"v":181753,"d":"181,753.00"},{"v":181753,"d":"181,753.00"},{"v":0,"d":"0.00"},"Администрация Черноморского городского поселения","Закон Краснодарского края от 13.11.2006г. № 1112-КЗ \"О разграничении имущества, находящегося в собственности муниципального образования Северский район, между вновь образованными городскими, сельскими поселениями и муниципальным образованием Северский район, в состав которого они входят\""]
[32,"Водопровод протяженность 1550 м","п.Черноморский, ул.Юбилейная",null,1550,null,"23:26:0000000:3697",{"v":251546,"d":"251,546.00"},{"v":251546,"d":"251,546.00"},{"v":0,"d":"0.00"},"Администрация Черноморского городского поселения","Закон Краснодарского края от 13.11.2006г. № 1112-КЗ \"О разграничении имущества, находящегося в собственности муниципального образования Северский район, между вновь образованными городскими, сельскими поселениями и муниципальным образованием Северский район, в состав которого они входят\""]
[33,"Водопровод протяженность 1884 м","п.Черноморский, ул.Юбилейная",null,1884,null,"23:26:0000000:3696",{"v":220918,"d":"220,918.00"},{"v":220918,"d":"220,918.00"},{"v":0,"d":"0.00"},"Администрация Черноморского городского поселения","Закон Краснодарского края от 13.11.2006г. № 1112-КЗ \"О разграничении имущества, находящегося в собственности муниципального образования Северский район, между вновь образованными городскими, сельскими поселениями и муниципальным образованием Северский район, в состав которого они входят\""]
[34,"Водопровод протяженность 680 м","п.Черноморский, ул.Белинского",null,680,null,"23:26:0000000:3694",{"v":52307,"d":"52,307.00"},{"v":52307,"d":"52,307.00"},{"v":0,"d":"0.00"},"Администрация Черноморского городского поселения","Закон Краснодарского края от 13.11.2006г. № 1112-КЗ \"О разграничении имущества, находящегося в собственности муниципального образования Северский район, между вновь образованными городскими, сельскими поселениями и муниципальным образованием Северский район, в состав которого они входят\""]
[35,"Водопровод протяженность 510 м","п.Черноморский, ул.Октябрьская",null,510,null,"23:26:0000000:3690",{"v":39231,"d":"39,231.00"},{"v":39231,"d":"39,231.00"},{"v":0,"d":"0.00"},"Администрация Черноморского городского поселения","Закон Краснодарского края от 13.11.2006г. № 1112-КЗ \"О разграничении имущества, находящегося в собственности муниципального образования Северский район, между вновь образованными городскими, сельскими поселениями и муниципальным образованием Северский район, в состав которого они входят\""]
[36,"Водопровод протяженность 380 м","п.Черноморский, ул.Толстого",null,380,null,"23:26:0000000:3689",{"v":29231,"d":"29,231.00"},{"v":29231,"d":"29,231.00"},{"v":0,"d":"0.00"},"Администрация Черноморского городского поселения","Закон Краснодарского края от 13.11.2006г. № 1112-КЗ \"О разграничении имущества, находящегося в собственности муниципального образования Северский район, между вновь образованными городскими, сельскими поселениями и муниципальным образованием Северский район, в состав которого они входят\""]
[37,"Водопровод протяженность 370 м","п.Черноморский, ул.Чапаева",null,370,null,"23:26:0000000:3688",{"v":28461,"d":"28,461.00"},{"v":28461,"d":"28,461.00"},{"v":0,"d":"0.00"},"Администрация Черноморского городского поселения","Закон Краснодарского края от 13.11.2006г. № 1112-КЗ \"О разграничении имущества, находящегося в собственности муниципального образования Северский район, между вновь образованными городскими, сельскими поселениями и муниципальным образованием Северский район, в состав которого они входят\""]
[38,"Водопровод протяженность 1300 м","п.Черноморский, ул.Юбилейная",null,1300,null,"23:26:0000000:3687",{"v":99999,"d":"99,999.00"},{"v":99999,"d":"99,999.00"},{"v":0,"d":"0.00"},"Администрация Черноморского городского поселения","Закон Краснодарского края от 13.11.2006г. № 1112-КЗ \"О разграничении имущества, находящегося в собственности муниципального образования Северский район, между вновь образованными городскими, сельскими поселениями и муниципальным образованием Северский район, в состав которого они входят\""]
[39,"Водопроводная насосная станция","п.Черноморский",{"$nulls":4},{"v":651281,"d":"651,281.00"},{"v":168452.36,"d":"168,452.36"},{"v":0,"d":"0.00"},"Администрация Черноморского городского поселения","Закон Краснодарского края от 13.11.2006г. № 1112-КЗ \"О разграничении имущества, находящегося в собственности муниципального образования Северский район, между вновь образованными городскими, сельскими поселениями и муниципальным образованием Северский район, в состав которого они входят\""]
[40,"Водопровод протяженность 550 м","п.Черноморский, ул.Кирова",null,550,null,"23:26:0000000:3686",{"v":64493,"d":"64,493.00"},{"v":64493,"d":"64,493.00"},{"v":0,"d":"0.00"},"Администрация Черноморского городского поселения","Закон Краснодарского края от 13.11.2006г. № 1112-КЗ \"О разграничении имущества, находящегося в собственности муниципального образования Северский район, между вновь образованными городскими, сельскими поселениями и муниципальным образованием Северский район, в состав которого они входят\""]
[41,"Емкость 10 куб. м","п.Черноморский, Крюковский водозабор",1992,10,null,"23:26:0000000:3971",{"v":5848,"d":"5,848.00"},{"v":5848,"d":"5,848.00"},{"v":0,"d":"0.00"},"Администрация Черноморского городского поселения","Закон Краснодарского края от 13.11.2006г. № 1112-КЗ \"О разграничении имущества, находящегося в собственности муниципального образования Северский район, между вновь образованными городскими, сельскими поселениями и муниципальным образованием Северский район, в состав которого они входят\""]
[42,"Железобетонный резервуар объем 2000 куб.м (2 шт)","п.Черноморский, Крюковский водозабор",1992,2000,null,"23:26:0000000:3965; 23:26:0000000:3970",{"v":95484,"d":"95,484.00"},{"v":95484,"d":"95,484.00"},{"v":0,"d":"0.00"},"Администрация Черноморского городского поселения","Закон Краснодарского края от 13.11.2006г. № 1112-КЗ \"О разграничении имущества, находящегося в собственности муниципального образования Северский район, между вновь образованными городскими, сельскими поселениями и муниципальным образованием Северский район, в состав которого они входят\""]
[43,"Железобетонный резервуар объем 3000 куб.м (2 шт)","п.Черноморский, Крюковский водозабор",1992,3000,null,"23:26:0000000:3966",{"v":139303,"d":"139,303.00"},{"v":139303,"d":"139,303.00"},{"v":0,"d":"0.00"},"Администрация Черноморского городского поселения","Закон Краснодарского края от 13.11.2006г. № 1112-КЗ \"О разграничении имущества, находящегося в собственности муниципального образования Северский район, между вновь образованными городскими, сельскими поселениями и муниципальным образованием Северский район, в состав которого они входят\""]
[44,"Железобетонный резервуар объем 500 куб.м (2 шт)","п.Черноморский, Крюковский водозабор КАРСКИЙ",1992,500,null,"23:26:0000000:3967;   23:26:0000000:3968",{"v":23067,"d":"23,067.00"},{"v":23067,"d":"23,067.00"},{"v":0,"d":"0.00"},"Администрация Черноморского городского поселения","Закон Краснодарского края от 13.11.2006г. № 1112-КЗ \"О разграничении имущества, находящегося в собственности муниципального образования Северский район, между вновь образованными городскими, сельскими поселениями и муниципальным образованием Северский район, в состав которого они входят\""]
[45,"Здание мастерской ","п.Черноморский, Крюковский водозабор",1992,{"$nulls":3},{"v":88486,"d":"88,486.00"},{"v":88486,"d":"88,486.00"},{"v":0,"d":"0.00"},"Администрация Черноморского городского поселения","Закон Краснодарского края от 13.11.2006г. № 1112-КЗ \"О разграничении имущества, находящегося в собственности муниципального образования Северский район, между вновь образованными городскими, сельскими поселениями и муниципальным образованием Северский район, в состав которого они входят\""]
[46,"Здание насосной артезианской скважины","п.Черноморский, Крюковский водозабор",{"$nulls":4},{"v":103695,"d":"103,695.00"},{"v":103695,"d":"103,695.00"},{"v":0,"d":"0.00"},"Администрация Черноморского городского поселения","Закон Краснодарского края от 13.11.2006г. № 1112-КЗ \"О разграничении имущества, находящегося в собственности муниципального образования Северский район, между вновь образованными городскими, сельскими поселениями и муниципальным образованием Северский район, в состав которого они входят\""]
[47,"Здание насосной артезианской скважины","п.Черноморский, Крюковский водозабор",{"$nulls":4},{"v":65320,"d":"65,320.00"},{"v":65320,"d":"65,320.00"},{"v":0,"d":"0.00"},"Администрация Черноморского городского поселения","Закон Краснодарского края от 13.11.2006г. № 1112-КЗ \"О разграничении имущества, находящегося в собственности муниципального образования Северский район, между вновь образованными городскими, сельскими поселениями и муниципальным образованием Северский район, в состав которого они входят\""]
[48,"Контора лаборатории с котельной","п.Черноморский, очистные сооружения",{"$nulls":4},{"v":122908,"d":"122,908.00"},{"v":122908,"d":"122,908.00"},{"v":0,"d":"0.00"},"Администрация Черноморского городского поселения","Закон Краснодарского края от 13.11.2006г. № 1112-КЗ \"О разграничении имущества, находящегося в собственности муниципального образования Северский район, между вновь образованными городскими, сельскими поселениями и муниципальным образованием Северский район, в состав которого они входят\""]
[49,"Магистральный водопровод протяженность 16980 м","п.Черноморский, Крюковский водозабор",1992,16980,null,"23:26:0000000:3935",{"v":639528,"d":"639,528.00"},{"v":639528,"d":"639,528.00"},{"v":0,"d":"0.00"},"Администрация Черноморского городского поселения","Закон Краснодарского края от 13.11.2006г. № 1112-КЗ \"О разграничении имущества, находящегося в собственности муниципального образования Северский район, между вновь образованными городскими, сельскими поселениями и муниципальным образованием Северский район, в состав которого они входят\""]
[50,"Здание материального склада","п.Черноморский, Крюковский водозабор",1992,null,null,"23:26:1101000:0:12",{"v":2648,"d":"2,648.00"},{"v":2648,"d":"2,648.00"},{"v":0,"d":"0.00"},"Администрация Черноморского городского поселения","Закон Краснодарского края от 13.11.2006г. № 1112-КЗ \"О разграничении имущества, находящегося в собственности муниципального образования Северский район, между вновь образованными городскими, сельскими поселениями и муниципальным образованием Северский район, в состав которого они входят\""]
[51,"Мобильное здание \"Север 12\"","п.Черноморский, ул.Советская, 41",{"$nulls":3},"13.11.2006",{"v":103158,"d":"103,158.00"},{"v":103158,"d":"103,158.00"},{"v":0,"d":"0.00"},"Администрация Черноморского городского поселения","Закон Краснодарского края от 13.11.2006г. № 1112-КЗ \"О разграничении имущества, находящегося в собственности муниципального образования Северский район, между вновь образованными городскими, сельскими поселениями и муниципальным образованием Северский район, в состав которого они входят\""]
[52,"Наружный водопровод протяженность     88 м","п.Черноморский, ул.Юбилейная, 42",null,88,null,"23:26:1103022:619",{"v":1372,"d":"1,372.00"},717.64,654.36,"Администрация Черноморского городского поселения","Закон Краснодарского края от 13.11.2006г. № 1112-КЗ \"О разграничении имущества, находящегося в собственности муниципального образования Северский район, между вновь образованными городскими, сельскими поселениями и муниципальным образованием Северский район, в состав которого они входят\""]
[53,"Наружные электрические сети протяженность 11190 м","п.Черноморский, Крюковский водозабор",1992,11190,null,"23:26:0000000:4168",{"v":28756,"d":"28,756.00"},{"v":28756,"d":"28,756.00"},{"v":0,"d":"0.00"},"Администрация Черноморского городского поселения","Закон Краснодарского края от 13.11.2006г. № 1112-КЗ \"О разграничении имущества, находящегося в собственности муниципального образования Северский район, между вновь образованными городскими, сельскими поселениями и муниципальным образованием Северский район, в состав которого они входят\""]
[54,"Водонапорная насосная станция","п.Черноморский",{"$nulls":4},{"v":14014,"d":"14,014.00"},{"v":14014,"d":"14,014.00"},{"v":0,"d":"0.00"},"Администрация Черноморского городского поселения","Закон Краснодарского края от 13.11.2006г. № 1112-КЗ \"О разграничении имущества, находящегося в собственности муниципального образования Северский район, между вновь образованными городскими, сельскими поселениями и муниципальным образованием Северский район, в состав которого они входят\""]
[55,"Павильон с гидроударной установкой","п.Черноморский, Крюковский водозабор",1992,{"$nulls":3},{"v":65723,"d":"65,723.00"},{"v":65723,"d":"65,723.00"},"0,00","Администрация Черноморского городского поселения","Закон Краснодарского края от 13.11.2006г. № 1112-КЗ \"О разграничении имущества, находящегося в собственности муниципального образования Северский район, между вновь образованными городскими, сельскими поселениями и муниципальным образованием Северский район, в состав которого они входят\""]
[56,"Проходная № 1 водозабора                              *КРЮКОВКА*","п.Черноморский, Крюковский водозабор",1992,16,null,"23:26:1101000:0:14",{"v":45336,"d":"45,336.00"},{"v":45336,"d":"45,336.00"},{"v":0,"d":"0.00"},"Администрация Черноморского городского поселения","Закон Краснодарского края от 13.11.2006г. № 1112-КЗ \"О разграничении имущества, находящегося в собственности муниципального образования Северский район, между вновь образованными городскими, сельскими поселениями и муниципальным образованием Северский район, в состав которого они входят\""]
[57,"Проходная № 2 водозабора *ЧЕРНОМОРКА*","п.Черноморский, Крюковский водозабор",1992,{"$nulls":3},{"v":122947,"d":"122,947.00"},{"v":122084.32,"d":"122,084.32"},{"v":0,"d":"0.00"},"Администрация Черноморского городского поселения","Закон Краснодарского края от 13.11.2006г. № 1112-КЗ \"О разграничении имущества, находящегося в собственности муниципального образования Северский район, между вновь образованными городскими, сельскими поселениями и муниципальным образованием Северский район, в состав которого они входят\""]
[58,"Проходная № 3 водозабора           *ИЛЬСКИЙ*","п.Черноморский, Крюковский водозабор",1992,{"$nulls":3},{"v":27219,"d":"27,219.00"},{"v":27028.02,"d":"27,028.02"},{"v":0,"d":"0.00"},"Администрация Черноморского городского поселения","Закон Краснодарского края от 13.11.2006г. № 1112-КЗ \"О разграничении имущества, находящегося в собственности муниципального образования Северский район, между вновь образованными городскими, сельскими поселениями и муниципальным образованием Северский район, в состав которого они входят\""]
[59,"Резервуар питьевой воды объем 1000 куб.м","п.Черноморский, Крюковский водозабор",1992,1000,null,"23:26:0000000:3969",{"v":102826,"d":"102,826.00"},{"v":102826,"d":"102,826.00"},{"v":0,"d":"0.00"},"Администрация Черноморского городского поселения","Закон Краснодарского края от 13.11.2006г. № 1112-КЗ \"О разграничении имущества, находящегося в собственности муниципального образования Северский район, между вновь образованными городскими, сельскими поселениями и муниципальным образованием Северский район, в состав которого они входят\""]
[60,"Электрические сети 0,4кВт протяженность 2040 м","п.Черноморский",1992,2040,null,"23:26:0000000:4102",{"v":8655,"d":"8,655.00"},{"v":8655,"d":"8,655.00"},{"v":0,"d":"0.00"},"Администрация Черноморского городского поселения","Закон Краснодарского края от 13.11.2006г. № 1112-КЗ \"О разграничении имущества, находящегося в собственности муниципального образования Северский район, между вновь образованными городскими, сельскими поселениями и муниципальным образованием Северский район, в состав которого они входят\""]
[61,"Электрические сети 0,4кВт протяженность   707 м","п.Черноморский, Крюковский водозабор",1992,707,null,"23:26:0000000:4097",{"v":25706,"d":"25,706.00"},{"v":25706,"d":"25,706.00"},{"v":0,"d":"0.00"},"Администрация Черноморского городского поселения","Закон Краснодарского края от 13.11.2006г. № 1112-КЗ \"О разграничении имущества, находящегося в собственности муниципального образования Северский район, между вновь образованными городскими, сельскими поселениями и муниципальным образованием Северский район, в состав которого они входят\""]
[62,"Электрические сети 0,4кВт протяженность 1597 м","п.Черноморский, Крюковский водозабор",1992,1597,null,"23:26:0000000:4095",{"v":1110,"d":"1,110.00"},{"v":1110,"d":"1,110.00"},{"v":0,"d":"0.00"},"Администрация Черноморского городского поселения","Закон Краснодарского края от 13.11.2006г. № 1112-КЗ \"О разграничении имущества, находящегося в собственности муниципального образования Северский район, между вновь образованными городскими, сельскими поселениями и муниципальным образованием Северский район, в состав которого они входят\""]
[63,"Электрические сети 0,4кВт протяженность 1255 м","п.Черноморский, Крюковский водозабор",1992,1255,null,"23:26:0000000:4094",{"v":3274,"d":"3,274.00"},{"v":3274,"d":"3,274.00"},{"v":0,"d":"0.00"},"Администрация Черноморского городского поселения","Закон Краснодарского края от 13.11.2006г. № 1112-КЗ \"О разграничении имущества, находящегося в собственности муниципального образования Северский район, между вновь образованными городскими, сельскими поселениями и муниципальным образованием Северский район, в состав которого они входят\""]
[64,"Электрические сети 10кВт протяженность 6320 м","п.Черноморский, Крюковский водозабор",1992,6320,null,"23:26:0000000:4098",{"v":7138,"d":"7,138.00"},{"v":2342.7,"d":"2,342.70"},{"v":0,"d":"0.00"},"Администрация Черноморского городского поселения","Закон Краснодарского края от 13.11.2006г. № 1112-КЗ \"О разграничении имущества, находящегося в собственности муниципального образования Северский район, между вновь образованными городскими, сельскими поселениями и муниципальным образованием Северский район, в состав которого они входят\""]
[65,"Электрические сети 10кВт протяженность 10900 м","п.Черноморский, Крюковский водозабор",1992,10900,null,"23:26:0000000:4096",{"v":126478,"d":"126,478.00"},{"v":126478,"d":"126,478.00"},{"v":0,"d":"0.00"},"Администрация Черноморского городского поселения","Закон Краснодарского края от 13.11.2006г. № 1112-КЗ \"О разграничении имущества, находящегося в собственности муниципального образования Северский район, между вновь образованными городскими, сельскими поселениями и муниципальным образованием Северский район, в состав которого они входят\""]
[66,"Электрические сети (КИП и А на ГВС) 10кВт протяженность 600 м","п.Черноморский, Крюковский водозабор",1992,600,null,"23:26:0000000:4090",{"v":13906,"d":"13,906.00"},{"v":9835.18,"d":"9,835.18"},{"v":4070.8199999999997,"d":"4,070.82"},"Администрация Черноморского городского поселения","Закон Краснодарского края от 13.11.2006г. № 1112-КЗ \"О разграничении имущества, находящегося в собственности муниципального образования Северский район, между вновь образованными городскими, сельскими поселениями и муниципальным образованием Северский район, в состав которого они входят\""]
[67,"Электрические сети (КИП и А) 10кВт протяженность 1320 м","п.Черноморский, Крюковский водозабор",1992,1320,null,"23:26:0000000:4088",{"v":611,"d":"611.00"},{"v":431.7,"d":"431.70"},{"v":179.3,"d":"179.30"},"Администрация Черноморского городского поселения","Закон Краснодарского края от 13.11.2006г. № 1112-КЗ \"О разграничении имущества, находящегося в собственности муниципального образования Северский район, между вновь образованными городскими, сельскими поселениями и муниципальным образованием Северский район, в состав которого они входят\""]
[68,"Электрические сети (КИП и А) 10кВт протяженность 1240 м","п.Черноморский, Крюковский водозабор",null,1240,null,"23:26:0000000:4087",{"v":5831,"d":"5,831.00"},{"v":4125.02,"d":"4,125.02"},{"v":1705.9799999999996,"d":"1,705.98"},"Администрация Черноморского городского поселения","Закон Краснодарского края от 13.11.2006г. № 1112-КЗ \"О разграничении имущества, находящегося в собственности муниципального образования Северский район, между вновь образованными городскими, сельскими поселениями и муниципальным образованием Северский район, в состав которого они входят\""]
[69,"Сети связи протяженность 9600 м","п.Черноморский, Крюковский водозабор",null,9600,null,"23:26:0000000:4086",{"v":51600,"d":"51,600.00"},{"v":51600,"d":"51,600.00"},{"v":0,"d":"0.00"},"Администрация Черноморского городского поселения","Закон Краснодарского края от 13.11.2006г. № 1112-КЗ \"О разграничении имущества, находящегося в собственности муниципального образования Северский район, между вновь образованными городскими, сельскими поселениями и муниципальным образованием Северский район, в состав которого они входят\""]
[70,"Технический водопровод протяженность 572 м","п.Черноморский, Крюковский водозабор",null,572,null,"23:26:0000000:3926",{"v":6439,"d":"6,439.00"},{"v":6439,"d":"6,439.00"},{"v":0,"d":"0.00"},"Администрация Черноморского городского поселения","Закон Краснодарского края от 13.11.2006г. № 1112-КЗ \"О разграничении имущества, находящегося в собственности муниципального образования Северский район, между вновь образованными городскими, сельскими поселениями и муниципальным образованием Северский район, в состав которого они входят\""]
[71,"Технологический водопровод протяженность 1062 м","п.Черноморский, Крюковский водозабор",null,1062,null,"23:26:0000000:4057",{"v":91196,"d":"91,196.00"},{"v":91196,"d":"91,196.00"},{"v":0,"d":"0.00"},"Администрация Черноморского городского поселения","Закон Краснодарского края от 13.11.2006г. № 1112-КЗ \"О разграничении имущества, находящегося в собственности муниципального образования Северский район, между вновь образованными городскими, сельскими поселениями и муниципальным образованием Северский район, в состав которого они входят\""]
[72,"Технологический водопровод протяженность 881 м","п.Черноморский, Крюковский водозабор",null,881,null,"23:26:0000000:4054",{"v":95313,"d":"95,313.00"},{"v":95313,"d":"95,313.00"},{"v":0,"d":"0.00"},"Администрация Черноморского городского поселения","Закон Краснодарского края от 13.11.2006г. № 1112-КЗ \"О разграничении имущества, находящегося в собственности муниципального образования Северский район, между вновь образованными городскими, сельскими поселениями и муниципальным образованием Северский район, в состав которого они входят\""]
[73,"Водопровод протяженность 980 м ","п.Черноморский, ул.Толстого, ул.Юбилейная",null,980,null,"23:26:0000000:3927",{"v":13720,"d":"13,720.00"},{"v":13720,"d":"13,720.00"},{"v":0,"d":"0.00"},"Администрация Черноморского городского поселения","Закон Краснодарского края от 13.11.2006г. № 1112-КЗ \"О разграничении имущества, находящегося в собственности муниципального образования Северский район, между вновь образованными городскими, сельскими поселениями и муниципальным образованием Северский район, в состав которого они входят\""]
[74,"Устройство дамбы","п.Черноморский, Крюковский водозабор",1992,{"$nulls":3},{"v":7648,"d":"7,648.00"},{"v":7648,"d":"7,648.00"},{"v":0,"d":"0.00"},"Администрация Черноморского городского поселения","Закон Краснодарского края от 13.11.2006г. № 1112-КЗ \"О разграничении имущества, находящегося в собственности муниципального образования Северский район, между вновь образованными городскими, сельскими поселениями и муниципальным образованием Северский район, в состав которого они входят\""]
[75,"Здание хлораторной","п.Черноморский, Крюковский водозабор",1992,66.6,null,"23:26:1101000:0:17",{"v":543927,"d":"543,927.00"},{"v":543927,"d":"543,927.00"},{"v":0,"d":"0.00"},"Администрация Черноморского городского поселения","Закон Краснодарского края от 13.11.2006г. № 1112-КЗ \"О разграничении имущества, находящегося в собственности муниципального образования Северский район, между вновь образованными городскими, сельскими поселениями и муниципальным образованием Северский район, в состав которого они входят\""]
[76,"Станция защиты","п.Черноморский, ",1992,null,null,"13.11.2006",{"v":16050,"d":"16,050.00"},{"v":16050,"d":"16,050.00"},{"v":0,"d":"0.00"},"Администрация Черноморского городского поселения","Закон Краснодарского края от 13.11.2006г. № 1112-КЗ \"О разграничении имущества, находящегося в собственности муниципального образования Северский район, между вновь образованными городскими, сельскими поселениями и муниципальным образованием Северский район, в состав которого они входят\""]
[77,"Водопровод протяженность 40 м","п.Черноморский, ул.Юбилейная",null,40,null,"23:26:0000000:3717",{"$nulls":3},"Администрация Черноморского городского поселения","Закон Краснодарского края от 13.11.2006г. № 1112-КЗ \"О разграничении имущества, находящегося в собственности муниципального образования Северский район, между вновь образованными городскими, сельскими поселениями и муниципальным образованием Северский район, в состав которого они входят\""]
[78,"Водопровод протяженность 135 м","п.Черноморский, пер.Длинный",null,135,null,"23:26:0000000:3708",{"$nulls":3},"Администрация Черноморского городского поселения","Закон Краснодарского края от 13.11.2006г. № 1112-КЗ \"О разграничении имущества, находящегося в собственности муниципального образования Северский район, между вновь образованными городскими, сельскими поселениями и муниципальным образованием Северский район, в состав которого они входят\""]
[79,"Водопровод протяженность 160 м","п.Черномрский, ул.Горького",null,160,null,"23:26:0000000:3709",{"$nulls":3},"Администрация Черноморского городского поселения","Закон Краснодарского края от 13.11.2006г. № 1112-КЗ \"О разграничении имущества, находящегося в собственности муниципального образования Северский район, между вновь образованными городскими, сельскими поселениями и муниципальным образованием Северский район, в состав которого они входят\""]
[80,"Водопровод протяженность 218 м","п.Черноморский, ул.Кирова",null,218,null,"23:26:0000000:3714",{"$nulls":3},"Администрация Черноморского городского поселения","Закон Краснодарского края от 13.11.2006г. № 1112-КЗ \"О разграничении имущества, находящегося в собственности муниципального образования Северский район, между вновь образованными городскими, сельскими поселениями и муниципальным образованием Северский район, в состав которого они входят\""]
[81,"Водопровод протяженность 110 м","п.Черноморский, ул.Космонавтов",null,110,null,"23:26:0000000:3715",{"$nulls":3},"Администрация Черноморского городского поселения","Закон Краснодарского края от 13.11.2006г. № 1112-КЗ \"О разграничении имущества, находящегося в собственности муниципального образования Северский район, между вновь образованными городскими, сельскими поселениями и муниципальным образованием Северский район, в состав которого они входят\""]
[82,"Водопровод протяженность 150 м","п.Черноморский, ул.Мира",null,150,null,"23:26:0000000:3713",{"$nulls":3},"Администрация Черноморского городского поселения","Закон Краснодарского края от 13.11.2006г. № 1112-КЗ \"О разграничении имущества, находящегося в собственности муниципального образования Северский район, между вновь образованными городскими, сельскими поселениями и муниципальным образованием Северский район, в состав которого они входят\""]
[83,"Водопровод протяженность 200 м","п.Черноморский, ул.Советская",null,200,null,"23:26:0000000:3720",{"$nulls":3},"Администрация Черноморского городского поселения","Закон Краснодарского края от 13.11.2006г. № 1112-КЗ \"О разграничении имущества, находящегося в собственности муниципального образования Северский район, между вновь образованными городскими, сельскими поселениями и муниципальным образованием Северский район, в состав которого они входят\""]
[84,"Водопровод протяженность 100 м","п.Черноморский, ул.Суворова, 31-35",null,100,null,"23:26:1103012:189",{"$nulls":3},"Администрация Черноморского городского поселения","Закон Краснодарского края от 13.11.2006г. № 1112-КЗ \"О разграничении имущества, находящегося в собственности муниципального образования Северский район, между вновь образованными городскими, сельскими поселениями и муниципальным образованием Северский район, в состав которого они входят\""]
[85,"Водопровод протяженность 140 м","п.Черноморский, ул.Суворова, 42-44",null,140,null,"23:26:1103008:333",{"$nulls":3},"Администрация Черноморского городского поселения","Закон Краснодарского края от 13.11.2006г. № 1112-КЗ \"О разграничении имущества, находящегося в собственности муниципального образования Северский район, между вновь образованными городскими, сельскими поселениями и муниципальным образованием Северский район, в состав которого они входят\""]
[86,"Водопровод протяженность 110 м","п.Черноморский, ул.Суворова, 37-41",null,110,null,"23:26:0000000:3721",{"$nulls":3},"Администрация Черноморского городского поселения","Закон Краснодарского края от 13.11.2006г. № 1112-КЗ \"О разграничении имущества, находящегося в собственности муниципального образования Северский район, между вновь образованными городскими, сельскими поселениями и муниципальным образованием Северский район, в состав которого они входят\""]
[87,"Водопровод протяженность 70 м","п.Спутник, ул.Вокзальная",null,70,null,"23:26:0000000:3716",{"$nulls":3},"Администрация Черноморского городского поселения","Закон Краснодарского края от 13.11.2006г. № 1112-КЗ \"О разграничении имущества, находящегося в собственности муниципального образования Северский район, между вновь образованными городскими, сельскими поселениями и муниципальным образованием Северский район, в состав которого они входят\""]
[88,"Водопровод протяженность 430 м","п.Черноморский, ул.Юбилейная",null,430,null,"23:26:0000000:3724",{"$nulls":3},"Администрация Черноморского городского поселения","Закон Краснодарского края от 13.11.2006г. № 1112-КЗ \"О разграничении имущества, находящегося в собственности муниципального образования Северский район, между вновь образованными городскими, сельскими поселениями и муниципальным образованием Северский район, в состав которого они входят\""]
[89,"Водопровод протяженность 130 м","п.Черноморский, ул.Мира, 44-52",null,130,null,"23:26:0000000:3723",{"$nulls":3},"Администрация Черноморского городского поселения","Закон Краснодарского края от 13.11.2006г. № 1112-КЗ \"О разграничении имущества, находящегося в собственности муниципального образования Северский район, между вновь образованными городскими, сельскими поселениями и муниципальным образованием Северский район, в состав которого они входят\""]
[90,"Водопровод протяженность 130 м","п.Черноморский, ул.Юбилейная",null,130,null,"23:26:0000000:3707",{"$nulls":3},"Администрация Черноморского городского поселения","Закон Краснодарского края от 13.11.2006г. № 1112-КЗ \"О разграничении имущества, находящегося в собственности муниципального образования Северский район, между вновь образованными городскими, сельскими поселениями и муниципальным образованием Северский район, в состав которого они входят\""]
[91,"Водопровод протяженность 95 м","п.Черноморский, ул.Кирова, 25-29",null,95,null,"23:26:0000000:3705",{"$nulls":3},"Администрация Черноморского городского поселения","Закон Краснодарского края от 13.11.2006г. № 1112-КЗ \"О разграничении имущества, находящегося в собственности муниципального образования Северский район, между вновь образованными городскими, сельскими поселениями и муниципальным образованием Северский район, в состав которого они входят\""]
[92,"Водопровод протяженность 160 м","п.Черномрский, ул.Советская - ул.Суворова",null,160,null,"23:26:0000000:3718",{"$nulls":3},"Администрация Черноморского городского поселения","Закон Краснодарского края от 13.11.2006г. № 1112-КЗ \"О разграничении имущества, находящегося в собственности муниципального образования Северский район, между вновь образованными городскими, сельскими поселениями и муниципальным образованием Северский район, в состав которого они входят\""]
[93,"Водопровод протяженность 110 м","п.Черномрский, ул.Мира, 38-48",null,110,null,"23:26:0000000:3772",{"$nulls":3},"Администрация Черноморского городского поселения","Закон Краснодарского края от 13.11.2006г. № 1112-КЗ \"О разграничении имущества, находящегося в собственности муниципального образования Северский район, между вновь образованными городскими, сельскими поселениями и муниципальным образованием Северский район, в состав которого они входят\""]
[94,"Водопровод протяженность 1950 м","п.Черноморский, ул.Суворова",null,1950,null,"23:26:0000000:3786",{"$nulls":3},"Администрация Черноморского городского поселения","Закон Краснодарского края от 13.11.2006г. № 1112-КЗ \"О разграничении имущества, находящегося в собственности муниципального образования Северский район, между вновь образованными городскими, сельскими поселениями и муниципальным образованием Северский район, в состав которого они входят\""]
[95,"Водопровод протяженность 120 м","п.Черноморский, от бани до столовой",null,120,null,"23:26:0000000:3787",{"$nulls":3},"Администрация Черноморского городского поселения","Закон Краснодарского края от 13.11.2006г. № 1112-КЗ \"О разграничении имущества, находящегося в собственности муниципального образования Северский район, между вновь образованными городскими, сельскими поселениями и муниципальным образованием Северский район, в состав которого они входят\""]
[96,"Водопровод протяженность 215 м","п.Черноморский, ул.Октябрьская",null,215,null,"23:26:0000000:3812",{"$nulls":3},"Администрация Черноморского городского поселения","Закон Краснодарского края от 13.11.2006г. № 1112-КЗ \"О разграничении имущества, находящегося в собственности муниципального образования Северский район, между вновь образованными городскими, сельскими поселениями и муниципальным образованием Северский район, в состав которого они входят\""]
[97,"Водопровод протяженность 280 м","п.Черномрский, ул.Советская  ",null,280,null,"23:26:0000000:3813",{"$nulls":3},"Администрация Черноморского городского поселения","Закон Краснодарского края от 13.11.2006г. № 1112-КЗ \"О разграничении имущества, находящегося в собственности муниципального образования Северский район, между вновь образованными городскими, сельскими поселениями и муниципальным образованием Северский район, в состав которого они входят\""]
[98,"Водопровод протяженность 60 м","п.Черноморский, ул.Мира, 35-38",null,60,null,"23:26:0000000:3782",{"$nulls":3},"Администрация Черноморского городского поселения","Закон Краснодарского края от 13.11.2006г. № 1112-КЗ \"О разграничении имущества, находящегося в собственности муниципального образования Северский район, между вновь образованными городскими, сельскими поселениями и муниципальным образованием Северский район, в состав которого они входят\""]
[99,"Водопровод протяженность 70 м","п.Черноморский, ул.Советская",null,70,null,"23:26:0000000:3781",{"$nulls":3},"Администрация Черноморского городского поселения","Закон Краснодарского края от 13.11.2006г. № 1112-КЗ \"О разграничении имущества, находящегося в собственности муниципального образования Северский район, между вновь образованными городскими, сельскими поселениями и муниципальным образованием Северский район, в состав которого они входят\""]
[100,"Водопровод протяженность 350 м","п.Черноморский, ул.Гоголя",null,350,null,"23:23:0000000:3783",{"$nulls":3},"Администрация Черноморского городского поселения","Закон Краснодарского края от 13.11.2006г. № 1112-КЗ \"О разграничении имущества, находящегося в собственности муниципального образования Северский район, между вновь образованными городскими, сельскими поселениями и муниципальным образованием Северский район, в состав которого они входят\""]
[101,"Водопровод протяженность 280 м","п.Черноморский, ул.Горького",null,280,null,"23:26:0000000:3765",{"$nulls":3},"Администрация Черноморского городского поселения","Закон Краснодарского края от 13.11.2006г. № 1112-КЗ \"О разграничении имущества, находящегося в собственности муниципального образования Северский район, между вновь образованными городскими, сельскими поселениями и муниципальным образованием Северский район, в состав которого они входят\""]
[102,"Водопровод протяженность 280 м","ч.Черноморский, ул.Фрунзе",null,280,null,"23:26:0000000:3784",{"$nulls":3},"Администрация Черноморского городского поселения","Закон Краснодарского края от 13.11.2006г. № 1112-КЗ \"О разграничении имущества, находящегося в собственности муниципального образования Северский район, между вновь образованными городскими, сельскими поселениями и муниципальным образованием Северский район, в состав которого они входят\""]
[103,"Водопровод протяженность 355 м","п.Черноморский, ул.Гоголя",null,355,null,"23:26:0000000:3768",{"$nulls":3},"Администрация Черноморского городского поселения","Закон Краснодарского края от 13.11.2006г. № 1112-КЗ \"О разграничении имущества, находящегося в собственности муниципального образования Северский район, между вновь образованными городскими, сельскими поселениями и муниципальным образованием Северский район, в состав которого они входят\""]
[104,"Водопровод протяженость 8 м","п.Черноморский, ул.Кирова",null,8,null,"23:26:0000000:4085",{"$nulls":3},"Администрация Черноморского городского поселения","Закон Краснодарского края от 13.11.2006г. № 1112-КЗ \"О разграничении имущества, находящегося в собственности муниципального образования Северский район, между вновь образованными городскими, сельскими поселениями и муниципальным образованием Северский район, в состав которого они входят\""]
[105,"Водопровод протяженность 90 м","п.Черномрорский, ул.Юбилейная",null,90,null,"23:26:0000000:3770",{"$nulls":3},"Администрация Черноморского городского поселения","Закон Краснодарского края от 13.11.2006г. № 1112-КЗ \"О разграничении имущества, находящегося в собственности муниципального образования Северский район, между вновь образованными городскими, сельскими поселениями и муниципальным образованием Северский район, в состав которого они входят\""]
[106,"Подстанция ТПН 100/10-6 шт.","п.Черноморский, Крюковский водозабор",{"$nulls":4},{"v":1,"d":"1.00"},{"v":1,"d":"1.00"},{"v":0,"d":"0.00"},"Администрация Черноморского городского поселения","Закон Краснодарского края от 13.11.2006г. № 1112-КЗ \"О разграничении имущества, находящегося в собственности муниципального образования Северский район, между вновь образованными городскими, сельскими поселениями и муниципальным образованием Северский район, в состав которого они входят\""]
[107,"Трансформатор ТМ 100/10-2 шт.","п.Черноморский, Крюковский водозабор",{"$nulls":4},{"v":1,"d":"1.00"},{"v":1,"d":"1.00"},{"v":0,"d":"0.00"},"Администрация Черноморского городского поселения","Закон Краснодарского края от 13.11.2006г. № 1112-КЗ \"О разграничении имущества, находящегося в собственности муниципального образования Северский район, между вновь образованными городскими, сельскими поселениями и муниципальным образованием Северский район, в состав которого они входят\""]
[108,"Трансформатор ТМ 400/10-4 шт.","п.Черноморский, Крюковский водозабор",{"$nulls":4},{"v":1,"d":"1.00"},{"v":1,"d":"1.00"},{"v":0,"d":"0.00"},"Администрация Черноморского городского поселения","Закон Краснодарского края от 13.11.2006г. № 1112-КЗ \"О разграничении имущества, находящегося в собственности муниципального образования Северский район, между вновь образованными городскими, сельскими поселениями и муниципальным образованием Северский район, в состав которого они входят\""]
[109,"Подстанция КТМ 100/10-2 шт.","п.Черноморский, Крюковский водозабор",{"$nulls":4},{"v":1,"d":"1.00"},{"v":1,"d":"1.00"},{"v":0,"d":"0.00"},"Администрация Черноморского городского поселения","Закон Краснодарского края от 13.11.2006г. № 1112-КЗ \"О разграничении имущества, находящегося в собственности муниципального образования Северский район, между вновь образованными городскими, сельскими поселениями и муниципальным образованием Северский район, в состав которого они входят\""]
[110,"Уборная","п.Черноморский, Крюковский водозабор",{"$nulls":4},{"v":1,"d":"1.00"},{"v":1,"d":"1.00"},{"v":0,"d":"0.00"},"Администрация Черноморского городского поселения","Закон Краснодарского края от 13.11.2006г. № 1112-КЗ \"О разграничении имущества, находящегося в собственности муниципального образования Северский район, между вновь образованными городскими, сельскими поселениями и муниципальным образованием Северский район, в состав которого они входят\""]
[111,"Артезианская скважина","п.Октябрьский",{"$nulls":4},{"v":932366,"d":"932,366.00"},{"v":932366,"d":"932,366.00"},{"v":0,"d":"0.00"},"Администрация Черноморского городского поселения","Закон Краснодарского края от 13.11.2006г. № 1112-КЗ \"О разграничении имущества, находящегося в собственности муниципального образования Северский район, между вновь образованными городскими, сельскими поселениями и муниципальным образованием Северский район, в состав которого они входят\""]
[112,"Водонапорная башня","п.Октябрьский",{"$nulls":4},{"v":32216,"d":"32,216.00"},{"v":32216,"d":"32,216.00"},{"v":0,"d":"0.00"},"Администрация Черноморского городского поселения","Закон Краснодарского края от 13.11.2006г. № 1112-КЗ \"О разграничении имущества, находящегося в собственности муниципального образования Северский район, между вновь образованными городскими, сельскими поселениями и муниципальным образованием Северский район, в состав которого они входят\""]
[113,"Водопровод (8 колодцев) протяженность 918 м","п.Октябрьский, от водонапорной башни до котельной ",null,918,null,"23:26:00000000:3785",{"v":778978,"d":"778,978.00"},{"v":778978,"d":"778,978.00"},{"v":0,"d":"0.00"},"Администрация Черноморского городского поселения","Закон Краснодарского края от 13.11.2006г. № 1112-КЗ \"О разграничении имущества, находящегося в собственности муниципального образования Северский район, между вновь образованными городскими, сельскими поселениями и муниципальным образованием Северский район, в состав которого они входят\""]
[114,"Водопровод протяженность 991 м","п.Октябрьский, ул.Пушкина от водонапорной башни",null,991,null,"23:26:0000000:3811",{"v":840929,"d":"840,929.00"},{"v":690832.94,"d":"690,832.94"},{"v":150096.06000000006,"d":"150,096.06"},"Администрация Черноморского городского поселения","Закон Краснодарского края от 13.11.2006г. № 1112-КЗ \"О разграничении имущества, находящегося в собственности муниципального образования Северский район, между вновь образованными городскими, сельскими поселениями и муниципальным образованием Северский район, в состав которого они входят\""]
[115,"Водопровод протяженность 1500 м","п.Октябрьский, от нефтяной площадки Зыбзы до водонапорной башни",null,1500,null,"23:26:0000000:3921",{"v":1272841,"d":"1,272,841.00"},{"v":1039174,"d":"1,039,174.00"},{"v":233667,"d":"233,667.00"},"Администрация Черноморского городского поселения","Закон Краснодарского края от 13.11.2006г. № 1112-КЗ \"О разграничении имущества, находящегося в собственности муниципального образования Северский район, между вновь образованными городскими, сельскими поселениями и муниципальным образованием Северский район, в состав которого они входят\""]
[116,"Водопровод протяженность 18 м","п.Октябрьский, ул.Горького, 12",null,18,null,"23:26:1101005:1551",{"v":1150,"d":"1,150.00"},948.98,{"v":201.01999999999998,"d":"201.02"},"Администрация Черноморского городского поселения","Закон Краснодарского края от 13.11.2006г. № 1112-КЗ \"О разграничении имущества, находящегося в собственности муниципального образования Северский район, между вновь образованными городскими, сельскими поселениями и муниципальным образованием Северский район, в состав которого они входят\""]
[117,"Водопровод протяженность 18 м","п.Октябрьский, ул.Горького, 16",null,18,null,"23:26:0000000:3877",{"v":1150,"d":"1,150.00"},948.98,{"v":201.01999999999998,"d":"201.02"},"Администрация Черноморского городского поселения","Закон Краснодарского края от 13.11.2006г. № 1112-КЗ \"О разграничении имущества, находящегося в собственности муниципального образования Северский район, между вновь образованными городскими, сельскими поселениями и муниципальным образованием Северский район, в состав которого они входят\""]
[118,"Водопровод ","п.Октябрьский, ул.Горького, 6",{"$nulls":4},{"v":2044,"d":"2,044.00"},{"v":1687.24,"d":"1,687.24"},356.76,"Администрация Черноморского городского поселения","Закон Краснодарского края от 13.11.2006г. № 1112-КЗ \"О разграничении имущества, находящегося в собственности муниципального образования Северский район, между вновь образованными городскими, сельскими поселениями и муниципальным образованием Северский район, в состав которого они входят\""]
[119,"Водопровод протяженность 32 м","п.Октябрьский, ул.Горького, 8",null,32,null,"23:26:0000000:3883",{"v":2044,"d":"2,044.00"},{"v":1687.24,"d":"1,687.24"},356.76,"Администрация Черноморского городского поселения","Закон Краснодарского края от 13.11.2006г. № 1112-КЗ \"О разграничении имущества, находящегося в собственности муниципального образования Северский район, между вновь образованными городскими, сельскими поселениями и муниципальным образованием Северский район, в состав которого они входят\""]
[120,"Водопровод (4 колонки, 4 колодца) протяженность 306 м","п.Октябрьский, ул.Горького ",null,306,null,"23:26:0000000:3884",{"v":19548,"d":"19,548.00"},{"v":15261.9,"d":"15,261.90"},{"v":4286.1,"d":"4,286.10"},"Администрация Черноморского городского поселения","Закон Краснодарского края от 13.11.2006г. № 1112-КЗ \"О разграничении имущества, находящегося в собственности муниципального образования Северский район, между вновь образованными городскими, сельскими поселениями и муниципальным образованием Северский район, в состав которого они входят\""]
[121,"Водопровод (4 колонки, 1 колодец) протяженность 510 м","п.Октябрьский, ул.Западная",null,510,null,"23:26:0000000:3885",{"v":32580,"d":"32,580.00"},{"v":26892.5,"d":"26,892.50"},{"v":5687.5,"d":"5,687.50"},"Администрация Черноморского городского поселения","Закон Краснодарского края от 13.11.2006г. № 1112-КЗ \"О разграничении имущества, находящегося в собственности муниципального образования Северский район, между вновь образованными городскими, сельскими поселениями и муниципальным образованием Северский район, в состав которого они входят\""]
[122,"Водопровод протяженность 18 м","п.Октябрьский, ул.Западная, 10",null,18,null,"23:26:0000000:3886",{"v":1150,"d":"1,150.00"},{"v":1004.98,"d":"1,004.98"},{"v":145.01999999999998,"d":"145.02"},"Администрация Черноморского городского поселения","Закон Краснодарского края от 13.11.2006г. № 1112-КЗ \"О разграничении имущества, находящегося в собственности муниципального образования Северский район, между вновь образованными городскими, сельскими поселениями и муниципальным образованием Северский район, в состав которого они входят\""]
[123,"Водопровод протяженность 20 м","п.Октябрьский, ул.Западная (к школе)",null,"20 м",null,"23:26:0000000:3887",{"v":1279,"d":"1,279.00"},{"v":1055.46,"d":"1,055.46"},{"v":223.53999999999996,"d":"223.54"},"Администрация Черноморского городского поселения","Закон Краснодарского края от 13.11.2006г. № 1112-КЗ \"О разграничении имущества, находящегося в собственности муниципального образования Северский район, между вновь образованными городскими, сельскими поселениями и муниципальным образованием Северский район, в состав которого они входят\""]
[124,"Водопровод протяженность 262 м","п.Октябрьский, ул.Куйбышева",null,262,null,"23:26:0000000:3915",{"v":16737,"d":"16,737.00"},{"v":13815.88,"d":"13,815.88"},{"v":2921.120000000001,"d":"2,921.12"},"Администрация Черноморского городского поселения","Закон Краснодарского края от 13.11.2006г. № 1112-КЗ \"О разграничении имущества, находящегося в собственности муниципального образования Северский район, между вновь образованными городскими, сельскими поселениями и муниципальным образованием Северский район, в состав которого они входят\""]
[125,"Водопровод (24 колонки, 7 колодцев) протяженность 1640 м","п.Октябрьский, ул.Пушкина",null,1640,null,"23:26:0000000:3890",{"v":104766,"d":"104,766.00"},{"v":104766,"d":"104,766.00"},{"v":0,"d":"0.00"},"Администрация Черноморского городского поселения","Закон Краснодарского края от 13.11.2006г. № 1112-КЗ \"О разграничении имущества, находящегося в собственности муниципального образования Северский район, между вновь образованными городскими, сельскими поселениями и муниципальным образованием Северский район, в состав которого они входят\""]
[126,"Водопровод (1 колонка, 6 колодцев) протяженность 377 м","п.Октябрьский, ул.Светлая",null,377,null,"23:26:0000000:3888",{"v":27586,"d":"27,586.00"},{"v":22611.28,"d":"22,611.28"},{"v":4974.720000000001,"d":"4,974.72"},"Администрация Черноморского городского поселения","Закон Краснодарского края от 13.11.2006г. № 1112-КЗ \"О разграничении имущества, находящегося в собственности муниципального образования Северский район, между вновь образованными городскими, сельскими поселениями и муниципальным образованием Северский район, в состав которого они входят\""]
[127,"Водопровод (7 колонок) протяженность 304 м ","п.Октябрьский, ул.Степная",null,304,null,"23:26:0000000:4091",{"v":19420,"d":"19,420.00"},{"v":16031.04,"d":"16,031.04"},{"v":3388.959999999999,"d":"3,388.96"},"Администрация Черноморского городского поселения","Закон Краснодарского края от 13.11.2006г. № 1112-КЗ \"О разграничении имущества, находящегося в собственности муниципального образования Северский район, между вновь образованными городскими, сельскими поселениями и муниципальным образованием Северский район, в состав которого они входят\""]
[128,"Водопровод (15 колонок, 1 колодец) протяженность 248 м","п.Октябрьский, ул.Толстого",null,248,null,"23:26:0000000:4084",{"v":54172,"d":"54,172.00"},{"v":44716.64,"d":"44,716.64"},{"v":9455.36,"d":"9,455.36"},"Администрация Черноморского городского поселения","Закон Краснодарского края от 13.11.2006г. № 1112-КЗ \"О разграничении имущества, находящегося в собственности муниципального образования Северский район, между вновь образованными городскими, сельскими поселениями и муниципальным образованием Северский район, в состав которого они входят\""]
[129,"Водопровод (8 колонок, 1 колодец) протяженность 844 м","п.Октябрьский, ул.Фурманова",null,844,null,"23:26:0000000:4092",{"v":58328,"d":"58,328.00"},{"v":58328,"d":"58,328.00"},{"v":0,"d":"0.00"},"Администрация Черноморского городского поселения","Закон Краснодарского края от 13.11.2006г. № 1112-КЗ \"О разграничении имущества, находящегося в собственности муниципального образования Северский район, между вновь образованными городскими, сельскими поселениями и муниципальным образованием Северский район, в состав которого они входят\""]
[130,"Водопровод (9 колонок, 2 колодца) протяженность 214 м","п.Октябрьский, ул.Чапаева ",null,214,null,"23:26:0000000:3876",{"v":56254,"d":"56,254.00"},{"v":56254,"d":"56,254.00"},{"v":0,"d":"0.00"},"Администрация Черноморского городского поселения","Закон Краснодарского края от 13.11.2006г. № 1112-КЗ \"О разграничении имущества, находящегося в собственности муниципального образования Северский район, между вновь образованными городскими, сельскими поселениями и муниципальным образованием Северский район, в состав которого они входят\""]
[131,"Водопровод (6 колонок) протяженность 296 м","п.Октябрьский, ул.Чехова",null,296,null,"23:26:0000000:3911",{"v":20456,"d":"20,456.00"},{"v":16815.26,"d":"16,815.26"},{"v":3640.7400000000016,"d":"3,640.74"},"Администрация Черноморского городского поселения","Закон Краснодарского края от 13.11.2006г. № 1112-КЗ \"О разграничении имущества, находящегося в собственности муниципального образования Северский район, между вновь образованными городскими, сельскими поселениями и муниципальным образованием Северский район, в состав которого они входят\""]
[132,"Водопровод (5 колонок) протяженность 270 м","п.Октябрьский, ул.Южная",null,270,null,"23:26:0000000:3916",{"v":17248,"d":"17,248.00"},{"v":14237.94,"d":"14,237.94"},{"v":3010.0599999999995,"d":"3,010.06"},"Администрация Черноморского городского поселения","Закон Краснодарского края от 13.11.2006г. № 1112-КЗ \"О разграничении имущества, находящегося в собственности муниципального образования Северский район, между вновь образованными городскими, сельскими поселениями и муниципальным образованием Северский район, в состав которого они входят\""]
[133,"Емкость первого подъема","п.Октябрьский, водозабор",{"$nulls":4},{"v":267224,"d":"267,224.00"},{"v":267224,"d":"267,224.00"},{"v":0,"d":"0.00"},"Администрация Черноморского городского поселения","Закон Краснодарского края от 13.11.2006г. № 1112-КЗ \"О разграничении имущества, находящегося в собственности муниципального образования Северский район, между вновь образованными городскими, сельскими поселениями и муниципальным образованием Северский район, в состав которого они входят\""]
[134,"Подводящий водопровод (6 колодцев) протяженность 356 м","п.Октябрьский, ул.Пушкина, 1, 3, 5, 7, 9, 11",null,356,null,"23:26:0000000:3899",{"v":22742,"d":"22,742.00"},{"v":18772.12,"d":"18,772.12"},{"v":3969.880000000001,"d":"3,969.88"},"Администрация Черноморского городского поселения","Закон Краснодарского края от 13.11.2006г. № 1112-КЗ \"О разграничении имущества, находящегося в собственности муниципального образования Северский район, между вновь образованными городскими, сельскими поселениями и муниципальным образованием Северский район, в состав которого они входят\""]
[135,"Подводящий водопровод (2 колодца) протяженность 105 м","п.Октябрьский, ул.Пушкина, 13, 15",null,105,null,"23:26:0000000:3901",{"v":7256,"d":"7,256.00"},{"v":7256,"d":"7,256.00"},{"v":0,"d":"0.00"},"Администрация Черноморского городского поселения","Закон Краснодарского края от 13.11.2006г. № 1112-КЗ \"О разграничении имущества, находящегося в собственности муниципального образования Северский район, между вновь образованными городскими, сельскими поселениями и муниципальным образованием Северский район, в состав которого они входят\""]
[136,"Подводящий водопровод протяженность 202 м","п.Октябрьский, от котельной до ул.Пушкина",null,202,null,"23:26:0000000:3902",{"v":12904,"d":"12,904.00"},{"v":12904,"d":"12,904.00"},{"v":0,"d":"0.00"},"Администрация Черноморского городского поселения","Закон Краснодарского края от 13.11.2006г. № 1112-КЗ \"О разграничении имущества, находящегося в собственности муниципального образования Северский район, между вновь образованными городскими, сельскими поселениями и муниципальным образованием Северский район, в состав которого они входят\""]
[137,"Канализационная насосная станция","п.Октябрьский ",1980,{"$nulls":3},{"v":565637,"d":"565,637.00"},{"v":565637,"d":"565,637.00"},{"v":0,"d":"0.00"},"Администрация Черноморского городского поселения","Закон Краснодарского края от 13.11.2006г. № 1112-КЗ \"О разграничении имущества, находящегося в собственности муниципального образования Северский район, между вновь образованными городскими, сельскими поселениями и муниципальным образованием Северский район, в состав которого они входят\""]
[138,"Канализационный напорный коллектор протяженность 700 м","п.Октябрьский",1980,700,null,"23:26:0000000:3840",{"v":60199,"d":"60,199.00"},{"v":60199,"d":"60,199.00"},{"v":0,"d":"0.00"},"Администрация Черноморского городского поселения","Закон Краснодарского края от 13.11.2006г. № 1112-КЗ \"О разграничении имущества, находящегося в собственности муниципального образования Северский район, между вновь образованными городскими, сельскими поселениями и муниципальным образованием Северский район, в состав которого они входят\""]
[139,"Канализационный коллектор (8 колодцев) протяженность 175 м","п.Октябрьский",1980,175,null,"23:26:0000000:3827",{"v":15050,"d":"15,050.00"},{"v":15050,"d":"15,050.00"},{"v":0,"d":"0.00"},"Администрация Черноморского городского поселения","Закон Краснодарского края от 13.11.2006г. № 1112-КЗ \"О разграничении имущества, находящегося в собственности муниципального образования Северский район, между вновь образованными городскими, сельскими поселениями и муниципальным образованием Северский район, в состав которого они входят\""]
[140,"Канализационный коллектор (18 колодцев) протяженность 187 м","п.Октябрьский",1980,187,null,"23:26:0000000:3932",{"v":16082,"d":"16,082.00"},{"v":16082,"d":"16,082.00"},{"v":0,"d":"0.00"},"Администрация Черноморского городского поселения","Закон Краснодарского края от 13.11.2006г. № 1112-КЗ \"О разграничении имущества, находящегося в собственности муниципального образования Северский район, между вновь образованными городскими, сельскими поселениями и муниципальным образованием Северский район, в состав которого они входят\""]
[141,"Самотечная магистраль (10 колодцев) протяж6енность 385 м","п.Октябрьский",1980,385,null,"23:26:0000000:3928",{"v":33110,"d":"33,110.00"},{"v":33110,"d":"33,110.00"},{"v":0,"d":"0.00"},"Администрация Черноморского городского поселения","Закон Краснодарского края от 13.11.2006г. № 1112-КЗ \"О разграничении имущества, находящегося в собственности муниципального образования Северский район, между вновь образованными городскими, сельскими поселениями и муниципальным образованием Северский район, в состав которого они входят\""]
[142,"Самотечная магистраль (13 колодцев) протяженность 353 м","п.Октябрьский",1980,353,null,"23:26:0000000:3929",{"v":40162,"d":"40,162.00"},{"v":40162,"d":"40,162.00"},{"v":0,"d":"0.00"},"Администрация Черноморского городского поселения","Закон Краснодарского края от 13.11.2006г. № 1112-КЗ \"О разграничении имущества, находящегося в собственности муниципального образования Северский район, между вновь образованными городскими, сельскими поселениями и муниципальным образованием Северский район, в состав которого они входят\""]
[143,"Самотечная магистраль (13 колодцев) протяженность 467 м","п.Октябрьский",1980,467,null,"23:26:0000000:3930",{"v":30358,"d":"30,358.00"},{"v":30358,"d":"30,358.00"},{"v":0,"d":"0.00"},"Администрация Черноморского городского поселения","Закон Краснодарского края от 13.11.2006г. № 1112-КЗ \"О разграничении имущества, находящегося в собственности муниципального образования Северский район, между вновь образованными городскими, сельскими поселениями и муниципальным образованием Северский район, в состав которого они входят\""]
[144,"Самотечная магистраль керамическая протяженность 305 м","п.Октябрьский",1980,305,null,"23:26:0000000:3931",{"v":26230,"d":"26,230.00"},{"v":26230,"d":"26,230.00"},{"v":0,"d":"0.00"},"Администрация Черноморского городского поселения","Закон Краснодарского края от 13.11.2006г. № 1112-КЗ \"О разграничении имущества, находящегося в собственности муниципального образования Северский район, между вновь образованными городскими, сельскими поселениями и муниципальным образованием Северский район, в состав которого они входят\""]
[145,"Самотечная магистраль (13 колодцев) протяженность 125 м","п.Октябрьский",1980,125,null,"23:26:0000000:3939",{"v":10750,"d":"10,750.00"},{"v":10750,"d":"10,750.00"},{"v":0,"d":"0.00"},"Администрация Черноморского городского поселения","Закон Краснодарского края от 13.11.2006г. № 1112-КЗ \"О разграничении имущества, находящегося в собственности муниципального образования Северский район, между вновь образованными городскими, сельскими поселениями и муниципальным образованием Северский район, в состав которого они входят\""]
[146,"Административное здание ","п.Черноморский, ул.Советская, 41",{"$nulls":4},{"v":53634.56,"d":"53,634.56"},{"v":53634.56,"d":"53,634.56"},{"v":0,"d":"0.00"},"Администрация Черноморского городского поселения","Закон Краснодарского края от 13.11.2006г. № 1112-КЗ \"О разграничении имущества, находящегося в собственности муниципального образования Северский район, между вновь образованными городскими, сельскими поселениями и муниципальным образованием Северский район, в состав которого они входят\""]
[147,"Территория хоздвора асфальт площадь 28105 кв.м.","п.Черноморский, ул.Советская, 41",null,28105,null,null,{"v":45931.31,"d":"45,931.31"},{"v":45931.31,"d":"45,931.31"},{"v":0,"d":"0.00"},"Администрация Черноморского городского поселения","Закон Краснодарского края от 13.11.2006г. № 1112-КЗ \"О разграничении имущества, находящегося в собственности муниципального образования Северский район, между вновь образованными городскими, сельскими поселениями и муниципальным образованием Северский район, в состав которого они входят\""]
[149,"Здание кузни","п.Черноморский, ул.Советская, 41",{"$nulls":4},{"v":32548.1,"d":"32,548.10"},{"v":32548.1,"d":"32,548.10"},{"v":0,"d":"0.00"},"Администрация Черноморского городского поселения","Закон Краснодарского края от 13.11.2006г. № 1112-КЗ \"О разграничении имущества, находящегося в собственности муниципального образования Северский район, между вновь образованными городскими, сельскими поселениями и муниципальным образованием Северский район, в состав которого они входят\""]
[150,"Здание пилорамы","п.Черноморский, ул.Советская, 41",{"$nulls":4},{"v":52085.38,"d":"52,085.38"},{"v":30881.07,"d":"30,881.07"},{"v":0,"d":"0.00"},"Администрация Черноморского городского поселения","Закон Краснодарского края от 13.11.2006г. № 1112-КЗ \"О разграничении имущества, находящегося в собственности муниципального образования Северский район, между вновь образованными городскими, сельскими поселениями и муниципальным образованием Северский район, в состав которого они входят\""]
[152,"Здание столярного цеха","п.Черноморский, ул.Советская, 41",{"$nulls":4},{"v":135032.35,"d":"135,032.35"},{"v":135032.35,"d":"135,032.35"},{"v":0,"d":"0.00"},"Администрация Черноморского городского поселения","Закон Краснодарского края от 13.11.2006г. № 1112-КЗ \"О разграничении имущества, находящегося в собственности муниципального образования Северский район, между вновь образованными городскими, сельскими поселениями и муниципальным образованием Северский район, в состав которого они входят\""]
[153,"Здание бетонного узла","п.Черноморский, ул.Советская, 41",{"$nulls":4},{"v":60635.34,"d":"60,635.34"},{"v":60635.34,"d":"60,635.34"},{"v":0,"d":"0.00"},"Администрация Черноморского городского поселения","Закон Краснодарского края от 13.11.2006г. № 1112-КЗ \"О разграничении имущества, находящегося в собственности муниципального образования Северский район, между вновь образованными городскими, сельскими поселениями и муниципальным образованием Северский район, в состав которого они входят\""]
[155,"Навес хоздвора","п.Черноморский, ул.Советская, 41",{"$nulls":4},{"v":26683.54,"d":"26,683.54"},{"v":22514.2,"d":"22,514.20"},{"v":4169.34,"d":"4,169.34"},"Администрация Черноморского городского поселения","Закон Краснодарского края от 13.11.2006г. № 1112-КЗ \"О разграничении имущества, находящегося в собственности муниципального образования Северский район, между вновь образованными городскими, сельскими поселениями и муниципальным образованием Северский район, в состав которого они входят\""]
[157,"Дворовая канализация протяженность 151 м","п.Черноморский",null,151,null,"23:26:0000000:3730",{"v":1,"d":"1.00"},{"v":1,"d":"1.00"},{"v":0,"d":"0.00"},"Администрация Черноморского городского поселения","Закон Краснодарского края от 13.11.2006г. № 1112-КЗ \"О разграничении имущества, находящегося в собственности муниципального образования Северский район, между вновь образованными городскими, сельскими поселениями и муниципальным образованием Северский район, в состав которого они входят\""]
[158,"Канализация с дополнительной станцией КНС № 2-КНС № 3-КНС №4-КНС","п.Черноморский, ул.Гоголя,1",1980,{"$nulls":3},{"v":20711,"d":"20,711.00"},{"v":20711,"d":"20,711.00"},{"v":0,"d":"0.00"},"Администрация Черноморского городского поселения","Закон Краснодарского края от 13.11.2006г. № 1112-КЗ \"О разграничении имущества, находящегося в собственности муниципального образования Северский район, между вновь образованными городскими, сельскими поселениями и муниципальным образованием Северский район, в состав которого они входят\""]
[159,"Наружная канализация протяженность 196 м","еп.Черноморский, ул.Горького, 4-20",1980,196,null,"23:26:0000000:3732",{"v":76841,"d":"76,841.00"},{"v":76841,"d":"76,841.00"},{"v":0,"d":"0.00"},"Администрация Черноморского городского поселения","Закон Краснодарского края от 13.11.2006г. № 1112-КЗ \"О разграничении имущества, находящегося в собственности муниципального образования Северский район, между вновь образованными городскими, сельскими поселениями и муниципальным образованием Северский район, в состав которого они входят\""]
[160,"Наружная канализация протяженность 948 м","п.Черноморский, ул.Гоголя, 15",1980,948,null,null,{"v":119963,"d":"119,963.00"},{"v":102350.64,"d":"102,350.64"},{"v":17612.36,"d":"17,612.36"},"Администрация Черноморского городского поселения","Закон Краснодарского края от 13.11.2006г. № 1112-КЗ \"О разграничении имущества, находящегося в собственности муниципального образования Северский район, между вновь образованными городскими, сельскими поселениями и муниципальным образованием Северский район, в состав которого они входят\""]
[161,"Наружные сети канализации протяженность 320 м",".Черноморский, ул.Юбилейная",1980,320,null,"23:26:0000000:3727",{"v":4297,"d":"4,297.00"},{"v":4297,"d":"4,297.00"},{"v":0,"d":"0.00"},"Администрация Черноморского городского поселения","Закон Краснодарского края от 13.11.2006г. № 1112-КЗ \"О разграничении имущества, находящегося в собственности муниципального образования Северский район, между вновь образованными городскими, сельскими поселениями и муниципальным образованием Северский район, в состав которого они входят\""]
[162,"Насосная станция первого подъема","п.Черноморский",{"$nulls":3},"23:26:1105001:0:12",{"v":113395,"d":"113,395.00"},{"v":23656.88,"d":"23,656.88"},{"v":89738.12,"d":"89,738.12"},"Администрация Черноморского городского поселения","Закон Краснодарского края от 13.11.2006г. № 1112-КЗ \"О разграничении имущества, находящегося в собственности муниципального образования Северский район, между вновь образованными городскими, сельскими поселениями и муниципальным образованием Северский район, в состав которого они входят\""]
[164,"Трубопровод протяженность 156 м","п.Черноморский, ул.Крупской",1955,156,null,"23:26:0000000:3895",{"v":18503,"d":"18,503.00"},{"v":18503,"d":"18,503.00"},{"v":0,"d":"0.00"},"Администрация Черноморского городского поселения","Закон Краснодарского края от 13.11.2006г. № 1112-КЗ \"О разграничении имущества, находящегося в собственности муниципального образования Северский район, между вновь образованными городскими, сельскими поселениями и муниципальным образованием Северский район, в состав которого они входят\""]
[165,"Трубопровод протяженность 686 м","п.Черноморский, ул.Дзержинского",1955,686,null,"23:26:0000000:3914",{"v":81314,"d":"81,314.00"},{"v":81314,"d":"81,314.00"},{"v":0,"d":"0.00"},"Администрация Черноморского городского поселения","Закон Краснодарского края от 13.11.2006г. № 1112-КЗ \"О разграничении имущества, находящегося в собственности муниципального образования Северский район, между вновь образованными городскими, сельскими поселениями и муниципальным образованием Северский район, в состав которого они входят\""]
[166,"Трубопровод протяженность 124 м","п.Черноморский, ул.Ленина",1955,124,null,"23:26:0000000:3896",{"v":12783,"d":"12,783.00"},{"v":12783,"d":"12,783.00"},{"v":0,"d":"0.00"},"Администрация Черноморского городского поселения","Закон Краснодарского края от 13.11.2006г. № 1112-КЗ \"О разграничении имущества, находящегося в собственности муниципального образования Северский район, между вновь образованными городскими, сельскими поселениями и муниципальным образованием Северский район, в состав которого они входят\""]
[167,"Трубопровод протяженность 166 м","п.Черноморский, ул.Пушкина",1955,166,null,"23:26:0000000:3893",{"v":81314,"d":"81,314.00"},{"v":81314,"d":"81,314.00"},{"v":0,"d":"0.00"},"Администрация Черноморского городского поселения","Закон Краснодарского края от 13.11.2006г. № 1112-КЗ \"О разграничении имущества, находящегося в собственности муниципального образования Северский район, между вновь образованными городскими, сельскими поселениями и муниципальным образованием Северский район, в состав которого они входят\""]
[168,"Трубопровод протяженность 92 м","п.Черноморский, ул.Дзержинского",1955,92,null,"23:26:0000000:3892",{"v":12783,"d":"12,783.00"},{"v":12783,"d":"12,783.00"},{"v":0,"d":"0.00"},"Администрация Черноморского городского поселения","Закон Краснодарского края от 13.11.2006г. № 1112-КЗ \"О разграничении имущества, находящегося в собственности муниципального образования Северский район, между вновь образованными городскими, сельскими поселениями и муниципальным образованием Северский район, в состав которого они входят\""]
[169,"Трубопровод протяженность 210 м","п.Черноморский, от ул.Длинной, 15 до ул.Крупской, 23 (ул.Крупской, 15-23)",1955,210,null,"23:26:0000000:3891",{"v":19689,"d":"19,689.00"},{"v":19689,"d":"19,689.00"},{"v":0,"d":"0.00"},"Администрация Черноморского городского поселения","Закон Краснодарского края от 13.11.2006г. № 1112-КЗ \"О разграничении имущества, находящегося в собственности муниципального образования Северский район, между вновь образованными городскими, сельскими поселениями и муниципальным образованием Северский район, в состав которого они входят\""]
[170,"Трубопровод протяженность 240 м","п.Черноморский, от ул.Кавказской, 10 до ул.Юбилейной",1955,240,null,"23:26:0000000:3889",{"v":9490,"d":"9,490.00"},{"v":9490,"d":"9,490.00"},{"v":0,"d":"0.00"},"Администрация Черноморского городского поселения","Закон Краснодарского края от 13.11.2006г. № 1112-КЗ \"О разграничении имущества, находящегося в собственности муниципального образования Северский район, между вновь образованными городскими, сельскими поселениями и муниципальным образованием Северский район, в состав которого они входят\""]
[171,"Трубопровод протяженность 398 м","п.Черноморский, от ул.Калинина, 16 до ул.Кирова, 31",1955,398,null,"23:26:0000000:3882",{"v":32029,"d":"32,029.00"},{"v":32029,"d":"32,029.00"},{"v":0,"d":"0.00"},"Администрация Черноморского городского поселения","Закон Краснодарского края от 13.11.2006г. № 1112-КЗ \"О разграничении имущества, находящегося в собственности муниципального образования Северский район, между вновь образованными городскими, сельскими поселениями и муниципальным образованием Северский район, в состав которого они входят\""]
[172,"Трубопровод протяженность 408 м","п.Черноморский, от ул.Калинина, 18 до ул.Суворова, 50",1955,408,null,"23:26:0000000:3903",{"v":28470,"d":"28,470.00"},{"v":28470,"d":"28,470.00"},{"v":0,"d":"0.00"},"Администрация Черноморского городского поселения","Закон Краснодарского края от 13.11.2006г. № 1112-КЗ \"О разграничении имущества, находящегося в собственности муниципального образования Северский район, между вновь образованными городскими, сельскими поселениями и муниципальным образованием Северский район, в состав которого они входят\""]
[173,"Трубопровод проотяженность 172 м","п.Черноморский, от ул.Калинина, 24 до ул.Крупской, 17",1955,172,null,"23:26:0000000:3918",{"v":47217,"d":"47,217.00"},{"v":47217,"d":"47,217.00"},{"v":0,"d":"0.00"},"Администрация Черноморского городского поселения","Закон Краснодарского края от 13.11.2006г. № 1112-КЗ \"О разграничении имущества, находящегося в собственности муниципального образования Северский район, между вновь образованными городскими, сельскими поселениями и муниципальным образованием Северский район, в состав которого они входят\""]
[174,"Трубопровод протяженность 90 м","п.Черноморский, от ул.Калинина, 39 до ул.Юбилейной, 74",1955,90,null,"23:26:0000000:3904",{"v":48403,"d":"48,403.00"},{"v":48403,"d":"48,403.00"},{"v":0,"d":"0.00"},"Администрация Черноморского городского поселения","Закон Краснодарского края от 13.11.2006г. № 1112-КЗ \"О разграничении имущества, находящегося в собственности муниципального образования Северский район, между вновь образованными городскими, сельскими поселениями и муниципальным образованием Северский район, в состав которого они входят\""]
[175,"Трубопровод протяженность 72 м","п.Черноморский, ул.Калинина, 23-18",1955,72,null,"23:26:0000000:3881",{"v":17738,"d":"17,738.00"},{"v":17738,"d":"17,738.00"},{"v":0,"d":"0.00"},"Администрация Черноморского городского поселения","Закон Краснодарского края от 13.11.2006г. № 1112-КЗ \"О разграничении имущества, находящегося в собственности муниципального образования Северский район, между вновь образованными городскими, сельскими поселениями и муниципальным образованием Северский район, в состав которого они входят\""]
[176,"Трубопровод протяженность 80 м","п.Черноморский, ул.Космонавтов, 5, ул.Советская",1955,80,null,"23:26:0000000:3900",{"v":10676,"d":"10,676.00"},{"v":10676,"d":"10,676.00"},{"v":0,"d":"0.00"},"Администрация Черноморского городского поселения","Закон Краснодарского края от 13.11.2006г. № 1112-КЗ \"О разграничении имущества, находящегося в собственности муниципального образования Северский район, между вновь образованными городскими, сельскими поселениями и муниципальным образованием Северский район, в состав которого они входят\""]
[177,"Трубопровод протяженность 204 м","п.Черноморский, ул.Крупской, 11-23",1955,204,null,"23:26:0000000:3912",{"v":9900,"d":"9,900.00"},{"v":9900,"d":"9,900.00"},{"v":0,"d":"0.00"},"Администрация Черноморского городского поселения","Закон Краснодарского края от 13.11.2006г. № 1112-КЗ \"О разграничении имущества, находящегося в собственности муниципального образования Северский район, между вновь образованными городскими, сельскими поселениями и муниципальным образованием Северский район, в состав которого они входят\""]
[178,"Трубопровод протяженность 294 м","п.Черноморский, ул.Крупской, 17, ул.Новороссийская, 14",1955,294,null,"23:26:0000000:3909",{"v":8148,"d":"8,148.00"},{"v":8148,"d":"8,148.00"},{"v":0,"d":"0.00"},"Администрация Черноморского городского поселения","Закон Краснодарского края от 13.11.2006г. № 1112-КЗ \"О разграничении имущества, находящегося в собственности муниципального образования Северский район, между вновь образованными городскими, сельскими поселениями и муниципальным образованием Северский район, в состав которого они входят\""]
[179,"Трубопровод протяженность 214 м","п.Черноморский, ул.Крупской, 26, ул.Мира, 46",1955,214,null,"23:26:0000000:3897",{"v":21031,"d":"21,031.00"},{"v":21031,"d":"21,031.00"},{"v":0,"d":"0.00"},"Администрация Черноморского городского поселения","Закон Краснодарского края от 13.11.2006г. № 1112-КЗ \"О разграничении имущества, находящегося в собственности муниципального образования Северский район, между вновь образованными городскими, сельскими поселениями и муниципальным образованием Северский район, в состав которого они входят\""]
[180,"Трубопровод протяженность 80 м","п.Черноморский, от ул.Крупской до ул Мира, 34",1955,80,null,"23:26:0000000:3898",{"v":34878,"d":"34,878.00"},{"v":34878,"d":"34,878.00"},{"v":0,"d":"0.00"},"Администрация Черноморского городского поселения","Закон Краснодарского края от 13.11.2006г. № 1112-КЗ \"О разграничении имущества, находящегося в собственности муниципального образования Северский район, между вновь образованными городскими, сельскими поселениями и муниципальным образованием Северский район, в состав которого они входят\""]
[181,"Трубопровод протяженность 80 м","п.Черноморский, ул.Крупской, 23-27",1955,80,null,"23:26:1103012:190",{"v":25388,"d":"25,388.00"},{"v":25388,"d":"25,388.00"},{"v":0,"d":"0.00"},"Администрация Черноморского городского поселения","Закон Краснодарского края от 13.11.2006г. № 1112-КЗ \"О разграничении имущества, находящегося в собственности муниципального образования Северский район, между вновь образованными городскими, сельскими поселениями и муниципальным образованием Северский район, в состав которого они входят\""]
[182,"Трубопровод протяженность 152 м","п.Черноморский, от ул.Ленина, 13 до ул.Пушкина, 16",1955,152,null,"23:26:0000000:3894",{"v":5144,"d":"5,144.00"},{"v":5144,"d":"5,144.00"},{"v":0,"d":"0.00"},"Администрация Черноморского городского поселения","Закон Краснодарского края от 13.11.2006г. № 1112-КЗ \"О разграничении имущества, находящегося в собственности муниципального образования Северский район, между вновь образованными городскими, сельскими поселениями и муниципальным образованием Северский район, в состав которого они входят\""]
[183,"Трубопровод протяженность 78 м","п.Черноморский, ул.Ленина",1955,78,null,"23:26:0000000:3913",{"v":8248,"d":"8,248.00"},{"v":8248,"d":"8,248.00"},{"v":0,"d":"0.00"},"Администрация Черноморского городского поселения","Закон Краснодарского края от 13.11.2006г. № 1112-КЗ \"О разграничении имущества, находящегося в собственности муниципального образования Северский район, между вновь образованными городскими, сельскими поселениями и муниципальным образованием Северский район, в состав которого они входят\""]
[184,"Трубопровод протяженность 170 м","п.Черноморский, от ул.Ленина до парка",1955,170,null,"23:26:0000000:3854",{"v":18026,"d":"18,026.00"},{"v":18026,"d":"18,026.00"},{"v":0,"d":"0.00"},"Администрация Черноморского городского поселения","Закон Краснодарского края от 13.11.2006г. № 1112-КЗ \"О разграничении имущества, находящегося в собственности муниципального образования Северский район, между вновь образованными городскими, сельскими поселениями и муниципальным образованием Северский район, в состав которого они входят\""]
[185,"Трубопровод протяженность 71 м","п.Черноморский, ул.Мира, 34-36",1955,71,null,"23:26:0000000:3852",{"v":8038,"d":"8,038.00"},{"v":8038,"d":"8,038.00"},{"v":0,"d":"0.00"},"Администрация Черноморского городского поселения","Закон Краснодарского края от 13.11.2006г. № 1112-КЗ \"О разграничении имущества, находящегося в собственности муниципального образования Северский район, между вновь образованными городскими, сельскими поселениями и муниципальным образованием Северский район, в состав которого они входят\""]
[186,"Трубопровод протяженность 114 м","п.Черноморский, ул.Мира, 36-50",1955,114,null,"23:26:0000000:3861",{"v":17528,"d":"17,528.00"},{"v":17528,"d":"17,528.00"},{"v":0,"d":"0.00"},"Администрация Черноморского городского поселения","Закон Краснодарского края от 13.11.2006г. № 1112-КЗ \"О разграничении имущества, находящегося в собственности муниципального образования Северский район, между вновь образованными городскими, сельскими поселениями и муниципальным образованием Северский район, в состав которого они входят\""]
[187,"Трубопровод протяженность 200 м","п.Черноморский, от ул.Мира, 38 до ул.Новороссийской, 14",1955,200,null,"23:26:0000000:3862",{"v":9756,"d":"9,756.00"},{"v":9756,"d":"9,756.00"},{"v":0,"d":"0.00"},"Администрация Черноморского городского поселения","Закон Краснодарского края от 13.11.2006г. № 1112-КЗ \"О разграничении имущества, находящегося в собственности муниципального образования Северский район, между вновь образованными городскими, сельскими поселениями и муниципальным образованием Северский район, в состав которого они входят\""]
[188,"Трубопрово протяженность 500 м","п.Черноморский, от ул.Новороссийской, 18 до ул.Юбилейной, 127",1955,500,null,"23:26:0000000:3848",{"v":15676,"d":"15,676.00"},{"v":15676,"d":"15,676.00"},{"v":0,"d":"0.00"},"Администрация Черноморского городского поселения","Закон Краснодарского края от 13.11.2006г. № 1112-КЗ \"О разграничении имущества, находящегося в собственности муниципального образования Северский район, между вновь образованными городскими, сельскими поселениями и муниципальным образованием Северский район, в состав которого они входят\""]
[189,"Трубопровод протяженность 140 м","п.Черноморский, ул.Новороссийская, 20-24",1955,140,null,"23:26:0000000:3847",{"v":20621,"d":"20,621.00"},{"v":20621,"d":"20,621.00"},{"v":0,"d":"0.00"},"Администрация Черноморского городского поселения","Закон Краснодарского края от 13.11.2006г. № 1112-КЗ \"О разграничении имущества, находящегося в собственности муниципального образования Северский район, между вновь образованными городскими, сельскими поселениями и муниципальным образованием Северский район, в состав которого они входят\""]
[190,"Трубопровод протяженность 58 м","п.Черноморский, ул.Новороссийская, 6-8",1955,58,null,"23:26:0000000:3859",{"v":59312,"d":"59,312.00"},{"v":59312,"d":"59,312.00"},{"v":0,"d":"0.00"},"Администрация Черноморского городского поселения","Закон Краснодарского края от 13.11.2006г. № 1112-КЗ \"О разграничении имущества, находящегося в собственности муниципального образования Северский район, между вновь образованными городскими, сельскими поселениями и муниципальным образованием Северский район, в состав которого они входят\""]
[191,"Трубопровод протяженность 45 м","п.Черноморский, от ул.Новороссийской до котельной",1955,45,null,"23:26:0000000:3860",{"v":14434,"d":"14,434.00"},{"v":14434,"d":"14,434.00"},{"v":0,"d":"0.00"},"Администрация Черноморского городского поселения","Закон Краснодарского края от 13.11.2006г. № 1112-КЗ \"О разграничении имущества, находящегося в собственности муниципального образования Северский район, между вновь образованными городскими, сельскими поселениями и муниципальным образованием Северский район, в состав которого они входят\""]
[192,"Трубопровод протяженность 70 м","п.Черноморский, от ул.Новороссийской до ул.Юбилейной",1955,70,null,"23:26:0000000:3857",{"v":7971,"d":"7,971.00"},{"v":7971,"d":"7,971.00"},{"v":0,"d":"0.00"},"Администрация Черноморского городского поселения","Закон Краснодарского края от 13.11.2006г. № 1112-КЗ \"О разграничении имущества, находящегося в собственности муниципального образования Северский район, между вновь образованными городскими, сельскими поселениями и муниципальным образованием Северский район, в состав которого они входят\""]
[193,"Трубопровод протяженность 166 м","п.Черноморский, от ул.октябрьской, 1 до ул.Тельмана, 6",1955,166,null,"23:26:0000000:3839",{"v":4645,"d":"4,645.00"},{"v":4645,"d":"4,645.00"},{"v":0,"d":"0.00"},"Администрация Черноморского городского поселения","Закон Краснодарского края от 13.11.2006г. № 1112-КЗ \"О разграничении имущества, находящегося в собственности муниципального образования Северский район, между вновь образованными городскими, сельскими поселениями и муниципальным образованием Северский район, в состав которого они входят\""]
[194,"Трубопровод протяженность 140 м","п.Черноморский, от ул.Октябрьской до ул.Юбилейной",1955,140,null,"23:26:0000000:4101",{"v":9623,"d":"9,623.00"},{"v":9623,"d":"9,623.00"},{"v":0,"d":"0.00"},"Администрация Черноморского городского поселения","Закон Краснодарского края от 13.11.2006г. № 1112-КЗ \"О разграничении имущества, находящегося в собственности муниципального образования Северский район, между вновь образованными городскими, сельскими поселениями и муниципальным образованием Северский район, в состав которого они входят\""]
[195,"Трубопровод протяженность 242 м","п.Черноморский, от бани до хлораторной",1955,242,null,"23:26:0000000:4093",{"v":19689,"d":"19,689.00"},{"v":19689,"d":"19,689.00"},{"v":0,"d":"0.00"},"Администрация Черноморского городского поселения","Закон Краснодарского края от 13.11.2006г. № 1112-КЗ \"О разграничении имущества, находящегося в собственности муниципального образования Северский район, между вновь образованными городскими, сельскими поселениями и муниципальным образованием Северский район, в состав которого они входят\""]
[196,"Трубопровод протяженность 722 м","п.Черноморский, от Дома культуры до бани",1955,722,null,"23:26:0000000:3841",{"v":14745,"d":"14,745.00"},{"v":14745,"d":"14,745.00"},{"v":0,"d":"0.00"},"Администрация Черноморского городского поселения","Закон Краснодарского края от 13.11.2006г. № 1112-КЗ \"О разграничении имущества, находящегося в собственности муниципального образования Северский район, между вновь образованными городскими, сельскими поселениями и муниципальным образованием Северский район, в состав которого они входят\""]
[197,"Трубопровод протяженность 475 м","п.Черноморский, от ул.Кавказской до ул.Юбилейной",1955,475,null,"23:26:0000000:3842",{"v":24956,"d":"24,956.00"},{"v":24956,"d":"24,956.00"},{"v":0,"d":"0.00"},"Администрация Черноморского городского поселения","Закон Краснодарского края от 13.11.2006г. № 1112-КЗ \"О разграничении имущества, находящегося в собственности муниципального образования Северский район, между вновь образованными городскими, сельскими поселениями и муниципальным образованием Северский район, в состав которого они входят\""]
[198,"Трубопровод протяженность 230 м","п.Черноморский, от родильного дома до ул.Юбилейной",1955,230,null,"23:26:0000000:3831",{"v":74445,"d":"74,445.00"},{"v":74445,"d":"74,445.00"},{"v":0,"d":"0.00"},"Администрация Черноморского городского поселения","Закон Краснодарского края от 13.11.2006г. № 1112-КЗ \"О разграничении имущества, находящегося в собственности муниципального образования Северский район, между вновь образованными городскими, сельскими поселениями и муниципальным образованием Северский район, в состав которого они входят\""]
[199,"Трубопровод протяженность 252 м","п.Черноморский, от санитарно-эпидемиологической станции до бани",1955,252,null,"23:26:0000000:4100",{"v":48969,"d":"48,969.00"},{"v":48969,"d":"48,969.00"},{"v":0,"d":"0.00"},"Администрация Черноморского городского поселения","Закон Краснодарского края от 13.11.2006г. № 1112-КЗ \"О разграничении имущества, находящегося в собственности муниципального образования Северский район, между вновь образованными городскими, сельскими поселениями и муниципальным образованием Северский район, в состав которого они входят\""]
[200,"Трубопровод протяженност 160 м","п.Черноморский, ул.Тельмана",1955,160,null,"23:26:0000000:3868",{"v":23714,"d":"23,714.00"},{"v":23714,"d":"23,714.00"},{"v":0,"d":"0.00"},"Администрация Черноморского городского поселения","Закон Краснодарского края от 13.11.2006г. № 1112-КЗ \"О разграничении имущества, находящегося в собственности муниципального образования Северский район, между вновь образованными городскими, сельскими поселениями и муниципальным образованием Северский район, в состав которого они входят\""]
[201,"Трубопровод протяженность 313 м","п.Черноморский, от ул.Юбилейной до хлораторной",1955,313,null,"23:26:0000000:3864",{"v":25987,"d":"25,987.00"},{"v":25987,"d":"25,987.00"},{"v":0,"d":"0.00"},"Администрация Черноморского городского поселения","Закон Краснодарского края от 13.11.2006г. № 1112-КЗ \"О разграничении имущества, находящегося в собственности муниципального образования Северский район, между вновь образованными городскими, сельскими поселениями и муниципальным образованием Северский район, в состав которого они входят\""]
[202,"Трубопровод протяженность 64 м","п.Черноморский, от парка до павильона",1955,64,null,"23:26:0000000:3938",{"v":25720,"d":"25,720.00"},{"v":25720,"d":"25,720.00"},{"v":0,"d":"0.00"},"Администрация Черноморского городского поселения","Закон Краснодарского края от 13.11.2006г. № 1112-КЗ \"О разграничении имущества, находящегося в собственности муниципального образования Северский район, между вновь образованными городскими, сельскими поселениями и муниципальным образованием Северский район, в состав которого они входят\""]
[203,"Трубопровод протяженность 776 м","п.Черноморский, от парка до ул Кирова",1955,776,null,"23:26:0000000:3937",{"v":32162,"d":"32,162.00"},{"v":32162,"d":"32,162.00"},{"v":0,"d":"0.00"},"Администрация Черноморского городского поселения","Закон Краснодарского края от 13.11.2006г. № 1112-КЗ \"О разграничении имущества, находящегося в собственности муниципального образования Северский район, между вновь образованными городскими, сельскими поселениями и муниципальным образованием Северский район, в состав которого они входят\""]
[204,"Трубопровод протяженность 185 м","п.Черноморский, ул.Кирова, 32",1955,185,null,"23:26:0000000:3925",{"v":8803,"d":"8,803.00"},{"v":8803,"d":"8,803.00"},{"v":0,"d":"0.00"},"Администрация Черноморского городского поселения","Закон Краснодарского края от 13.11.2006г. № 1112-КЗ \"О разграничении имущества, находящегося в собственности муниципального образования Северский район, между вновь образованными городскими, сельскими поселениями и муниципальным образованием Северский район, в состав которого они входят\""]
[205,"Трубопровод протяженность 314 м","п.Черноморский, от ул.Пушкина до бани",1955,314,null,"23:26:0000000:3933",{"v":80011,"d":"80,011.00"},{"v":80011,"d":"80,011.00"},0,"Администрация Черноморского городского поселения","Закон Краснодарского края от 13.11.2006г. № 1112-КЗ \"О разграничении имущества, находящегося в собственности муниципального образования Северский район, между вновь образованными городскими, сельскими поселениями и муниципальным образованием Северский район, в состав которого они входят\""]
[206,"Трубопровод протяженность 140 м","п.Черноморский, от ул.Пушкина до парка",1955,140,null,"23:26:0000000:3934",{"v":19202,"d":"19,202.00"},{"v":19202,"d":"19,202.00"},{"v":0,"d":"0.00"},"Администрация Черноморского городского поселения","Закон Краснодарского края от 13.11.2006г. № 1112-КЗ \"О разграничении имущества, находящегося в собственности муниципального образования Северский район, между вновь образованными городскими, сельскими поселениями и муниципальным образованием Северский район, в состав которого они входят\""]
[207,"Трубопровод протяженность 90 м","п.Черноморский, ул.Советская",1955,90,null,"23:26:0000000:3958",{"v":32372,"d":"32,372.00"},{"v":32372,"d":"32,372.00"},{"v":0,"d":"0.00"},"Администрация Черноморского городского поселения","Закон Краснодарского края от 13.11.2006г. № 1112-КЗ \"О разграничении имущества, находящегося в собственности муниципального образования Северский район, между вновь образованными городскими, сельскими поселениями и муниципальным образованием Северский район, в состав которого они входят\""]
[208,"Трубопровод протяженность 1144 м","п.Черноморский, ул.Советская, 26 до детского сада № 3",1955,1144,null,"23:26:1103018:329",{"v":17528,"d":"17,528.00"},{"v":17528,"d":"17,528.00"},{"v":0,"d":"0.00"},"Администрация Черноморского городского поселения","Закон Краснодарского края от 13.11.2006г. № 1112-КЗ \"О разграничении имущества, находящегося в собственности муниципального образования Северский район, между вновь образованными городскими, сельскими поселениями и муниципальным образованием Северский район, в состав которого они входят\""]
[209,"Трубопровод протяженность 102 м","п.Черноморский, от ул.Советской, 39 до жилищно-коммунального управления",1955,102,null,"23:26:1103015:415",{"v":5787,"d":"5,787.00"},{"v":5787,"d":"5,787.00"},{"v":0,"d":"0.00"},"Администрация Черноморского городского поселения","Закон Краснодарского края от 13.11.2006г. № 1112-КЗ \"О разграничении имущества, находящегося в собственности муниципального образования Северский район, между вновь образованными городскими, сельскими поселениями и муниципальным образованием Северский район, в состав которого они входят\""]
[210,"Трубопровод протяженность 119 м","п.Черноморский, от ул.Советской, 35 до ул.Юбилейной",1955,119,null,"23:26:0000000:3949",{"v":117948,"d":"117,948.00"},{"v":117948,"d":"117,948.00"},{"v":0,"d":"0.00"},"Администрация Черноморского городского поселения","Закон Краснодарского края от 13.11.2006г. № 1112-КЗ \"О разграничении имущества, находящегося в собственности муниципального образования Северский район, между вновь образованными городскими, сельскими поселениями и муниципальным образованием Северский район, в состав которого они входят\""]
[211,"Трубопровод протяженность 235 м","п.Черноморский, от ул.Тельмана до ул.Юбилейной",1955,235,null,"23:26:0000000:3970",{"v":12095,"d":"12,095.00"},{"v":12095,"d":"12,095.00"},{"v":0,"d":"0.00"},"Администрация Черноморского городского поселения","Закон Краснодарского края от 13.11.2006г. № 1112-КЗ \"О разграничении имущества, находящегося в собственности муниципального образования Северский район, между вновь образованными городскими, сельскими поселениями и муниципальным образованием Северский район, в состав которого они входят\""]
[212,"Трубопровод протяженность 382 м","п.Черноморский, ул.Кирова, 1-27",1955,382,null,null,{"v":16364,"d":"16,364.00"},{"v":16364,"d":"16,364.00"},{"v":0,"d":"0.00"},"Администрация Черноморского городского поселения","Закон Краснодарского края от 13.11.2006г. № 1112-КЗ \"О разграничении имущества, находящегося в собственности муниципального образования Северский район, между вновь образованными городскими, сельскими поселениями и муниципальным образованием Северский район, в состав которого они входят\""]
[213,"Трубопровод протяженность 112 м","п.Черноморский, от ул.Суворова, 7 до ул.Дзержинского",1955,112,null,"23:26:0000000:3945",{"v":24224,"d":"24,224.00"},{"v":24224,"d":"24,224.00"},{"v":0,"d":"0.00"},"Администрация Черноморского городского поселения","Закон Краснодарского края от 13.11.2006г. № 1112-КЗ \"О разграничении имущества, находящегося в собственности муниципального образования Северский район, между вновь образованными городскими, сельскими поселениями и муниципальным образованием Северский район, в состав которого они входят\""]
[214,"Трубопровод протяженность 150 м","п.Черноморский, ул.Юбилейная, 86-96",1955,150,null,"23:26:0000000:3948",{"v":39390,"d":"39,390.00"},{"v":39390,"d":"39,390.00"},{"v":0,"d":"0.00"},"Администрация Черноморского городского поселения","Закон Краснодарского края от 13.11.2006г. № 1112-КЗ \"О разграничении имущества, находящегося в собственности муниципального образования Северский район, между вновь образованными городскими, сельскими поселениями и муниципальным образованием Северский район, в состав которого они входят\""]
[215,"Трубопровод протяженность 520 м","п.Черноморский, от ул.Юбилейной, 127 до хлораторной ",1955,520,null,"23:26:0000000:3944",{"v":11552,"d":"11,552.00"},{"v":11552,"d":"11,552.00"},{"v":0,"d":"0.00"},"Администрация Черноморского городского поселения","Закон Краснодарского края от 13.11.2006г. № 1112-КЗ \"О разграничении имущества, находящегося в собственности муниципального образования Северский район, между вновь образованными городскими, сельскими поселениями и муниципальным образованием Северский район, в состав которого они входят\""]
[216,"Трубопровод протяженность 304 м ","п.Черноморский, от ул.Юбилейной, 74 до ул.Крупской, 23",1955,304,null,"23:26:0000000:3950",{"v":15466,"d":"15,466.00"},{"v":15466,"d":"15,466.00"},{"v":0,"d":"0.00"},"Администрация Черноморского городского поселения","Закон Краснодарского края от 13.11.2006г. № 1112-КЗ \"О разграничении имущества, находящегося в собственности муниципального образования Северский район, между вновь образованными городскими, сельскими поселениями и муниципальным образованием Северский район, в состав которого они входят\""]
[217,"Трубопровод протяженность 209 м","п.Черноморский, от ул.Юбилейной, 96 до ул.Мира, 46",1955,209,null,"23:26:0000000:3947",{"v":61685,"d":"61,685.00"},{"v":61685,"d":"61,685.00"},{"v":0,"d":"0.00"},"Администрация Черноморского городского поселения","Закон Краснодарского края от 13.11.2006г. № 1112-КЗ \"О разграничении имущества, находящегося в собственности муниципального образования Северский район, между вновь образованными городскими, сельскими поселениями и муниципальным образованием Северский район, в состав которого они входят\""]
[218,"Трубопровод-дренаж протяженность 90 м","п.Черноморский, ул.Кирова, 32",1955,90,null,"23:26:0000000:3946",{"v":36064,"d":"36,064.00"},{"v":36064,"d":"36,064.00"},{"v":0,"d":"0.00"},"Администрация Черноморского городского поселения","Закон Краснодарского края от 13.11.2006г. № 1112-КЗ \"О разграничении имущества, находящегося в собственности муниципального образования Северский район, между вновь образованными городскими, сельскими поселениями и муниципальным образованием Северский район, в состав которого они входят\""]
[219,"Уличная канализация с дренажем протяженность 800 м","п.Черноморский, ул.Ленина, 25",1955,800,null,"23:26:0000000:3728",{"v":24789,"d":"24,789.00"},{"v":24789,"d":"24,789.00"},{"v":0,"d":"0.00"},"Администрация Черноморского городского поселения","Закон Краснодарского края от 13.11.2006г. № 1112-КЗ \"О разграничении имущества, находящегося в собственности муниципального образования Северский район, между вновь образованными городскими, сельскими поселениями и муниципальным образованием Северский район, в состав которого они входят\""]
[220,"Трубопровод протяженность 25 м","п.Черноморский, ул.Ленина",1955,25,null,"23:26:0000000:3951",{"v":5310,"d":"5,310.00"},{"v":5310,"d":"5,310.00"},{"v":0,"d":"0.00"},"Администрация Черноморского городского поселения","Закон Краснодарского края от 13.11.2006г. № 1112-КЗ \"О разграничении имущества, находящегося в собственности муниципального образования Северский район, между вновь образованными городскими, сельскими поселениями и муниципальным образованием Северский район, в состав которого они входят\""]
[221,"Трубопровод протяженность 26 м","п.Черноморский, ул.Крупской",1955,26,null,"23:26:0000000:3954",{"v":46193,"d":"46,193.00"},{"v":46193,"d":"46,193.00"},{"v":0,"d":"0.00"},"Администрация Черноморского городского поселения","Закон Краснодарского края от 13.11.2006г. № 1112-КЗ \"О разграничении имущества, находящегося в собственности муниципального образования Северский район, между вновь образованными городскими, сельскими поселениями и муниципальным образованием Северский район, в состав которого они входят\""]
[222,"Трубопровод протяженность 30 м","п.Черноморский, ул.Ленина",1955,30,null,"23:26:0000000:3955",0.43,0.43,{"v":0,"d":"0.00"},"Администрация Черноморского городского поселения","Закон Краснодарского края от 13.11.2006г. № 1112-КЗ \"О разграничении имущества, находящегося в собственности муниципального образования Северский район, между вновь образованными городскими, сельскими поселениями и муниципальным образованием Северский район, в состав которого они входят\""]
[227,"Здание котельной","п.Черноморский, ул.Дзержинского",null,"54,2        14,8           16            21,1       419,6",null,"23:26:1103021:87 23:26:1103021:88 23:26:1103021:89  23:26:1103021:90 23:26:1103021:91",{"v":73022,"d":"73,022.00"},{"v":73022,"d":"73,022.00"},{"v":0,"d":"0.00"},"Администрация Черноморского городского поселения (Концессионное соглашение с ООО \"Тепловые сети\" от 17.09.2012 г. № 04/21-12) ","Закон Краснодарского края от 13.11.2006г. № 1112-КЗ \"О разграничении имущества, находящегося в собственности муниципального образования Северский район, между вновь образованными городскими, сельскими поселениями и муниципальным образованием Северский район, в состав которого они входят\""]
[229,"Здание котельной","п.Черноморский, 34-й квартал",null,"19,2         113",null,"23:26:1103006:292    23:26:1103006:293",{"v":3,"d":"3.00"},{"v":3,"d":"3.00"},{"v":0,"d":"0.00"},"Администрация Черноморского городского поселения (Концессионное соглашение с ООО \"Тепловые сети\" от 17.09.2012 г. № 04/21-12) ","Закон Краснодарского края от 13.11.2006г. № 1112-КЗ \"О разграничении имущества, находящегося в собственности муниципального образования Северский район, между вновь образованными городскими, сельскими поселениями и муниципальным образованием Северский район, в состав которого они входят\""]
[230,"Здание котельной № 263 ","п.Черноморский, ул.Гоголя",null,365.4,null,"23:26:1103030:538",{"v":140460,"d":"140,460.00"},{"v":140460,"d":"140,460.00"},{"v":0,"d":"0.00"},"Администрация Черноморского городского поселения (Концессионное соглашение с ООО \"Тепловые сети\" от 17.09.2012 г. № 04/21-12) ","Закон Краснодарского края от 13.11.2006г. № 1112-КЗ \"О разграничении имущества, находящегося в собственности муниципального образования Северский район, между вновь образованными городскими, сельскими поселениями и муниципальным образованием Северский район, в состав которого они входят\""]
[231,"Здание котельной","п.Октябрьский, ул.Пушкина,5а",null,"331,7        8,7          18,5",null,"23:26:1101005:1525  23:26:1101005:1527 23:26:1101005:1526 ",{"v":438075,"d":"438,075.00"},{"v":438075,"d":"438,075.00"},{"v":0,"d":"0.00"},"Администрация Черноморского городского поселения (Концессионное соглашение с ООО \"Тепловые сети\" от 17.09.2012 г. № 04/21-12) ","Закон Краснодарского края от 13.11.2006г. № 1112-КЗ \"О разграничении имущества, находящегося в собственности муниципального образования Северский район, между вновь образованными городскими, сельскими поселениями и муниципальным образованием Северский район, в состав которого они входят\""]
[232,"Резервуар объем 25 куб.м.","п.Черноморский, 34-й квартал, котельная",null,25,null,"23:26:0000000:3963",{"v":47652,"d":"47,652.00"},{"v":47652,"d":"47,652.00"},{"v":0,"d":"0.00"},"Администрация Черноморского городского поселения (Концессионное соглашение с ООО \"Тепловые сети\" от 17.09.2012 г. № 04/21-12) ","Закон Краснодарского края от 13.11.2006г. № 1112-КЗ \"О разграничении имущества, находящегося в собственности муниципального образования Северский район, между вновь образованными городскими, сельскими поселениями и муниципальным образованием Северский район, в состав которого они входят\""]
[233,"Резервуар объем 60 куб.м.","п.Черноморский, ул.Дзержинского",null,60,null,"23:26:0000000:3964",{"v":2,"d":"2.00"},{"v":2,"d":"2.00"},{"v":0,"d":"0.00"},"Администрация Черноморского городского поселения (Концессионное соглашение с ООО \"Тепловые сети\" от 17.09.2012 г. № 04/21-12) ","Закон Краснодарского края от 13.11.2006г. № 1112-КЗ \"О разграничении имущества, находящегося в собственности муниципального образования Северский район, между вновь образованными городскими, сельскими поселениями и муниципальным образованием Северский район, в состав которого они входят\""]
[234,"Теплосети протяженность 1490 м","п.Черноморский, ул.Новороссийская, 16, 18, 20, ул.Ленина, 20",null,1490,null,"23:26:0000000:3738",{"v":867234,"d":"867,234.00"},{"v":609969.58,"d":"609,969.58"},{"v":257264.42000000004,"d":"257,264.42"},"Администрация Черноморского городского поселения (Концессионное соглашение с ООО \"Тепловые сети\" от 17.09.2012 г. № 04/21-12) ","Закон Краснодарского края от 13.11.2006г. № 1112-КЗ \"О разграничении имущества, находящегося в собственности муниципального образования Северский район, между вновь образованными городскими, сельскими поселениями и муниципальным образованием Северский район, в состав которого они входят\""]
[235,"Теплосети протяженность 102 м","п.Октябрьский, ул.Пушкина",null,102,null,"23:26:0000000:3749",{"v":33003,"d":"33,003.00"},{"v":33003,"d":"33,003.00"},{"v":0,"d":"0.00"},"Администрация Черноморского городского поселения (Концессионное соглашение с ООО \"Тепловые сети\" от 17.09.2012 г. № 04/21-12) ","Закон Краснодарского края от 13.11.2006г. № 1112-КЗ \"О разграничении имущества, находящегося в собственности муниципального образования Северский район, между вновь образованными городскими, сельскими поселениями и муниципальным образованием Северский район, в состав которого они входят\""]
[236,"Теплосети протяженность 180 м","п.Черноморский, ул.Пушкина",null,180,null,"23:26:0000000:3747",{"v":58247,"d":"58,247.00"},{"v":58247,"d":"58,247.00"},0,"Администрация Черноморского городского поселения (Концессионное соглашение с ООО \"Тепловые сети\" от 17.09.2012 г. № 04/21-12) ","Закон Краснодарского края от 13.11.2006г. № 1112-КЗ \"О разграничении имущества, находящегося в собственности муниципального образования Северский район, между вновь образованными городскими, сельскими поселениями и муниципальным образованием Северский район, в состав которого они входят\""]
[237,"Теплосети протяженность 410 м","п.Октябрьский. ул.Пушкина",null,"410 м",null,"23:26:0000000:3733",{"v":132661,"d":"132,661.00"},{"v":132661,"d":"132,661.00"},{"v":0,"d":"0.00"},"Администрация Черноморского городского поселения (Концессионное соглашение с ООО \"Тепловые сети\" от 17.09.2012 г. № 04/21-12) ","Закон Краснодарского края от 13.11.2006г. № 1112-КЗ \"О разграничении имущества, находящегося в собственности муниципального образования Северский район, между вновь образованными городскими, сельскими поселениями и муниципальным образованием Северский район, в состав которого они входят\""]
[238,"Теплосети протяженность 480 м","п.Октябрьский. ул.Пушкина",null,"480 м",null,"23:26:0000000:3745",{"v":155310,"d":"155,310.00"},{"v":155310,"d":"155,310.00"},{"v":0,"d":"0.00"},"Администрация Черноморского городского поселения (Концессионное соглашение с ООО \"Тепловые сети\" от 17.09.2012 г. № 04/21-12) ","Закон Краснодарского края от 13.11.2006г. № 1112-КЗ \"О разграничении имущества, находящегося в собственности муниципального образования Северский район, между вновь образованными городскими, сельскими поселениями и муниципальным образованием Северский район, в состав которого они входят\""]
[239,"Теплосети протяженность 520 м","п.Октябрьский. ул.Пушкина",null,"520 м",null,"23:26:0000000:3737",{"v":168252,"d":"168,252.00"},{"v":168252,"d":"168,252.00"},{"v":0,"d":"0.00"},"Администрация Черноморского городского поселения (Концессионное соглашение с ООО \"Тепловые сети\" от 17.09.2012 г. № 04/21-12) ","Закон Краснодарского края от 13.11.2006г. № 1112-КЗ \"О разграничении имущества, находящегося в собственности муниципального образования Северский район, между вновь образованными городскими, сельскими поселениями и муниципальным образованием Северский район, в состав которого они входят\""]
[240,"Теплосети протяженность 630 м","п.Октябрьский. ул.Пушкина",null,"630 м",null,"23:26:0000000:3744",{"v":203844,"d":"203,844.00"},{"v":203844,"d":"203,844.00"},{"v":0,"d":"0.00"},"Администрация Черноморского городского поселения (Концессионное соглашение с ООО \"Тепловые сети\" от 17.09.2012 г. № 04/21-12) ","Закон Краснодарского края от 13.11.2006г. № 1112-КЗ \"О разграничении имущества, находящегося в собственности муниципального образования Северский район, между вновь образованными городскими, сельскими поселениями и муниципальным образованием Северский район, в состав которого они входят\""]
[241,"Теплосети протяженность 408 м","п.Октябрьский. ул.Толстого, 4",null,"408 м",null,"23:26:0000000:3743",{"v":21172,"d":"21,172.00"},{"v":9063.27,"d":"9,063.27"},{"v":12108.73,"d":"12,108.73"},"Администрация Черноморского городского поселения (Концессионное соглашение с ООО \"Тепловые сети\" от 17.09.2012 г. № 04/21-12) ","Закон Краснодарского края от 13.11.2006г. № 1112-КЗ \"О разграничении имущества, находящегося в собственности муниципального образования Северский район, между вновь образованными городскими, сельскими поселениями и муниципальным образованием Северский район, в состав которого они входят\""]
[246,"Артезианская скважина № 5","Крюковский водозабор",{"$nulls":4},{"v":32566,"d":"32,566.00"},{"v":32566,"d":"32,566.00"},{"v":0,"d":"0.00"},"Администрация Черноморского городского поселения    ","Закон Краснодарского края от 13.11.2006г. № 1112-КЗ \"О разграничении имущества, находящегося в собственности муниципального образования Северский район, между вновь образованными городскими, сельскими поселениями и муниципальным образованием Северский район, в состав которого они входят\""]
[247,"Артезианская скважина № 6","Крюковский водозабор",{"$nulls":4},{"v":32566,"d":"32,566.00"},{"v":32566,"d":"32,566.00"},{"v":0,"d":"0.00"},"Администрация Черноморского городского поселения    ","Закон Краснодарского края от 13.11.2006г. № 1112-КЗ \"О разграничении имущества, находящегося в собственности муниципального образования Северский район, между вновь образованными городскими, сельскими поселениями и муниципальным образованием Северский район, в состав которого они входят\""]
[248,"Артезианская скважина № 7","Крюковский водозабор",{"$nulls":4},{"v":32566,"d":"32,566.00"},{"v":32566,"d":"32,566.00"},{"v":0,"d":"0.00"},"Администрация Черноморского городского поселения    ","Закон Краснодарского края от 13.11.2006г. № 1112-КЗ \"О разграничении имущества, находящегося в собственности муниципального образования Северский район, между вновь образованными городскими, сельскими поселениями и муниципальным образованием Северский район, в состав которого они входят\""]
[249,"Артезианская скважина № 8","Крюковский водозабор",{"$nulls":4},{"v":35825,"d":"35,825.00"},{"v":35825,"d":"35,825.00"},{"v":0,"d":"0.00"},"Администрация Черноморского городского поселения    ","Закон Краснодарского края от 13.11.2006г. № 1112-КЗ \"О разграничении имущества, находящегося в собственности муниципального образования Северский район, между вновь образованными городскими, сельскими поселениями и муниципальным образованием Северский район, в состав которого они входят\""]
[250,"Артезианская скважина № 9","Крюковский водозабор",{"$nulls":4},{"v":35823,"d":"35,823.00"},{"v":35823,"d":"35,823.00"},{"v":0,"d":"0.00"},"Администрация Черноморского городского поселения    ","Закон Краснодарского края от 13.11.2006г. № 1112-КЗ \"О разграничении имущества, находящегося в собственности муниципального образования Северский район, между вновь образованными городскими, сельскими поселениями и муниципальным образованием Северский район, в состав которого они входят\""]
[251,"Артезианская скважина № 10","п.Черноморский Крюковский водозабор ",{"$nulls":4},{"v":212625,"d":"212,625.00"},{"v":212625,"d":"212,625.00"},{"v":0,"d":"0.00"},"Администрация Черноморского городского поселения    ","Закон Краснодарского края от 13.11.2006г. № 1112-КЗ \"О разграничении имущества, находящегося в собственности муниципального образования Северский район, между вновь образованными городскими, сельскими поселениями и муниципальным образованием Северский район, в состав которого они входят\""]
[252,"Артезианская скважина № 11","п. Черноморский Крюковский водозабор ",{"$nulls":4},{"v":35823,"d":"35,823.00"},{"v":35823,"d":"35,823.00"},{"v":0,"d":"0.00"},"Администрация Черноморского городского поселения    ","Закон Краснодарского края от 13.11.2006г. № 1112-КЗ \"О разграничении имущества, находящегося в собственности муниципального образования Северский район, между вновь образованными городскими, сельскими поселениями и муниципальным образованием Северский район, в состав которого они входят\""]
[254,"ЗДАНИЕ СКЛАДА  ","п.Черноморский, ул.Юбилейная, 95а   ",null,"132.00 ",null,"23:26:1103015:112",{"v":28880,"d":"28,880.00"},{"v":28880,"d":"28,880.00"},{"v":0,"d":"0.00"},"Администрация Черноморского городского поселения    ","Закон Краснодарского края от 13.11.2006г. № 1112-КЗ \"О разграничении имущества, находящегося в собственности муниципального образования Северский район, между вновь образованными городскими, сельскими поселениями и муниципальным образованием Северский район, в состав которого они входят\"/на основании РЕШЕНИЯ  № 308 от 18.06.2009 г. \"ОБ ИЗМЕНЕНИИ НАЗНАЧЕНИЯ ЗДАНИЯ НАХОДЯЩЕГОСЯ В МУНИЦИПАЛЬНОЙ СОБСТВЕННОСТИ  ЧЕРНОМОРСКОГО ГОРОДСКОГО ПОСЕЛЕНИЯ СЕВЕРСКОГО РАЙОНА\""]
[255,"Трансформаторная подстанция № 531","п.Черноморский, ул. Кирова, 36",null,"0.8 ",null,"23:26:1101008:200",{"$nulls":3},"Администрация Черноморского городского поселения    ","Закон Краснодарского края от 13.11.2006г. № 1112-КЗ \"О разграничении имущества, находящегося в собственности муниципального образования Северский район, между вновь образованными городскими, сельскими поселениями и муниципальным образованием Северский район, в состав которого они входят\""]
[256,"Трансформаторная  подстанция № 532","п.Черноморский (очистные сооружения)",null,34.9,{"$nulls":5},"Администрация Черноморского городского поселения    ","Закон Краснодарского края от 13.11.2006г. № 1112-КЗ \"О разграничении имущества, находящегося в собственности муниципального образования Северский район, между вновь образованными городскими, сельскими поселениями и муниципальным образованием Северский район, в состав которого они входят\""]
[257,"Трансформаторная подстанция № 534","п.Черноморский, ул.Пионерская, 24",null,7,null,"23:26:1103025:737",{"$nulls":3},"Администрация Черноморского городского поселения    ","Закон Краснодарского края от 13.11.2006г. № 1112-КЗ \"О разграничении имущества, находящегося в собственности муниципального образования Северский район, между вновь образованными городскими, сельскими поселениями и муниципальным образованием Северский район, в состав которого они входят\""]
[258,"Трансформаторная подстанция № 536","п.Черноморский, ул.Гоголя, 24",null,6.8,null,"23:26:1103030:458",{"$nulls":3},"Администрация Черноморского городского поселения    ","Закон Краснодарского края от 13.11.2006г. № 1112-КЗ \"О разграничении имущества, находящегося в собственности муниципального образования Северский район, между вновь образованными городскими, сельскими поселениями и муниципальным образованием Северский район, в состав которого они входят\""]
[259,"Уличное освещение протяженность 450 м","п.Черноморский",null,450,null,"23:26:0000000:3091",{"$nulls":3},"Администрация Черноморского городского поселения    ","Закон Краснодарского края от 13.11.2006г. № 1112-КЗ \"О разграничении имущества, находящегося в собственности муниципального образования Северский район, между вновь образованными городскими, сельскими поселениями и муниципальным образованием Северский район, в состав которого они входят\""]
[261,"Трансформаторная подстанция № 550","п.Черноморский, ул.Калинина, 1",null,0.8,null,"23:26:1103019:118",{"$nulls":3},"Администрация Черноморского городского поселения    ","Закон Краснодарского края от 13.11.2006г. № 1112-КЗ \"О разграничении имущества, находящегося в собственности муниципального образования Северский район, между вновь образованными городскими, сельскими поселениями и муниципальным образованием Северский район, в состав которого они входят\""]
[262,"Трансформаторная подстанция № 554","п.Черноморский, ул.Гоголя, 24",null,2.6,null,"23:26:1103030:464",{"$nulls":3},"Администрация Черноморского городского поселения    ","Закон Краснодарского края от 13.11.2006г. № 1112-КЗ \"О разграничении имущества, находящегося в собственности муниципального образования Северский район, между вновь образованными городскими, сельскими поселениями и муниципальным образованием Северский район, в состав которого они входят\""]
[263,"Трансформаторная подстанция № 559","п.Черноморский, ул.Ленина, 4",null,4.9,null,"23:26:1103022:552",{"$nulls":3},"Администрация Черноморского городского поселения    ","Закон Краснодарского края от 13.11.2006г. № 1112-КЗ \"О разграничении имущества, находящегося в собственности муниципального образования Северский район, между вновь образованными городскими, сельскими поселениями и муниципальным образованием Северский район, в состав которого они входят\""]
[264,"Уличное освещение протяженность 763 м","п.Черноморский",null,763,null,"23:26:0000000:3093",{"$nulls":3},"Администрация Черноморского городского поселения    ","Закон Краснодарского края от 13.11.2006г. № 1112-КЗ \"О разграничении имущества, находящегося в собственности муниципального образования Северский район, между вновь образованными городскими, сельскими поселениями и муниципальным образованием Северский район, в состав которого они входят\""]
[266,"Транформаторная подстанция № 578","п.Черноморский, ул.Солнечная, 11",null,4.9,null,"23:26:1103014:715",{"$nulls":3},"Администрация Черноморского городского поселения    ","Закон Краснодарского края от 13.11.2006г. № 1112-КЗ \"О разграничении имущества, находящегося в собственности муниципального образования Северский район, между вновь образованными городскими, сельскими поселениями и муниципальным образованием Северский район, в состав которого они входят\""]
[267,"Уличное освещение протяженность 1600 м","п.Черноморский",null,1600,null,"23:26:0000000:4130",{"$nulls":3},"Администрация Черноморского городского поселения    ","Закон Краснодарского края от 13.11.2006г. № 1112-КЗ \"О разграничении имущества, находящегося в собственности муниципального образования Северский район, между вновь образованными городскими, сельскими поселениями и муниципальным образованием Северский район, в состав которого они входят\""]
[260,"Столбы железобетонные ","п.Черноморский",null,"12 шт.",{"$nulls":5},"Администрация Черноморского городского поселения    ","Закон Краснодарского края от 13.11.2006г. № 1112-КЗ \"О разграничении имущества, находящегося в собственности муниципального образования Северский район, между вновь образованными городскими, сельскими поселениями и муниципальным образованием Северский район, в состав которого они входят\""]
[265,"Столбы железобетонные ","п.Черноморский",null,"58 шт.",{"$nulls":5},"Администрация Черноморского городского поселения    ","Закон Краснодарского края от 13.11.2006г. № 1112-КЗ \"О разграничении имущества, находящегося в собственности муниципального образования Северский район, между вновь образованными городскими, сельскими поселениями и муниципальным образованием Северский район, в состав которого они входят\""]
[268,"Столбы железобетонные ","п.Черноморский",null,"40 шт.",{"$nulls":5},"Администрация Черноморского городского поселения    ","Закон Краснодарского края от 13.11.2006г. № 1112-КЗ \"О разграничении имущества, находящегося в собственности муниципального образования Северский район, между вновь образованными городскими, сельскими поселениями и муниципальным образованием Северский район, в состав которого они входят\""]
[276,"Столбы железобетонные ","п.Черноморский",null,"88 шт",{"$nulls":5},"Администрация Черноморского городского поселения    ","Закон Краснодарского края от 13.11.2006г. № 1112-КЗ \"О разграничении имущества, находящегося в собственности муниципального образования Северский район, между вновь образованными городскими, сельскими поселениями и муниципальным образованием Северский район, в состав которого они входят\""]
[279,"Столбы железобетонные ","п.Черноморский",null,"78 шт",{"$nulls":5},"Администрация Черноморского городского поселения    ","Закон Краснодарского края от 13.11.2006г. № 1112-КЗ \"О разграничении имущества, находящегося в собственности муниципального образования Северский район, между вновь образованными городскими, сельскими поселениями и муниципальным образованием Северский район, в состав которого они входят\""]
[282,"Столбы железобетонные ","п.Черноморский",null,"97 шт.",{"$nulls":5},"Администрация Черноморского городского поселения    ","Закон Краснодарского края от 13.11.2006г. № 1112-КЗ \"О разграничении имущества, находящегося в собственности муниципального образования Северский район, между вновь образованными городскими, сельскими поселениями и муниципальным образованием Северский район, в состав которого они входят\""]
[285,"Столбы железобетонные ","п.Черноморский",null,"115 шт.",{"$nulls":5},"Администрация Черноморского городского поселения    ","Закон Краснодарского края от 13.11.2006г. № 1112-КЗ \"О разграничении имущества, находящегося в собственности муниципального образования Северский район, между вновь образованными городскими, сельскими поселениями и муниципальным образованием Северский район, в состав которого они входят\""]
[288,"Столбы железобетонные ","п.Черноморский",null,"112 шт.",{"$nulls":5},"Администрация Черноморского городского поселения    ","Закон Краснодарского края от 13.11.2006г. № 1112-КЗ \"О разграничении имущества, находящегося в собственности муниципального образования Северский район, между вновь образованными городскими, сельскими поселениями и муниципальным образованием Северский район, в состав которого они входят\""]
[292,"Столбы железобетонные ","п.Черноморский",null,"57 шт.",{"$nulls":5},"Администрация Черноморского городского поселения    ","Закон Краснодарского края от 13.11.2006г. № 1112-КЗ \"О разграничении имущества, находящегося в собственности муниципального образования Северский район, между вновь образованными городскими, сельскими поселениями и муниципальным образованием Северский район, в состав которого они входят\""]
[295,"Столбы железобетонные ","п.Черноморский",null,"121 шт",{"$nulls":5},"Администрация Черноморского городского поселения    ","Закон Краснодарского края от 13.11.2006г. № 1112-КЗ \"О разграничении имущества, находящегося в собственности муниципального образования Северский район, между вновь образованными городскими, сельскими поселениями и муниципальным образованием Северский район, в состав которого они входят\""]
[299,"Столбы железобетонные ","п.Черноморский",null,"5 шт.",{"$nulls":5},"Администрация Черноморского городского поселения    ","Закон Краснодарского края от 13.11.2006г. № 1112-КЗ \"О разграничении имущества, находящегося в собственности муниципального образования Северский район, между вновь образованными городскими, сельскими поселениями и муниципальным образованием Северский район, в состав которого они входят\""]
[302,"Столбы железобетонные ","п.Черноморский",null,"5 шт.",{"$nulls":5},"Администрация Черноморского городского поселения    ","Закон Краснодарского края от 13.11.2006г. № 1112-КЗ \"О разграничении имущества, находящегося в собственности муниципального образования Северский район, между вновь образованными городскими, сельскими поселениями и муниципальным образованием Северский район, в состав которого они входят\""]
[306,"Столбы железобетонные ","п.Черноморский",null,"149 шт.",{"$nulls":5},"Администрация Черноморского городского поселения    ","Закон Краснодарского края от 13.11.2006г. № 1112-КЗ \"О разграничении имущества, находящегося в собственности муниципального образования Северский район, между вновь образованными городскими, сельскими поселениями и муниципальным образованием Северский район, в состав которого они входят\""]
[309,"Столбы железобетонные ","п.Черноморский",null,"166 шт.",{"$nulls":5},"Администрация Черноморского городского поселения    ","Закон Краснодарского края от 13.11.2006г. № 1112-КЗ \"О разграничении имущества, находящегося в собственности муниципального образования Северский район, между вновь образованными городскими, сельскими поселениями и муниципальным образованием Северский район, в состав которого они входят\""]
[268,"Столбы железобетонные ","п.Черноморский",null,"62 шт.",{"$nulls":5},"Администрация Черноморского городского поселения    ","Закон Краснодарского края от 13.11.2006г. № 1112-КЗ \"О разграничении имущества, находящегося в собственности муниципального образования Северский район, между вновь образованными городскими, сельскими поселениями и муниципальным образованием Северский район, в состав которого они входят\""]
[269,"Трансформаторная подстанция № 590","п.Черноморский, ул.Сиреневая",null,3.6,{"$nulls":5},"Администрация Черноморского городского поселения    ","Закон Краснодарского края от 13.11.2006г. № 1112-КЗ \"О разграничении имущества, находящегося в собственности муниципального образования Северский район, между вновь образованными городскими, сельскими поселениями и муниципальным образованием Северский район, в состав которого они входят\""]
[270,"Уличное освещение протяженность 1011 м","п.Черноморский",null,1011,{"$nulls":5},"Администрация Черноморского городского поселения    ","Закон Краснодарского края от 13.11.2006г. № 1112-КЗ \"О разграничении имущества, находящегося в собственности муниципального образования Северский район, между вновь образованными городскими, сельскими поселениями и муниципальным образованием Северский район, в состав которого они входят\""]
[272,"Трансформаторная подстанция № 513","х.Карский, ул.Длинная",{"$nulls":7},"Администрация Черноморского городского поселения    ","Закон Краснодарского края от 13.11.2006г. № 1112-КЗ \"О разграничении имущества, находящегося в собственности муниципального образования Северский район, между вновь образованными городскими, сельскими поселениями и муниципальным образованием Северский район, в состав которого они входят\""]
[273,"Трансформаторная подстанция № 514","х.Кипячий",{"$nulls":7},"Администрация Черноморского городского поселения    ","Закон Краснодарского края от 13.11.2006г. № 1112-КЗ \"О разграничении имущества, находящегося в собственности муниципального образования Северский район, между вновь образованными городскими, сельскими поселениями и муниципальным образованием Северский район, в состав которого они входят\""]
[274,"Трансформаторная подстанция № 519","п.Черноморский, ул.Крупской",{"$nulls":4}," ",null,null,"Администрация Черноморского городского поселения    ","Закон Краснодарского края от 13.11.2006г. № 1112-КЗ \"О разграничении имущества, находящегося в собственности муниципального образования Северский район, между вновь образованными городскими, сельскими поселениями и муниципальным образованием Северский район, в состав которого они входят\""]
[275,"Уличное освещение протяженность 3520 м","п.Черноморский",null,3520,null,"23:26:0000000:4145",{"$nulls":3},"Администрация Черноморского городского поселения    ","Закон Краснодарского края от 13.11.2006г. № 1112-КЗ \"О разграничении имущества, находящегося в собственности муниципального образования Северский район, между вновь образованными городскими, сельскими поселениями и муниципальным образованием Северский район, в состав которого они входят\""]
[277,"Трансформаторная подстанция № 520","п.Черноморский, ул.Кавказская",{"$nulls":7},"Администрация Черноморского городского поселения    ","Закон Краснодарского края от 13.11.2006г. № 1112-КЗ \"О разграничении имущества, находящегося в собственности муниципального образования Северский район, между вновь образованными городскими, сельскими поселениями и муниципальным образованием Северский район, в состав которого они входят\""]
[278,"Уличное освещение протяженность 3100 м","п.Черноморский",null,3100,null,"23:26:0000000:4152",{"$nulls":3},"Администрация Черноморского городского поселения    ","Закон Краснодарского края от 13.11.2006г. № 1112-КЗ \"О разграничении имущества, находящегося в собственности муниципального образования Северский район, между вновь образованными городскими, сельскими поселениями и муниципальным образованием Северский район, в состав которого они входят\""]
[280,"Трансформаторная подстанция № 522","п.Черноморский, ул.Советская",{"$nulls":7},"Администрация Черноморского городского поселения    ","Закон Краснодарского края от 13.11.2006г. № 1112-КЗ \"О разграничении имущества, находящегося в собственности муниципального образования Северский район, между вновь образованными городскими, сельскими поселениями и муниципальным образованием Северский район, в состав которого они входят\""]
[281,"Уличное освещение протяженность 3860 м","п.Черноморский",null,3860,null,"23:26:0000000:4146",{"$nulls":3},"Администрация Черноморского городского поселения    ","Закон Краснодарского края от 13.11.2006г. № 1112-КЗ \"О разграничении имущества, находящегося в собственности муниципального образования Северский район, между вновь образованными городскими, сельскими поселениями и муниципальным образованием Северский район, в состав которого они входят\""]
[283,"Трансформаторная подстанция № 523","п.Черноморский, ул.Крупской",{"$nulls":7},"Администрация Черноморского городского поселения    ","Закон Краснодарского края от 13.11.2006г. № 1112-КЗ \"О разграничении имущества, находящегося в собственности муниципального образования Северский район, между вновь образованными городскими, сельскими поселениями и муниципальным образованием Северский район, в состав которого они входят\""]
[284,"Уличное освещение протяженность 4600 м","п.Черноморский",null,4600,null,"23:26:0000000:4142",{"$nulls":3},"Администрация Черноморского городского поселения    ","Закон Краснодарского края от 13.11.2006г. № 1112-КЗ \"О разграничении имущества, находящегося в собственности муниципального образования Северский район, между вновь образованными городскими, сельскими поселениями и муниципальным образованием Северский район, в состав которого они входят\""]
[286,"Трансформаторная подстанция № 524","п.Черноморский, ул.Советская",{"$nulls":7},"Администрация Черноморского городского поселения    ","Закон Краснодарского края от 13.11.2006г. № 1112-КЗ \"О разграничении имущества, находящегося в собственности муниципального образования Северский район, между вновь образованными городскими, сельскими поселениями и муниципальным образованием Северский район, в состав которого они входят\""]
[287,"Уличное освещение протяженность 4460 м","п.Черноморский",null,4460,null,"23:26:0000000:4132",{"$nulls":3},"Администрация Черноморского городского поселения    ","Закон Краснодарского края от 13.11.2006г. № 1112-КЗ \"О разграничении имущества, находящегося в собственности муниципального образования Северский район, между вновь образованными городскими, сельскими поселениями и муниципальным образованием Северский район, в состав которого они входят\""]
[289,"Трансформаторная подстанция № 526","п.Черноморский, ул.Юбилейная",{"$nulls":7},"Администрация Черноморского городского поселения    ","Закон Краснодарского края от 13.11.2006г. № 1112-КЗ \"О разграничении имущества, находящегося в собственности муниципального образования Северский район, между вновь образованными городскими, сельскими поселениями и муниципальным образованием Северский район, в состав которого они входят\""]
[290,"Трансформаторная подстанция № 527","п.Черноморский, ул.Шевченко",{"$nulls":4}," ",null,null,"Администрация Черноморского городского поселения    ","Закон Краснодарского края от 13.11.2006г. № 1112-КЗ \"О разграничении имущества, находящегося в собственности муниципального образования Северский район, между вновь образованными городскими, сельскими поселениями и муниципальным образованием Северский район, в состав которого они входят\""]
[291,"Уличное освещение протяженность 2270 м","п.Черноморский",null,2270,null,"23:26:0000000:4131",{"$nulls":3},"Администрация Черноморского городского поселения    ","Закон Краснодарского края от 13.11.2006г. № 1112-КЗ \"О разграничении имущества, находящегося в собственности муниципального образования Северский район, между вновь образованными городскими, сельскими поселениями и муниципальным образованием Северский район, в состав которого они входят\""]
[293,"Трансформаторная подстанция № 596","п.Черноморский, ул.Новороссийская",{"$nulls":7},"Администрация Черноморского городского поселения    ","Закон Краснодарского края от 13.11.2006г. № 1112-КЗ \"О разграничении имущества, находящегося в собственности муниципального образования Северский район, между вновь образованными городскими, сельскими поселениями и муниципальным образованием Северский район, в состав которого они входят\""]
[294,"Уличное освещение протяженность 4820 м","п.Черноморский",null,4820,{"$nulls":5},"Администрация Черноморского городского поселения    ","Закон Краснодарского края от 13.11.2006г. № 1112-КЗ \"О разграничении имущества, находящегося в собственности муниципального образования Северский район, между вновь образованными городскими, сельскими поселениями и муниципальным образованием Северский район, в состав которого они входят\""]
[296,"Трансформаторная подстанция № 529","п.Черноморский, станция Хабль",{"$nulls":7},"Администрация Черноморского городского поселения    ","Закон Краснодарского края от 13.11.2006г. № 1112-КЗ \"О разграничении имущества, находящегося в собственности муниципального образования Северский район, между вновь образованными городскими, сельскими поселениями и муниципальным образованием Северский район, в состав которого они входят\""]
[297,"Трансформаторная подстанция № 553","п.Черноморский, ул.Толстого, 4",null,1.2,null,"23:26:1103022:551",{"$nulls":3},"Администрация Черноморского городского поселения    ","Закон Краснодарского края от 13.11.2006г. № 1112-КЗ \"О разграничении имущества, находящегося в собственности муниципального образования Северский район, между вновь образованными городскими, сельскими поселениями и муниципальным образованием Северский район, в состав которого они входят\""]
[298,"Уличное освещение протяженность 180 м","п.Черноморский",null,180,{"$nulls":5},"Администрация Черноморского городского поселения    ","Закон Краснодарского края от 13.11.2006г. № 1112-КЗ \"О разграничении имущества, находящегося в собственности муниципального образования Северский район, между вновь образованными городскими, сельскими поселениями и муниципальным образованием Северский район, в состав которого они входят\""]
[300,"Трансформаторная подстанция № 539","п.Черноморский, мкр.Солнечный",null,14.4,null,"23:26:1103020:47",{"$nulls":3},"Администрация Черноморского городского поселения    ","Закон Краснодарского края от 13.11.2006г. № 1112-КЗ \"О разграничении имущества, находящегося в собственности муниципального образования Северский район, между вновь образованными городскими, сельскими поселениями и муниципальным образованием Северский район, в состав которого они входят\""]
[301,"Уличное освещение протяженность 180 м","п.Черноморский",null,180,null,"23:26:0000000:4150",{"$nulls":3},"Администрация Черноморского городского поселения    ","Закон Краснодарского края от 13.11.2006г. № 1112-КЗ \"О разграничении имущества, находящегося в собственности муниципального образования Северский район, между вновь образованными городскими, сельскими поселениями и муниципальным образованием Северский район, в состав которого они входят\""]
[303,"Трансформаторная подстанция № 560","п.Черноморский, ул.Юбилейная, 6",null,5.6,null,"23:26:1103033:278",{"$nulls":3},"Администрация Черноморского городского поселения    ","Закон Краснодарского края от 13.11.2006г. № 1112-КЗ \"О разграничении имущества, находящегося в собственности муниципального образования Северский район, между вновь образованными городскими, сельскими поселениями и муниципальным образованием Северский район, в состав которого они входят\""]
[304,"Трансформаторная подстанция № 517","п.Черноморский, ул.Юбилейная, 75",{"$nulls":7},"Администрация Черноморского городского поселения    ","Закон Краснодарского края от 13.11.2006г. № 1112-КЗ \"О разграничении имущества, находящегося в собственности муниципального образования Северский район, между вновь образованными городскими, сельскими поселениями и муниципальным образованием Северский район, в состав которого они входят\""]
[305,"Уличное освещение протяженность 5950 м","п.Черноморский",null,5950,null,"23:26:0000000:4153",{"$nulls":3},"Администрация Черноморского городского поселения    ","Закон Краснодарского края от 13.11.2006г. № 1112-КЗ \"О разграничении имущества, находящегося в собственности муниципального образования Северский район, между вновь образованными городскими, сельскими поселениями и муниципальным образованием Северский район, в состав которого они входят\""]
[307,"Трансформаторная подстанция № 525","п.Черноморский, ул.Юбилейная, 45",{"$nulls":7},"Администрация Черноморского городского поселения    ","Закон Краснодарского края от 13.11.2006г. № 1112-КЗ \"О разграничении имущества, находящегося в собственности муниципального образования Северский район, между вновь образованными городскими, сельскими поселениями и муниципальным образованием Северский район, в состав которого они входят\""]
[308,"Уличное освещение протяженность 6620 м","п.Черноморский",null,6620,null,"23:26:0000000:4147",{"$nulls":3},"Администрация Черноморского городского поселения    ","Закон Краснодарского края от 13.11.2006г. № 1112-КЗ \"О разграничении имущества, находящегося в собственности муниципального образования Северский район, между вновь образованными городскими, сельскими поселениями и муниципальным образованием Северский район, в состав которого они входят\""]
[310,"Трансформаторная подстанция № 574","х.Карский",{"$nulls":3},"13.11.2006",{"$nulls":3},"Администрация Черноморского городского поселения    ","Закон Краснодарского края от 13.11.2006г. № 1112-КЗ \"О разграничении имущества, находящегося в собственности муниципального образования Северский район, между вновь образованными городскими, сельскими поселениями и муниципальным образованием Северский район, в состав которого они входят\""]
["317а","Трансформатор ТМ (539,560,578)","п. Черноморский мкр. Солнечный, ул. Юбилейная, ул. Солнечная",{"$nulls":3},"30.12.2008",{"$nulls":3},"Администрация Черноморского городского поселения    ","Согласно приказу Минфина РФ от 30 декабря 2008 г.  №148н \"Об утверждении  Инструкции по бюджетному учету\" в  реестр муниципальной казны  было включено следующее имущество."]
[318,"Водопровод протяженность 500 м","п.Черноморский, ул.Шевченко",null,500,null,"23:26:0000000:3855",{"$nulls":3},"Администрация Черноморского городского поселения    ","Закон Краснодарского края от 13.11.2006г. № 1112-КЗ \"О разграничении имущества, находящегося в собственности муниципального образования Северский район, между вновь образованными городскими, сельскими поселениями и муниципальным образованием Северский район, в состав которого они входят\""]
[319,"Водопровод протяженность 500 м","п.Черноморский, ул.Молодежная",null,500,null,"23:26:0000000:3907",{"$nulls":3},"Администрация Черноморского городского поселения    ","Закон Краснодарского края от 13.11.2006г. № 1112-КЗ \"О разграничении имущества, находящегося в собственности муниципального образования Северский район, между вновь образованными городскими, сельскими поселениями и муниципальным образованием Северский район, в состав которого они входят\""]
[320,"Водопровод протяженность 500 м","п.Черноморский, ул.Солнечная",null,500,null,"23:26:0000000:3906",{"$nulls":3},"Администрация Черноморского городского поселения    ","Закон Краснодарского края от 13.11.2006г. № 1112-КЗ \"О разграничении имущества, находящегося в собственности муниципального образования Северский район, между вновь образованными городскими, сельскими поселениями и муниципальным образованием Северский район, в состав которого они входят\""]
[321,"Водопровод протяженность 1234 м","п.Черноморский, ул.Лермонтова",null,1234,null,"23:26:0000000:3826",{"$nulls":3},"Администрация Черноморского городского поселения    ","Закон Краснодарского края от 13.11.2006г. № 1112-КЗ \"О разграничении имущества, находящегося в собственности муниципального образования Северский район, между вновь образованными городскими, сельскими поселениями и муниципальным образованием Северский район, в состав которого они входят\""]
[322,"Водопровод протяженность 1234 м","п.Черноморский, просп.Российский",null,1234,null,"23:26:0000000:3825",{"$nulls":3},"Администрация Черноморского городского поселения    ","Закон Краснодарского края от 13.11.2006г. № 1112-КЗ \"О разграничении имущества, находящегося в собственности муниципального образования Северский район, между вновь образованными городскими, сельскими поселениями и муниципальным образованием Северский район, в состав которого они входят\""]
[323,"Водопровод протяженность 1234 м","п.Черноморский, ул.Кубанская",null,1234,null,"23:26:0000000:3832",{"$nulls":3},"Администрация Черноморского городского поселения    ","Закон Краснодарского края от 13.11.2006г. № 1112-КЗ \"О разграничении имущества, находящегося в собственности муниципального образования Северский район, между вновь образованными городскими, сельскими поселениями и муниципальным образованием Северский район, в состав которого они входят\""]
[324,"Канализационные сети протяженность 1234 м","п.Черноморский, ул.Лермонтова",1989,1234,null,"23:26:0000000:3833",{"v":1,"d":"1.00"},{"v":1,"d":"1.00"},{"v":0,"d":"0.00"},"Администрация Черноморского городского поселения    ","Закон Краснодарского края от 13.11.2006г. № 1112-КЗ \"О разграничении имущества, находящегося в собственности муниципального образования Северский район, между вновь образованными городскими, сельскими поселениями и муниципальным образованием Северский район, в состав которого они входят\""]
[325,"Канализационные сети протяженность 1234 м","п.Черноморский, просп.Российский",1989,1234,null,"23:26:0000000:3834",{"v":1,"d":"1.00"},{"v":1,"d":"1.00"},{"v":0,"d":"0.00"},"Администрация Черноморского городского поселения    ","Закон Краснодарского края от 13.11.2006г. № 1112-КЗ \"О разграничении имущества, находящегося в собственности муниципального образования Северский район, между вновь образованными городскими, сельскими поселениями и муниципальным образованием Северский район, в состав которого они входят\""]
[326,"Канализационные сети протяженность 1234 м","п.Черноморский, ул.Кубанская",1989,1234,null,"23:26:0000000:3835",{"v":1,"d":"1.00"},{"v":1,"d":"1.00"},{"v":0,"d":"0.00"},"Администрация Черноморского городского поселения    ","Закон Краснодарского края от 13.11.2006г. № 1112-КЗ \"О разграничении имущества, находящегося в собственности муниципального образования Северский район, между вновь образованными городскими, сельскими поселениями и муниципальным образованием Северский район, в состав которого они входят\""]
[328,"Тротуар протяженность 3,687 км","п.Черноморский, ул.Юбилейная",null,3.687,{"$nulls":5},"Администрация Черноморского городского поселения    ","Закон Краснодарского края от 13.11.2006г. № 1112-КЗ \"О разграничении имущества, находящегося в собственности муниципального образования Северский район, между вновь образованными городскими, сельскими поселениями и муниципальным образованием Северский район, в состав которого они входят\""]
[329,"Тротуар протяженность 1,95 км","п.Черноморский, ул.Ленина",null,1.95,{"$nulls":5},"Администрация Черноморского городского поселения    ","Закон Краснодарского края от 13.11.2006г. № 1112-КЗ \"О разграничении имущества, находящегося в собственности муниципального образования Северский район, между вновь образованными городскими, сельскими поселениями и муниципальным образованием Северский район, в состав которого они входят\""]
[330,"Тротуар протяженность 0,8 км","п.Черноморский - п.Октябрьский",null,0.8,{"$nulls":5},"Администрация Черноморского городского поселения    ","Закон Краснодарского края от 13.11.2006г. № 1112-КЗ \"О разграничении имущества, находящегося в собственности муниципального образования Северский район, между вновь образованными городскими, сельскими поселениями и муниципальным образованием Северский район, в состав которого они входят\""]
[331,"Тротуар протяженность 0,802 км","п.Черноморский, ул.Октябрьская",null,0.802,{"$nulls":5},"Администрация Черноморского городского поселения    ","Закон Краснодарского края от 13.11.2006г. № 1112-КЗ \"О разграничении имущества, находящегося в собственности муниципального образования Северский район, между вновь образованными городскими, сельскими поселениями и муниципальным образованием Северский район, в состав которого они входят\""]
[332,"Тротуар протяженность 1,527 км","п.Черноморский, ул.Советская",null,1.527,{"$nulls":5},"Администрация Черноморского городского поселения    ","Закон Краснодарского края от 13.11.2006г. № 1112-КЗ \"О разграничении имущества, находящегося в собственности муниципального образования Северский район, между вновь образованными городскими, сельскими поселениями и муниципальным образованием Северский район, в состав которого они входят\""]
[333,"Тротуар протяженность 1,644 км","п.Черноморский, ул.Крупской",null,1.644,{"$nulls":5},"Администрация Черноморского городского поселения    ","Закон Краснодарского края от 13.11.2006г. № 1112-КЗ \"О разграничении имущества, находящегося в собственности муниципального образования Северский район, между вновь образованными городскими, сельскими поселениями и муниципальным образованием Северский район, в состав которого они входят\""]
[335,"Тротуар протяженность 2,116 км","п.Черноморский, ул.Суворова",null,2.116,{"$nulls":5},"Администрация Черноморского городского поселения    ","Закон Краснодарского края от 13.11.2006г. № 1112-КЗ \"О разграничении имущества, находящегося в собственности муниципального образования Северский район, между вновь образованными городскими, сельскими поселениями и муниципальным образованием Северский район, в состав которого они входят\""]
[336,"Тротуар протяженность 1,659 км","п.Черноморский, ул.Мира",null,1.659,{"$nulls":5},"Администрация Черноморского городского поселения    ","Закон Краснодарского края от 13.11.2006г. № 1112-КЗ \"О разграничении имущества, находящегося в собственности муниципального образования Северский район, между вновь образованными городскими, сельскими поселениями и муниципальным образованием Северский район, в состав которого они входят\""]
[337,"Тротуар протяженность 1,368 км","п.Черноморский, Дом культуры нефтяников",null,"1,368 ",{"$nulls":5},"Администрация Черноморского городского поселения    ","Закон Краснодарского края от 13.11.2006г. № 1112-КЗ \"О разграничении имущества, находящегося в собственности муниципального образования Северский район, между вновь образованными городскими, сельскими поселениями и муниципальным образованием Северский район, в состав которого они входят\""]
[338,"Дорога асфальт протяженность 1,493 км","п.Черноморский, 34-й квартал",null,1.493,null,"23:26:0000000:3635",{"$nulls":3},"Администрация Черноморского городского поселения    ","Закон Краснодарского края от 13.11.2006г. № 1112-КЗ \"О разграничении имущества, находящегося в собственности муниципального образования Северский район, между вновь образованными городскими, сельскими поселениями и муниципальным образованием Северский район, в состав которого они входят\""]
[339,"Дорога асфальт протяженность 1,2 км","п.Черноморский, 34-й квартал",null,1.2,null,"23:00:0000000:1120",{"$nulls":3},"Администрация Черноморского городского поселения    ","Закон Краснодарского края от 13.11.2006г. № 1112-КЗ \"О разграничении имущества, находящегося в собственности муниципального образования Северский район, между вновь образованными городскими, сельскими поселениями и муниципальным образованием Северский район, в состав которого они входят\""]
[340,"Дорога асфальт протяженность 0,528 км","п.Черноморский, ул.Новороссийская",null,0.528,null,"23:26:0000000:3640",{"$nulls":3},"Администрация Черноморского городского поселения    ","Закон Краснодарского края от 13.11.2006г. № 1112-КЗ \"О разграничении имущества, находящегося в собственности муниципального образования Северский район, между вновь образованными городскими, сельскими поселениями и муниципальным образованием Северский район, в состав которого они входят\""]
[341,"Дорога асфальт протяженность 0,042 км","п.Черноморский, ул.Суворова",null,0.042,null,"23:26:0000000:3634",{"$nulls":3},"Администрация Черноморского городского поселения    ","Закон Краснодарского края от 13.11.2006г. № 1112-КЗ \"О разграничении имущества, находящегося в собственности муниципального образования Северский район, между вновь образованными городскими, сельскими поселениями и муниципальным образованием Северский район, в состав которого они входят\""]
[342,"Дорога асфальт протяженность 0,192 км","п.Черноморский, ул.Советская",null,0.192,null,"23:26:0000000:3633",{"$nulls":3},"Администрация Черноморского городского поселения    ","Закон Краснодарского края от 13.11.2006г. № 1112-КЗ \"О разграничении имущества, находящегося в собственности муниципального образования Северский район, между вновь образованными городскими, сельскими поселениями и муниципальным образованием Северский район, в состав которого они входят\""]
[343,"Дорога асфальт протяженность 0,1 км","п.Черноморский, ул.Новая",null,"0,1 ",null,"23:26:0000000:3620",{"$nulls":3},"Администрация Черноморского городского поселения    ","Закон Краснодарского края от 13.11.2006г. № 1112-КЗ \"О разграничении имущества, находящегося в собственности муниципального образования Северский район, между вновь образованными городскими, сельскими поселениями и муниципальным образованием Северский район, в состав которого они входят\""]
[344,"Дорога асфальт протяженность 0,183 км","п.Черноморский, ул.Космонавтов",null,0.183,null,"23:26:0000000:3632",{"$nulls":3},"Администрация Черноморского городского поселения    ","Закон Краснодарского края от 13.11.2006г. № 1112-КЗ \"О разграничении имущества, находящегося в собственности муниципального образования Северский район, между вновь образованными городскими, сельскими поселениями и муниципальным образованием Северский район, в состав которого они входят\""]
[345,"Дорога асфальт протяженность 0,075 км","п.Черноморский, ул.Октябрьская",null,0.075,null,"23:26:0000000:3621",{"$nulls":3},"Администрация Черноморского городского поселения    ","Закон Краснодарского края от 13.11.2006г. № 1112-КЗ \"О разграничении имущества, находящегося в собственности муниципального образования Северский район, между вновь образованными городскими, сельскими поселениями и муниципальным образованием Северский район, в состав которого они входят\""]
[346,"Дорога афальт протяженность 0,114 км","п.Черноморский, ул.Октябрьская",null,"0.114 ",null,"23:26:0000000:3753",{"$nulls":3},"Администрация Черноморского городского поселения    ","Закон Краснодарского края от 13.11.2006г. № 1112-КЗ \"О разграничении имущества, находящегося в собственности муниципального образования Северский район, между вновь образованными городскими, сельскими поселениями и муниципальным образованием Северский район, в состав которого они входят\""]
[347,"Дорога асфальт протяженность 0,086 км","п.Черноморский, ул.Крупской",null,0.086,null,"23:26:0000000:3631",{"$nulls":3},"Администрация Черноморского городского поселения    ","Закон Краснодарского края от 13.11.2006г. № 1112-КЗ \"О разграничении имущества, находящегося в собственности муниципального образования Северский район, между вновь образованными городскими, сельскими поселениями и муниципальным образованием Северский район, в состав которого они входят\""]
[348,"Дорога асфальт пртяженность 0,248 км","п.Черноморский, 32-й квартал",null,0.248,null,"23:26:0000000:3740",{"$nulls":3},"Администрация Черноморского городского поселения    ","Закон Краснодарского края от 13.11.2006г. № 1112-КЗ \"О разграничении имущества, находящегося в собственности муниципального образования Северский район, между вновь образованными городскими, сельскими поселениями и муниципальным образованием Северский район, в состав которого они входят\""]
[349,"Дорога асфальт протяженность 0,078 км","п.Черноморский, ул.Кирова",null,0.078,null,"23:26:0000000:3641",{"$nulls":3},"Администрация Черноморского городского поселения    ","Закон Краснодарского края от 13.11.2006г. № 1112-КЗ \"О разграничении имущества, находящегося в собственности муниципального образования Северский район, между вновь образованными городскими, сельскими поселениями и муниципальным образованием Северский район, в состав которого они входят\""]
[350,"Дорога асфальт протяженность 0,133 км","п.Черноморский, ул.Ленина",null,0.133,null,"23:26:0000000:3628",{"$nulls":3},"Администрация Черноморского городского поселения    ","Закон Краснодарского края от 13.11.2006г. № 1112-КЗ \"О разграничении имущества, находящегося в собственности муниципального образования Северский район, между вновь образованными городскими, сельскими поселениями и муниципальным образованием Северский район, в состав которого они входят\""]
[351,"Дорога асфальт протяженность 0,016 км","п.Черноморский, ул.Дзержинского",null,"0,016 ",null,"23:26:0000000:3638",{"$nulls":3},"Администрация Черноморского городского поселения    ","Закон Краснодарского края от 13.11.2006г. № 1112-КЗ \"О разграничении имущества, находящегося в собственности муниципального образования Северский район, между вновь образованными городскими, сельскими поселениями и муниципальным образованием Северский район, в состав которого они входят\""]
[352,"Дорога асфальт протяженность 0,33 км","п.Черноморский, ул.Дзержинского",null,0.33,{"$nulls":5},"Администрация Черноморского городского поселения    ","Закон Краснодарского края от 13.11.2006г. № 1112-КЗ \"О разграничении имущества, находящегося в собственности муниципального образования Северский район, между вновь образованными городскими, сельскими поселениями и муниципальным образованием Северский район, в состав которого они входят\""]
[353,"Дорога асфальт протяженность 0,967 км","п.Черноморский, ул.Советская",null,0.967,null,"23:26:0000000:3642",{"$nulls":3},"Администрация Черноморского городского поселения    ","Закон Краснодарского края от 13.11.2006г. № 1112-КЗ \"О разграничении имущества, находящегося в собственности муниципального образования Северский район, между вновь образованными городскими, сельскими поселениями и муниципальным образованием Северский район, в состав которого они входят\""]
[354,"Дорога асфальт протяженность 0,064 км","п.Черноморский, СОШ № 21",null,0.064,null,"23:26:0000000:3630",{"$nulls":3},"Администрация Черноморского городского поселения    ","Закон Краснодарского края от 13.11.2006г. № 1112-КЗ \"О разграничении имущества, находящегося в собственности муниципального образования Северский район, между вновь образованными городскими, сельскими поселениями и муниципальным образованием Северский район, в состав которого они входят\""]
[355,"Дорога протяженность 0,737 км","п.Черноморский, ул.Дзержинского",null,0.737,null,"23:26:0000000:3736",{"$nulls":3},"Администрация Черноморского городского поселения    ","Закон Краснодарского края от 13.11.2006г. № 1112-КЗ \"О разграничении имущества, находящегося в собственности муниципального образования Северский район, между вновь образованными городскими, сельскими поселениями и муниципальным образованием Северский район, в состав которого они входят\""]
[356,"Дорога асфальт протяженность 0,28 км","п.Черноморский, ул.Гоголя",null,0.28,null,"23:26:0000000:3636",{"$nulls":3},"Администрация Черноморского городского поселения    ","Закон Краснодарского края от 13.11.2006г. № 1112-КЗ \"О разграничении имущества, находящегося в собственности муниципального образования Северский район, между вновь образованными городскими, сельскими поселениями и муниципальным образованием Северский район, в состав которого они входят\""]
[357,"Дорога асфальт протяженность 0,024 км","п.Черноморский, ул.Кавказская",null,0.024,null,"23:26:0000000:3643",{"$nulls":3},"Администрация Черноморского городского поселения    ","Закон Краснодарского края от 13.11.2006г. № 1112-КЗ \"О разграничении имущества, находящегося в собственности муниципального образования Северский район, между вновь образованными городскими, сельскими поселениями и муниципальным образованием Северский район, в состав которого они входят\""]
[358,"Дорога асфальт протяженность 0,508 км","п.Черноморский, ул.Октябрьская",null,0.508,null,"23:26:0000000:3617",{"$nulls":3},"Администрация Черноморского городского поселения    ","Закон Краснодарского края от 13.11.2006г. № 1112-КЗ \"О разграничении имущества, находящегося в собственности муниципального образования Северский район, между вновь образованными городскими, сельскими поселениями и муниципальным образованием Северский район, в состав которого они входят\""]
[359,"Дорога асфальт протяженность 0,442 км","п.Черноморский, ул.Кирова",null,0.442,null,"23:26:0000000:3618",{"$nulls":3},"Администрация Черноморского городского поселения    ","Закон Краснодарского края от 13.11.2006г. № 1112-КЗ \"О разграничении имущества, находящегося в собственности муниципального образования Северский район, между вновь образованными городскими, сельскими поселениями и муниципальным образованием Северский район, в состав которого они входят\""]
[360,"Дорога асфальт протяженность 0,83 км","п.Черноморский, ул.Суворова",null,"0,83 ",null,"23:26:0000000:3644",{"$nulls":3},"Администрация Черноморского городского поселения    ","Закон Краснодарского края от 13.11.2006г. № 1112-КЗ \"О разграничении имущества, находящегося в собственности муниципального образования Северский район, между вновь образованными городскими, сельскими поселениями и муниципальным образованием Северский район, в состав которого они входят\""]
[361,"Дорога асфальт протяженность 0,878 км","п.Черноморский, ул.Мира",null,0.878,null,"23:26:0000000:3639",{"$nulls":3},"Администрация Черноморского городского поселения    ","Закон Краснодарского края от 13.11.2006г. № 1112-КЗ \"О разграничении имущества, находящегося в собственности муниципального образования Северский район, между вновь образованными городскими, сельскими поселениями и муниципальным образованием Северский район, в состав которого они входят\""]
[362,"Дорога асфальт протяженность 0,602 км","п.Черноморский, ул.Калинина",null,0.602,null,"23:26:0000000:3619",{"$nulls":3},"Администрация Черноморского городского поселения    ","Закон Краснодарского края от 13.11.2006г. № 1112-КЗ \"О разграничении имущества, находящегося в собственности муниципального образования Северский район, между вновь образованными городскими, сельскими поселениями и муниципальным образованием Северский район, в состав которого они входят\""]
[363,"Дорога асфальт протяженность 0,078 км","п.Черноморский, ул.Тельмана",null,0.078,null,"23:26:0000000:3664",{"$nulls":3},"Администрация Черноморского городского поселения    ","Закон Краснодарского края от 13.11.2006г. № 1112-КЗ \"О разграничении имущества, находящегося в собственности муниципального образования Северский район, между вновь образованными городскими, сельскими поселениями и муниципальным образованием Северский район, в состав которого они входят\""]
[364,"Дорога асфальт протяженность 0,66 км","п.Черноморский, ул.Крупской",null,0.66,null,"23:26:0000000:3668",{"$nulls":3},"Администрация Черноморского городского поселения    ","Закон Краснодарского края от 13.11.2006г. № 1112-КЗ \"О разграничении имущества, находящегося в собственности муниципального образования Северский район, между вновь образованными городскими, сельскими поселениями и муниципальным образованием Северский район, в состав которого они входят\""]
[365,"Дорога асфальт протяженность 0,55 км","п.Черноморский, ул.Ленина",null,0.55,null,"23:26:0000000:3662",{"$nulls":3},"Администрация Черноморского городского поселения    ","Закон Краснодарского края от 13.11.2006г. № 1112-КЗ \"О разграничении имущества, находящегося в собственности муниципального образования Северский район, между вновь образованными городскими, сельскими поселениями и муниципальным образованием Северский район, в состав которого они входят\""]
[366,"Дорога асфальт протженность 0,221 км","п.Черноморский, ул.Гоголя, 15",null,0.221,null,"23:26:1103027:333",{"$nulls":3},"Администрация Черноморского городского поселения    ","Закон Краснодарского края от 13.11.2006г. № 1112-КЗ \"О разграничении имущества, находящегося в собственности муниципального образования Северский район, между вновь образованными городскими, сельскими поселениями и муниципальным образованием Северский район, в состав которого они входят\""]
[367,"Проезд внутридворовой 0,515 км","п.Черноморский, ул.Гоголя",null,0.515,{"$nulls":5},"Администрация Черноморского городского поселения    ","Закон Краснодарского края от 13.11.2006г. № 1112-КЗ \"О разграничении имущества, находящегося в собственности муниципального образования Северский район, между вновь образованными городскими, сельскими поселениями и муниципальным образованием Северский район, в состав которого они входят\""]
[368,"Дорога гравий протяженность 0,158 км","п.Черноморкий, ул.Жданова",null,0.158,null,"23:26:0000000:3974",{"$nulls":3},"Администрация Черноморского городского поселения    ","Закон Краснодарского края от 13.11.2006г. № 1112-КЗ \"О разграничении имущества, находящегося в собственности муниципального образования Северский район, между вновь образованными городскими, сельскими поселениями и муниципальным образованием Северский район, в состав которого они входят\""]
[369,"Дорога асфальт пртотяженность 0,36 км","п.Черноморский, ул.Пушкина",null,0.36,null,"23:26:0000000:3667",{"$nulls":3},"Администрация Черноморского городского поселения    ","Закон Краснодарского края от 13.11.2006г. № 1112-КЗ \"О разграничении имущества, находящегося в собственности муниципального образования Северский район, между вновь образованными городскими, сельскими поселениями и муниципальным образованием Северский район, в состав которого они входят\""]
[370,"Дорога асфальт протяженность 0,18 км","п.Черноморский, ул.Горького",null,0.18,null,"23:26:0000000:3693",{"$nulls":3},"Администрация Черноморского городского поселения    ","Закон Краснодарского края от 13.11.2006г. № 1112-КЗ \"О разграничении имущества, находящегося в собственности муниципального образования Северский район, между вновь образованными городскими, сельскими поселениями и муниципальным образованием Северский район, в состав которого они входят\""]
[371,"Дорога афальт протяженность 0,36 км","п.Черноморский, ул.Толстого",null,0.36,null,"23:26:0000000:3663",{"$nulls":3},"Администрация Черноморского городского поселения    ","Закон Краснодарского края от 13.11.2006г. № 1112-КЗ \"О разграничении имущества, находящегося в собственности муниципального образования Северский район, между вновь образованными городскими, сельскими поселениями и муниципальным образованием Северский район, в состав которого они входят\""]
[372,"Дорога гравий протяженность 0,674 км","п.Черноморский, ул.Белинского",null,0.674,null,"23:26:0000000:3979",{"$nulls":3},"Администрация Черноморского городского поселения    ","Закон Краснодарского края от 13.11.2006г. № 1112-КЗ \"О разграничении имущества, находящегося в собственности муниципального образования Северский район, между вновь образованными городскими, сельскими поселениями и муниципальным образованием Северский район, в состав которого они входят\""]
[373,"Дорога гравий протяженность 0,674 км","п.Черноморский, ул.Фурманова",null,0.674,null,"23:26:0000000:3981",{"$nulls":3},"Администрация Черноморского городского поселения    ","Закон Краснодарского края от 13.11.2006г. № 1112-КЗ \"О разграничении имущества, находящегося в собственности муниципального образования Северский район, между вновь образованными городскими, сельскими поселениями и муниципальным образованием Северский район, в состав которого они входят\""]
[374,"Дорога гравий протяженность 0,388 км","п.Черноморский, ул.Чапаева",null,0.388,null,"23:26:0000000:3980",{"$nulls":3},"Администрация Черноморского городского поселения    ","Закон Краснодарского края от 13.11.2006г. № 1112-КЗ \"О разграничении имущества, находящегося в собственности муниципального образования Северский район, между вновь образованными городскими, сельскими поселениями и муниципальным образованием Северский район, в состав которого они входят\""]
[375,"Дорога гравий протяженность 0,087 км","п.Черноморский, ул.Калинина",null,"0,087 км",null,"23:26:0000000:3975",{"$nulls":3},"Администрация Черноморского городского поселения    ","Закон Краснодарского края от 13.11.2006г. № 1112-КЗ \"О разграничении имущества, находящегося в собственности муниципального образования Северский район, между вновь образованными городскими, сельскими поселениями и муниципальным образованием Северский район, в состав которого они входят\""]
[376,"Дорога гравий протяженность 0,46 км","п.Черноморский, ул.Тельмана",null,"0,46 км",null,"23:26:0000000:3978",{"$nulls":3},"Администрация Черноморского городского поселения    ","Закон Краснодарского края от 13.11.2006г. № 1112-КЗ \"О разграничении имущества, находящегося в собственности муниципального образования Северский район, между вновь образованными городскими, сельскими поселениями и муниципальным образованием Северский район, в состав которого они входят\""]
[377,"Дорога гравий протяженность 0,426 км","п.Черноморский, ул.Крупской",null,"0,426 км",null,"23:26:0000000:3976",{"$nulls":3},"Администрация Черноморского городского поселения    ","Закон Краснодарского края от 13.11.2006г. № 1112-КЗ \"О разграничении имущества, находящегося в собственности муниципального образования Северский район, между вновь образованными городскими, сельскими поселениями и муниципальным образованием Северский район, в состав которого они входят\""]
[378,"Дорога подъездная к железобетонному резервуару площадь 1033 кв.м.","п.Черноморский, Крюковский водозабор",null,0.344,null,"23:26:0000000:3774",{"v":21844,"d":"21,844.00"},{"v":14064.16,"d":"14,064.16"},{"v":7779.84,"d":"7,779.84"},"Администрация Черноморского городского поселения    ","Закон Краснодарского края от 13.11.2006г. № 1112-КЗ \"О разграничении имущества, находящегося в собственности муниципального образования Северский район, между вновь образованными городскими, сельскими поселениями и муниципальным образованием Северский район, в состав которого они входят\""]
[379,"Дорога подъездная к железобетонному резервуару площадь 1400 кв.м.","п.Черноморский, Крюковский водозабор",null,0.466,null,"23:26:0000000:3773",{"v":83893,"d":"83,893.00"},{"v":54017.28,"d":"54,017.28"},{"v":29875.72,"d":"29,875.72"},"Администрация Черноморского городского поселения    ","Закон Краснодарского края от 13.11.2006г. № 1112-КЗ \"О разграничении имущества, находящегося в собственности муниципального образования Северский район, между вновь образованными городскими, сельскими поселениями и муниципальным образованием Северский район, в состав которого они входят\""]
[380,"Дорога подъездная к скважине № 12 площадь 15228 кв.м","п.Черноморский, Крюковский водозабор",null,5.076,null,"23:26:0000000:3790",{"v":236841,"d":"236,841.00"},{"v":152497.04,"d":"152,497.04"},{"v":84343.95999999999,"d":"84,343.96"},"Администрация Черноморского городского поселения    ","Закон Краснодарского края от 13.11.2006г. № 1112-КЗ \"О разграничении имущества, находящегося в собственности муниципального образования Северский район, между вновь образованными городскими, сельскими поселениями и муниципальным образованием Северский район, в состав которого они входят\""]
[381,"Дорога гравий протяженность 0,576 км","п.Черноморский (к насосной)",null,0.576,null,"23:26:0000000:3791",{"v":83359,"d":"83,359.00"},{"v":83359,"d":"83,359.00"},{"v":0,"d":"0.00"},"Администрация Черноморского городского поселения    ","Закон Краснодарского края от 13.11.2006г. № 1112-КЗ \"О разграничении имущества, находящегося в собственности муниципального образования Северский район, между вновь образованными городскими, сельскими поселениями и муниципальным образованием Северский район, в состав которого они входят\""]
[382,"Автодорога площадь 502 кв.м","п.Черноморский, ул.Мостовая",null,502,null,"23:26:0000000:3788",{"v":14560,"d":"14,560.00"},{"v":6140.74,"d":"6,140.74"},{"v":8419.26,"d":"8,419.26"},"Администрация Черноморского городского поселения    ","Закон Краснодарского края от 13.11.2006г. № 1112-КЗ \"О разграничении имущества, находящегося в собственности муниципального образования Северский район, между вновь образованными городскими, сельскими поселениями и муниципальным образованием Северский район, в состав которого они входят\""]
[383,"Тротуар протяженность 0,591км","п.Черноморский, ул.Новая, 2",null,0.591,{"$nulls":5},"Администрация Черноморского городского поселения    ","Закон Краснодарского края от 13.11.2006г. № 1112-КЗ \"О разграничении имущества, находящегося в собственности муниципального образования Северский район, между вновь образованными городскими, сельскими поселениями и муниципальным образованием Северский район, в состав которого они входят\""]
[384,"Тротуар протяженность 0,593 км","п.Черноморский, ул.Кавказская, 18",null,0.593,{"$nulls":5},"Администрация Черноморского городского поселения    ","Закон Краснодарского края от 13.11.2006г. № 1112-КЗ \"О разграничении имущества, находящегося в собственности муниципального образования Северский район, между вновь образованными городскими, сельскими поселениями и муниципальным образованием Северский район, в состав которого они входят\""]
[385,"Автодорога площадь 29960 кв.м","от п.Черноморского до Крюковского водозабора",null,"9,986",null,"23:26:0000000:4180",{"$nulls":3},"Администрация Черноморского городского поселения    ","Закон Краснодарского края от 13.11.2006г. № 1112-КЗ \"О разграничении имущества, находящегося в собственности муниципального образования Северский район, между вновь образованными городскими, сельскими поселениями и муниципальным образованием Северский район, в состав которого они входят\""]
[386,"Дорога асфальт протяженность 2,85 км","п.Черноморский, ул.Юбилейная",null,2.85,null,"23:26:0000000:4175",{"$nulls":3},"Администрация Черноморского городского поселения    ","Закон Краснодарского края от 13.11.2006г. № 1112-КЗ \"О разграничении имущества, находящегося в собственности муниципального образования Северский район, между вновь образованными городскими, сельскими поселениями и муниципальным образованием Северский район, в состав которого они входят\""]
[387,"Дорога асфальт протяженность 0,55 км","п.Черноморский, ул.Кавказская",null,0.55,null,"23:26:0000000:3670",{"$nulls":3},"Администрация Черноморского городского поселения    ","Закон Краснодарского края от 13.11.2006г. № 1112-КЗ \"О разграничении имущества, находящегося в собственности муниципального образования Северский район, между вновь образованными городскими, сельскими поселениями и муниципальным образованием Северский район, в состав которого они входят\""]
[388,"Дорога асфальт протяженность 0,6 км","п.Черноморский, ул.Ленина",null,0.6,null,"23:26:0000000:3669",{"$nulls":3},"Администрация Черноморского городского поселения    ","Закон Краснодарского края от 13.11.2006г. № 1112-КЗ \"О разграничении имущества, находящегося в собственности муниципального образования Северский район, между вновь образованными городскими, сельскими поселениями и муниципальным образованием Северский район, в состав которого они входят\""]
[389,"Дорога асфальт протяженность 0,29 км","п.Черноморский, пер.Длинный",null,0.29,null,"23:26:0000000:3678",{"$nulls":3},"Администрация Черноморского городского поселения    ","Закон Краснодарского края от 13.11.2006г. № 1112-КЗ \"О разграничении имущества, находящегося в собственности муниципального образования Северский район, между вновь образованными городскими, сельскими поселениями и муниципальным образованием Северский район, в состав которого они входят\""]
[390,"Дорога асфальт протяженность 0,39","п.Черноморский, ул.Толстого",null,0.39,null,"23:26:0000000:3973",{"$nulls":3},"Администрация Черноморского городского поселения    ","Закон Краснодарского края от 13.11.2006г. № 1112-КЗ \"О разграничении имущества, находящегося в собственности муниципального образования Северский район, между вновь образованными городскими, сельскими поселениями и муниципальным образованием Северский район, в состав которого они входят\""]
[391,"Дорога асфальт протяженность 0,39 км","п.Черноморский, пер.Проездной",null,0.39,null,"23:26:0000000:3699",{"$nulls":3},"Администрация Черноморского городского поселения    ","Закон Краснодарского края от 13.11.2006г. № 1112-КЗ \"О разграничении имущества, находящегося в собственности муниципального образования Северский район, между вновь образованными городскими, сельскими поселениями и муниципальным образованием Северский район, в состав которого они входят\""]
[392,"Дорога асфальт протяженность 0,82","п.Черноморский, ул.Новороссийская",null,0.82,null,"23:26:0000000:3676",{"$nulls":3},"Администрация Черноморского городского поселения    ","Закон Краснодарского края от 13.11.2006г. № 1112-КЗ \"О разграничении имущества, находящегося в собственности муниципального образования Северский район, между вновь образованными городскими, сельскими поселениями и муниципальным образованием Северский район, в состав которого они входят\""]
[393,"Дорога асфальт протяженность 0,5 км","п.Черноморский, ул.Калинина",null,0.5,null,"23:26:0000000:3677",{"$nulls":3},"Администрация Черноморского городского поселения    ","Закон Краснодарского края от 13.11.2006г. № 1112-КЗ \"О разграничении имущества, находящегося в собственности муниципального образования Северский район, между вновь образованными городскими, сельскими поселениями и муниципальным образованием Северский район, в состав которого они входят\""]
[394,"Дорога гравий протяженность 0,41 км","п.Черноморский, ул.Комсомольская",null,0.41,null,"23:26:0000000:3977",{"$nulls":3},"Администрация Черноморского городского поселения    ","Закон Краснодарского края от 13.11.2006г. № 1112-КЗ \"О разграничении имущества, находящегося в собственности муниципального образования Северский район, между вновь образованными городскими, сельскими поселениями и муниципальным образованием Северский район, в состав которого они входят\""]
[395,"Дорога гравий протяженность 0,3 км","п.Черноморский, ул.Луговая",null,0.3,null,"23:26:0000000:3867",{"$nulls":3},"Администрация Черноморского городского поселения    ","Закон Краснодарского края от 13.11.2006г. № 1112-КЗ \"О разграничении имущества, находящегося в собственности муниципального образования Северский район, между вновь образованными городскими, сельскими поселениями и муниципальным образованием Северский район, в состав которого они входят\""]
[396,"Дорога гравий протяженность 0,2 км","п.Черноморский, ул.Ломоносова",null,0.2,null,"23:26:0000000:3863",{"$nulls":3},"Администрация Черноморского городского поселения    ","Закон Краснодарского края от 13.11.2006г. № 1112-КЗ \"О разграничении имущества, находящегося в собственности муниципального образования Северский район, между вновь образованными городскими, сельскими поселениями и муниципальным образованием Северский район, в состав которого они входят\""]
[397,"Дорога гравий протяженность 0,22 км","п.Черноморский, ул.Лобачевского",null,0.22,null,"23:26:0000000:3858",{"$nulls":3},"Администрация Черноморского городского поселения    ","Закон Краснодарского края от 13.11.2006г. № 1112-КЗ \"О разграничении имущества, находящегося в собственности муниципального образования Северский район, между вновь образованными городскими, сельскими поселениями и муниципальным образованием Северский район, в состав которого они входят\""]
[398,"Дорога гравий протяженность 0,46 км","п.Черноморский, ул.Островского",null,0.46,null,"23:26:0000000:3919",{"$nulls":3},"Администрация Черноморского городского поселения    ","Закон Краснодарского края от 13.11.2006г. № 1112-КЗ \"О разграничении имущества, находящегося в собственности муниципального образования Северский район, между вновь образованными городскими, сельскими поселениями и муниципальным образованием Северский район, в состав которого они входят\""]
[399,"Дорога гравий протяженность 0,33 км","п.Черноморский, ул.Пионерская",null,0.33,null,"23:26:0000000:3910",{"$nulls":3},"Администрация Черноморского городского поселения    ","Закон Краснодарского края от 13.11.2006г. № 1112-КЗ \"О разграничении имущества, находящегося в собственности муниципального образования Северский район, между вновь образованными городскими, сельскими поселениями и муниципальным образованием Северский район, в состав которого они входят\""]
[400,"Дорога гравий протяженность 1,02 км","п.Черноморский, ул.Промысловая",null,1.02,null,"23:26:0000000:3865",{"$nulls":3},"Администрация Черноморского городского поселения    ","Закон Краснодарского края от 13.11.2006г. № 1112-КЗ \"О разграничении имущества, находящегося в собственности муниципального образования Северский район, между вновь образованными городскими, сельскими поселениями и муниципальным образованием Северский район, в состав которого они входят\""]
[401,"Дорога гравий протяженность 0,26 км","п.Черноморский, ул.Фрунзе",null,0.26,null,"23:26:0000000:3866",{"$nulls":3},"Администрация Черноморского городского поселения    ","Закон Краснодарского края от 13.11.2006г. № 1112-КЗ \"О разграничении имущества, находящегося в собственности муниципального образования Северский район, между вновь образованными городскими, сельскими поселениями и муниципальным образованием Северский район, в состав которого они входят\""]
[402,"Дорога гравий протяженность 0,32 км","п.Черноморский, ул.Школьная",null,0.32,null,"23:26:0000000:3873",{"$nulls":3},"Администрация Черноморского городского поселения    ","Закон Краснодарского края от 13.11.2006г. № 1112-КЗ \"О разграничении имущества, находящегося в собственности муниципального образования Северский район, между вновь образованными городскими, сельскими поселениями и муниципальным образованием Северский район, в состав которого они входят\""]
[403,"Дорога гравий протяженность 0,83 км","п.Черноморский, ул.Шевченко",null,0.83,null,"23:26:0000000:4177",{"$nulls":3},"Администрация Черноморского городского поселения    ","Закон Краснодарского края от 13.11.2006г. № 1112-КЗ \"О разграничении имущества, находящегося в собственности муниципального образования Северский район, между вновь образованными городскими, сельскими поселениями и муниципальным образованием Северский район, в состав которого они входят\""]
[404,"Дорога гравий протяженность 0,15 км","п.Черноморский, пер.Зеленый",null,0.15,null,"23:26:0000000:3872",{"$nulls":3},"Администрация Черноморского городского поселения    ","Закон Краснодарского края от 13.11.2006г. № 1112-КЗ \"О разграничении имущества, находящегося в собственности муниципального образования Северский район, между вновь образованными городскими, сельскими поселениями и муниципальным образованием Северский район, в состав которого они входят\""]
[405,"Дорога гравий протяженность 0,1 км","п.Черноморский, пер.Короткий",null,0.1,null,"23:26:0000000:3875",{"$nulls":3},"Администрация Черноморского городского поселения    ","Закон Краснодарского края от 13.11.2006г. № 1112-КЗ \"О разграничении имущества, находящегося в собственности муниципального образования Северский район, между вновь образованными городскими, сельскими поселениями и муниципальным образованием Северский район, в состав которого они входят\""]
[406,"Дорога гравий протяженность 0,15 км","п.Черноморский, пер.Народный",null,0.15,null,"23:26:0000000:3917",{"$nulls":3},"Администрация Черноморского городского поселения    ","Закон Краснодарского края от 13.11.2006г. № 1112-КЗ \"О разграничении имущества, находящегося в собственности муниципального образования Северский район, между вновь образованными городскими, сельскими поселениями и муниципальным образованием Северский район, в состав которого они входят\""]
[407,"Дорога гравий протяженность 0,22 км","п.Черноморский, пер.Нефтяников",null,0.22,null,"23:26:0000000:3922",{"$nulls":3},"Администрация Черноморского городского поселения    ","Закон Краснодарского края от 13.11.2006г. № 1112-КЗ \"О разграничении имущества, находящегося в собственности муниципального образования Северский район, между вновь образованными городскими, сельскими поселениями и муниципальным образованием Северский район, в состав которого они входят\""]
[408,"Дорога гравий протяженность 0,2","п.Черноморский, пер.Транспортный",null,0.2,null,"23:26:0000000:3880",{"$nulls":3},"Администрация Черноморского городского поселения    ","Закон Краснодарского края от 13.11.2006г. № 1112-КЗ \"О разграничении имущества, находящегося в собственности муниципального образования Северский район, между вновь образованными городскими, сельскими поселениями и муниципальным образованием Северский район, в состав которого они входят\""]
[409,"Дорога гравий протяженность 0,25 км","п.Черноморский, пер.Южный",null,0.25,null,"23:26:0000000:3879",{"$nulls":3},"Администрация Черноморского городского поселения    ","Закон Краснодарского края от 13.11.2006г. № 1112-КЗ \"О разграничении имущества, находящегося в собственности муниципального образования Северский район, между вновь образованными городскими, сельскими поселениями и муниципальным образованием Северский район, в состав которого они входят\""]
[410,"Дорога гравий протяженность 0,2 км","п.Черноморский, пер.Степной",null,0.2,null,"23:26:0000000:3878",{"$nulls":3},"Администрация Черноморского городского поселения    ","Закон Краснодарского края от 13.11.2006г. № 1112-КЗ \"О разграничении имущества, находящегося в собственности муниципального образования Северский район, между вновь образованными городскими, сельскими поселениями и муниципальным образованием Северский район, в состав которого они входят\""]
[411,"Дорога гравий протяженность 0,45 км","п.Черноморский, ул.Молодежная",null,0.45,null,"23:26:0000000:3920",{"$nulls":3},"Администрация Черноморского городского поселения    ","Закон Краснодарского края от 13.11.2006г. № 1112-КЗ \"О разграничении имущества, находящегося в собственности муниципального образования Северский район, между вновь образованными городскими, сельскими поселениями и муниципальным образованием Северский район, в состав которого они входят\""]
[412,"Дорога гравий протяженность 0,45 км","п.Черноморский, ул.Солнечная",null,0.45,null,"23:26:0000000:3871",{"$nulls":3},"Администрация Черноморского городского поселения    ","Закон Краснодарского края от 13.11.2006г. № 1112-КЗ \"О разграничении имущества, находящегося в собственности муниципального образования Северский район, между вновь образованными городскими, сельскими поселениями и муниципальным образованием Северский район, в состав которого они входят\""]
[413,"Дорога гравий протяженность 0,77 км","п.Черноморский, просп.Российский",null,0.77,null,"23:26:0000000:3874",{"$nulls":3},"Администрация Черноморского городского поселения    ","Закон Краснодарского края от 13.11.2006г. № 1112-КЗ \"О разграничении имущества, находящегося в собственности муниципального образования Северский район, между вновь образованными городскими, сельскими поселениями и муниципальным образованием Северский район, в состав которого они входят\""]
[414,"Дорога гравий протяженность 0,75 км","п.Чернноморский, ул.Лермонтова",null,"0,75 ",null,"23:26:0000000:3870",{"$nulls":3},"Администрация Черноморского городского поселения    ","Закон Краснодарского края от 13.11.2006г. № 1112-КЗ \"О разграничении имущества, находящегося в собственности муниципального образования Северский район, между вновь образованными городскими, сельскими поселениями и муниципальным образованием Северский район, в состав которого они входят\""]
[415,"Дорога гравий протяженность 0,72 км","п.Черноморский, ул.Кубанская",null,0.72,null,"23:26:0000000:3869",{"$nulls":3},"Администрация Черноморского городского поселения    ","Закон Краснодарского края от 13.11.2006г. № 1112-КЗ \"О разграничении имущества, находящегося в собственности муниципального образования Северский район, между вновь образованными городскими, сельскими поселениями и муниципальным образованием Северский район, в состав которого они входят\""]
[416,"Дорога гравий протяженность 0,61 км","п.Черноморский, ул.Приветливая",null,0.61,null,"23:26:0000000:3778",{"$nulls":3},"Администрация Черноморского городского поселения    ","Закон Краснодарского края от 13.11.2006г. № 1112-КЗ \"О разграничении имущества, находящегося в собственности муниципального образования Северский район, между вновь образованными городскими, сельскими поселениями и муниципальным образованием Северский район, в состав которого они входят\""]
[417,"Дорога гравий протяженность 0,56 км","п.Черноморский, ул.Кутузова",null,0.56,null,"23:26:0000000:3779",{"$nulls":3},"Администрация Черноморского городского поселения    ","Закон Краснодарского края от 13.11.2006г. № 1112-КЗ \"О разграничении имущества, находящегося в собственности муниципального образования Северский район, между вновь образованными городскими, сельскими поселениями и муниципальным образованием Северский район, в состав которого они входят\""]
[418,"Дорога гравий протяженность 0,36 км","п.Черноморский, ул.Казачья",null,0.36,null,"23:26:0000000:3777",{"$nulls":3},"Администрация Черноморского городского поселения    ","Закон Краснодарского края от 13.11.2006г. № 1112-КЗ \"О разграничении имущества, находящегося в собственности муниципального образования Северский район, между вновь образованными городскими, сельскими поселениями и муниципальным образованием Северский район, в состав которого они входят\""]
[419,"Дорога гравий протяженность 0,3 км","п.Черноморский, ул.Восточная",null,0.3,null,"23:26:0000000:3818",{"$nulls":3},"Администрация Черноморского городского поселения    ","Закон Краснодарского края от 13.11.2006г. № 1112-КЗ \"О разграничении имущества, находящегося в собственности муниципального образования Северский район, между вновь образованными городскими, сельскими поселениями и муниципальным образованием Северский район, в состав которого они входят\""]
[420,"Дорога гравий протяженность 0,55 км","п.Черноморский, ул.Предгорная",null,0.55,null,"23:26:0000000:3801",{"$nulls":3},"Администрация Черноморского городского поселения    ","Закон Краснодарского края от 13.11.2006г. № 1112-КЗ \"О разграничении имущества, находящегося в собственности муниципального образования Северский район, между вновь образованными городскими, сельскими поселениями и муниципальным образованием Северский район, в состав которого они входят\""]
[421,"Дорога гравий протяженность 1,5 км","п.Октябрьский, ул.Пушкина",null,1.5,null,"23:26:0000000:3817",{"$nulls":3},"Администрация Черноморского городского поселения    ","Закон Краснодарского края от 13.11.2006г. № 1112-КЗ \"О разграничении имущества, находящегося в собственности муниципального образования Северский район, между вновь образованными городскими, сельскими поселениями и муниципальным образованием Северский район, в состав которого они входят\""]
[422,"Дорога гравий протяженность 0,6 км","п.Октябрьский, ул.Горького",null,0.6,null,"23:26:0000000:3816",{"$nulls":3},"Администрация Черноморского городского поселения    ","Закон Краснодарского края от 13.11.2006г. № 1112-КЗ \"О разграничении имущества, находящегося в собственности муниципального образования Северский район, между вновь образованными городскими, сельскими поселениями и муниципальным образованием Северский район, в состав которого они входят\""]
[423,"Дорога гравий протяженность 0,7 км","п.Октябрьский, ул.Пушкина",null,0.7,null,"23:26:0000000:3809",{"$nulls":3},"Администрация Черноморского городского поселения    ","Закон Краснодарского края от 13.11.2006г. № 1112-КЗ \"О разграничении имущества, находящегося в собственности муниципального образования Северский район, между вновь образованными городскими, сельскими поселениями и муниципальным образованием Северский район, в состав которого они входят\""]
[424,"Дорога гравий протяженность 0,86 км","п.Октябрьский, ул.Толстого",null,0.86,null,"23:26:0000000:3804",{"$nulls":3},"Администрация Черноморского городского поселения    ","Закон Краснодарского края от 13.11.2006г. № 1112-КЗ \"О разграничении имущества, находящегося в собственности муниципального образования Северский район, между вновь образованными городскими, сельскими поселениями и муниципальным образованием Северский район, в состав которого они входят\""]
[425,"Дорога гравий протяженность 0,92 км","п.Октябрьский, ул.Чапаева ",null,0.92,null,"23:26:0000000:3803",{"$nulls":3},"Администрация Черноморского городского поселения    ","Закон Краснодарского края от 13.11.2006г. № 1112-КЗ \"О разграничении имущества, находящегося в собственности муниципального образования Северский район, между вновь образованными городскими, сельскими поселениями и муниципальным образованием Северский район, в состав которого они входят\""]
[426,"Дорога гравий протяженность 0,85 км","п.Октябрьский, ул.Фурманова",null,0.85,null,"23260000000:3802",{"$nulls":3},"Администрация Черноморского городского поселения    ","Закон Краснодарского края от 13.11.2006г. № 1112-КЗ \"О разграничении имущества, находящегося в собственности муниципального образования Северский район, между вновь образованными городскими, сельскими поселениями и муниципальным образованием Северский район, в состав которого они входят\""]
[427,"Дорога гравий протяженность 0,54","п.Октябрьский, ул.Западная",null,0.54,null,"23:26:0000000:3808",{"$nulls":3},"Администрация Черноморского городского поселения    ","Закон Краснодарского края от 13.11.2006г. № 1112-КЗ \"О разграничении имущества, находящегося в собственности муниципального образования Северский район, между вновь образованными городскими, сельскими поселениями и муниципальным образованием Северский район, в состав которого они входят\""]
[428,"Дорога гравий протяженность 0,23 км","п.Октябрьский, ул.Садовая",null,0.23,null,"23:26:0000000:3776",{"$nulls":3},"Администрация Черноморского городского поселения    ","Закон Краснодарского края от 13.11.2006г. № 1112-КЗ \"О разграничении имущества, находящегося в собственности муниципального образования Северский район, между вновь образованными городскими, сельскими поселениями и муниципальным образованием Северский район, в состав которого они входят\""]
[429,"Дорога гравий протяженность 0,25 км","п.Октябрьский, ул.Куйбышева",null,0.25,null,"23:26:0000000:3807",{"$nulls":3},"Администрация Черноморского городского поселения    ","Закон Краснодарского края от 13.11.2006г. № 1112-КЗ \"О разграничении имущества, находящегося в собственности муниципального образования Северский район, между вновь образованными городскими, сельскими поселениями и муниципальным образованием Северский район, в состав которого они входят\""]
[430,"Дорога гравий протяженность 0,33 км","п.Октябрьский, ул.Степная",null,"0,33 ",null,"23:26:0000000:3829",{"$nulls":3},"Администрация Черноморского городского поселения    ","Закон Краснодарского края от 13.11.2006г. № 1112-КЗ \"О разграничении имущества, находящегося в собственности муниципального образования Северский район, между вновь образованными городскими, сельскими поселениями и муниципальным образованием Северский район, в состав которого они входят\""]
[431,"Дорога гравий протяженность 0,29 км","п.Октябрьский, ул.Южная",null,0.29,null,"23:26:0000000:3775",{"$nulls":3},"Администрация Черноморского городского поселения    ","Закон Краснодарского края от 13.11.2006г. № 1112-КЗ \"О разграничении имущества, находящегося в собственности муниципального образования Северский район, между вновь образованными городскими, сельскими поселениями и муниципальным образованием Северский район, в состав которого они входят\""]
[432,"Дорога гравий протяженность 0,28 км","п.Октябрьский, ул.Чехова",null,0.28,null,"23:26:0000000:3805",{"$nulls":3},"Администрация Черноморского городского поселения    ","Закон Краснодарского края от 13.11.2006г. № 1112-КЗ \"О разграничении имущества, находящегося в собственности муниципального образования Северский район, между вновь образованными городскими, сельскими поселениями и муниципальным образованием Северский район, в состав которого они входят\""]
[433,"Дорога гравий протяженность 0,41 км","п.Октябрьский, ул.Светлая",null,0.41,null,"23:26:0000000:3815",{"$nulls":3},"Администрация Черноморского городского поселения    ","Закон Краснодарского края от 13.11.2006г. № 1112-КЗ \"О разграничении имущества, находящегося в собственности муниципального образования Северский район, между вновь образованными городскими, сельскими поселениями и муниципальным образованием Северский район, в состав которого они входят\""]
[434,"Дорога гравий протяженность 0,2 км","п.Октябрьский, ул.Молодежная",null,0.2,null,"23:26:0000000:3814",{"$nulls":3},"Администрация Черноморского городского поселения    ","Закон Краснодарского края от 13.11.2006г. № 1112-КЗ \"О разграничении имущества, находящегося в собственности муниципального образования Северский район, между вновь образованными городскими, сельскими поселениями и муниципальным образованием Северский район, в состав которого они входят\""]
[435,"Дорога гравий протяженность 0,25 км","п.Октябрьский, ул.Зеленая",null,0.25,null,"23:26:0000000:3799",{"$nulls":3},"Администрация Черноморского городского поселения    ","Закон Краснодарского края от 13.11.2006г. № 1112-КЗ \"О разграничении имущества, находящегося в собственности муниципального образования Северский район, между вновь образованными городскими, сельскими поселениями и муниципальным образованием Северский район, в состав которого они входят\""]
[436,"Дорога гравий протяженность 1,95 км","п.Черноморский - х.Карский",null,1.95,null,"23:26:0000000:3806",{"$nulls":3},"Администрация Черноморского городского поселения    ","Закон Краснодарского края от 13.11.2006г. № 1112-КЗ \"О разграничении имущества, находящегося в собственности муниципального образования Северский район, между вновь образованными городскими, сельскими поселениями и муниципальным образованием Северский район, в состав которого они входят\""]
[437,"Дорога протяженность 3,2 км","х.Карский, ул.Длинная",null,3.2,null,"23:26:0000000:3798",{"$nulls":3},"Администрация Черноморского городского поселения    ","Закон Краснодарского края от 13.11.2006г. № 1112-КЗ \"О разграничении имущества, находящегося в собственности муниципального образования Северский район, между вновь образованными городскими, сельскими поселениями и муниципальным образованием Северский район, в состав которого они входят\""]
[438,"Дорога гравий протяженность 1,75 км","х.Карский, ул.Восточная",null,1.75,null,"23:26:0000000:3797",{"$nulls":3},"Администрация Черноморского городского поселения    ","Закон Краснодарского края от 13.11.2006г. № 1112-КЗ \"О разграничении имущества, находящегося в собственности муниципального образования Северский район, между вновь образованными городскими, сельскими поселениями и муниципальным образованием Северский район, в состав которого они входят\""]
[439,"Дорога асфальт протяженность 0,2 км","х.Карский",null,0.2,null,"23:26:0000000:3796",{"$nulls":3},"Администрация Черноморского городского поселения    ","Закон Краснодарского края от 13.11.2006г. № 1112-КЗ \"О разграничении имущества, находящегося в собственности муниципального образования Северский район, между вновь образованными городскими, сельскими поселениями и муниципальным образованием Северский район, в состав которого они входят\""]
[440,"Дорога гравий протяженность 2,65 км","х.Карский, 16-й участок",null,2.65,null,"23:26:0000000:3810",{"$nulls":3},"Администрация Черноморского городского поселения    ","Закон Краснодарского края от 13.11.2006г. № 1112-КЗ \"О разграничении имущества, находящегося в собственности муниципального образования Северский район, между вновь образованными городскими, сельскими поселениями и муниципальным образованием Северский район, в состав которого они входят\""]
[441,"Дорога гравий протяженность 0,6 км","х.Кипячий, ул.Лесная",null,0.6,null,"23:26:0000000:3795",{"$nulls":3},"Администрация Черноморского городского поселения    ","Закон Краснодарского края от 13.11.2006г. № 1112-КЗ \"О разграничении имущества, находящегося в собственности муниципального образования Северский район, между вновь образованными городскими, сельскими поселениями и муниципальным образованием Северский район, в состав которого они входят\""]
[442,"Дорога гравий протяженность 0,15 км","х.Кипячий, ул.Горная",null,0.15,null,"23:26:0000000:3794",{"$nulls":3},"Администрация Черноморского городского поселения    ","Закон Краснодарского края от 13.11.2006г. № 1112-КЗ \"О разграничении имущества, находящегося в собственности муниципального образования Северский район, между вновь образованными городскими, сельскими поселениями и муниципальным образованием Северский район, в состав которого они входят\""]
[443,"Дорога гравий протяженность 0,75 км","п.Черноморский - х.Кипячий",null,0.75,null,"23:26:0000000:3780",{"$nulls":3},"Администрация Черноморского городского поселения    ","Закон Краснодарского края от 13.11.2006г. № 1112-КЗ \"О разграничении имущества, находящегося в собственности муниципального образования Северский район, между вновь образованными городскими, сельскими поселениями и муниципальным образованием Северский район, в состав которого они входят\""]
[444,"Дорога гравий протяженность 1,7 км","п.Новопетровский, ул.Таманская",null,1.7,null,"23:26:0000000:3793",{"$nulls":3},"Администрация Черноморского городского поселения    ","Закон Краснодарского края от 13.11.2006г. № 1112-КЗ \"О разграничении имущества, находящегося в собственности муниципального образования Северский район, между вновь образованными городскими, сельскими поселениями и муниципальным образованием Северский район, в состав которого они входят\""]
[445,"Дорога гравий протяженность 0,6 км","п.Новопетровский, ул.Энгельса",null,0.6,null,"23:26:0000000:3800",{"$nulls":3},"Администрация Черноморского городского поселения    ","Закон Краснодарского края от 13.11.2006г. № 1112-КЗ \"О разграничении имущества, находящегося в собственности муниципального образования Северский район, между вновь образованными городскими, сельскими поселениями и муниципальным образованием Северский район, в состав которого они входят\""]
[446,"Дорога асфальт протяженность 0,76 км","п.Черноморский, мкр.Солнечный",null,0.76,null,"23:26:0000000:3698",{"$nulls":3},"Администрация Черноморского городского поселения    ","Закон Краснодарского края от 13.11.2006г. № 1112-КЗ \"О разграничении имущества, находящегося в собственности муниципального образования Северский район, между вновь образованными городскими, сельскими поселениями и муниципальным образованием Северский район, в состав которого они входят\""]
[447,"Пожарный водоем B1742","п.Черноморский, ул.Кавказская, 4",{"$nulls":7},"Администрация Черноморского городского поселения    ","Закон Краснодарского края от 13.11.2006г. № 1112-КЗ \"О разграничении имущества, находящегося в собственности муниципального образования Северский район, между вновь образованными городскими, сельскими поселениями и муниципальным образованием Северский район, в состав которого они входят\""]
[448,"Пожарный водоем ","п.Черноморский, ул.Гоголя, 13",{"$nulls":7},"Администрация Черноморского городского поселения    ","Закон Краснодарского края от 13.11.2006г. № 1112-КЗ \"О разграничении имущества, находящегося в собственности муниципального образования Северский район, между вновь образованными городскими, сельскими поселениями и муниципальным образованием Северский район, в состав которого они входят\""]
[449,"Пожарный водоем ","п.Черноморский, ул.Суворова, 1",{"$nulls":4},{"v":59130,"d":"59,130.00"},{"v":59130,"d":"59,130.00"},{"v":0,"d":"0.00"},"Администрация Черноморского городского поселения    ","Закон Краснодарского края от 13.11.2006г. № 1112-КЗ \"О разграничении имущества, находящегося в собственности муниципального образования Северский район, между вновь образованными городскими, сельскими поселениями и муниципальным образованием Северский район, в состав которого они входят\""]
[450,"Пожарный водоем ","п.Черноморский, ул.Мира, 3",{"$nulls":4},{"v":59130,"d":"59,130.00"},{"v":59130,"d":"59,130.00"},{"v":0,"d":"0.00"},"Администрация Черноморского городского поселения    ","Закон Краснодарского края от 13.11.2006г. № 1112-КЗ \"О разграничении имущества, находящегося в собственности муниципального образования Северский район, между вновь образованными городскими, сельскими поселениями и муниципальным образованием Северский район, в состав которого они входят\""]
[451,"Пожарный водоем ","п.Черноморский, пер.Северный",{"$nulls":7},"Администрация Черноморского городского поселения    ","Закон Краснодарского края от 13.11.2006г. № 1112-КЗ \"О разграничении имущества, находящегося в собственности муниципального образования Северский район, между вновь образованными городскими, сельскими поселениями и муниципальным образованием Северский район, в состав которого они входят\""]
[452,"Пожарный водоем ","п.Черноморский, пер.Жданова",{"$nulls":7},"Администрация Черноморского городского поселения    ","Закон Краснодарского края от 13.11.2006г. № 1112-КЗ \"О разграничении имущества, находящегося в собственности муниципального образования Северский район, между вновь образованными городскими, сельскими поселениями и муниципальным образованием Северский район, в состав которого они входят\""]
[453,"Пожарный водоем ","п.Черноморкий, пер.Длинный, 7",{"$nulls":7},"Администрация Черноморского городского поселения    ","Закон Краснодарского края от 13.11.2006г. № 1112-КЗ \"О разграничении имущества, находящегося в собственности муниципального образования Северский район, между вновь образованными городскими, сельскими поселениями и муниципальным образованием Северский район, в состав которого они входят\""]
[454,"Пожарный водоем ","п.Черноморский, ул.Тельмана, 16",{"$nulls":7},"Администрация Черноморского городского поселения    ","Закон Краснодарского края от 13.11.2006г. № 1112-КЗ \"О разграничении имущества, находящегося в собственности муниципального образования Северский район, между вновь образованными городскими, сельскими поселениями и муниципальным образованием Северский район, в состав которого они входят\""]
[455,"Пожарный водоем ","п.Черноморский, ул.Новороссийская, 6-8",{"$nulls":7},"Администрация Черноморского городского поселения    ","Закон Краснодарского края от 13.11.2006г. № 1112-КЗ \"О разграничении имущества, находящегося в собственности муниципального образования Северский район, между вновь образованными городскими, сельскими поселениями и муниципальным образованием Северский район, в состав которого они входят\""]
[456,"Пожарный водоем ","п.Черноморский, ул.Горького, ул.ленина",{"$nulls":7},"Администрация Черноморского городского поселения    ","Закон Краснодарского края от 13.11.2006г. № 1112-КЗ \"О разграничении имущества, находящегося в собственности муниципального образования Северский район, между вновь образованными городскими, сельскими поселениями и муниципальным образованием Северский район, в состав которого они входят\""]
[457,"Пожарный водоем ","п.Черноморский, ул.Ленина",{"$nulls":7},"Администрация Черноморского городского поселения    ","Закон Краснодарского края от 13.11.2006г. № 1112-КЗ \"О разграничении имущества, находящегося в собственности муниципального образования Северский район, между вновь образованными городскими, сельскими поселениями и муниципальным образованием Северский район, в состав которого они входят\""]
[458,"парк \"Победы\"","пгт.Черноморский, ул.Советская",null,5507,null,"23:26:1103016:243",{"$nulls":3},"Администрация Черноморского городского поселения    ","Закон Краснодарского края от 13.11.2006г. № 1112-КЗ \"О разграничении имущества, находящегося в собственности муниципального образования Северский район, между вновь образованными городскими, сельскими поселениями и муниципальным образованием Северский район, в состав которого они входят\"/ Постановление администрации  Черноморского городского поселения Северского района от 19.10.2016 г. № 366 \"О внесении изменений в реестр муниципальной собственности Черноморского городского поселения Северского района\"","/ Постановление администрации  Черноморского городского поселения Северского района от 19.10.2016 г. № 366 \"О внесении изменений в реестр муниципальной собственности Черноморского городского поселения Северского района\"/ Постановление от 15.06.2018 г. № 225 \"О внесении изменений в постановление администрации Черноморского городского поселения Северского района от 19 октября 2016 года № 366 \"О внесении изменений в реестр муниципальной собственности Черноморского городского поселения\""]
[460,"Парк ","п.Октябрьский, ул.Пушкина",null,9965,null,"23:26:1101005:1574",{"$nulls":3},"Администрация Черноморского городского поселения    ","Закон Краснодарского края от 13.11.2006г. № 1112-КЗ \"О разграничении имущества, находящегося в собственности муниципального образования Северский район, между вновь образованными городскими, сельскими поселениями и муниципальным образованием Северский район, в состав которого они входят\""]
[462,"Памятник неизвестному солдату","п.Октябрьский (парк)",null,1,null,"23:26:0000000:3734   ",{"$nulls":3},"Администрация Черноморского городского поселения    ","Закон Краснодарского края от 13.11.2006г. № 1112-КЗ \"О разграничении имущества, находящегося в собственности муниципального образования Северский район, между вновь образованными городскими, сельскими поселениями и муниципальным образованием Северский район, в состав которого они входят\""]
[464,"Осветительная мачта (4 шт.)","п.Черноморский, ул.Юбилейная",{"$nulls":7},"Администрация Черноморского городского поселения    ","Закон Краснодарского края от 13.11.2006г. № 1112-КЗ \"О разграничении имущества, находящегося в собственности муниципального образования Северский район, между вновь образованными городскими, сельскими поселениями и муниципальным образованием Северский район, в состав которого они входят\""]
[468,"Земельный участок-земли промышленности, энергетики, транспорта, связи, радиовещания, телевидения, информатики, земли для обеспечения космической деятельности, земли обороны, безопасности и земли иного специального назначения","Краснодарский край Северский   р-н, п.Новопетровский",null,3110,null,"23:26:0501000:3594",{"$nulls":3},"Администрация Черноморского городского поселения    ","Закон Краснодарского края от 13.11.2006г. № 1112-КЗ \"О разграничении имущества, находящегося в собственности муниципального образования Северский район, между вновь образованными городскими, сельскими поселениями и муниципальным образованием Северский район, в состав которого они входят\"/ Решение Совета Черноморского городского поселения Северского района от 01.06.2017 №-236 \"О внесении изменений в реестр муниципальной собственности Черноморского городского поселения Северского района имущества\""]
[469," Земельный участок-земли промышленности, энергетики, транспорта, связи, радиовещания, телевидения, информатики, земли для обеспечения космической деятельности, земли обороны, безопасности и земли иного специального назначения","п.Черноморский                           пер. Первомайский ",null,95164,null,"23:26:1103037:32",{"$nulls":3},"Администрация Черноморского городского поселения    ","Закон Краснодарского края от 13.11.2006г. № 1112-КЗ \"О разграничении имущества, находящегося в собственности муниципального образования Северский район, между вновь образованными городскими, сельскими поселениями и муниципальным образованием Северский район, в состав которого они входят\""]
[470,"Пруд площадь 3,07 га","п.Черноморский (северо-восточная окраина)",null,3.07,null,"23:26:1101000:250",{"$nulls":3},"Администрация Черноморского городского поселения     (Концессионное соглашение с ООО \"Резорт Девелопмент Групп\" от 20.03.2015 г.) ","Закон Краснодарского края от 13.11.2006г. № 1112-КЗ \"О разграничении имущества, находящегося в собственности муниципального образования Северский район, между вновь образованными городскими, сельскими поселениями и муниципальным образованием Северский район, в состав которого они входят\""]
[471,"Пруд площадь 0.96 га","п.Черноморский (северо-восточная окраина)",null,0.96,null,"23:26:1101000:0:3",{"$nulls":3},"Администрация Черноморского городского поселения","Закон Краснодарского края от 13.11.2006г. № 1112-КЗ \"О разграничении имущества, находящегося в собственности муниципального образования Северский район, между вновь образованными городскими, сельскими поселениями и муниципальным образованием Северский район, в состав которого они входят\""]
[472,"Пруд площадь 1,46 га","х.Карский(западная окраина)",null,1.46,null,"23:26:0000000:4188",{"$nulls":3},"Администрация Черноморского городского поселения","Закон Краснодарского края от 13.11.2006г. № 1112-КЗ \"О разграничении имущества, находящегося в собственности муниципального образования Северский район, между вновь образованными городскими, сельскими поселениями и муниципальным образованием Северский район, в состав которого они входят\""]
[473,"Пруд площадь 1,67 га","п.Октябрьский (юго-западная окраина)",null,1.67,{"$nulls":5},"Администрация Черноморского городского поселения","Закон Краснодарского края от 13.11.2006г. № 1112-КЗ \"О разграничении имущества, находящегося в собственности муниципального образования Северский район, между вновь образованными городскими, сельскими поселениями и муниципальным образованием Северский район, в состав которого они входят\""]
[474,"Пруд площадь 3,0 га","п.Черноморский (юго-западная окраина)",null,3,{"$nulls":5},"Администрация Черноморского городского поселения","Закон Краснодарского края от 13.11.2006г. № 1112-КЗ \"О разграничении имущества, находящегося в собственности муниципального образования Северский район, между вновь образованными городскими, сельскими поселениями и муниципальным образованием Северский район, в состав которого они входят\""]
[475,"Пруд площадь 3,0 га","п.Черноморский (юго-западная окраина)",null,3,{"$nulls":5},"Администрация Черноморского городского поселения","Закон Краснодарского края от 13.11.2006г. № 1112-КЗ \"О разграничении имущества, находящегося в собственности муниципального образования Северский район, между вновь образованными городскими, сельскими поселениями и муниципальным образованием Северский район, в состав которого они входят\""]
[478,"Здание сберкасссы - контора ЧКУ","п.Черноморский, ул.Советская, 41",null,53.1,null,"23:26:1103015:0:13",{"v":43532,"d":"43,532.00"},{"v":43532,"d":"43,532.00"},{"v":0,"d":"0.00"},"Администрация Черноморского городского поселения","Решение Совета муниципального образования Северский район от 01.03.2007г. № 471 \"О передаче имущества муниципального образования северский район в собственность Черноморского, Ильского, Афипского городских поселений, Новодмитриевского, Калужского и Северского сельских поселений\"."]
[662,"Дорога гравий протяженностью   550м","х.Карский",1966,0.55,9177,"23:26:0000000:3836",{"v":107692,"d":"107,692.00"},{"v":107692,"d":"107,692.00"},{"v":0,"d":"0.00"},"Администрация Черноморского городского поселения","Решение Совета муниципального образования Северский район от 01.03.2007г. № 471 \"О передаче имущества муниципального образования Северский район в собственность Черноморского, Ильского, Афипского городских поселений, Новодмитриевского, Калужского и Северского сельских поселений\""]
[663,"Братская могила и памятник Землякову И.Н.","пгт.Черноморский, ул.Советская, парк \"Победы\"",null,3.3,null,"23:26:1103016:238",{"$nulls":3},"Администрация Черноморского городского поселения","Закон Краснодарского края от 13.11.2006г. № 1112-КЗ \"О разграничении имущества, находящегося в собственности муниципального образования Северский район, между вновь образованными городскими, сельскими поселениями и муниципальным образованием Северский район, в состав которого они входят\"//Постановление от 17.06.2016 г. № 210 \"О внесении изменений в реестр муниципальной собственности Черноморского городского поселения Северского района"]
[664,"Здание автобусной остоновки","п.Черноморский, ул.Юбилейная, 108",1965,null,19096,{"$nulls":4},"Администрация Черноморского городского поселения","Решение Совета муниципального образования Северский район от 01.03.2007г. № 471 \"О передаче имущества муниципального образования Северский район в собственность Черноморского, Ильского, Афипского городских поселений, Новодмитриевского, Калужского и Северского сельских поселений\""]
[665,"Асфальт покрытие 34 кв. 1493 м","п.Черноморский, ул.Новороссийская",null,1.493,{"$nulls":5},"Администрация Черноморского городского поселения","Решение Совета муниципального образования Северский район от 01.03.2007г. № 471 \"О передаче имущества муниципального образования Северский район в собственность Черноморского, Ильского, Афипского городских поселений, Новодмитриевского, Калужского и Северского сельских поселений\""]
[666,"Асфальт покрытие 34 кв. 1200 м","п.Чсерноморский, ул.Новороссийская",null,1.2,null,"23:26:0000000:3700",{"$nulls":3},"Администрация Черноморского городского поселения","Решение Совета муниципального образования Северский район от 01.03.2007г. № 471 \"О передаче имущества муниципального образования Северский район в собственность Черноморского, Ильского, Афипского городских поселений, Новодмитриевского, Калужского и Северского сельских поселений\""]
[667,"Асфальт покрытие 150 кв.м","п.Спутник",null,0.05,null,"23:26:0000000:3681",{"$nulls":3},"Администрация Черноморского городского поселения","Решение Совета муниципального образования Северский район от 01.03.2007г. № 471 \"О передаче имущества муниципального образования Северский район в собственность Черноморского, Ильского, Афипского городских поселений, Новодмитриевского, Калужского и Северского сельских поселений\""]
[668,"Газопровод 80 м","п.Черноморский, от ул.Калинина до ул.Советской",null,80,null,"23:26:0000000:4181",{"$nulls":3},"Администрация Черноморского городского поселения","Решение Совета муниципального образования Северский район от 01.03.2007г. № 471 \"О передаче имущества муниципального образования Северский район в собственность Черноморского, Ильского, Афипского городских поселений, Новодмитриевского, Калужского и Северского сельских поселений\""]
[669,"Асфальтовое покрытие 2000 кв.м","п.Спутник, ул.Вокзальная",null,0.66,{"$nulls":5},"Администрация Черноморского городского поселения","Решение Совета муниципального образования Северский район от 01.03.2007г. № 471 \"О передаче имущества муниципального образования Северский район в собственность Черноморского, Ильского, Афипского городских поселений, Новодмитриевского, Калужского и Северского сельских поселений\""]
[null,"Дорога асфальт 428 м","п.Черноморский,  пер.Первомайский",null,428,null,"23:26:0000000:3953",{"$nulls":3},"Администрация Черноморского городского поселения","Решение Совета муниципального образования Северский район от 01.03.2007г. № 471 \"О передаче имущества муниципального образования Северский район в собственность Черноморского, Ильского, Афипского городских поселений, Новодмитриевского, Калужского и Северского сельских поселений\""]
[670,"Дорога асфальт 92 м","п.Черноморский, ул.Крупской",null,92,null,"23:26:0000000:3695",{"$nulls":3},"Администрация Черноморского городского поселения","Решение Совета муниципального образования Северский район от 01.03.2007г. № 471 \"О передаче имущества муниципального образования Северский район в собственность Черноморского, Ильского, Афипского городских поселений, Новодмитриевского, Калужского и Северского сельских поселений\""]
[671,"Резервуар пожарный","п.Черноморский, стройгородок",{"$nulls":4},{"v":59130,"d":"59,130.00"},{"v":59130,"d":"59,130.00"},{"v":0,"d":"0.00"},"Администрация Черноморского городского поселения","Решение Совета муниципального образования Северский район от 01.03.2007г. № 471 \"О передаче имущества муниципального образования Северский район в собственность Черноморского, Ильского, Афипского городских поселений, Новодмитриевского, Калужского и Северского сельских поселений\""]
[672,"Резервуар пожарный","п.Чеорноморский, ул.Мира, 3",{"$nulls":4},{"v":59130,"d":"59,130.00"},{"v":59130,"d":"59,130.00"},{"v":0,"d":"0.00"},"Администрация Черноморского городского поселения","Решение Совета муниципального образования Северский район от 01.03.2007г. № 471 \"О передаче имущества муниципального образования Северский район в собственность Черноморского, Ильского, Афипского городских поселений, Новодмитриевского, Калужского и Северского сельских поселений\""]
[673,"Резервуар пожарный","п.Черноморский, ул.Суворова, 1",{"$nulls":4},{"v":59130,"d":"59,130.00"},{"v":59130,"d":"59,130.00"},{"v":0,"d":"0.00"},"Администрация Черноморского городского поселения","Решение Совета муниципального образования Северский район от 01.03.2007г. № 471 \"О передаче имущества муниципального образования Северский район в собственность Черноморского, Ильского, Афипского городских поселений, Новодмитриевского, Калужского и Северского сельских поселений\""]
[674,"Резервуар пожарный","п.Черноморский, ул.Октябрьская, 14",{"$nulls":4},{"v":157145,"d":"157,145.00"},{"v":157145,"d":"157,145.00"},{"v":0,"d":"0.00"},"Администрация Черноморского городского поселения","Решение Совета муниципального образования Северский район от 01.03.2007г. № 471 \"О передаче имущества муниципального образования Северский район в собственность Черноморского, Ильского, Афипского городских поселений, Новодмитриевского, Калужского и Северского сельских поселений\""]
[678,"Здание котельной детсада № 31","п.Черноморский, ул.Крупской",1996,{"$nulls":3},{"v":1,"d":"1.00"},{"v":1,"d":"1.00"},{"v":0,"d":"0.00"},"Администрация Черноморского городского поселения","Решение Совета муниципального образования Северский район от 01.03.2007г. № 471 \"О передаче имущества муниципального образования Северский район в собственность Черноморского, Ильского, Афипского городских поселений, Новодмитриевского, Калужского и Северского сельских поселений\""]
[679,"Комплекты трансформаторных подстанций к скважинам № 1,2,3,4,5,6,7,8,9,10,12","Крюковский в/р",1992,null,4006,null,{"v":3623.32,"d":"3,623.32"},{"v":3623.32,"d":"3,623.32"},{"v":0,"d":"0.00"},"Администрация Черноморского городского поселения","Решение Совета муниципального образования Северский район от 01.03.2007г. № 471 \"О передаче имущества муниципального образования Северский район в собственность Черноморского, Ильского, Афипского городских поселений, Новодмитриевского, Калужского и Северского сельских поселений\""]
[680,"Теплотрасса 2024 м","Крюковский в/р",1992,2024,3986,"23:26:0000000:3952",{"v":2547.46,"d":"2,547.46"},{"v":2547.46,"d":"2,547.46"},{"v":0,"d":"0.00"},"Администрация Черноморского городского поселения","Решение Совета муниципального образования Северский район от 01.03.2007г. № 471 \"О передаче имущества муниципального образования Северский район в собственность Черноморского, Ильского, Афипского городских поселений, Новодмитриевского, Калужского и Северского сельских поселений\""]
[683,"Водопровод 4\" до РМЦ 1800 м","п. Черноморский, ул. Советская",1960,1800,9109,"23:26:0000000:3838",{"v":113132,"d":"113,132.00"},{"v":113132,"d":"113,132.00"},{"v":0,"d":"0.00"},"Администрация Черноморского городского поселения","Решение Совета муниципального образования Северский район от 01.03.2007г. № 471 \"О передаче имущества муниципального образования Северский район в собственность Черноморского, Ильского, Афипского городских поселений, Новодмитриевского, Калужского и Северского сельских поселений\""]
[684,"Водопровод 4\" до Черноморской бани, 2350 м","п. Черноморский, ул. Юбилейная",1949,2350,9108,"23:06:0000000:1257",{"v":147701,"d":"147,701.00"},{"v":147701,"d":"147,701.00"},{"v":0,"d":"0.00"},"Администрация Черноморского городского поселения","Решение Совета муниципального образования Северский район от 01.03.2007г. № 471 \"О передаче имущества муниципального образования Северский район в собственность Черноморского, Ильского, Афипского городских поселений, Новодмитриевского, Калужского и Северского сельских поселений\""]
[685,"Водопровод 6\" от колодца 7,     780 м","п. Черноморский, ул. Юбилейная",1962,780,9114,"23:26:0000000:3843",{"v":72439,"d":"72,439.00"},{"v":72439,"d":"72,439.00"},{"v":0,"d":"0.00"},"Администрация Черноморского городского поселения","Решение Совета муниципального образования Северский район от 01.03.2007г. № 471 \"О передаче имущества муниципального образования Северский район в собственность Черноморского, Ильского, Афипского городских поселений, Новодмитриевского, Калужского и Северского сельских поселений\""]
[686,"Водопровод технической воды к х. Карский, 6935 м","п. Черноморский",1985,6935,9124,"23:26:0000000:3830",{"v":2036637,"d":"2,036,637.00"},{"v":2036637,"d":"2,036,637.00"},{"v":0,"d":"0.00"},"Администрация Черноморского городского поселения","Решение Совета муниципального образования Северский район от 01.03.2007г. № 471 \"О передаче имущества муниципального образования Северский район в собственность Черноморского, Ильского, Афипского городских поселений, Новодмитриевского, Калужского и Северского сельских поселений\""]
[687,"Водопровод от бани до столовой ОРСа, 120 п/м","п. Черноморский, ул. Дзержинского",1963,120,14144,"23:26:0000000:3828",{"$nulls":3},"Администрация Черноморского городского поселения","Решение Совета муниципального образования Северский район от 01.03.2007г. № 471 \"О передаче имущества муниципального образования Северский район в собственность Черноморского, Ильского, Афипского городских поселений, Новодмитриевского, Калужского и Северского сельских поселений\""]
[688,"Мусоросжигательная печь","Южная окраина п. Черноморского",1966,{"$nulls":3},{"v":131104,"d":"131,104.00"},{"v":131104,"d":"131,104.00"},{"v":0,"d":"0.00"},"Администрация Черноморского городского поселения","Решение Совета муниципального образования Северский район от 01.03.2007г. № 471 \"О передаче имущества муниципального образования Северский район в собственность Черноморского, Ильского, Афипского городских поселений, Новодмитриевского, Калужского и Северского сельских поселений\""]
[691,"Асфальтовое покрытие, 566 кв.м","котельной НПО Табак",1968,0.188,null,"23:26:0000000:3680",{"v":36176,"d":"36,176.00"},{"v":36176,"d":"36,176.00"},{"v":0,"d":"0.00"},"Администрация Черноморского городского поселения","Решение Совета муниципального образования Северский район от 01.03.2007г. № 471 \"О передаче имущества муниципального образования Северский район в собственность Черноморского, Ильского, Афипского городских поселений, Новодмитриевского, Калужского и Северского сельских поселений\""]
[693,"Наружные сети электроснабжения ТП 553, 300 м","п.Черноморский, ул.Толстого, 4 ул. Юбилейная, 42",1972,"300 м",null,"23:26:1103022:620",{"v":74100,"d":"74,100.00"},{"v":74100,"d":"74,100.00"},{"v":0,"d":"0.00"},"Администрация Черноморского городского поселения","Решение Совета муниципального образования Северский район от 01.03.2007г. № 471 \"О передаче имущества муниципального образования Северский район в собственность Черноморского, Ильского, Афипского городских поселений, Новодмитриевского, Калужского и Северского сельских поселений\""]
[694,"Силовая воздушная линия, 990 м","п. Черноморский, ул. Ленина",1949,990,null,"23:26:0000000:3090",{"v":32728,"d":"32,728.00"},{"v":32728,"d":"32,728.00"},{"v":0,"d":"0.00"},"Администрация Черноморского городского поселения","Решение Совета муниципального образования Северский район от 01.03.2007г. № 471 \"О передаче имущества муниципального образования Северский район в собственность Черноморского, Ильского, Афипского городских поселений, Новодмитриевского, Калужского и Северского сельских поселений\""]
[695,"Силовая воздушная линия, 574 м","п. Черноморский, ул. Солнечная",1962,574,null,"23:26:1103014:712",{"v":34112,"d":"34,112.00"},{"v":34112,"d":"34,112.00"},{"v":0,"d":"0.00"},"Администрация Черноморского городского поселения","Решение Совета муниципального образования Северский район от 01.03.2007г. № 471 \"О передаче имущества муниципального образования Северский район в собственность Черноморского, Ильского, Афипского городских поселений, Новодмитриевского, Калужского и Северского сельских поселений\""]
[696,"Силовая воздушная линия, 750 м","п. Черноморский, ул. Толстого",1971,750,null,"23:26:0000000:3850",{"v":30320,"d":"30,320.00"},{"v":30320,"d":"30,320.00"},{"v":0,"d":"0.00"},"Администрация Черноморского городского поселения","Решение Совета муниципального образования Северский район от 01.03.2007г. № 471 \"О передаче имущества муниципального образования Северский район в собственность Черноморского, Ильского, Афипского городских поселений, Новодмитриевского, Калужского и Северского сельских поселений\""]
[697,"Силовая воздушная линия, 100 м","п. Черноморский, ул. Толстого",1959,100,null,"23:26:0000000:3845",{"v":40048,"d":"40,048.00"},{"v":40048,"d":"40,048.00"},{"v":0,"d":"0.00"},"Администрация Черноморского городского поселения","Решение Совета муниципального образования Северский район от 01.03.2007г. № 471 \"О передаче имущества муниципального образования Северский район в собственность Черноморского, Ильского, Афипского городских поселений, Новодмитриевского, Калужского и Северского сельских поселений\""]
[698,"Силовая воздушная линия, 766 м","п. Черноморский, ул. Ленина",1962,"766 ",null,"23:26:0000000:3846",{"v":28581,"d":"28,581.00"},{"v":28581,"d":"28,581.00"},{"v":0,"d":"0.00"},"Администрация Черноморского городского поселения","Решение Совета муниципального образования Северский район от 01.03.2007г. № 471 \"О передаче имущества муниципального образования Северский район в собственность Черноморского, Ильского, Афипского городских поселений, Новодмитриевского, Калужского и Северского сельских поселений\""]
[699,"Силовая линия ВЛ-4х проводная, 380 м","п. Черноморский, ул. Кирова",1960,380,null,"23:26:0000000:3844",{"v":39607,"d":"39,607.00"},{"v":39607,"d":"39,607.00"},{"v":0,"d":"0.00"},"Администрация Черноморского городского поселения","Решение Совета муниципального образования Северский район от 01.03.2007г. № 471 \"О передаче имущества муниципального образования Северский район в собственность Черноморского, Ильского, Афипского городских поселений, Новодмитриевского, Калужского и Северского сельских поселений\""]
[700,"Электрические сети (278) 128 м","п. Черноморский, ул. Калинина",1993,128,null,"23:26:0000000:3071",{"v":1991.92,"d":"1,991.92"},{"v":1991.92,"d":"1,991.92"},{"v":0,"d":"0.00"},"Администрация Черноморского городского поселения","Решение Совета муниципального образования Северский район от 01.03.2007г. № 471 \"О передаче имущества муниципального образования Северский район в собственность Черноморского, Ильского, Афипского городских поселений, Новодмитриевского, Калужского и Северского сельских поселений\""]
[701,"Электролиния ВЛ-0,4 квт, (228)157 м","п. Черноморский, ул. Гоголя",1993,157,null,"23:26:1103030:460",{"v":31541,"d":"31,541.00"},{"v":31541,"d":"31,541.00"},{"v":0,"d":"0.00"},"Администрация Черноморского городского поселения","Решение Совета муниципального образования Северский район от 01.03.2007г. № 471 \"О передаче имущества муниципального образования Северский район в собственность Черноморского, Ильского, Афипского городских поселений, Новодмитриевского, Калужского и Северского сельских поселений\""]
[704,"Силовая воздушная линия 5 проводная, 104 м","п. Черноморский, ул. Юбилейная",1964,104,null,"23:26:0000000:4099",{"$nulls":3},"Администрация Черноморского городского поселения","Решение Совета муниципального образования Северский район от 01.03.2007г. № 471 \"О передаче имущества муниципального образования Северский район в собственность Черноморского, Ильского, Афипского городских поселений, Новодмитриевского, Калужского и Северского сельских поселений\""]
[705,"Силовая воздушная линия  4 проводная, 92 м","п. Черноморский, ул. Советская",null,92,null,"23:26:0000000:4170",{"$nulls":3},"Администрация Черноморского городского поселения","Решение Совета муниципального образования Северский район от 01.03.2007г. № 471 \"О передаче имущества муниципального образования Северский район в собственность Черноморского, Ильского, Афипского городских поселений, Новодмитриевского, Калужского и Северского сельских поселений\""]
[706,"Силовая воздушная линия 2 проводная, 114 м","п. Черноморский, ул. Ломоносова",null,114,{"$nulls":5},"Администрация Черноморского городского поселения","Решение Совета муниципального образования Северский район от 01.03.2007г. № 471 \"О передаче имущества муниципального образования Северский район в собственность Черноморского, Ильского, Афипского городских поселений, Новодмитриевского, Калужского и Северского сельских поселений\""]
[707,"Силовая воздушная линия 4 проводная, 656 м","п. Черноморский, ул. Калинина",1958,656,null,"23:26:0000000:3089",{"$nulls":3},"Администрация Черноморского городского поселения","Решение Совета муниципального образования Северский район от 01.03.2007г. № 471 \"О передаче имущества муниципального образования Северский район в собственность Черноморского, Ильского, Афипского городских поселений, Новодмитриевского, Калужского и Северского сельских поселений\""]
[708,"Силовая воздушеая линия 4 проводная, 336 м","п. Черноморский, ул. Гоголя",1960,336,null,"23:26:1103030:465",{"$nulls":3},"Администрация Черноморского городского поселения","Решение Совета муниципального образования Северский район от 01.03.2007г. № 471 \"О передаче имущества муниципального образования Северский район в собственность Черноморского, Ильского, Афипского городских поселений, Новодмитриевского, Калужского и Северского сельских поселений\""]
[709,"Силовая воздушная линия 5 проводная, 600 м","п. Черноморский, ул. Кавказская",1961,600,null,"23:26:0000000:4129",{"$nulls":3},"Администрация Черноморского городского поселения","Решение Совета муниципального образования Северский район от 01.03.2007г. № 471 \"О передаче имущества муниципального образования Северский район в собственность Черноморского, Ильского, Афипского городских поселений, Новодмитриевского, Калужского и Северского сельских поселений\""]
[710,"Силовая воздушная линия 5 проводная, 630 м","п. Черноморский, ул. Юбилейная",1963,630,null,"23:26:1103021:96",{"$nulls":3},"Администрация Черноморского городского поселения","Решение Совета муниципального образования Северский район от 01.03.2007г. № 471 \"О передаче имущества муниципального образования Северский район в собственность Черноморского, Ильского, Афипского городских поселений, Новодмитриевского, Калужского и Северского сельских поселений\""]
[711,"Силовая воздушная линия 4 проводная, 582 м","п. Черноморский, ул. Дзержинского",1970,582,null,"23:26:0000000:3094",{"$nulls":3},"Администрация Черноморского городского поселения","Решение Совета муниципального образования Северский район от 01.03.2007г. № 471 \"О передаче имущества муниципального образования Северский район в собственность Черноморского, Ильского, Афипского городских поселений, Новодмитриевского, Калужского и Северского сельских поселений\""]
[712,"Силовая воздушная линия 2 проводная, 300 м","п. Черноморский, ул. Белинского",1963,300,null,"23:26:0000000:4135",{"$nulls":3},"Администрация Черноморского городского поселения","Решение Совета муниципального образования Северский район от 01.03.2007г. № 471 \"О передаче имущества муниципального образования Северский район в собственность Черноморского, Ильского, Афипского городских поселений, Новодмитриевского, Калужского и Северского сельских поселений\""]
[713,"Силовая воздушная линия 5 проводная, 350 м","п. Черноморский, ул. Новороссийская",1960,350,null,"23:26:0000000:4155",{"$nulls":3},"Администрация Черноморского городского поселения","Решение Совета муниципального образования Северский район от 01.03.2007г. № 471 \"О передаче имущества муниципального образования Северский район в собственность Черноморского, Ильского, Афипского городских поселений, Новодмитриевского, Калужского и Северского сельских поселений\""]
[714,"Силовая воздушная линия 4 проводная, 336 м","п. Черноморский, ул. Фрунзе",1961,336,null,"23:26:0000000:4136",{"$nulls":3},"Администрация Черноморского городского поселения","Решение Совета муниципального образования Северский район от 01.03.2007г. № 471 \"О передаче имущества муниципального образования Северский район в собственность Черноморского, Ильского, Афипского городских поселений, Новодмитриевского, Калужского и Северского сельских поселений\""]
[715,"Силовая воздушная линия 3 проводная, 500 м","п. Черноморский, ул. Фурманова",1961,500,null,"23:26:0000000:4137",{"$nulls":3},"Администрация Черноморского городского поселения","Решение Совета муниципального образования Северский район от 01.03.2007г. № 471 \"О передаче имущества муниципального образования Северский район в собственность Черноморского, Ильского, Афипского городских поселений, Новодмитриевского, Калужского и Северского сельских поселений\""]
[716,"Силовая воздушная линия 2 проводная, 356 м","п. Черноморский, пер. Транспортный",1963,356,null,"23:26:0000000:4134",{"$nulls":3},"Администрация Черноморского городского поселения","Решение Совета муниципального образования Северский район от 01.03.2007г. № 471 \"О передаче имущества муниципального образования Северский район в собственность Черноморского, Ильского, Афипского городских поселений, Новодмитриевского, Калужского и Северского сельских поселений\""]
[717,"Силовая воздушная линия 5 проводная, 756 м","п. Черноморский, ул. Чапаева",1963,756,null,"23:26:0000000:4139",{"$nulls":3},"Администрация Черноморского городского поселения","Решение Совета муниципального образования Северский район от 01.03.2007г. № 471 \"О передаче имущества муниципального образования Северский район в собственность Черноморского, Ильского, Афипского городских поселений, Новодмитриевского, Калужского и Северского сельских поселений\""]
[718,"Силовая  воздушная линия 4 проводная, 1218 м","п. Черноморский, ул. Тельмана",1961,1218,null,"23:26:0000000:4138",{"$nulls":3},"Администрация Черноморского городского поселения","Решение Совета муниципального образования Северский район от 01.03.2007г. № 471 \"О передаче имущества муниципального образования Северский район в собственность Черноморского, Ильского, Афипского городских поселений, Новодмитриевского, Калужского и Северского сельских поселений\""]
[719,"Силовая воздушная линия 3 проводная, 326 м","п. Черноморский, ул. Чапаева",1960,326,null,"23:26:0000000:4161",{"$nulls":3},"Администрация Черноморского городского поселения","Решение Совета муниципального образования Северский район от 01.03.2007г. № 471 \"О передаче имущества муниципального образования Северский район в собственность Черноморского, Ильского, Афипского городских поселений, Новодмитриевского, Калужского и Северского сельских поселений\""]
[720,"Силовая воздушная линия 2 проводная, 312 м","п. Черноморский, ул. Белинского",1960,312,{"$nulls":5},"Администрация Черноморского городского поселения","Решение Совета муниципального образования Северский район от 01.03.2007г. № 471 \"О передаче имущества муниципального образования Северский район в собственность Черноморского, Ильского, Афипского городских поселений, Новодмитриевского, Калужского и Северского сельских поселений\""]
[721,"Силовая воздушная линия 4 проводная, 754 м","п. Черноморский, ул. Тельмана",1973,754,null,"23:26:0000000:4159",{"$nulls":3},"Администрация Черноморского городского поселения","Решение Совета муниципального образования Северский район от 01.03.2007г. № 471 \"О передаче имущества муниципального образования Северский район в собственность Черноморского, Ильского, Афипского городских поселений, Новодмитриевского, Калужского и Северского сельских поселений\""]
[722,"Силовая воздушная линия 4 проводная, 133 м","п. Черноморский, мкр. Солнечный",1969,133,null,"23:26:1103020:58",{"$nulls":3},"Администрация Черноморского городского поселения","Решение Совета муниципального образования Северский район от 01.03.2007г. № 471 \"О передаче имущества муниципального образования Северский район в собственность Черноморского, Ильского, Афипского городских поселений, Новодмитриевского, Калужского и Северского сельских поселений\""]
[723,"Силовая электрическая линия 5 проводная, 646 м","п. Черноморский, ул. Дзержинского",1968,646,null,"23:26:0000000:4148",{"$nulls":3},"Администрация Черноморского городского поселения","Решение Совета муниципального образования Северский район от 01.03.2007г. № 471 \"О передаче имущества муниципального образования Северский район в собственность Черноморского, Ильского, Афипского городских поселений, Новодмитриевского, Калужского и Северского сельских поселений\""]
[724,"Силовая воздушная линия 5 проводная, 504 м","п. Черноморский, ул. Юбилейная",1969,504,null,"23:26:0000000:4163",{"$nulls":3},"Администрация Черноморского городского поселения","Решение Совета муниципального образования Северский район от 01.03.2007г. № 471 \"О передаче имущества муниципального образования Северский район в собственность Черноморского, Ильского, Афипского городских поселений, Новодмитриевского, Калужского и Северского сельских поселений\""]
[725,"Силовая воздушная линия 5 проводная, 592 м","п. Черноморский, ул. Пушкина",1970,592,null,"23:26:0000000:4160",{"$nulls":3},"Администрация Черноморского городского поселения","Решение Совета муниципального образования Северский район от 01.03.2007г. № 471 \"О передаче имущества муниципального образования Северский район в собственность Черноморского, Ильского, Афипского городских поселений, Новодмитриевского, Калужского и Северского сельских поселений\""]
[726,"Силовая воздушная линия 5 проводная, 944 м","п. Черноморскиц, ул. Гоголя",1973,944,{"$nulls":5},"Администрация Черноморского городского поселения","Решение Совета муниципального образования Северский район от 01.03.2007г. № 471 \"О передаче имущества муниципального образования Северский район в собственность Черноморского, Ильского, Афипского городских поселений, Новодмитриевского, Калужского и Северского сельских поселений\""]
[727,"Силовая воздушная линия 4 проводная, 296 м","п. Черноморский, ул. Толстого",1954,296,null,"23:26:0000000:4141",{"$nulls":3},"Администрация Черноморского городского поселения","Решение Совета муниципального образования Северский район от 01.03.2007г. № 471 \"О передаче имущества муниципального образования Северский район в собственность Черноморского, Ильского, Афипского городских поселений, Новодмитриевского, Калужского и Северского сельских поселений\""]
[728,"Силовая электрическая линия 3 проводная, 230 м","п. Черноморский, пер. Нефтяников",1955,230,null,"23:26:1103032:99",{"$nulls":3},"Администрация Черноморского городского поселения","Решение Совета муниципального образования Северский район от 01.03.2007г. № 471 \"О передаче имущества муниципального образования Северский район в собственность Черноморского, Ильского, Афипского городских поселений, Новодмитриевского, Калужского и Северского сельских поселений\""]
[729,"Силовая электрическая линия 2 проводная, 308 м","п. Черноморский, ул. Первомайская",1952,308,null,"23:26:0000000:4144",{"$nulls":3},"Администрация Черноморского городского поселения","Решение Совета муниципального образования Северский район от 01.03.2007г. № 471 \"О передаче имущества муниципального образования Северский район в собственность Черноморского, Ильского, Афипского городских поселений, Новодмитриевского, Калужского и Северского сельских поселений\""]
[730,"Силовая воздушная линия 5 проводная, 985 м","п. Черноморский, ул. Кавказская",1955,985,null,"23:26:0000000:4156",{"$nulls":3},"Администрация Черноморского городского поселения","Решение Совета муниципального образования Северский район от 01.03.2007г. № 471 \"О передаче имущества муниципального образования Северский район в собственность Черноморского, Ильского, Афипского городских поселений, Новодмитриевского, Калужского и Северского сельских поселений\""]
[731,"Силовая воздушная линия 4 провода, 558 м","п. Черноморский, ул. Пионерская",1948,558,null,"23:26:0000000:4165",{"$nulls":3},"Администрация Черноморского городского поселения","Решение Совета муниципального образования Северский район от 01.03.2007г. № 471 \"О передаче имущества муниципального образования Северский район в собственность Черноморского, Ильского, Афипского городских поселений, Новодмитриевского, Калужского и Северского сельских поселений\""]
[732,"Силовая электрическая линия 3 проводная, 900 м","п. Черноморский, ул. Школьная",1961,"900 ",{"$nulls":5},"Администрация Черноморского городского поселения","Решение Совета муниципального образования Северский район от 01.03.2007г. № 471 \"О передаче имущества муниципального образования Северский район в собственность Черноморского, Ильского, Афипского городских поселений, Новодмитриевского, Калужского и Северского сельских поселений\""]
[733,"Силовая электрическая линия 2 проводная, 856 м","п. Черноморский, пер. Южный",1963,"856 ",{"$nulls":5},"Администрация Черноморского городского поселения","Решение Совета муниципального образования Северский район от 01.03.2007г. № 471 \"О передаче имущества муниципального образования Северский район в собственность Черноморского, Ильского, Афипского городских поселений, Новодмитриевского, Калужского и Северского сельских поселений\""]
[734,"Силовая электрическая линия 5 проводная, 398 м","п. Черноморский, ул. Шевченко",1965,398,null,"23:26:0000000:4140",{"$nulls":3},"Администрация Черноморского городского поселения","Решение Совета муниципального образования Северский район от 01.03.2007г. № 471 \"О передаче имущества муниципального образования Северский район в собственность Черноморского, Ильского, Афипского городских поселений, Новодмитриевского, Калужского и Северского сельских поселений\""]
[735,"Силовая воздушная линия 4 проводная, 892 м","п. Черноморский, ул. Промысловая",1966,892,null,"23:26:0000000:4154",{"$nulls":3},"Администрация Черноморского городского поселения","Решение Совета муниципального образования Северский район от 01.03.2007г. № 471 \"О передаче имущества муниципального образования Северский район в собственность Черноморского, Ильского, Афипского городских поселений, Новодмитриевского, Калужского и Северского сельских поселений\""]
[736,"Силовая электрическая линия 3 проводная, 1070 м","п. Черноморский, ул.Промысловая",1966,1070,null,"23:26:0000000:4166",{"$nulls":3},"Администрация Черноморского городского поселения","Решение Совета муниципального образования Северский район от 01.03.2007г. № 471 \"О передаче имущества муниципального образования Северский район в собственность Черноморского, Ильского, Афипского городских поселений, Новодмитриевского, Калужского и Северского сельских поселений\""]
[737,"Силовая воздушная линия 4 проводная, 144 м","п. Черноморский, ул.Лермонтова",1968,144,null,"23:26:1103014:716",{"$nulls":3},"Администрация Черноморского городского поселения","Решение Совета муниципального образования Северский район от 01.03.2007г. № 471 \"О передаче имущества муниципального образования Северский район в собственность Черноморского, Ильского, Афипского городских поселений, Новодмитриевского, Калужского и Северского сельских поселений\""]
[738,"Силовая электрическая линия 2 проводная, 425 м","п. Черноморский, ул. Новая",1969,425,{"$nulls":5},"Администрация Черноморского городского поселения","Решение Совета муниципального образования Северский район от 01.03.2007г. № 471 \"О передаче имущества муниципального образования Северский район в собственность Черноморского, Ильского, Афипского городских поселений, Новодмитриевского, Калужского и Северского сельских поселений\""]
[739,"Силовая линия передач 0,4, 80 м","п. Черноморский, ул. Кубанская",1969,80,null,"23:00:0000000:1172",{"$nulls":3},"Администрация Черноморского городского поселения","Решение Совета муниципального образования Северский район от 01.03.2007г. № 471 \"О передаче имущества муниципального образования Северский район в собственность Черноморского, Ильского, Афипского городских поселений, Новодмитриевского, Калужского и Северского сельских поселений\""]
[740,"Силовая линия ВР 4-проводная, 850 м","п. Черноморский, ул. Приветливая",1969,850,null,"23:26:0000000:4169",{"$nulls":3},"Администрация Черноморского городского поселения","Решение Совета муниципального образования Северский район от 01.03.2007г. № 471 \"О передаче имущества муниципального образования Северский район в собственность Черноморского, Ильского, Афипского городских поселений, Новодмитриевского, Калужского и Северского сельских поселений\""]
[741,"Силовая линия ВЛ-4х проводная, 250 м","п. Черноморский, ул. Кутузова",1970,250,null,"23:26:0000000:4164",{"$nulls":3},"Администрация Черноморского городского поселения","Решение Совета муниципального образования Северский район от 01.03.2007г. № 471 \"О передаче имущества муниципального образования Северский район в собственность Черноморского, Ильского, Афипского городских поселений, Новодмитриевского, Калужского и Северского сельских поселений\""]
[742,"Силовая линия 4 проводная, 350 м","п. Черноморский, ул. Гагарина",1973,350,null,"23:26:0000000:4167",{"$nulls":3},"Администрация Черноморского городского поселения","Решение Совета муниципального образования Северский район от 01.03.2007г. № 471 \"О передаче имущества муниципального образования Северский район в собственность Черноморского, Ильского, Афипского городских поселений, Новодмитриевского, Калужского и Северского сельских поселений\""]
[743,"Силовая 220/380, 720 м","п. Черноморский, пр. Российский",1970,720,null,"23:26:0000000:4149",{"$nulls":3},"Администрация Черноморского городского поселения","Решение Совета муниципального образования Северский район от 01.03.2007г. № 471 \"О передаче имущества муниципального образования Северский район в собственность Черноморского, Ильского, Афипского городских поселений, Новодмитриевского, Калужского и Северского сельских поселений\""]
[744,"Электрическая линия Мо-200,4,5 квт, 0,4 км","п. Черноморский, ул. Ленина",1973,295,null,"23:26:0000000:3088",{"$nulls":3},"Администрация Черноморского городского поселения","Решение Совета муниципального образования Северский район от 01.03.2007г. № 471 \"О передаче имущества муниципального образования Северский район в собственность Черноморского, Ильского, Афипского городских поселений, Новодмитриевского, Калужского и Северского сельских поселений\""]
[745,"Наружная электрическая линия 380/220, 100 м","п. Черноморский, ул. Пушкина",1970,100,null,"23:26:0000000:3087",{"$nulls":3},"Администрация Черноморского городского поселения","Решение Совета муниципального образования Северский район от 01.03.2007г. № 471 \"О передаче имущества муниципального образования Северский район в собственность Черноморского, Ильского, Афипского городских поселений, Новодмитриевского, Калужского и Северского сельских поселений\""]
[746,"Силовая электрическая линия 4 проводная, 296 м","п. Черноморский, ул. Новая",1970,296,null,"23:26:1103030:547",{"$nulls":3},"Администрация Черноморского городского поселения","Решение Совета муниципального образования Северский район от 01.03.2007г. № 471 \"О передаче имущества муниципального образования Северский район в собственность Черноморского, Ильского, Афипского городских поселений, Новодмитриевского, Калужского и Северского сельских поселений\""]
["746 а","Силовая электрическая линия 2 проводная, 1300 м","п. Черноморский ул. Пионерская",null,1300,null,"23:26:0000000:4151",{"$nulls":3},"Администрация Черноморского городского поселения","Решение Совета муниципального образования Северский район от 01.03.2007г. № 471 \"О передаче имущества муниципального образования Северский район в собственность Черноморского, Ильского, Афипского городских поселений, Новодмитриевского, Калужского и Северского сельских поселений\""]
[753,"Насосная станция","п.Черноморский, ул.Толстого, 4",null,50,null,"23:26:1103022:622",{"$nulls":3},"Администрация Черноморского городского поселения","Закон Краснодарского края от 21.07.2008г. № 1546-КЗ \"О внесении изменений в Закон Краснодарского края \"О  разграничении имущества, находящегося в собственности муниципального образования Северский район, между вновь образованными городскими, сельскими поселениями и муниципальным образованием Северский район, в состав которого они входят\"."]
[754,"Газопровод среднего давления ДУ - 150 протяженность 1650 м","п.Октябрьский ",null,1650,null,"23:26:0000000:3923",{"$nulls":3},"Администрация Черноморского городского поселения","Закон Краснодарского края от 21.07.2008г. № 1546-КЗ \"О внесении изменений в Закон Краснодарского края \"О  разграничении имущества, находящегося в собственности муниципального образования Северский район, между вновь образованными городскими, сельскими поселениями и муниципальным образованием Северский район, в состав которого они входят\"."]
[755,"Дорога объездная асфальт протяженность 1,6 км","п.Черноморский, юго-западная окраина",null,1.6,null,"23:26:0000000:3685",{"$nulls":3},"Администрация Черноморского городского поселения","Закон Краснодарского края от 13.11.2006г. № 1112-КЗ \"О разграничении имущества, находящегося в собственности муниципального образования Северский район, между вновь образованными городскими, сельскими поселениями и муниципальным образованием Северский район, в состав которого они входят\""]
[759,"ГРП № 23 ","п. Спутник,         ул. Вокзальная, дом № 5 ",null,"1900-01-31T21:36:00",null,"23:26:1101003:0:1",{"$nulls":3},"Администрация Черноморского городского поселения","Решение Совета Чернеоморского городского поселения Северского района от 26.02.2009г. № 276 \" О принятии в муниципальную казну Черноморского городского поселения бесхозяйного ГРП № 23 находящегося в п.Спутник\""]
[788,"Дорога площадью 1640 кв.м., протяженность 315 м","от ул.Промышленной  до Черноморской автотранспортной колонны Краснодарского УТТ и Ст ооо \"Газпром трансгаз-Кубань\"",null,0.315,null,"23:26:1103015:0:16",{"v":1,"d":"1.00"},{"v":0,"d":"0.00"},{"v":1,"d":"1.00"},"Администрация Черноморского городского поселения","Закон Краснодарского края от 13.11.2006г. № 1112-КЗ \"О разграничении имущества, находящегося в собственности муниципального образования Северский район, между вновь образованными городскими, сельскими поселениями и муниципальным образованием Северский район, в состав которого они входят\" /Решение Совета Черноморского городского поселения Северского района от 12.11.2009г. № 21 \"О включении в реестр муниципальной казны участок дороги площадью 1640 м²\""]
[789,"Парк имени Горького площадью 5,42 га","п.Черноморский, ул.Суворова, 2",null,5.42,null,null,{"v":1,"d":"1.00"},{"v":0,"d":"0.00"},{"v":1,"d":"1.00"},"Администрация Черноморского городского поселения","Решение Совета Черноморского городского поселения Северского района от 10.12.2009г. \"О включении в реестр муниципальной казны парка имени Горького площадью 5.42 га, расположенного по адресу: п.Черноморский, ул.Суворова, 2\""]
[791,"Пожарный водоем ","п. Октябрьский, ул. Пушкина,29 а",{"$nulls":4},{"v":1,"d":"1.00"},{"v":0,"d":"0.00"},{"v":1,"d":"1.00"},"Администрация Черноморского городского поселения","Решение Совета Черноморского городского поселения Северского района от 10.06.2010г. \"Об утверждении дополнительного перечня имущества муниципального образования Северский район, передаваемого в собственность ЧГП\""]
[792,"Пожарный водоем ","п. Октябрьский, ул. Пушкина,15",{"$nulls":4},{"v":1,"d":"1.00"},{"v":0,"d":"0.00"},{"v":1,"d":"1.00"},"Администрация Черноморского городского поселения","Решение Совета Черноморского городского поселения Северского района от 10.06.2010г. \"Об утверждении дополнительного перечня имущества муниципального образования Северский район, передаваемого в собственность ЧГП\""]
[793,"Пожарный водоем ","п. Черноморский ул. Толстого,9",{"$nulls":4},{"v":1,"d":"1.00"},{"v":0,"d":"0.00"},{"v":1,"d":"1.00"},"Администрация Черноморского городского поселения","Решение Совета Черноморского городского поселения Северского района от 10.06.2010г. \"Об утверждении дополнительного перечня имущества муниципального образования Северский район, передаваемого в собственность ЧГП\""]
[846,"Мост № 1 через реку Зыбза        1932 г","район реки Зыбза",1932,null,null,"23:26:1101000:0:7",{"v":1,"d":"1.00"},{"v":0,"d":"0.00"},{"v":1,"d":"1.00"},"Администрация Черноморского городского поселения","ПОСТАНОВЛЕНИЕ № 68 ОТ 09.04.2012М Г. О ПРИНЯТИИ ИМУЩЕСТВА В МУНИЦИПАЛЬНУЮ ЧЕРНОМОРСКОГО ГОРОДСКОГО ПОСЕЛЕНИЯ СЕВЕРСКОГО РАЙОНА /НА ОСНОВАНИИ РЕШЕНИЯ СЕВЕРСКОГО РАЙОННОГО СУДА КК ОТ 09.02.2012,В СООТВЕТСТВИИ С П.3 СТ. 8 УСТАВА ЧГП СЕВЕРСКОГО РАЙОНА,РЕШЕНИЕМ СОВЕТА ЧГП ОТ 16.09.2010 №112\"ОБ УТВЕРЖДЕНИИ пОЛОЖЕНИЯ \"о ПОРЯДКЕ ПОЛЬЗОВАНИЯ И РАСПОРЯЖЕНИЯ МУНИЦИПАЛЬНОЙ СОБСТВЕННОСТЬЮ ЧГП\""]
[847,"Мост № 2 через реку Зыбза        1932 г","район реки Зыбза",1932,null,null,"23:26:1101000:0:8",{"v":1,"d":"1.00"},{"v":0,"d":"0.00"},{"v":1,"d":"1.00"},"Администрация Черноморского городского поселения","ПОСТАНОВЛЕНИЕ № 68 ОТ 09.04.2012М Г. О ПРИНЯТИИ ИМУЩЕСТВА В МУНИЦИПАЛЬНУЮ ЕРНОМОРСКОГО ГОРОДСКОГО ПОСЕЛЕНИЯ СЕВЕРСКОГО РАЙОНА /НА ОСНОВАНИИ РЕШЕНИЯ СЕВЕРСКОГО РАЙОННОГО СУДА КК ОТ 09.02.2012,В СООТВЕТСТВИИ С П.3 СТ. 8 УСТАВА ЧГП СЕВЕРСКОГО РАЙОНА,РЕШЕНИЕМ СОВЕТА ЧГП ОТ 16.09.2010 №112\"ОБ УТВЕРЖДЕНИИ пОЛОЖЕНИЯ \"о ПОРЯДКЕ ПОЛЬЗОВАНИЯ И РАСПОРЯЖЕНИЯ МУНИЦИПАЛЬНОЙ СОБСТВЕННОСТЬЮ ЧГП\""]
[854,"ГРП ","п.Черноморский ул.Дзержинского (территория котельной\"Центральная\")",1950,{"$nulls":3},{"v":10327,"d":"10,327.00"},{"v":0,"d":"0.00"},{"v":10327,"d":"10,327.00"},"Администрация Черноморского городского поселения","Постановление администрации Черноморского городского поселения Северского района от 05.07.2011 г. №139 \"О прнятии имущества в муниципвльную казну   Черноморского городского поселения Северского района\""]
[855,"ШРП","п.Черноморский ул.Гоголя               (район больницы)",1970,{"$nulls":3},{"v":22482,"d":"22,482.00"},{"v":0,"d":"0.00"},{"v":22482,"d":"22,482.00"},"Администрация Черноморского городского поселения","Постановление администрации Черноморского городского поселения Северского района от 05.07.2011 г. №139 \"О прнятии имущества в муниципвльную казну   Черноморского городского поселения Северского района\""]
[856,"ГРУ","п.Октябрьский ул.Пушкина,5\"а\"   (территория котельной\"ВИТИМ\")",1976,{"$nulls":3},{"v":67178,"d":"67,178.00"},{"v":0,"d":"0.00"},{"v":67178,"d":"67,178.00"},"Администрация Черноморского городского поселения","Постановление администрации Черноморского городского поселения Северского района от 05.07.2011 г. №139 \"О прнятии имущества в муниципвльную казну   Черноморского городского поселения Северского района\""]
[951,"АВТОМОБИЛЬНАЯ ДОРОГА       /6 км 461 м/","пгт. Черноморский -хут Карский",2014,"6 км (461 м)",{"$nulls":5},"Администрация Черноморского городского поселения","АКТ ПРИЕМА-ПЕРЕДАЧИ имущества ,передаваемого из муниципальной собственности муниципального образования Северский район в собственность Черноморскому городскому поселению Северского района на безвозмездной основе от 30 мая 2014 г+ ПРИЛОЖЕНИЕ К АКТУРешение Совета Черноморского городского поселения Северского района от 20.04.2017 г. № 229 \"О включении в реестр муниципальной собственности Черноморского городского поселения Северского района имущества\""]
[967,"ОСТАНОВКА -4 шт.","УЛ ДЗЕРЖИНСКОГО,   24",2014,{"$nulls":3},{"v":386502.5,"d":"386,502.50"},{"v":0,"d":"0.00"},{"v":386502.5,"d":"386,502.50"},"Администрация Черноморского городского поселения","ПОСТАНОВЛЕНИЕ №302 ОТ 19-12-2014 \"О ПРИНЯТИИ ИМУЩЕСТВА В МУНИЦИПАЛЬНУЮ КАЗНУ ЧЕРНОМОРСКОГО ГОРОДСКОГО ПОСЕЛЕНИЯ СЕВЕРСКОГО РАЙОНА\""]
[982,"блочно-модульная котельная установка АБМКУ-П \"Professional\" мощностью            1,9 МВт                           2015           ","п.Октябрьский, ул.Пушкина (Здание котельной)",2015,{"$nulls":3},{"v":13930000,"d":"13,930,000.00"},{"v":0,"d":"0.00"},{"v":13930000,"d":"13,930,000.00"},"Администрация Черноморского городского поселения","постановление № 69 от 25.02.2015 \"О принятии имущества в муниципальную казну Черноморского городского поселения Северского района\""]
[1007,"Дымовая труба ","п.Октябрьский, ул.Пушкина",{"$nulls":4},{"v":16800,"d":"16,800.00"},{"v":16800,"d":"16,800.00"},{"v":0,"d":"0.00"},"Администрация Черноморского городского поселения (Концессионное соглашение с ООО \"Тепловые сети\" от 17.09.2012 г. № 04/21-12) ","Закон Краснодарского края от 13.11.2006г. № 1112-КЗ \"О разграничении имущества, находящегося в собственности муниципального образования Северский район, между вновь образованными городскими, сельскими поселениями и муниципальным образованием Северский район, в состав которого они входят\""]
[1010,"Деревья различных пород (5600 ед.)","п.Черноморский",{"$nulls":7},"Администрация Черноморского городского поселения (Концессионное соглашение с ООО \"Тепловые сети\" от 17.09.2012 г. № 04/21-12) ","Закон Краснодарского края от 13.11.2006г. № 1112-КЗ \"О разграничении имущества, находящегося в собственности муниципального образования Северский район, между вновь образованными городскими, сельскими поселениями и муниципальным образованием Северский район, в состав которого они входят\""]
[1011,"Здание конторы лаборатории (Очистные сооружения)","Краснодарский край Северский район пгт. Черноморский",null,363.4,null,"23:26:0000000:4178",{"$nulls":3},"Администрация Черноморского городского поселения (Концессионное соглашение с ООО \"Тепловые сети\" от 17.09.2012 г. № 04/21-12) ","Закон Краснодарского края от 13.11.2006г. № 1112-КЗ \"О разграничении имущества, находящегося в собственности муниципального образования Северский район, между вновь образованными городскими, сельскими поселениями и муниципальным образованием Северский район, в состав которого они входят\""]
[1012,"Здание склада (Очистные сооружения)","Краснодарский край Северский район пгт. Черноморский",null,117.4,null,"23:26:0000000:4185",{"$nulls":3},"Администрация Черноморского городского поселения (Концессионное соглашение с ООО \"Тепловые сети\" от 17.09.2012 г. № 04/21-12) ","Закон Краснодарского края от 13.11.2006г. № 1112-КЗ \"О разграничении имущества, находящегося в собственности муниципального образования Северский район, между вновь образованными городскими, сельскими поселениями и муниципальным образованием Северский район, в состав которого они входят\""]
[1013,"Здание котельной (Очистные сооружения)","Краснодарский край Северский район пгт. Черноморский",null,49.1,null,"23:26:0000000:4187",{"$nulls":3},"Администрация Черноморского городского поселения (Концессионное соглашение с ООО \"Тепловые сети\" от 17.09.2012 г. № 04/21-12) ","Закон Краснодарского края от 13.11.2006г. № 1112-КЗ \"О разграничении имущества, находящегося в собственности муниципального образования Северский район, между вновь образованными городскими, сельскими поселениями и муниципальным образованием Северский район, в состав которого они входят\""]
[1014,"Здание насосной (Очистные сооружения)","Краснодарский край Северский район пгт. Черноморский",null,13.4,null,"23:26:0000000:4186",{"$nulls":3},"Администрация Черноморского городского поселения (Концессионное соглашение с ООО \"Тепловые сети\" от 17.09.2012 г. № 04/21-12) ","Закон Краснодарского края от 13.11.2006г. № 1112-КЗ \"О разграничении имущества, находящегося в собственности муниципального образования Северский район, между вновь образованными городскими, сельскими поселениями и муниципальным образованием Северский район, в состав которого они входят\""]
[1015,"Земельный участок -земли населенных пунктов -коммунальное обслуживание","Краснодарский край, Северский район, пгт. Черноморский, ул.Юбилейная, 95 а",null,83,null,"23:26:1103015:150",{"v":18039.39,"d":"18,039.39"},{"v":0,"d":"0.00"},{"v":18039.39,"d":"18,039.39"},"Администрация Черноморского городского поселения (Концессионное соглашение с ООО \"Тепловые сети\" от 17.09.2012 г. № 04/21-12) ","Решение Совета Черноморского городского поселения Северского района от 20.04.2017 г. № 229 \"О включении в реестр муниципальной собственности Черноморского городского поселения Северского района имущества\""]
[1016,"Земельный участок-земли населенных пунктов -коммунальное обслуживание","Краснодарский край, Северский район, пгт. Черноморский, ул.Дзержинского",null,3339,null,"23:26:1103021:97",{"v":725664.87,"d":"725,664.87"},{"v":0,"d":"0.00"},{"v":725664.87,"d":"725,664.87"},"Администрация Черноморского городского поселения","Решение Совета Черноморского городского поселения Северского района от 11.05.2017 г. № 234 \"О включении в реестр муниципальной собственности Черноморского городского поселения Северского района имущества\""]
[1017,"Земельный участок-земли населенных пунктов -коммунальное обслуживание","Краснодарский край, Северский район, п. Октябрьский, ул.Пушкина",null,1941,null,"23:26:1101005:1573",{"v":333386.16,"d":"333,386.16"},{"v":0,"d":"0.00"},{"v":333386.16,"d":"333,386.16"},"Администрация Черноморского городского поселения","Решение Совета Черноморского городского поселения Северского района от 11.05.2017 г. № 234 \"О включении в реестр муниципальной собственности Черноморского городского поселения Северского района имущества\""]
[1018,"Земельный участок-земли населенных пунктов -коммунальное обслуживание","Краснодарский край, Северский район, пгт. Черноморский, ул. Гоголя",null,1865,null,"23:26:1103030:549",{"v":405320.45,"d":"405,320.45"},{"v":0,"d":"0.00"},{"v":405320.45,"d":"405,320.45"},"Администрация Черноморского городского поселения","Решение Совета Черноморского городского поселения Северского района от 11.05.2017 г. № 234 \"О включении в реестр муниципальной собственности Черноморского городского поселения Северского района имущества\""]
[1019,"Земельный участок (для размещения базы Черноморской водозаборной станции)","Краснодарский край, Северский район в районе х. Карского",null,11373,null,"23:26:1105001:152",{"v":1204059.51,"d":"1,204,059.51"},{"v":0,"d":"0.00"},{"v":1204059.51,"d":"1,204,059.51"},"Администрация Черноморского городского поселения","Решение Совета Черноморского городского поселения Северского района от 08.12.2017 г. № 282 \"О включении в реестр муниципальной собственности Черноморского городского поселения Северского района имущества\""]
[1020,"Участок теплотрассы между домами по ул.Новой, 2 и ул.Кавказской, 18, лит. I, II, I-протяженность 591,0 м диаметр 89, II-протяженность 593,0 м, диаметр 57","Краснодарский край Северский район пгт. Черноморский",null,1,null,"23:26:0000000:1834",{"$nulls":3},"Администрация Черноморского городского поселения","Решение Совета Черноморского городского поселения Северского района от 08.12.2017 г. № 282 \"О включении в реестр муниципальной собственности Черноморского городского поселения Северского района имущества\""]
[1021,"Земельный участок (для размещения артезианской скважины № 1)","Краснодарский край, Северский район, в районе х. Новоивановского",null,3964,null,"23:26:0701011:169",{"v":219486.68,"d":"219,486.68"},{"v":0,"d":"0.00"},{"v":219486.68,"d":"219,486.68"},"Администрация Черноморского городского поселения","Решение Совета Черноморского городского поселения Северского района от 26.04.2018 г. № 319 \"О включении в реестр муниципальной собственности Черноморского городского поселения Северского района имущества\""]
[1022,"Земельный участок (для размещения артезианской скважины № 2)","Краснодарский край, Северский район, в районе х. Новоивановского",null,3506,null,"23:26:0701011:168",{"v":194127.22,"d":"194,127.22"},{"v":0,"d":"0.00"},{"v":194127.22,"d":"194,127.22"},"Администрация Черноморского городского поселения","Решение Совета Черноморского городского поселения Северского района от 26.04.2018 г. № 319 \"О включении в реестр муниципальной собственности Черноморского городского поселения Северского района имущества\""]
[1023,"Земельный участок (для размещения артезианской скважины № 3)","Краснодарский край, Северский район, в районе х. Новоивановского",null,3568,null,"23:26:0701011:167",{"v":197560.16,"d":"197,560.16"},{"v":0,"d":"0.00"},{"v":197560.16,"d":"197,560.16"},"Администрация Черноморского городского поселения","Решение Совета Черноморского городского поселения Северского района от 26.04.2018 г. № 319 \"О включении в реестр муниципальной собственности Черноморского городского поселения Северского района имущества\""]
[1024,"Внешние сети электроснабжения-0,4 кВ","х.Карский, ул. Домики НПС",null,560.2,null,null,{"v":5000,"d":"5,000.00"},{"v":0,"d":"0.00"},{"v":5000,"d":"5,000.00"},"Администрация Черноморского городского поселения","Решение Совета Черноморского городского поселения Северского района от 16.08.2018 г. № 342 \"О включении в реестр муниципальной собственности Черноморского городского поселения Северского района имущества\""]
[1,"Здание                            Дома культуры ","п.Черноморский, ул.Суворова, 2",1952,1438,"М000006835","23:26:1103018:0:9",{"v":15865205.94,"d":"15,865,205.94"},{"v":11821846.43,"d":"11,821,846.43"},{"v":3550898.89,"d":"3,550,898.89"},"Администрация Черноморского городского поселения","Закон Краснодарского края от 13.11.2006г. № 1112-КЗ \"О разграничении имущества, находящегося в собственности муниципального образования Северский район, между вновь образованными городскими, сельскими поселениями и муниципальным образованием Северский район, в состав которого они входят\""]
[2,"Бассейн                 лодочный ","п.Черноморский, ул. Суворова 2",1958,3019,"М000006839","23:26:1103019:0:8",{"v":974810.7,"d":"974,810.70"},{"v":974810.7,"d":"974,810.70"},{"v":0,"d":"0.00"},"Администрация Черноморского городского поселения","Закон Краснодарского края от 13.11.2006г. № 1112-КЗ \"О разграничении имущества, находящегося в собственности муниципального образования Северский район, между вновь образованными городскими, сельскими поселениями и муниципальным образованием Северский район, в состав которого они входят\""]
[3,"Ограждение протяженность  ","п.Черноморский, ул.Суворова, 2",1955,281,"М000006843",null,{"v":766318.32,"d":"766,318.32"},{"v":766318.32,"d":"766,318.32"},{"v":0,"d":"0.00"},"Администрация Черноморского городского поселения","Закон Краснодарского края от 13.11.2006г. № 1112-КЗ \"О разграничении имущества, находящегося в собственности муниципального образования Северский район, между вновь образованными городскими, сельскими поселениями и муниципальным образованием Северский район, в состав которого они входят\""]
[4,"Ограждение танцевальной площадки протяженность  (15.06.1955)  (М000006845)","п.Черноморский, ул.Суворова 2",1955,180,"М000006845",null,{"v":601418.52,"d":"601,418.52"},{"v":601418.52,"d":"601,418.52"},{"v":0,"d":"0.00"},"Администрация Черноморского городского поселения","Закон Краснодарского края от 13.11.2006г. № 1112-КЗ \"О разграничении имущества, находящегося в собственности муниципального образования Северский район, между вновь образованными городскими, сельскими поселениями и муниципальным образованием Северский район, в состав которого они входят\""]
[5,"Скульптура В.И. Ленина  ","пгт.Черноморский, ул.Дзержинского, парк \"Ленина\"",1950,3.2,"М000006848","23:26:0000000:3983",{"v":3005.1,"d":"3,005.10"},{"v":3005.1,"d":"3,005.10"},{"v":0,"d":"0.00"},"Администрация Черноморского городского поселения","Закон Краснодарского края от 13.11.2006г. № 1112-КЗ \"О разграничении имущества, находящегося в собственности муниципального образования Северский район, между вновь образованными городскими, сельскими поселениями и муниципальным образованием Северский район, в состав которого они входят\""]
[135,"парк \"Ленина\"","пгт.Черноморский, ул.Дзержинского, ",null,11823,null,"23:26:1103019:134"," ",null," ","Администрация Черноморского городского поселения","Закон Краснодарского края от 13.11.2006г. № 1112-КЗ \"О разграничении имущества, находящегося в собственности муниципального образования Северский район, между вновь образованными городскими, сельскими поселениями и муниципальным образованием Северский район, в состав которого они входят\""]
[136,"земельный участок-земли населенных пунктов-для  эксплуатации дома культуры и прилегающей территории ","пгт. Черноморский, ул. Суворова,2",null,3088,null,"23:26:1103019:67",{"$nulls":3},"Администрация Черноморского городского поселения","Решение Совета Черноморского городского поселения Северского района от 10.11.2016 № 178 \"О включении в реестр муниципальной собственности Черноморского городского поселения Северского района имущества\""]
[137,"земельный участок-земли населенных пунктов-для реконструкции и эксплуатации парковой зоны ","пгт. Черноморский, ул. Суворова, 2",null,58191,null,"23:26:0000000:263",{"$nulls":3},"Администрация Черноморского городского поселения","Решение Совета Черноморского городского поселения Северского района от 10.11.2016 № 178 \"О включении в реестр муниципальной собственности Черноморского городского поселения Северского района имущества\""]

{"sheet":"Раздел 2","index":1,"n_rows":34,"n_cols":10,"rows_kept":34,"merged":[[0,0,0,9],[1,0,1,9],[2,0,2,9]]}
["РЕЕСТР"]
["муниципальной собственности Черноморского городского поселения Северского района"]
["Раздел 2 Муниципальное движимое имущество"]
["№ п/п","Наименование движимого имущества","Год ввода","Инвентарный номер движимого имущества","Сведения о балансовой стоимости движимого имущества","Сведения о начисленной аммортизации","Сведения об остаточной стоимости движимого имущества, руб.","Сведения о правообладателе муниципального движимого имущества","Реквизиты документов - оснований возникновения (прекращения) права муниципальной собственности на движимое имущество","Сведения об установленных в отношении муниципального движимого имущества ограничениях (обременениях) с указанием основания и даты их возникновения и прекращения "]
[1,2,3,4,5,6,7,8,9,"10"]
[4,"Автобус \"Кубань\"п.Черноморский, ул.Дзержинского, 24 гос.номер 42-05 ККЮ, двигатель № 53658, шасси № 1374726",1992,1101050013,{"v":146690.76,"d":"146,690.76"},{"v":146690.76,"d":"146,690.76"},{"v":0,"d":"0.00"},"Администрация Черноморского городского поселения. По договору передано Спортивному клубу \"Черноморец\" в безвозмездное пользование.","Закон Краснодарского края от 13.11.2006г. № 1112-КЗ \"О разграничении имущества, находящегося в собственности муниципального образования Северский район, между вновь образованными городскими, сельскими поселениями и муниципальным образованием Северский район, в состав которого они входят\""]
[108,"Автомобиль ГАЗ 31209 О384МВ 93 ",2008,1101051017,{"v":5000,"d":"5,000.00"},{"v":5000,"d":"5,000.00"},{"v":0,"d":"0.00"},"Администрация Черноморского городского поселения","Закон Краснодарского края от 13.11.2006г. № 1112-КЗ \"О разграничении имущества, находящегося в собственности муниципального образования Северский район, между вновь образованными городскими, сельскими поселениями и муниципальным образованием северский рай"]
[109,"Автомобиль ГАЗ 33061 О346МВ 93 ",2008,1101050012,{"v":8000,"d":"8,000.00"},{"v":8000,"d":"8,000.00"},{"v":0,"d":"0.00"},"Администрация Черноморского городского поселения","Закон Краснодарского края от 13.11.2006г. № 1112-КЗ \"О разграничении имущества, находящегося в собственности муниципального образования Северский район, между вновь образованными городскими, сельскими поселениями и муниципальным образованием северский рай"]
[110,"Автомобиль ГАЗ 330700 О356МВ 93 ",2008,1101050117,{"v":8000,"d":"8,000.00"},{"v":8000,"d":"8,000.00"},{"v":0,"d":"0.00"},"Администрация Черноморского городского поселения","Закон Краснодарского края от 13.11.2006г. № 1112-КЗ \"О разграничении имущества, находящегося в собственности муниципального образования Северский район, между вновь образованными городскими, сельскими поселениями и муниципальным образованием северский рай"]
[113,"Автомобиль ГАЗ 53А О341МВ 93 ",2008,1101050009,{"v":3000,"d":"3,000.00"},{"v":3000,"d":"3,000.00"},{"v":0,"d":"0.00"},"Администрация Черноморского городского поселения","Закон Краснодарского края от 13.11.2006г. № 1112-КЗ \"О разграничении имущества, находящегося в собственности муниципального образования Северский район, между вновь образованными городскими, сельскими поселениями и муниципальным образованием северский рай"]
[114,"Автомобиль ГАЗ 53А О366/0355МВ 93 ",2008,1101050011,{"v":4500,"d":"4,500.00"},{"v":4500,"d":"4,500.00"},{"v":0,"d":"0.00"},"Администрация Черноморского городского поселения","Закон Краснодарского края от 13.11.2006г. № 1112-КЗ \"О разграничении имущества, находящегося в собственности муниципального образования Северский район, между вновь образованными городскими, сельскими поселениями и муниципальным образованием северский рай"]
[115,"Автомобиль КАВЗ 3270 О338МВ 93",2008,1101050016,{"v":5000,"d":"5,000.00"},{"v":5000,"d":"5,000.00"},{"v":0,"d":"0.00"},"Администрация Черноморского городского поселения","Закон Краснодарского края от 13.11.2006г. № 1112-КЗ \"О разграничении имущества, находящегося в собственности муниципального образования Северский район, между вновь образованными городскими, сельскими поселениями и муниципальным образованием северский рай"]
[116,"Прицеп 2ПТС-4 УК 0602 23 ",2008,1101050029,{"v":92158,"d":"92,158.00"},{"v":92158,"d":"92,158.00"},{"v":0,"d":"0.00"},"Администрация Черноморского городского поселения (Концессионное соглашение от 17.09.2012 г. № 04/22-12 с ООО \"Северская саночистка\")","Закон Краснодарского края от 13.11.2006г. № 1112-КЗ \"О разграничении имущества, находящегося в собственности муниципального образования Северский район, между вновь образованными городскими, сельскими поселениями и муниципальным образованием северский рай"]
[117,"Прицеп 2ПТС-4 УК 0601 23 ",2008,1101050030,{"v":5180,"d":"5,180.00"},{"v":5180,"d":"5,180.00"},{"v":0,"d":"0.00"},"Администрация Черноморского городского поселения","Закон Краснодарского края от 13.11.2006г. № 1112-КЗ \"О разграничении имущества, находящегося в собственности муниципального образования Северский район, между вновь образованными городскими, сельскими поселениями и муниципальным образованием северский рай"]
[118,"Самоходное шасси Т - 16М УК 0607 23",2008,1101050026,{"v":3000,"d":"3,000.00"},{"v":3000,"d":"3,000.00"},{"v":0,"d":"0.00"},"Администрация Черноморского городского поселения","Закон Краснодарского края от 13.11.2006г. № 1112-КЗ \"О разграничении имущества, находящегося в собственности муниципального образования Северский район, между вновь образованными городскими, сельскими поселениями и муниципальным образованием Северский район"]
[119,"Трактор Т-40 АМ УК 0605 23 ",2008,1101050024,{"v":6000,"d":"6,000.00"},{"v":6000,"d":"6,000.00"},{"v":0,"d":"0.00"},"Администрация Черноморского городского поселения","Закон Краснодарского края от 13.11.2006г. № 1112-КЗ \"О разграничении имущества, находящегося в собственности муниципального образования Северский район, между вновь образованными городскими, сельскими поселениями и муниципальным образованием северский рай"]
[120,"Трактор Т-40 АМ УК 0604 23 ",2008,1101050017,{"v":8000,"d":"8,000.00"},{"v":8000,"d":"8,000.00"},{"v":0,"d":"0.00"},"Администрация Черноморского городского поселения","Закон Краснодарского края от 13.11.2006г. № 1112-КЗ \"О разграничении имущества, находящегося в собственности муниципального образования Северский район, между вновь образованными городскими, сельскими поселениями и муниципальным образованием северский рай"]
[121,"Автомобиль УАЗ 3303 О332МВ 93",1980,1101050014,{"v":8000,"d":"8,000.00"},{"v":8000,"d":"8,000.00"},{"v":0,"d":"0.00"},"Администрация Черноморского городского поселения","Закон Краснодарского края от 13.11.2006г. № 1112-КЗ \"О разграничении имущества, находящегося в собственности муниципального образования Северский район, между вновь образованными городскими, сельскими поселениями и муниципальным образованием северский рай"]
[123,"Автомобиль УАЗ 3741 О361МВ 94                     ",2008,"1101050013",{"v":3000,"d":"3,000.00"},{"v":3000,"d":"3,000.00"},{"v":0,"d":"0.00"},"Администрация Черноморского городского поселения (Концессионное соглашение с ООО \"Тепловые сети\" от 17.09.2012 г. № 04/21-12) ","Закон Краснодарского края от 13.11.2006г. № 1112-КЗ \"О разграничении имущества, находящегося в собственности муниципального образования Северский район, между вновь образованными городскими, сельскими поселениями и муниципальным образованием Северский район"]
[155,"Автомобиль LADA 211440    А 843 СУ п.Черноморский Дзержинского,24",2010,1101052389,{"v":273900,"d":"273,900.00"},{"v":273900,"d":"273,900.00"},{"v":0,"d":"0.00"},"Администрация Черноморского городского поселения (МКУ \"УОДОМСУ Черноморского городского поселения\" постановление №29 от 23.01.2015 \"О передаче муниципального имущества  в оперативное управление МКУ \"УОДОМСУ Черноморского городского поселения)","Распоряжение главы № 82-р от 15.04.2010 г \"О постановке транспортного средства на баланс администрации Черноморского городского поселения Северского района\""]
[467,"Автомобиль ГАЗ 3307 (мусоровоз) п.Черноморский, гос.номер. К 238 ВУ 93, 1999 год выпуска, двигатель № Х1005235, шасси № Х079774",null,null,{"v":35000,"d":"35,000.00"},{"v":35000,"d":"35,000.00"},{"v":0,"d":"0.00"},"Администрация Черноморского городского поселения","Закон Краснодарского края от 13.11.2006г. № 1112-КЗ \"О разграничении имущества, находящегося в собственности муниципального образования Северский район, между вновь образованными городскими, сельскими поселениями и муниципальным образованием Северский район, в состав которого они входят\""]
[749,"Автомобиль ИЖ-2715 B1753 (гос.номер Т 609 ЕМ 23, двигатель 6557064, шасси 0323457) 2007г.",2007,null,{"v":19321,"d":"19,321.00"},{"v":19321,"d":"19,321.00"},{"v":0,"d":"0.00"},"Администрация Черноморского городского поселения","Постановление главы муниципального образования Северский район от 20.03.2008г. № 774 \"Об изъятии автомобиля ИЖ-2715 госномер Т 609 ЕМ 23 из хозяйственного ведения МУП \"Бытсервис\" и передачи безвозмездно в собственность Черноморского городского поселения\""]
[760,"Автомобиль ГАЗ КО - 440 - 2 мусоровоз Р925ЕЕ 93",2005,3101050114,{"v":519800,"d":"519,800.00"},{"v":519800,"d":"519,800.00"},{"v":0,"d":"0.00"},"Администрация Черноморского городского поселения (Концессионное соглашение от 17.09.2012 г. № 04/22-12 с ООО \"Северская саночистка\")","Справка \"Перечень объектов основных средств находящихся на балансе администрации Черноморского городского поселения по состоянию на 01.01.2009года подлежащих переносу в состав имущества казны Черноморского городского поселения Северского района\""]
[761,"Прицеп 2ПТС-4М УК 0603 23",2008,1101050028,{"v":1000,"d":"1,000.00"},{"v":1000,"d":"1,000.00"},{"v":0,"d":"0.00"},"Администрация Черноморского городского поселения (Концессионное соглашение от 17.09.2012 г. № 04/22-12 с ООО \"Северская саночистка\")","Справка \"Перечень объектов основных средств находящихся на балансе администрации Черноморского городского поселения по состоянию на 01.01.2009года подлежащих переносу в состав имущества казны Черноморского городского поселения Северского района\""]
[762,"ГАЗ 5312 О337МВ 93",2008,1101050101,{"v":50000,"d":"50,000.00"},{"v":50000,"d":"50,000.00"},{"v":0,"d":"0.00"},"Администрация Черноморского городского поселения (МКУ \"УОДОМСУ Черноморского городского поселения\" постановление № 55 от 12.02.2015 \"О передаче муниципального имущества  в оперативное управление МКУ \"УОДОМСУ Черноморского городского поселения)","Справка \"Перечень объектов основных средств находящихся на балансе администрации Черноморского городского поселения по состоянию на 01.01.2009года подлежащих переносу в состав имущества казны Черноморского городского поселения Северского района\""]
[763,"РАФ 22038 О336МВ 93 ",2008,1101050015,{"v":15000,"d":"15,000.00"},{"v":15000,"d":"15,000.00"},{"v":0,"d":"0.00"},"Администрация Черноморского городского поселения","Справка \"Перечень объектов основных средств находящихся на балансе администрации Черноморского городского поселения по состоянию на 01.01.2009года подлежащих переносу в состав имущества казны Черноморского городского поселения Северского района\""]
[764,"Эксковатор ЭО-2621 на базе ЮМЗ-6 УК0608 23",2008,1101050021,{"v":104000,"d":"104,000.00"},{"v":104000,"d":"104,000.00"},{"v":0,"d":"0.00"},"Администрация Черноморского городского поселения","Справка \"Перечень объектов основных средств находящихся на балансе администрации Черноморского городского поселения по состоянию на 01.01.2009года подлежащих переносу в состав имущества казны Черноморского городского поселения Северского района\""]
[766,"Трактор Беларусь МТЗ - 80 УК0606 23 ",2008,1101050027,{"v":15000,"d":"15,000.00"},{"v":15000,"d":"15,000.00"},{"v":0,"d":"0.00"},"Администрация Черноморского городского поселения (Концессионное соглашение от 17.09.2012 г. № 04/22-12 с ООО \"Северская саночистка\")","Справка \"Перечень объектов основных средств находящихся на балансе администрации Черноморского городского поселения по состоянию на 01.01.2009 года подлежащих переносу в состав имущества казны Черноморского городского поселения Северского района\""]
[767,"Трактор Беларус 82,1 УО6904 ",2007,3101050115,{"v":525000,"d":"525,000.00"},{"v":525000,"d":"525,000.00"},{"v":0,"d":"0.00"},"Администрация Черноморского городского поселения (МКУ \"УОДОМСУ Черноморского городского поселения\" постановление № 413 от 01.12.2015 \"О передаче муниципального имущества  в оперативное управление \"МКУ УОДОМСУ Черноморского городского поселения)","Справка \"Перечень объектов основных средств находящихся на балансе администрации Черноморского городского поселения по состоянию на 01.01.2009года подлежащих переносу в состав имущества казны Черноморского городского поселения Северского района\""]
["768 а","Автомобиль ГАЗ 3307(мусоровоз) (п. Черноморский, гос. номер Т 506 АЕ 93, 1996 год выпуска, двигатель №0005960, шасси № 0781633)",null,null,{"v":8000,"d":"8,000.00"},{"v":8000,"d":"8,000.00"},{"v":0,"d":"0.00"},"Администрация Черноморского городского поселения (Концессионное соглашение от 17.09.2012 г. № 04/22-12 с ООО \"Северская саночистка\")","В соответствии с приказом Минфина РФ от 30 декабря 2008 г. № 148н \"Об утверждении инструкции по бюджетному учету\" в реестр муниципальной казны было включено следующее имущество"]
[769,"Тракторный прицеп 2ПТС-4,5 мод. 8549 УО 6905 23",2007,3101050116,{"v":107000,"d":"107,000.00"},{"v":107000,"d":"107,000.00"},{"v":0,"d":"0.00"},"Администрация Черноморского городского поселения (МКУ \"УОДОМСУ Черноморского городского поселения\" постановление № 413 от 01.12.2015 \"О передаче муниципального имущества  в оперативное управление \"МКУ УОДОМСУ Черноморского городского поселения)","Справка \"Перечень объектов основных средств находящихся на балансе администрации Черноморского городского поселения по состоянию на 01.01.2009года подлежащих переносу в состав имущества казны Черноморского городского поселения Северского района\""]
[978,"Трактор БЕЛАРУС-82.1    7420 КУ 23 (УЛ ДЗЕРЖИНСКОГО,   24)",2015,null,{"v":890000,"d":"890,000.00"},{"v":354932,"d":"354932.00"},{"v":535068,"d":"535068.00"},"Администрация Черноморского городского поселения (МКУ \"УОДОМСУ Черноморского городского поселения\" постановление № 413 от 01.12.2015 \"О передаче муниципального имущества  в оперативное управление \"МКУ УОДОМСУ Черноморского городского поселения)","ПОСТАНОВЛЕНИЕ № 56 ОТ 19/02/2015 \"О ПРИНЯТИИ ИМУЩЕСТВА В МУНИЦИПАЛЬНУЮ КАЗНУ ЧЕРНОМОРСКОГО ГОРОДСКОГО ПОСЕЛЕНИЯ СЕВЕРСКОГО РАЙОНА\""]
[1035,"Прицеп тракторный самосвальный 2 ПТС-4,5 гос.номер 6323 23ХА",2017,null,{"v":247000,"d":"247,000.00"},{"v":98997.6,"d":"98997.60"},{"v":148002.4,"d":"148,002.40"},"Администрация Черноморского городского поселения (МКУ \"УОДОМСУ Черноморского городского поселения\" договор оперативного управления муниципальным имуществом от 10.05.2017 )остановление №29 от 23.01.2015 о передаче муниципального имущества  в оперативное управление)","Постановление Администрации Черноморского городского поселения Северского района от 28.04.2017 г. № 196 \"О принятии имущества в муниципальную казну Черноморского городского поселения Северского района\""]
[1058,"Автомобиль ВАЗ 21070 В369АМ123",null,null,{"v":47000,"d":"47,000.00"},{"v":47000,"d":"47,000.00"},{"v":0,"d":"0.00"},"Администрация Черноморского городского поселения","Постановление Администрации Черноморского городского поселения Северского раойна от 24.09.2018 № 368 \"О принятии имущества в муниципальную собственность Черноморского городского поселения Северского раойна"]